Workbook

Sheet INPUT
B1: DGMK-Projekt 815 und 856 - Berechnungstool | J1: Version 1.04 | AC1: -8.244686486e+303
B2: Pfadauswahl und Parameter | J2: erstellt von Andrej Awgustow
G5: »Pfadauswahl« | I5: GUI für Pfadauswahl - Auch unten in Excel-Sheet INPUT - Zeile 11 möglich
G6: »Berechnung« | I6: Startet Berechnung - Zeigt Ergebnisse an
G7: »Standardwerte« | I7: Liest Standardwerte ein (inkl. Auswahl von Szenarien)
B9: Pfadauswahl
C10: # | D10: # - Produkt - Pfad (Dropdown-Menü)
B11: Pfad | C11: 32 | D11: 032 - H2 - blau, Dampfreformierung
B13: Beschreibung: | C13: GtH: Erdgas > Dampfreformierung > CO2-Abscheidung und CCS > blauer Wasserstoff
B15: Parameter
B16: Kapitalkosten der Anlage
B17: Anlagengröße | D17: 100000 | E17: t/a BÄ = | F17: 34841.46301 | G17: t/a Produkt | H17: jährliche Produktionskapazität links: in Benzinäquivalent (BÄ) oder rechts: in Masse des Produktes
B18: Faktor für Kapitalkosten | D18: 1 | E18: - | F18: Faktor für Kapitalkosten (der Anlage) - 1 entspricht im Modell hinterlegten Werten (0,5 z. B. der Hälfte der Werte)
B20: Finanzierung
B21: Zinssatz | D21: 10 | E21: %/a | F21: zu bedienende Zinsen für Fremdkapital
B22: Rendite | D22: 10 | E22: %/a | F22: zu erzielende Rendite auf Eigenkapitaleinsatz
B23: Eigenkapital | D23: 40 | E23: % | F23: Anteil Eigenkapital an CAPEX
B24: jährliche Tilgung | D24: 10 | E24: %/a | F24: Anteil der Tilgung des Eigenkapitals pro Jahr - 100% müssen vor Ende der Lebensdauer erreicht werden (wird ggf. automatisch angepasst)
B25: Lebensdauer | D25: 20 | E25: a | F25: Lebensdauer der Anlage (max. 30 a)
B27: Fixkosten
B28: Wartung | D28: 7 | E28: %CAPEX/a
B29: Versicherung | D29: 1 | E29: %CAPEX/a
B30: Steuern | D30: 3 | E30: %CAPEX/a
B31: Verbrauchsmaterial | D31: 15 | E31: % von Wartung/a
B32: Arbeitskosten | D32: 40.2 | E32: €/h
B34: Eingangsstoffe/-energieträger
B35: Strom | D35: 50 | E35: €/MWh | F35: Eingabe immer aktiv, wird aber ggf. nicht oder nur für Transport benötigt
B36: Biomasse | D36: 18 | E36: €/MWh | F36: entspricht | G36: 88.5 | H36: €/t Trockenmasse bei | J36: Holz | L36: Für Berechnungen ist Preis in €/MWh maßgeblich
B37: Erdgas | D37: 2.235597592 | E37: ct/kWh
B38: Biogas | D38: 5.55 | E38: ct/kwh
B40: Nebenprodukte
B41: Wärme | D41: 20 | E41: €/MWh | F41: Verkauf von Wärmeenergie
B42: Elektrizität | D42: 50 | E42: €/MWh | F42: Verkauf von Elektrizität
B43: Sauerstoff | D43: 23.7 | E43: €/t O2 | F43: Verkauf von reinem Sauerstoff
B44: LPG | D44: 100 | E44: % bzw. €/t | F44: %-Hauptpr. | G44: Nebenproduktpreis: Entweder in % des Hauptprodukts oder in €/t (Fixpreis)
B45: Naphtha | D45: 100 | E45: % bzw. €/t | F45: %-Hauptpr. | G45: Nebenproduktpreis: Entweder in % des Hauptprodukts oder in €/t (Fixpreis)
B47: Betriebsstoffe/-mittel
B48: Reinwasser | D48: 2 | E48: €/m³ | F48: für Elektrolyse
B49: Wasser | D49: 0.2 | E49: €/m³ | F49: für Reformierung
B50: Kühlwasser | D50: 0.09 | E50: €/m³ | F50: für Kühlung
B51: Katalysator MeOH | D51: 0.3480559734 | E51: €/a/(t/a) | F51: Kosten in €/a pro t/a Anlagenkapazität
B52: Katalysator MTG | D52: 6.62301726 | E52: €/a/(t/a) | F52: Kosten in €/a pro t/a Anlagenkapazität
B53: Katalysator DME -aus MeOH | D53: 0.9924827322 | E53: €/a/(t/a) | F53: Kosten in €/a pro t/a Anlagenkapazität (für DME aus Emthanol)
B54: Katalysator DME -direkt | D54: 1.688594679 | E54: €/a/(t/a) | F54: Kosten in €/a pro t/a Anlagenkapazität (für DME aus Direktsynthese)
B55: Benzol | D55: 800 | E55: €/t Benzol
B56: MEA | D56: 2072.013697 | E56: €/t MEA
B57: Ammoniak | D57: 300 | E57: €/t NH3
B58: Sand | D58: 174.96 | E58: €/t Sand
B59: CO2 aus Punktquelle | D59: 30 | E59: €/t CO2
B60: Abwasserentsorgung | D60: 2.5 | E60: €/m³ Abwasser
B62: Prozess
B63: Betriebsstunden | D63: 8000 | E63: h/a
B64: Betriebsstunden Elektrolyse | D64: 3000 | E64: h/a
B65: Wirkungsgrad Elektrolyse | D65: 62.99726948 | E65: % | F65: heizwertbezogen, zwischen 50 % und 90 %, Standardwert: 63 %
B66: Kosten Stackerneuerung | D66: 30 | E66: % der Investkosten, alle 10 Jahre
B67: Variation FTS-Ausbeute | D67: 0 | E67: %-Änderung | F67: limitiert auf ±5 % (relativ zu Ausgangsausbeute)
B68: FTS-Selektivität | D68: 88.09640116 | E68: % | F68: zwischen 60% und 95%, Nebenprodukt ist Naphtha
B69: Variation MeOH-Ausbeute | D69: 0 | E69: %-Änderung | F69: limitiert auf ±5 % (relativ zu Ausgangsausbeute)
B70: MtG-Selektivität | D70: 89.21898025 | E70: % | F70: zwischen 60% und 95%, Nebenprodukt ist LPG, Standardwert: 89,22 %
B71: Variation Methan-Ausbeute | D71: 0 | E71: %-Änderung | F71: limitiert auf ±5 % (relativ zu Ausgangsausbeute)
B72: Variation OME-Ausbeute | D72: 0 | E72: %-Änderung | F72: limitiert auf ±5 % (relativ zu Ausgangsausbeute)
B73: Variation 2G EtOH-Ausbeute | D73: 0 | E73: %-Anderüng | F73: limitiert auf ±5 % (relativ zu Ausgangsausbeute)
B74: Variation H2-Ausbeute (Reformer) | D74: 0 | E74: %-Anderüng | F74: limitiert auf ±5 % (relativ zu Ausgangsausbeute)
B76: Transport
B77: Produktklasse | C77: H2 | E77: Produktklasse des Pfads - wird automatisch eingeladen
B78: inkl. Transport | D78: nein | F78: Auswahl ob Transport mitberücksichtigt wird, bei "nein" wird Rest dieses Abschnitts ignoriert (ebenfalls wenn Produktklasse = "Sonst.", für Sonst. ist Transport nicht implementiert)
B79: Modus (H2) | D79: Pipeline | F79: Auswahl des Transportmodus - flüssiger H2 in Lkw und Schiffen oder gasf. H2 in Pipelines (nur für Produktklasse "H2") - bei flüssigem H2 ist Verflüssigung von H2 inbegriffen
B80: Strompreis Zielland | D80: 105 | E80: €/MWh | F80: Strompreis in Ziel-/Transitland (z.B. Deutschland) - wenn er vom Strompreis der Erzeugung abweicht
B81: für Flüssig: | C81: nächste Werte werden berücksichtigt, wenn Produktklasse "Flüssigk." ist oder Produktklasse "H2" und "Flüssig" ausgewählt wurde
B82: Strecke LkW | D82: 100 | E82: km
B83: Strecke Schiff | D83: 3000 | E83: km
B84: Strecke LkW (2) | D84: 500 | E84: km
B85: LkW-Betrieb mit | D85: Diesel | F85: Auswahl: Lkw mit Diesel betrieben, oder mit transportiertem Produkt
B86: Preis Schweröl | D86: 300 | E86: €/t
B87: Preis Diesel | D87: 1.05 | E87: €/l
B88: für Pipeline: | C88: nächste Werte werden nur berücksichtigt, wenn "Pipeline" ausgewählt und Produktklasse "H2" ist
B89: Strecke Pipeline | D89: 3100
B90: Strecke Distributionsnetz | D90: 500
B91: Verdichterstationen | D91: transp. H2 | F91: Auswahl: Verdichterstation mit Strom betrieben, oder mit transportiertem Wasserstoff
B92: Kapitalkostenfaktor Pipeline | D92: 1 | F92: Faktor für Kapitalkosten (der Pipeline) - Neubau der Pipeline: 1,0 - entspricht im Modell hinterlegten Werten; Umrüstung von Erdgaspipelines: 0,25 - würde 25% der Kosten eines Neubaus entsprechen
B94: THG-Emissionen
B95: CO2-Emissionspreis | D95: 0 | E95: €/t CO2
B96: Gas Methan-Emissionen | D96: 0.7 | E96: % | F96: Erd-/Biogas - Anteil entweichendes Methan
B97: THG-Intensität Methan | D97: 25 | E97: g CO2-Äq./g CH4 | F97: für o.g. Methan-Emissionen
B98: Erdgas - weitere CO2-Emissionen | D98: 5.16 | E98: g CO2/MJ | F98: Erzeugung von Erdgas | I98: andere Standardwerte: | K98: Erdgas (Europa)
B99: Biogas - weitere CO2-Emissionen | D99: 7.23 | E99: g CO2/MJ | F99: Erzeugung von Biogas | I99: andere Standardwerte: | K99: Biogas (Bioabfälle)
B100: Strom (Standort) | D100: 6.7 | E100: g CO2/MJ | F100: Erzeugung von Strom an Synthesestandort | I100: andere Standardwerte: | K100: Windkraft
B101: Strom (in Transit-/Zielland) | D101: 111.4 | E101: g CO2/MJ | F101: für Transport in Zielland (z.B. Dtl.). (falls abweichend) | I101: andere Standardwerte: | K101: Mix (Deutschland)
B102: Biomasse | D102: 0.7 | E102: g CO2/MJ | F102: Erzeugung von Biomasse | I102: andere Standardwerte: | K102: Restbiomasse
B103: Diesel | D103: 89.4 | E103: g CO2/MJ
B104: Schweröl | D104: 94.5 | E104: g CO2/MJ
B105: Ammoniak | D105: 2867 | E105: g CO2/kg NH3
B106: MEA | D106: 799 | E106: g CO2/kg MEA

Sheet OUTPUT
B1: DGMK-Projekt 815 und 856 - Berechnungstool | I1: =INPUT!J1 -> Version 1.04
B2: Ergebnisübersicht
B4: Preis
B5: Massebezogen | C5: 2770.09302 | D5: €/t | E5: = | F5: =C5/1000 -> 2.77009302 | G5: €/kg
B6: pro l Benzinäq. | C6: 0.7389316248 | D6: €/l BÄ | F6: (1 l BÄ = 32 MJ)
B8: Investitionskosten | C8: 178.7071011 | D8: Mio. €
B10: Eduktmengen
B11: Erdgas | C11: 2242065.717 | D11: MWh/a
B12: MEA | C12: 412.8356954 | D12: t/a
B19: Produktmengen
B20: H2 | C20: 34841.46301 | D20: t/a | E20: (vor Transport)
B21: H2 | C21: 34841.46301 | D21: t/a | E21: (nach Transport)
B22: Wärme | C22: 0 | D22: MWh/a
B23: Elektrizität | C23: 0 | D23: MWh/a | E23: =TEXT(C6,"0,00")&" "&D6 -> 0,74 €/l BÄ
B28: CO2-Äq.-Emissionen | C28: 97944.99738 | D28: t CO2/a
B30: energiespezifische THG-Emissionen
B31: Erdgas | C31: 23.35504608 | D31: g CO2/MJ
B32: MEA | C32: 0.07892008785 | D32: g CO2/MJ
B33: Transport | C33: 0 | D33: g CO2/MJ
A39: Wichtig: Da sich bei der Preisermittlung einige Effekte überlagern ist folgende Aufschlüsselung als Anhaltspunkt für die Gewichtung einzelner Posten zu betrachten.
B40: Aufschlüsselung | C40: €/l BÄ | D40: % | F40: (1 l BÄ = 32 MJ)
B41: Erdgas | C41: 0.3692204566 | D41: 49.96679587 | E41: 16764108
B42: Reinwasser | C42: 0.0008253311228 | D42: 0.1116924889 | E42: 3342489
B43: Abwasser | C43: 0.007114756227 | D43: 0.9628436499 | E43: 255
B44: Kühlung | C44: 0.0291317726 | D44: 3.942417894 | E44: 13311
B45: Verbrauchsmaterial | C45: 0.02091541646 | D45: 2.830494157 | E45: 13260
B46: Instandhaltung | C46: 0.09577526625 | D46: 12.96131645 | E46: 3243501
B47: Lohnkosten | C47: 0.02073195258 | D47: 2.805665895 | E47: 49407
B48: Steuern+Versicherung | C48: 0.05472872357 | D48: 7.406466543 | E48: 0
B49: Finanzierung | C49: 0.08429276966 | D49: 11.40738423 | E49: 4210752
B50: Rendite - Produkt | C50: 0.05619517977 | D50: 7.604922822 | E50: 8421504

Sheet CONFIG (hidden)
A1: 010 - H2 - grün
A2: 020 - H2 - Bio, Wirbelschichtvergasung
A3: 025 - H2 - Bio, Flugstromvergasung
A4: 030 - H2 - grau, Dampfreformierung
A5: 032 - H2 - blau, Dampfreformierung
A6: 033 - H2 - grau, autotherme Reformierung
A7: 034 - H2 - blau, autotherme Reformierung
A8: 040 - H2 - Bio, Dampfreformierung (Biogas)
A9: 042 - H2 - Bio mit CCS, Dampfreformierung (Biogas)
A10: 043 - H2 - Bio, autotherme Reformierung (Biogas) | D10: X | E10: OPEX!D3 | F10: OPEX!E18 | I10: OPEX!E33 | J10: OPEX!E35 | K10: OPEX!E40 | L10: OPEX!C63 | M10: OPEX!H1 | N10: CAPEX!C4 | O10: CAPEX!D1 | P10: H2 | Q10: OPEX!N119 | R10: OPEX!E49 | S10: OPEX!AN63 | T10: OPEX!AN65 | V10: OPEX!I133 | W10: CAPEX!L19 | X10: OPEX!E39 | Y10: OPEX!E41 | Z10: OPEX!K97 | AB10: OPEX!E37 | AC10: OPEX!E43 | AD10: OPEX!G14 | AE10: OPEX!E29 | AF10: CAPEX!L18 | AG10: OPEX!T119 | AL10: OPEX!E54 | AO10: OPEX!E10 | BB10: CAPEX!G3 | BC10: STREAMS!O7 | BD10: OPEX!E9 | BM10: OPEX!E14 | BR10: OPEX!G177 | BS10: OPEX!G182 | BU10: OPEX!G179 | BV10: OPEX!G180 | CA10: OPEX!A18 | CB10: OPEX!B19 | CC10: OPEX!C19 | CV10: OPEX!B49 | CW10: OPEX!G49 | CX10: OPEX!H49 | CY10: OPEX!B49 | CZ10: OPEX!O115 | DA10: OPEX!H49 | DC10: OPEX!B20 | DF10: OPEX!B20 | DH10: OPEX!B54 | DI10: OPEX!G54 | DJ10: OPEX!H54 | DQ10: OPEX!F191 | DR10: OPEX!G191 | DS10: OPEX!H191 | DT10: OPEX!F192 | DU10: OPEX!G192 | DV10: OPEX!H192
A11: 044 - H2 - Bio mit CCS, autotherme Reformierung (Biogas)
A12: 100 - FTS-Diesel/Kerosin - PtL, CO2 aus Luft
A13: 110 - FTS-Diesel/Kerosin - PtL, CO2 aus Punktquelle
A14: 120 - FTS-Diesel/Kerosin - BtL, Wirbelschichtvergasung
A15: 125 - FTS-Diesel/Kerosin - BtL, Flugstromvergasung
A16: 200 - DME - PtL, CO2 aus Luft
A17: 201 - DME über Methanol - PtL, CO2 aus Luft
A18: 210 - DME - PtL, CO2 aus Punktquelle
A19: 211 - DME über Methanol - PtL, CO2 aus Punktquelle
A20: 220 - DME - BtL, Wirbelschichtvergasung | D20: X | E20: OPEX!D3 | F20: OPEX!E17 | G20: OPEX!E7 | I20: OPEX!E35 | J20: OPEX!E37 | K20: OPEX!E42 | L20: OPEX!C65 | M20: OPEX!H1 | N20: CAPEX!C4 | O20: CAPEX!D1 | P20: H2 | Q20: OPEX!N119 | R20: OPEX!E51 | S20: OPEX!AN65 | T20: OPEX!AN67 | V20: OPEX!I133 | W20: CAPEX!L19 | X20: OPEX!E41 | Y20: OPEX!E43 | Z20: OPEX!K97 | AA20: OPEX!E33 | AB20: OPEX!E39 | AC20: OPEX!E45 | AD20: OPEX!G14 | AE20: OPEX!E31 | AF20: CAPEX!L18 | AG20: OPEX!T119 | AJ20: OPEX!E56 | AK20: OPEX!E55 | AQ20: OPEX!E23 | AY20: OPEX!E8 | BA20: CAPEX!G2 | BM20: OPEX!E14 | BR20: OPEX!G177 | BS20: OPEX!G184 | BT20: OPEX!G178 | BU20: OPEX!G181 | BV20: OPEX!G182 | CA20: OPEX!B7 | CB20: OPEX!G7 | CC20: OPEX!H7 | CD20: OPEX!B7 | CE20: OPEX!E178 | CF20: OPEX!F178 | CG20: OPEX!C177 | CH20: OPEX!E177 | CI20: OPEX!F177 | CV20: OPEX!B51 | CW20: OPEX!G51 | CX20: OPEX!H51 | CY20: OPEX!B51 | CZ20: OPEX!O115 | DA20: OPEX!H51 | DC20: OPEX!G56 | DF20: OPEX!G55 | DQ20: OPEX!F193 | DR20: OPEX!G193 | DS20: OPEX!H193 | DT20: OPEX!F194 | DU20: OPEX!G194 | DV20: OPEX!H194 | DW20: OPEX!F197 | DX20: OPEX!G197 | DY20: OPEX!H197
A21: 221 - DME über Methanol - BtL, Wirbelschichtvergasung
A22: 225 - DME - BtL, Flugstromvergasung
A23: 226 - DME über Methanol - BtL, Flugstromvergasung
A24: 300 - MtG-Benzin - PtL, CO2 aus Luft
A25: 310 - MtG-Benzin - PtL, CO2 aus Punktquelle | D25: X | E25: OPEX!D3 | F25: OPEX!E17 | G25: OPEX!E7 | I25: OPEX!E35 | J25: OPEX!E37 | K25: OPEX!E42 | L25: OPEX!C65 | M25: OPEX!H1 | N25: CAPEX!C4 | O25: CAPEX!D1 | P25: H2 | Q25: OPEX!N119 | R25: OPEX!E51 | S25: OPEX!AN65 | T25: OPEX!AN67 | V25: OPEX!I133 | W25: CAPEX!L19 | X25: OPEX!E41 | Y25: OPEX!E43 | Z25: OPEX!K97 | AA25: OPEX!E33 | AB25: OPEX!E39 | AC25: OPEX!E45 | AD25: OPEX!G14 | AE25: OPEX!E31 | AF25: CAPEX!L18 | AG25: OPEX!T119 | AJ25: OPEX!E56 | AK25: OPEX!E55 | AQ25: OPEX!E23 | BA25: CAPEX!G2 | BM25: OPEX!E14 | BR25: OPEX!G177 | BS25: OPEX!G184 | BT25: OPEX!G178 | BU25: OPEX!G181 | BV25: OPEX!G182 | CA25: OPEX!B7 | CB25: OPEX!G7 | CC25: OPEX!H7 | CD25: OPEX!B7 | CE25: OPEX!E178 | CF25: OPEX!F178 | CG25: OPEX!C177 | CH25: OPEX!E177 | CI25: OPEX!F177 | CV25: OPEX!B51 | CW25: OPEX!G51 | CX25: OPEX!H51 | CY25: OPEX!B51 | CZ25: OPEX!O115 | DA25: OPEX!H51 | DC25: OPEX!G56 | DF25: OPEX!G55 | DQ25: OPEX!F193 | DR25: OPEX!G193 | DS25: OPEX!H193 | DT25: OPEX!F194 | DU25: OPEX!G194 | DV25: OPEX!H194 | DW25: OPEX!F197 | DX25: OPEX!G197 | DY25: OPEX!H197
A26: 320 - MtG-Benzin - BtL, Wirbelschichtvergasung
A27: 325 - MtG-Benzin - BtL, Flugstromvergasung
A28: 400 - Methan - PtL, CO2 aus Luft
A29: 410 - Methan - PtL, CO2 aus Punktquelle
A30: 420 - Methan - BtL, Wirbelschichtvergasung | D30: X | E30: OPEX!D3 | H30: OPEX!E7 | I30: OPEX!E43 | J30: OPEX!E45 | K30: OPEX!E50 | L30: OPEX!C73 | M30: OPEX!H1 | N30: CAPEX!C4 | O30: CAPEX!D1 | P30: H2 | Q30: OPEX!N125 | R30: OPEX!E59 | S30: OPEX!AN73 | T30: OPEX!AN75 | V30: OPEX!I140 | W30: CAPEX!L19 | X30: OPEX!E49 | Y30: OPEX!E51 | Z30: OPEX!K103 | AA30: OPEX!E41 | AB30: OPEX!E47 | AC30: OPEX!E53 | AD30: OPEX!G22 | AE30: OPEX!E39 | AF30: CAPEX!L18 | AG30: OPEX!T125 | AJ30: OPEX!E64 | AK30: OPEX!E63 | AP30: OPEX!E8 | AQ30: OPEX!E31 | BA30: CAPEX!G2 | BL30: STREAMS!L4 | BM30: OPEX!E14 | BN30: OPEX!E15 | BO30: OPEX!E17 | BP30: OPEX!E16 | BR30: OPEX!G172 | BS30: OPEX!G179 | BU30: OPEX!G176 | BV30: OPEX!G177 | CA30: OPEX!C174 | CB30: OPEX!E174 | CC30: OPEX!F174 | CV30: OPEX!B59 | CW30: OPEX!G59 | CX30: OPEX!H59 | CY30: OPEX!B59 | CZ30: OPEX!O121 | DA30: OPEX!H59 | DC30: OPEX!G64 | DF30: OPEX!G63 | DQ30: OPEX!F188 | DR30: OPEX!G188 | DS30: OPEX!H188 | DT30: OPEX!F190 | DU30: OPEX!G190 | DV30: OPEX!H190 | DW30: OPEX!F192 | DX30: OPEX!G192 | DY30: OPEX!H192
A31: 425 - Methan - BtL, Flugstromvergasung
A32: 500 - OME - PtL, CO2 aus Luft | D32: X | E32: OPEX!D3 | H32: OPEX!E7 | I32: OPEX!E56 | J32: OPEX!E58 | K32: OPEX!E63 | L32: OPEX!C86 | M32: OPEX!H1 | N32: CAPEX!C4 | O32: CAPEX!D1 | P32: H2 | Q32: OPEX!N139 | R32: OPEX!E72 | S32: OPEX!AN86 | T32: OPEX!AN88 | V32: OPEX!I153 | W32: CAPEX!L19 | X32: OPEX!E62 | Y32: OPEX!E64 | Z32: OPEX!K117 | AA32: OPEX!E54 | AB32: OPEX!E60 | AC32: OPEX!E66 | AD32: OPEX!G29 | AE32: OPEX!E52 | AF32: CAPEX!L18 | AG32: OPEX!T139 | AJ32: OPEX!E77 | AK32: OPEX!E76 | AP32: OPEX!E8 | AQ32: OPEX!E44 | AW32: OPEX!E14 | BA32: CAPEX!G2 | BL32: STREAMS!L4 | BM32: OPEX!E21 | BN32: OPEX!E22 | BO32: OPEX!E24 | BP32: OPEX!E23 | BR32: OPEX!G197 | BS32: OPEX!G204 | BU32: OPEX!G201 | BV32: OPEX!G202 | BX32: OPEX!G200 | CA32: OPEX!C199 | CB32: OPEX!E199 | CC32: OPEX!F199 | CD32: OPEX!C200 | CE32: OPEX!E200 | CF32: OPEX!F200 | CV32: OPEX!B72 | CW32: OPEX!G72 | CX32: OPEX!H72 | CY32: OPEX!B72 | CZ32: OPEX!O135 | DA32: OPEX!H72 | DC32: OPEX!G77 | DF32: OPEX!G76 | DQ32: OPEX!F215 | DR32: OPEX!G215 | DS32: OPEX!H215 | DT32: OPEX!F216 | DU32: OPEX!G216 | DV32: OPEX!H216 | DW32: OPEX!F217 | DX32: OPEX!G217 | DY32: OPEX!H217
A33: 510 - OME - PtL, CO2 aus Punktquelle | D33: X | E33: OPEX!D3 | H33: OPEX!E7 | I33: OPEX!E41 | J33: OPEX!E43 | K33: OPEX!E48 | L33: OPEX!C71 | M33: OPEX!H1 | N33: CAPEX!C4 | O33: CAPEX!D1 | P33: H2 | Q33: OPEX!N139 | R33: OPEX!E57 | S33: OPEX!AN71 | T33: OPEX!AN73 | V33: OPEX!I153 | W33: CAPEX!L19 | X33: OPEX!E47 | Y33: OPEX!E49 | Z33: OPEX!K117 | AA33: OPEX!E39 | AB33: OPEX!E45 | AC33: OPEX!E51 | AD33: OPEX!G22 | AE33: OPEX!E37 | AF33: CAPEX!L18 | AG33: OPEX!T139 | AJ33: OPEX!E62 | AK33: OPEX!E61 | AP33: OPEX!E8 | AQ33: OPEX!E29 | BA33: CAPEX!G2 | BL33: STREAMS!L4 | BM33: OPEX!E14 | BN33: OPEX!E15 | BO33: OPEX!E17 | BP33: OPEX!E16 | BR33: OPEX!G197 | BS33: OPEX!G204 | BU33: OPEX!G201 | BV33: OPEX!G202 | CA33: OPEX!C199 | CB33: OPEX!E199 | CC33: OPEX!F199 | CV33: OPEX!B57 | CW33: OPEX!G57 | CX33: OPEX!H57 | CY33: OPEX!B57 | CZ33: OPEX!O135 | DA33: OPEX!H57 | DC33: OPEX!G62 | DF33: OPEX!G61 | DQ33: OPEX!F215 | DR33: OPEX!G215 | DS33: OPEX!H215 | DT33: OPEX!F217 | DU33: OPEX!G217 | DV33: OPEX!H217
A34: 520 - OME - BtL, Wirbelschichtvergasung | D34: X | E34: OPEX!D3 | H34: OPEX!E7 | I34: OPEX!E56 | J34: OPEX!E58 | K34: OPEX!E63 | L34: OPEX!C86 | M34: OPEX!H1 | N34: CAPEX!C4 | O34: CAPEX!D1 | P34: H2 | Q34: OPEX!N139 | R34: OPEX!E72 | S34: OPEX!AN86 | T34: OPEX!AN88 | V34: OPEX!I153 | W34: CAPEX!L19 | X34: OPEX!E62 | Y34: OPEX!E64 | Z34: OPEX!K117 | AA34: OPEX!E54 | AB34: OPEX!E60 | AC34: OPEX!E66 | AD34: OPEX!G29 | AE34: OPEX!E52 | AF34: CAPEX!L18 | AG34: OPEX!T139 | AJ34: OPEX!E77 | AK34: OPEX!E76 | AP34: OPEX!E8 | AQ34: OPEX!E44 | AW34: OPEX!E14 | BA34: CAPEX!G2 | BL34: STREAMS!L4 | BM34: OPEX!E21 | BN34: OPEX!E22 | BO34: OPEX!E24 | BP34: OPEX!E23 | BR34: OPEX!G197 | BS34: OPEX!G204 | BU34: OPEX!G201 | BV34: OPEX!G202 | BX34: OPEX!G200 | CA34: OPEX!C199 | CB34: OPEX!E199 | CC34: OPEX!F199 | CD34: OPEX!C200 | CE34: OPEX!E200 | CF34: OPEX!F200 | CV34: OPEX!B72 | CW34: OPEX!G72 | CX34: OPEX!H72 | CY34: OPEX!B72 | CZ34: OPEX!O135 | DA34: OPEX!H72 | DC34: OPEX!G77 | DF34: OPEX!G76 | DQ34: OPEX!F215 | DR34: OPEX!G215 | DS34: OPEX!H215 | DT34: OPEX!F216 | DU34: OPEX!G216 | DV34: OPEX!H216 | DW34: OPEX!F217 | DX34: OPEX!G217 | DY34: OPEX!H217
A35: 525 - OME - BtL, Flugstromvergasung
A36: 620 - 2G-Ethanol - Holz
A37: 650 - 2G-Ethanol - Weizenstroh
A38: 660 - 2G-Ethanol - Maisstroh
A39: 700 - Methanol - PtL, CO2 aus Luft
A40: 710 - Methanol - PtL, CO2 aus Punktquelle | D40: X | E40: OPEX!D3 | I40: OPEX!E41 | J40: OPEX!E43 | K40: OPEX!E48 | L40: OPEX!C71 | M40: OPEX!H1 | N40: CAPEX!C4 | O40: CAPEX!D1 | P40: H2 | Q40: OPEX!N139 | R40: OPEX!E57 | S40: OPEX!AN71 | T40: OPEX!AN73 | V40: OPEX!I153 | W40: CAPEX!L19 | X40: OPEX!E47 | Y40: OPEX!E49 | Z40: OPEX!K117 | AA40: OPEX!E39 | AB40: OPEX!E45 | AC40: OPEX!E51 | AD40: OPEX!G22 | AE40: OPEX!E37 | AF40: CAPEX!L18 | AG40: OPEX!T139 | AI40: OPEX!E7 | AJ40: OPEX!E62 | AK40: OPEX!E61 | AP40: OPEX!E8 | AQ40: OPEX!E29 | BA40: CAPEX!G2 | BL40: STREAMS!L4 | BM40: OPEX!E14 | BN40: OPEX!E15 | BO40: OPEX!E17 | BQ40: OPEX!E16 | BR40: OPEX!G197 | BS40: OPEX!G204 | BU40: OPEX!G201 | BV40: OPEX!G202 | CA40: OPEX!C199 | CB40: OPEX!E199 | CC40: OPEX!F199 | CV40: OPEX!B57 | CW40: OPEX!G57 | CX40: OPEX!H57 | CY40: OPEX!B57 | CZ40: OPEX!O135 | DA40: OPEX!H57 | DC40: OPEX!G62 | DF40: OPEX!G61 | DH40: OPEX!B63 | DI40: OPEX!G63 | DJ40: OPEX!H63 | DQ40: OPEX!F215 | DR40: OPEX!G215 | DS40: OPEX!H215 | DT40: OPEX!F217 | DU40: OPEX!G217 | DV40: OPEX!H217
A41: 720 - Methanol - BtL, Wirbelschichtvergasung
A42: 725 - Methanol - BtL, Flugstromvergasung | D42: X | E42: OPEX!D3 | I42: OPEX!E56 | J42: OPEX!E58 | K42: OPEX!E63 | L42: OPEX!C86 | M42: OPEX!H1 | N42: CAPEX!C4 | O42: CAPEX!D1 | P42: H2 | Q42: OPEX!N139 | R42: OPEX!E72 | S42: OPEX!AN86 | T42: OPEX!AN88 | V42: OPEX!I153 | W42: CAPEX!L19 | X42: OPEX!E62 | Y42: OPEX!E64 | Z42: OPEX!K117 | AA42: OPEX!E54 | AB42: OPEX!E60 | AC42: OPEX!E66 | AD42: OPEX!G29 | AE42: OPEX!E52 | AF42: CAPEX!L18 | AG42: OPEX!T139 | AI42: OPEX!E7 | AJ42: OPEX!E77 | AK42: OPEX!E76 | AP42: OPEX!E8 | AQ42: OPEX!E44 | AW42: OPEX!E14 | BA42: CAPEX!G2 | BL42: STREAMS!L4 | BM42: OPEX!E21 | BN42: OPEX!E22 | BO42: OPEX!E24 | BQ42: OPEX!E23 | BR42: OPEX!G197 | BS42: OPEX!G204 | BU42: OPEX!G201 | BV42: OPEX!G202 | BX42: OPEX!G200 | CA42: OPEX!C199 | CB42: OPEX!E199 | CC42: OPEX!F199 | CD42: OPEX!C200 | CE42: OPEX!E200 | CF42: OPEX!F200 | CV42: OPEX!B72 | CW42: OPEX!G72 | CX42: OPEX!H72 | CY42: OPEX!B72 | CZ42: OPEX!O135 | DA42: OPEX!H72 | DC42: OPEX!G77 | DF42: OPEX!G76 | DH42: OPEX!B78 | DI42: OPEX!G78 | DJ42: OPEX!H78 | DQ42: OPEX!F215 | DR42: OPEX!G215 | DS42: OPEX!H215 | DT42: OPEX!F216 | DU42: OPEX!G216 | DV42: OPEX!H216 | DW42: OPEX!F217 | DX42: OPEX!G217 | DY42: OPEX!H217
D43: X | E43: OPEX!D3 | I43: OPEX!E41 | J43: OPEX!E43 | K43: OPEX!E48 | L43: OPEX!C71 | M43: OPEX!H1 | N43: CAPEX!C4 | O43: CAPEX!D1 | P43: H2 | Q43: OPEX!N139 | R43: OPEX!E57 | S43: OPEX!AN71 | T43: OPEX!AN73 | V43: OPEX!I153 | W43: CAPEX!L19 | X43: OPEX!E47 | Y43: OPEX!E49 | Z43: OPEX!K117 | AA43: OPEX!E39 | AB43: OPEX!E45 | AC43: OPEX!E51 | AD43: OPEX!G22 | AE43: OPEX!E37 | AF43: CAPEX!L18 | AG43: OPEX!T139 | AI43: OPEX!E7 | AJ43: OPEX!E62 | AK43: OPEX!E61 | AP43: OPEX!E8 | AQ43: OPEX!E29 | BA43: CAPEX!G2 | BL43: STREAMS!L4 | BM43: OPEX!E14 | BN43: OPEX!E15 | BO43: OPEX!E17 | BQ43: OPEX!E16 | BR43: OPEX!G197 | BS43: OPEX!G204 | BU43: OPEX!G201 | BV43: OPEX!G202 | CA43: OPEX!C199 | CB43: OPEX!E199 | CC43: OPEX!F199 | CV43: OPEX!B57 | CW43: OPEX!G57 | CX43: OPEX!H57 | CY43: OPEX!B57 | CZ43: OPEX!O135 | DA43: OPEX!H57 | DC43: OPEX!G62 | DF43: OPEX!G61 | DH43: OPEX!B63 | DI43: OPEX!G63 | DJ43: OPEX!H63 | DQ43: OPEX!F215 | DR43: OPEX!G215 | DS43: OPEX!H215 | DT43: OPEX!F217 | DU43: OPEX!G217 | DV43: OPEX!H217
D44: X | E44: OPEX!D3 | I44: OPEX!E56 | J44: OPEX!E58 | K44: OPEX!E63 | L44: OPEX!C86 | M44: OPEX!H1 | N44: CAPEX!C4 | O44: CAPEX!D1 | P44: H2 | Q44: OPEX!N139 | R44: OPEX!E72 | S44: OPEX!AN86 | T44: OPEX!AN88 | V44: OPEX!I153 | W44: CAPEX!L19 | X44: OPEX!E62 | Y44: OPEX!E64 | Z44: OPEX!K117 | AA44: OPEX!E54 | AB44: OPEX!E60 | AC44: OPEX!E66 | AD44: OPEX!G29 | AE44: OPEX!E52 | AF44: CAPEX!L18 | AG44: OPEX!T139 | AI44: OPEX!E7 | AJ44: OPEX!E77 | AK44: OPEX!E76 | AP44: OPEX!E8 | AQ44: OPEX!E44 | AW44: OPEX!E14 | BA44: CAPEX!G2 | BL44: STREAMS!L4 | BM44: OPEX!E21 | BN44: OPEX!E22 | BO44: OPEX!E24 | BQ44: OPEX!E23 | BR44: OPEX!G197 | BS44: OPEX!G204 | BU44: OPEX!G201 | BV44: OPEX!G202 | BX44: OPEX!G200 | CA44: OPEX!C199 | CB44: OPEX!E199 | CC44: OPEX!F199 | CD44: OPEX!C200 | CE44: OPEX!E200 | CF44: OPEX!F200 | CV44: OPEX!B72 | CW44: OPEX!G72 | CX44: OPEX!H72 | CY44: OPEX!B72 | CZ44: OPEX!O135 | DA44: OPEX!H72 | DC44: OPEX!G77 | DF44: OPEX!G76 | DH44: OPEX!B78 | DI44: OPEX!G78 | DJ44: OPEX!H78 | DQ44: OPEX!F215 | DR44: OPEX!G215 | DS44: OPEX!H215 | DT44: OPEX!F216 | DU44: OPEX!G216 | DV44: OPEX!H216 | DW44: OPEX!F217 | DX44: OPEX!G217 | DY44: OPEX!H217
D100: X | E100: OPEX!D3 | F100: OPEX!E18 | I100: OPEX!E37 | J100: OPEX!E39 | K100: OPEX!E44 | L100: OPEX!C67 | M100: OPEX!H1 | N100: CAPEX!C4 | O100: CAPEX!D1 | P100: Flüssigk. | Q100: OPEX!N139 | R100: OPEX!E53 | S100: OPEX!AN67 | T100: OPEX!AN69 | U100: Diesel | V100: OPEX!I153 | W100: CAPEX!L19 | X100: OPEX!E43 | Y100: OPEX!E45 | Z100: OPEX!K117 | AA100: OPEX!E35 | AB100: OPEX!E41 | AC100: OPEX!E47 | AD100: OPEX!G16 | AE100: OPEX!E33 | AF100: CAPEX!L18 | AG100: OPEX!T139 | AL100: OPEX!E58 | AN100: OPEX!E56 | AO100: OPEX!E10 | AQ100: OPEX!E26 | BA100: CAPEX!G2 | BB100: CAPEX!G3 | BC100: STREAMS!O39 | BD100: OPEX!E9 | BE100: STREAMS!M9 | BF100: STREAMS!M7 | BM100: OPEX!E16 | BR100: OPEX!G197 | BS100: OPEX!G204 | BU100: OPEX!G201 | BV100: OPEX!G202 | CA100: OPEX!C197 | CB100: OPEX!E197 | CC100: OPEX!F197 | CV100: OPEX!B53 | CW100: OPEX!G53 | CX100: OPEX!H53 | CY100: OPEX!B53 | CZ100: OPEX!O135 | DA100: OPEX!H53 | DC100: OPEX!E57 | DF100: OPEX!E57 | DH100: OPEX!B56 | DI100: OPEX!G56 | DJ100: OPEX!H56 | DK100: OPEX!B58 | DL100: OPEX!G58 | DM100: OPEX!H58 | DQ100: OPEX!F213 | DR100: OPEX!G213 | DS100: OPEX!H213 | DT100: OPEX!F217 | DU100: OPEX!G217 | DV100: OPEX!H217
D110: X | E110: OPEX!D3 | F110: OPEX!E18 | I110: OPEX!E39 | J110: OPEX!E41 | K110: OPEX!E46 | L110: OPEX!C71 | M110: OPEX!H1 | N110: CAPEX!C4 | O110: CAPEX!D1 | P110: Flüssigk. | Q110: OPEX!N139 | R110: OPEX!E55 | S110: OPEX!AN71 | T110: OPEX!AN73 | U110: Diesel | V110: OPEX!I153 | W110: CAPEX!L19 | X110: OPEX!E45 | Y110: OPEX!E47 | Z110: OPEX!K117 | AA110: OPEX!E37 | AB110: OPEX!E43 | AC110: OPEX!E49 | AD110: OPEX!G29 | AE110: OPEX!E35 | AF110: CAPEX!L18 | AG110: OPEX!T139 | AJ110: OPEX!E60 | AL110: OPEX!E62 | AN110: OPEX!E58 | AO110: OPEX!E10 | AQ110: OPEX!E26 | AZ110: OPEX!E28 | BA110: CAPEX!G2 | BB110: CAPEX!G3 | BC110: STREAMS!O39 | BD110: OPEX!E9 | BE110: STREAMS!M9 | BF110: STREAMS!M7 | BM110: OPEX!E29 | BR110: OPEX!G197 | BS110: OPEX!G204 | BU110: OPEX!G201 | BV110: OPEX!G202 | CA110: OPEX!C197 | CB110: OPEX!E197 | CC110: OPEX!F197 | CD110: OPEX!A28 | CE110: OPEX!G28 | CF110: OPEX!H28 | CV110: OPEX!B55 | CW110: OPEX!G55 | CX110: OPEX!H55 | CY110: OPEX!B55 | CZ110: OPEX!O135 | DA110: OPEX!H55 | DC110: OPEX!G60 | DF110: OPEX!G59 | DH110: OPEX!B58 | DI110: OPEX!G58 | DJ110: OPEX!H58 | DK110: OPEX!B62 | DL110: OPEX!G62 | DM110: OPEX!H62 | DQ110: OPEX!F213 | DR110: OPEX!G213 | DS110: OPEX!H213 | DT110: OPEX!F217 | DU110: OPEX!G217 | DV110: OPEX!H217
D120: X | E120: OPEX!D3 | F120: OPEX!E17 | G120: OPEX!E7 | I120: OPEX!E35 | J120: OPEX!E37 | K120: OPEX!E42 | L120: OPEX!C66 | M120: OPEX!H1 | N120: CAPEX!C4 | O120: CAPEX!D1 | P120: Flüssigk. | Q120: OPEX!N139 | R120: OPEX!E51 | S120: OPEX!AN66 | T120: OPEX!AN68 | U120: Diesel | V120: OPEX!I153 | W120: CAPEX!L19 | X120: OPEX!E41 | Y120: OPEX!E43 | Z120: OPEX!K117 | AA120: OPEX!E33 | AB120: OPEX!E39 | AC120: OPEX!E45 | AD120: OPEX!G15 | AE120: OPEX!E31 | AF120: CAPEX!L18 | AG120: OPEX!T139 | AJ120: OPEX!E56 | AK120: OPEX!E57 | AN120: OPEX!E54 | AQ120: OPEX!E23 | AY120: OPEX!E8 | BA120: CAPEX!G2 | BE120: STREAMS!M9 | BF120: STREAMS!M7 | BM120: OPEX!E15 | BR120: OPEX!G197 | BS120: OPEX!G204 | BT120: OPEX!G198 | BU120: OPEX!G201 | BV120: OPEX!G202 | CA120: OPEX!B7 | CB120: OPEX!G7 | CC120: OPEX!H7 | CD120: OPEX!B7 | CE120: OPEX!E198 | CF120: OPEX!F198 | CV120: OPEX!B51 | CW120: OPEX!G51 | CX120: OPEX!H51 | CY120: OPEX!B51 | CZ120: OPEX!O135 | DA120: OPEX!H51 | DC120: OPEX!G56 | DF120: OPEX!G57 | DH120: OPEX!B54 | DI120: OPEX!G54 | DJ120: OPEX!H54 | DQ120: OPEX!F214 | DR120: OPEX!G214 | DS120: OPEX!H214 | DT120: OPEX!F217 | DU120: OPEX!G217 | DV120: OPEX!H217
D125: X | E125: OPEX!D3 | F125: OPEX!E17 | G125: OPEX!E7 | I125: OPEX!E35 | J125: OPEX!E37 | K125: OPEX!E42 | L125: OPEX!C66 | M125: OPEX!H1 | N125: CAPEX!C4 | O125: CAPEX!D1 | P125: Flüssigk. | Q125: OPEX!N139 | R125: OPEX!E51 | S125: OPEX!AN66 | T125: OPEX!AN68 | U125: Diesel | V125: OPEX!I153 | W125: CAPEX!L19 | X125: OPEX!E41 | Y125: OPEX!E43 | Z125: OPEX!K117 | AA125: OPEX!E33 | AB125: OPEX!E39 | AC125: OPEX!E45 | AD125: OPEX!G15 | AE125: OPEX!E31 | AF125: CAPEX!L18 | AG125: OPEX!T139 | AJ125: OPEX!E56 | AK125: OPEX!E57 | AN125: OPEX!E54 | AQ125: OPEX!E23 | BA125: CAPEX!G2 | BE125: STREAMS!M9 | BF125: STREAMS!M7 | BM125: OPEX!E15 | BR125: OPEX!G197 | BS125: OPEX!G204 | BT125: OPEX!G198 | BU125: OPEX!G201 | BV125: OPEX!G202 | CA125: OPEX!B7 | CB125: OPEX!G7 | CC125: OPEX!H7 | CD125: OPEX!B7 | CE125: OPEX!E198 | CF125: OPEX!F198 | CV125: OPEX!B51 | CW125: OPEX!G51 | CX125: OPEX!H51 | CY125: OPEX!B51 | CZ125: OPEX!O135 | DA125: OPEX!H51 | DC125: OPEX!G56 | DF125: OPEX!G57 | DH125: OPEX!B54 | DI125: OPEX!G54 | DJ125: OPEX!H54 | DQ125: OPEX!F214 | DR125: OPEX!G214 | DS125: OPEX!H214 | DT125: OPEX!F217 | DU125: OPEX!G217 | DV125: OPEX!H217
D200: X | E200: OPEX!D3 | F200: OPEX!E18 | I200: OPEX!E37 | J200: OPEX!E39 | K200: OPEX!E44 | L200: OPEX!C69 | M200: OPEX!H1 | N200: CAPEX!C4 | O200: CAPEX!D1 | P200: Sonst. | Q200: OPEX!N139 | R200: OPEX!E53 | S200: OPEX!AN69 | T200: OPEX!AN71 | V200: OPEX!I153 | W200: CAPEX!L19 | X200: OPEX!E43 | Y200: OPEX!E45 | Z200: OPEX!K117 | AA200: OPEX!E35 | AB200: OPEX!E41 | AC200: OPEX!E47 | AD200: OPEX!G16 | AE200: OPEX!E33 | AF200: CAPEX!L18 | AG200: OPEX!T139 | AJ200: OPEX!E58 | AL200: OPEX!E60 | AO200: OPEX!E10 | AQ200: OPEX!E26 | AU200: OPEX!E14 | BA200: CAPEX!G2 | BB200: CAPEX!G3 | BC200: STREAMS!O32 | BD200: OPEX!E9 | BM200: OPEX!E16 | BR200: OPEX!G197 | BS200: OPEX!G204 | BU200: OPEX!G201 | BV200: OPEX!G202 | CA200: OPEX!C197 | CB200: OPEX!E197 | CC200: OPEX!F197 | CV200: OPEX!B53 | CW200: OPEX!G53 | CX200: OPEX!H53 | CY200: OPEX!B53 | CZ200: OPEX!O135 | DA200: OPEX!H53 | DC200: OPEX!G58 | DF200: OPEX!G59 | DH200: OPEX!B60 | DI200: OPEX!G60 | DJ200: OPEX!H60 | DQ200: OPEX!F213 | DR200: OPEX!G213 | DS200: OPEX!H213 | DT200: OPEX!F217 | DU200: OPEX!G217 | DV200: OPEX!H217
D201: X | E201: OPEX!D3 | F201: OPEX!E18 | I201: OPEX!E37 | J201: OPEX!E39 | K201: OPEX!E44 | L201: OPEX!C69 | M201: OPEX!H1 | N201: CAPEX!C4 | O201: CAPEX!D1 | P201: Sonst. | Q201: OPEX!N139 | R201: OPEX!E53 | S201: OPEX!AN69 | T201: OPEX!AN71 | V201: OPEX!I153 | W201: CAPEX!L19 | X201: OPEX!E43 | Y201: OPEX!E45 | Z201: OPEX!K117 | AA201: OPEX!E35 | AB201: OPEX!E41 | AC201: OPEX!E47 | AD201: OPEX!G17 | AE201: OPEX!E33 | AF201: CAPEX!L18 | AG201: OPEX!T139 | AJ201: OPEX!E58 | AL201: OPEX!E60 | AO201: OPEX!E10 | AQ201: OPEX!E26 | AR201: OPEX!E14 | AT201: OPEX!E16 | BA201: CAPEX!G2 | BB201: CAPEX!G3 | BC201: STREAMS!O41 | BD201: OPEX!E9 | BG201: STREAMS!M17 | BM201: OPEX!E17 | BR201: OPEX!G197 | BS201: OPEX!G204 | BU201: OPEX!G201 | BV201: OPEX!G202 | CA201: OPEX!C197 | CB201: OPEX!E197 | CC201: OPEX!F197 | CV201: OPEX!B53 | CW201: OPEX!G53 | CX201: OPEX!H53 | CY201: OPEX!B53 | CZ201: OPEX!O135 | DA201: OPEX!H53 | DC201: OPEX!G58 | DF201: OPEX!G59 | DH201: OPEX!B60 | DI201: OPEX!G60 | DJ201: OPEX!H60 | DQ201: OPEX!F213 | DR201: OPEX!G213 | DS201: OPEX!H213 | DT201: OPEX!F217 | DU201: OPEX!G217 | DV201: OPEX!H217
D210: X | E210: OPEX!D3 | F210: OPEX!E18 | I210: OPEX!E39 | J210: OPEX!E41 | K210: OPEX!E46 | L210: OPEX!C71 | M210: OPEX!H1 | N210: CAPEX!C4 | O210: CAPEX!D1 | P210: Sonst. | Q210: OPEX!N139 | R210: OPEX!E55 | S210: OPEX!AN71 | T210: OPEX!AN73 | V210: OPEX!I153 | W210: CAPEX!L19 | X210: OPEX!E45 | Y210: OPEX!E47 | Z210: OPEX!K117 | AA210: OPEX!E37 | AB210: OPEX!E43 | AC210: OPEX!E49 | AD210: OPEX!G16 | AE210: OPEX!E35 | AF210: CAPEX!L18 | AG210: OPEX!T139 | AJ210: OPEX!E60 | AL210: OPEX!E62 | AO210: OPEX!E10 | AQ210: OPEX!E26 | AU210: OPEX!E14 | AZ210: OPEX!E28 | BA210: CAPEX!G2 | BB210: CAPEX!G3 | BC210: STREAMS!O32 | BD210: OPEX!E9 | BM210: OPEX!E16 | BR210: OPEX!G197 | BS210: OPEX!G204 | BU210: OPEX!G201 | BV210: OPEX!G202 | CA210: OPEX!C197 | CB210: OPEX!E197 | CC210: OPEX!F197 | CD210: OPEX!A28 | CE210: OPEX!G28 | CF210: OPEX!H28 | CV210: OPEX!B55 | CW210: OPEX!G55 | CX210: OPEX!H55 | CY210: OPEX!B55 | CZ210: OPEX!O135 | DA210: OPEX!H53 | DC210: OPEX!G60 | DF210: OPEX!G61 | DH210: OPEX!B62 | DI210: OPEX!G62 | DJ210: OPEX!H62 | DQ210: OPEX!F213 | DR210: OPEX!G213 | DS210: OPEX!H213 | DT210: OPEX!F217 | DU210: OPEX!G217 | DV210: OPEX!H217
D211: X | E211: OPEX!D3 | F211: OPEX!E18 | I211: OPEX!E39 | J211: OPEX!E41 | K211: OPEX!E46 | L211: OPEX!C71 | M211: OPEX!H1 | N211: CAPEX!C4 | O211: CAPEX!D1 | P211: Sonst. | Q211: OPEX!N139 | R211: OPEX!E55 | S211: OPEX!AN71 | T211: OPEX!AN73 | V211: OPEX!I153 | W211: CAPEX!L19 | X211: OPEX!E45 | Y211: OPEX!E47 | Z211: OPEX!K117 | AA211: OPEX!E37 | AB211: OPEX!E43 | AC211: OPEX!E49 | AD211: OPEX!G17 | AE211: OPEX!E35 | AF211: CAPEX!L18 | AG211: OPEX!T139 | AJ211: OPEX!E60 | AL211: OPEX!E62 | AO211: OPEX!E10 | AQ211: OPEX!E26 | AR211: OPEX!E14 | AT211: OPEX!E16 | AZ211: OPEX!E28 | BA211: CAPEX!G2 | BB211: CAPEX!G3 | BC211: STREAMS!O41 | BD211: OPEX!E9 | BG211: STREAMS!M17 | BM211: OPEX!E17 | BR211: OPEX!G197 | BS211: OPEX!G204 | BU211: OPEX!G201 | BV211: OPEX!G202 | CA211: OPEX!C197 | CB211: OPEX!E197 | CC211: OPEX!F197 | CD211: OPEX!A28 | CE211: OPEX!G28 | CF211: OPEX!H28 | CV211: OPEX!B55 | CW211: OPEX!G55 | CX211: OPEX!H55 | CY211: OPEX!B55 | CZ211: OPEX!O135 | DA211: OPEX!H53 | DC211: OPEX!G60 | DF211: OPEX!G61 | DH211: OPEX!B62 | DI211: OPEX!G62 | DJ211: OPEX!H62 | DQ211: OPEX!F213 | DR211: OPEX!G213 | DS211: OPEX!H213 | DT211: OPEX!F217 | DU211: OPEX!G217 | DV211: OPEX!H217
D220: X | E220: OPEX!D3 | F220: OPEX!E17 | G220: OPEX!E7 | I220: OPEX!E35 | J220: OPEX!E37 | K220: OPEX!E42 | L220: OPEX!C65 | M220: OPEX!H1 | N220: CAPEX!C4 | O220: CAPEX!D1 | P220: Sonst. | Q220: OPEX!N139 | R220: OPEX!E51 | S220: OPEX!AN65 | T220: OPEX!AN67 | V220: OPEX!I153 | W220: CAPEX!L19 | X220: OPEX!E41 | Y220: OPEX!E43 | Z220: OPEX!K117 | AA220: OPEX!E33 | AB220: OPEX!E39 | AC220: OPEX!E45 | AD220: OPEX!G15 | AE220: OPEX!E31 | AF220: CAPEX!L18 | AG220: OPEX!T139 | AJ220: OPEX!E56 | AK220: OPEX!E55 | AQ220: OPEX!E23 | AU220: OPEX!E13 | AY220: OPEX!E8 | BA220: CAPEX!G2 | BM220: OPEX!E15 | BR220: OPEX!G197 | BS220: OPEX!G204 | BT220: OPEX!G198 | BU220: OPEX!G201 | BV220: OPEX!G202 | CA220: OPEX!B7 | CB220: OPEX!G7 | CC220: OPEX!H7 | CD220: OPEX!B7 | CE220: OPEX!E198 | CF220: OPEX!F198 | CV220: OPEX!B51 | CW220: OPEX!G51 | CX220: OPEX!H51 | CY220: OPEX!B51 | CZ220: OPEX!O135 | DA220: OPEX!H53 | DC220: OPEX!G56 | DF220: OPEX!G55 | DQ220: OPEX!F214 | DR220: OPEX!G214 | DS220: OPEX!H214 | DT220: OPEX!F217 | DU220: OPEX!G217 | DV220: OPEX!H217
D221: X | E221: OPEX!D3 | F221: OPEX!E17 | G221: OPEX!E7 | I221: OPEX!E35 | J221: OPEX!E37 | K221: OPEX!E42 | L221: OPEX!C65 | M221: OPEX!H1 | N221: CAPEX!C4 | O221: CAPEX!D1 | P221: Sonst. | Q221: OPEX!N139 | R221: OPEX!E51 | S221: OPEX!AN65 | T221: OPEX!AN67 | V221: OPEX!I153 | W221: CAPEX!L19 | X221: OPEX!E41 | Y221: OPEX!E43 | Z221: OPEX!K117 | AA221: OPEX!E33 | AB221: OPEX!E39 | AC221: OPEX!E45 | AD221: OPEX!G16 | AE221: OPEX!E31 | AF221: CAPEX!L18 | AG221: OPEX!T139 | AJ221: OPEX!E56 | AK221: OPEX!E55 | AQ221: OPEX!E23 | AR221: OPEX!E13 | AT221: OPEX!E15 | AY221: OPEX!E8 | BA221: CAPEX!G2 | BG221: STREAMS!M17 | BM221: OPEX!E16 | BR221: OPEX!G197 | BS221: OPEX!G204 | BT221: OPEX!G198 | BU221: OPEX!G201 | BV221: OPEX!G202 | CA221: OPEX!B7 | CB221: OPEX!G7 | CC221: OPEX!H7 | CD221: OPEX!B7 | CE221: OPEX!E198 | CF221: OPEX!F198 | CV221: OPEX!B51 | CW221: OPEX!G51 | CX221: OPEX!H51 | CY221: OPEX!B51 | CZ221: OPEX!O135 | DA221: OPEX!H53 | DC221: OPEX!G56 | DF221: OPEX!G55 | DQ221: OPEX!F214 | DR221: OPEX!G214 | DS221: OPEX!H214 | DT221: OPEX!F217 | DU221: OPEX!G217 | DV221: OPEX!H217
D225: X | E225: OPEX!D3 | F225: OPEX!E17 | G225: OPEX!E7 | I225: OPEX!E35 | J225: OPEX!E37 | K225: OPEX!E42 | L225: OPEX!C65 | M225: OPEX!H1 | N225: CAPEX!C4 | O225: CAPEX!D1 | P225: Sonst. | Q225: OPEX!N139 | R225: OPEX!E51 | S225: OPEX!AN65 | T225: OPEX!AN67 | V225: OPEX!I153 | W225: CAPEX!L19 | X225: OPEX!E41 | Y225: OPEX!E43 | Z225: OPEX!K117 | AA225: OPEX!E33 | AB225: OPEX!E39 | AC225: OPEX!E45 | AD225: OPEX!G15 | AE225: OPEX!E31 | AF225: CAPEX!L18 | AG225: OPEX!T139 | AJ225: OPEX!E56 | AK225: OPEX!E55 | AQ225: OPEX!E23 | AU225: OPEX!E13 | BA225: CAPEX!G2 | BM225: OPEX!E15 | BR225: OPEX!G197 | BS225: OPEX!G204 | BT225: OPEX!G198 | BU225: OPEX!G201 | BV225: OPEX!G202 | CA225: OPEX!B7 | CB225: OPEX!G7 | CC225: OPEX!H7 | CD225: OPEX!B7 | CE225: OPEX!E198 | CF225: OPEX!F198 | CV225: OPEX!B51 | CW225: OPEX!G51 | CX225: OPEX!H51 | CY225: OPEX!B51 | CZ225: OPEX!O135 | DA225: OPEX!H53 | DC225: OPEX!G56 | DF225: OPEX!G55 | DQ225: OPEX!F214 | DR225: OPEX!G214 | DS225: OPEX!H214 | DT225: OPEX!F217 | DU225: OPEX!G217 | DV225: OPEX!H217
D226: X | E226: OPEX!D3 | F226: OPEX!E17 | G226: OPEX!E7 | I226: OPEX!E35 | J226: OPEX!E37 | K226: OPEX!E42 | L226: OPEX!C65 | M226: OPEX!H1 | N226: CAPEX!C4 | O226: CAPEX!D1 | P226: Sonst. | Q226: OPEX!N139 | R226: OPEX!E51 | S226: OPEX!AN65 | T226: OPEX!AN67 | V226: OPEX!I153 | W226: CAPEX!L19 | X226: OPEX!E41 | Y226: OPEX!E43 | Z226: OPEX!K117 | AA226: OPEX!E33 | AB226: OPEX!E39 | AC226: OPEX!E45 | AD226: OPEX!G16 | AE226: OPEX!E31 | AF226: CAPEX!L18 | AG226: OPEX!T139 | AJ226: OPEX!E56 | AK226: OPEX!E55 | AQ226: OPEX!E23 | AR226: OPEX!E13 | AT226: OPEX!E15 | BA226: CAPEX!G2 | BG226: STREAMS!M17 | BM226: OPEX!E16 | BR226: OPEX!G197 | BS226: OPEX!G204 | BT226: OPEX!G198 | BU226: OPEX!G201 | BV226: OPEX!G202 | CA226: OPEX!B7 | CB226: OPEX!G7 | CC226: OPEX!H7 | CD226: OPEX!B7 | CE226: OPEX!E198 | CF226: OPEX!F198 | CV226: OPEX!B51 | CW226: OPEX!G51 | CX226: OPEX!H51 | CY226: OPEX!B51 | CZ226: OPEX!O135 | DA226: OPEX!H53 | DC226: OPEX!G56 | DF226: OPEX!G55 | DQ226: OPEX!F214 | DR226: OPEX!G214 | DS226: OPEX!H214 | DT226: OPEX!F217 | DU226: OPEX!G217 | DV226: OPEX!H217
D300: X | E300: OPEX!D3 | F300: OPEX!E18 | I300: OPEX!E37 | J300: OPEX!E39 | K300: OPEX!E44 | L300: OPEX!C69 | M300: OPEX!H1 | N300: CAPEX!C4 | O300: OPEX!D1 | P300: Flüssigk. | Q300: OPEX!N139 | R300: OPEX!E53 | S300: OPEX!AN69 | T300: OPEX!AN71 | U300: Benzin | V300: OPEX!I153 | W300: CAPEX!L19 | X300: OPEX!E43 | Y300: OPEX!E45 | Z300: OPEX!K117 | AA300: OPEX!E35 | AB300: OPEX!E41 | AC300: OPEX!E47 | AD300: OPEX!G17 | AE300: OPEX!E35 | AF300: CAPEX!L18 | AG300: OPEX!T139 | AJ300: OPEX!E58 | AL300: OPEX!E60 | AM300: OPEX!E56 | AO300: OPEX!E10 | AQ300: OPEX!E26 | AR300: OPEX!E14 | AS300: OPEX!E16 | BA300: CAPEX!G2 | BB300: CAPEX!G3 | BC300: STREAMS!O41 | BD300: OPEX!E9 | BG300: STREAMS!L17 | BH300: STREAMS!M6 | BM300: OPEX!E17 | BR300: OPEX!G197 | BS300: OPEX!G204 | BU300: OPEX!G201 | BV300: OPEX!G202 | CA300: OPEX!C197 | CB300: OPEX!E197 | CC300: OPEX!F197 | CV300: OPEX!B53 | CW300: OPEX!G53 | CX300: OPEX!H53 | CY300: OPEX!B53 | CZ300: OPEX!O135 | DA300: OPEX!H53 | DC300: OPEX!G58 | DF300: OPEX!G59 | DH300: OPEX!B60 | DI300: OPEX!G60 | DJ300: OPEX!H60 | DK300: OPEX!B56 | DL300: OPEX!G56 | DM300: OPEX!H56 | DQ300: OPEX!F213 | DR300: OPEX!G213 | DS300: OPEX!H213 | DT300: OPEX!F217 | DU300: OPEX!G217 | DV300: OPEX!H217
D310: X | E310: OPEX!D3 | F310: OPEX!E18 | I310: OPEX!E39 | J310: OPEX!E41 | K310: OPEX!E46 | L310: OPEX!C71 | M310: OPEX!H1 | N310: CAPEX!C4 | O310: OPEX!D1 | P310: Flüssigk. | Q310: OPEX!N123 | R310: OPEX!E55 | S310: OPEX!AN71 | T310: OPEX!AN73 | U310: Benzin | V310: OPEX!I138 | W310: CAPEX!L19 | X310: OPEX!E45 | Y310: OPEX!E47 | Z310: OPEX!K101 | AA310: OPEX!E37 | AB310: OPEX!E43 | AC310: OPEX!E49 | AD310: OPEX!G29 | AE310: OPEX!E35 | AF310: CAPEX!L18 | AG310: OPEX!T123 | AJ310: OPEX!E60 | AL310: OPEX!E62 | AM310: OPEX!E58 | AO310: OPEX!E10 | AQ310: OPEX!E26 | AR310: OPEX!E14 | AS310: OPEX!E16 | AZ310: OPEX!E28 | BA310: CAPEX!G2 | BB310: CAPEX!G3 | BC310: STREAMS!O41 | BD310: OPEX!E9 | BG310: STREAMS!L17 | BH310: STREAMS!M6 | BM310: OPEX!E29 | BR310: OPEX!G170 | BS310: OPEX!G177 | BU310: OPEX!G174 | BV310: OPEX!G175 | CA310: OPEX!A18 | CB310: OPEX!B19 | CC310: OPEX!C19 | CD310: OPEX!A28 | CE310: OPEX!G28 | CF310: OPEX!H28 | CV310: OPEX!B55 | CW310: OPEX!G55 | CX310: OPEX!H55 | CY310: OPEX!B55 | CZ310: OPEX!O119 | DA310: OPEX!H55 | DC310: OPEX!G60 | DF310: OPEX!D19 | DH310: OPEX!B62 | DI310: OPEX!G62 | DJ310: OPEX!H62 | DK310: OPEX!B58 | DL310: OPEX!G58 | DM310: OPEX!H58 | DQ310: OPEX!F186 | DR310: OPEX!G186 | DS310: OPEX!H186 | DT310: OPEX!F190 | DU310: OPEX!G190 | DV310: OPEX!H190
D320: X | E320: OPEX!D3 | F320: OPEX!E17 | G320: OPEX!E7 | I320: OPEX!E35 | J320: OPEX!E37 | K320: OPEX!E42 | L320: OPEX!C66 | M320: OPEX!H1 | N320: CAPEX!C4 | O320: OPEX!D1 | P320: Flüssigk. | Q320: OPEX!N139 | R320: OPEX!E51 | S320: OPEX!AN66 | T320: OPEX!AN68 | U320: Benzin | V320: OPEX!I153 | W320: CAPEX!L19 | X320: OPEX!E41 | Y320: OPEX!E43 | Z320: OPEX!K117 | AA320: OPEX!E33 | AB320: OPEX!E39 | AC320: OPEX!E45 | AD320: OPEX!G16 | AE320: OPEX!E31 | AF320: CAPEX!L18 | AG320: OPEX!T139 | AJ320: OPEX!E57 | AK320: OPEX!E56 | AM320: OPEX!E54 | AQ320: OPEX!E23 | AR320: OPEX!E13 | AS320: OPEX!E15 | AY320: OPEX!E8 | BA320: CAPEX!G2 | BG320: STREAMS!L17 | BH320: STREAMS!M6 | BM320: OPEX!E16 | BR320: OPEX!G197 | BS320: OPEX!G204 | BT320: OPEX!G198 | BU320: OPEX!G201 | BV320: OPEX!G202 | CA320: OPEX!B7 | CB320: OPEX!G7 | CC320: OPEX!H7 | CD320: OPEX!B7 | CE320: OPEX!E198 | CF320: OPEX!F198 | CV320: OPEX!B51 | CW320: OPEX!G51 | CX320: OPEX!H51 | CY320: OPEX!B51 | CZ320: OPEX!O135 | DA320: OPEX!H51 | DC320: OPEX!G57 | DF320: OPEX!G56 | DH320: OPEX!B54 | DI320: OPEX!G54 | DJ320: OPEX!H54 | DQ320: OPEX!F214 | DR320: OPEX!G214 | DS320: OPEX!H214 | DT320: OPEX!F217 | DU320: OPEX!G217 | DV320: OPEX!H217
D325: X | E325: OPEX!D3 | F325: OPEX!E17 | G325: OPEX!E7 | I325: OPEX!E35 | J325: OPEX!E37 | K325: OPEX!E42 | L325: OPEX!C66 | M325: OPEX!H1 | N325: CAPEX!C4 | O325: OPEX!D1 | P325: Flüssigk. | Q325: OPEX!N139 | R325: OPEX!E51 | S325: OPEX!AN66 | T325: OPEX!AN68 | U325: Benzin | V325: OPEX!I153 | W325: CAPEX!L19 | X325: OPEX!E41 | Y325: OPEX!E43 | Z325: OPEX!K117 | AA325: OPEX!E33 | AB325: OPEX!E39 | AC325: OPEX!E45 | AD325: OPEX!G16 | AE325: OPEX!E31 | AF325: CAPEX!L18 | AG325: OPEX!T139 | AJ325: OPEX!E57 | AK325: OPEX!E56 | AM325: OPEX!E54 | AQ325: OPEX!E23 | AR325: OPEX!E13 | AS325: OPEX!E15 | BA325: CAPEX!G2 | BG325: STREAMS!L17 | BH325: STREAMS!M6 | BM325: OPEX!E16 | BR325: OPEX!G197 | BS325: OPEX!G204 | BT325: OPEX!G198 | BU325: OPEX!G201 | BV325: OPEX!G202 | CA325: OPEX!B7 | CB325: OPEX!G7 | CC325: OPEX!H7 | CD325: OPEX!B7 | CE325: OPEX!E198 | CF325: OPEX!F198 | CV325: OPEX!B51 | CW325: OPEX!G51 | CX325: OPEX!H51 | CY325: OPEX!B51 | CZ325: OPEX!O135 | DA325: OPEX!H51 | DC325: OPEX!G57 | DF325: OPEX!G56 | DH325: OPEX!B54 | DI325: OPEX!G54 | DJ325: OPEX!H54 | DQ325: OPEX!F214 | DR325: OPEX!G214 | DS325: OPEX!H214 | DT325: OPEX!F217 | DU325: OPEX!G217 | DV325: OPEX!H217
D400: X | E400: OPEX!D3 | F400: OPEX!E18 | I400: OPEX!E37 | J400: OPEX!E39 | K400: OPEX!E44 | L400: OPEX!C69 | M400: OPEX!H1 | N400: CAPEX!C4 | O400: OPEX!D1 | P400: Sonst. | Q400: OPEX!N139 | R400: OPEX!E53 | S400: OPEX!AN69 | T400: OPEX!AN71 | V400: OPEX!I153 | W400: CAPEX!L19 | X400: OPEX!E43 | Y400: OPEX!E45 | Z400: OPEX!K117 | AA400: OPEX!E35 | AB400: OPEX!E41 | AC400: OPEX!E47 | AD400: OPEX!G16 | AE400: OPEX!E33 | AF400: CAPEX!L18 | AG400: OPEX!T139 | AJ400: OPEX!E58 | AK400: OPEX!E59 | AL400: OPEX!E60 | AO400: OPEX!E10 | AQ400: OPEX!E26 | BA400: CAPEX!G2 | BB400: CAPEX!G3 | BC400: STREAMS!O29 | BD400: OPEX!E9 | BI400: STREAMS!L6 | BM400: OPEX!E16 | BR400: OPEX!G197 | BS400: OPEX!G204 | BU400: OPEX!G201 | BV400: OPEX!G202 | CA400: OPEX!C197 | CB400: OPEX!E197 | CC400: OPEX!F197 | CV400: OPEX!B53 | CW400: OPEX!G53 | CX400: OPEX!H53 | CY400: OPEX!B53 | CZ400: OPEX!O135 | DA400: OPEX!H53 | DC400: OPEX!G58 | DF400: OPEX!G59 | DH400: OPEX!B60 | DI400: OPEX!G60 | DJ400: OPEX!H60 | DQ400: OPEX!F213 | DR400: OPEX!G213 | DS400: OPEX!H213 | DT400: OPEX!F217 | DU400: OPEX!G217 | DV400: OPEX!H217
D410: X | E410: OPEX!D3 | F410: OPEX!E18 | I410: OPEX!E39 | J410: OPEX!E41 | K410: OPEX!E46 | L410: OPEX!C71 | M410: OPEX!H1 | N410: CAPEX!C4 | O410: OPEX!D1 | P410: Sonst. | Q410: OPEX!N139 | R410: OPEX!E55 | S410: OPEX!AN71 | T410: OPEX!AN73 | V410: OPEX!I153 | W410: CAPEX!L19 | X410: OPEX!E45 | Y410: OPEX!E47 | Z410: OPEX!K117 | AA410: OPEX!E37 | AB410: OPEX!E43 | AC410: OPEX!E49 | AD410: OPEX!G16 | AE410: OPEX!E35 | AF410: CAPEX!L18 | AG410: OPEX!T139 | AJ410: OPEX!E60 | AK410: OPEX!E61 | AL410: OPEX!E62 | AO410: OPEX!E10 | AQ410: OPEX!E26 | AZ410: OPEX!E28 | BA410: CAPEX!G2 | BB410: CAPEX!G3 | BC410: STREAMS!O29 | BD410: OPEX!E9 | BI410: STREAMS!L6 | BM410: OPEX!E16 | BR410: OPEX!G197 | BS410: OPEX!G204 | BU410: OPEX!G201 | BV410: OPEX!G202 | CA410: OPEX!C197 | CB410: OPEX!E197 | CC410: OPEX!F197 | CD410: OPEX!A28 | CE410: OPEX!G28 | CF410: OPEX!H28 | CV410: OPEX!B55 | CW410: OPEX!G55 | CX410: OPEX!H55 | CY410: OPEX!B55 | CZ410: OPEX!O135 | DA410: OPEX!H55 | DC410: OPEX!G60 | DF410: OPEX!G61 | DH410: OPEX!B62 | DI410: OPEX!G62 | DJ410: OPEX!H62 | DQ410: OPEX!F213 | DR410: OPEX!G213 | DS410: OPEX!H213 | DT410: OPEX!F217 | DU410: OPEX!G217 | DV410: OPEX!H217
D420: X | E420: OPEX!D3 | F420: OPEX!E17 | G420: OPEX!E7 | I420: OPEX!E35 | J420: OPEX!E37 | K420: OPEX!E42 | L420: OPEX!C65 | M420: OPEX!H1 | N420: CAPEX!C4 | O420: OPEX!D1 | P420: Sonst. | Q420: OPEX!N139 | R420: OPEX!E51 | S420: OPEX!AN65 | T420: OPEX!AN67 | V420: OPEX!I153 | W420: CAPEX!L19 | X420: OPEX!E41 | Y420: OPEX!E43 | Z420: OPEX!K117 | AA420: OPEX!E33 | AB420: OPEX!E39 | AC420: OPEX!E45 | AD420: OPEX!G15 | AE420: OPEX!E31 | AF420: CAPEX!L18 | AG420: OPEX!T139 | AJ420: OPEX!E56 | AK420: OPEX!E55 | AQ420: OPEX!E23 | AY420: OPEX!E8 | BA420: CAPEX!G2 | BI420: STREAMS!L6 | BM420: OPEX!E15 | BR420: OPEX!G197 | BS420: OPEX!G204 | BT420: OPEX!G198 | BU420: OPEX!G201 | BV420: OPEX!G202 | CA420: OPEX!B7 | CB420: OPEX!G7 | CC420: OPEX!H7 | CD420: OPEX!B7 | CE420: OPEX!E198 | CF420: OPEX!F198 | CG420: OPEX!C197 | CH420: OPEX!E197 | CI420: OPEX!F197 | CV420: OPEX!B51 | CW420: OPEX!G51 | CX420: OPEX!H51 | CY420: OPEX!B51 | CZ420: OPEX!O135 | DA420: OPEX!H51 | DC420: OPEX!G56 | DF420: OPEX!G55 | DQ420: OPEX!F213 | DR420: OPEX!G213 | DS420: OPEX!H213 | DT420: OPEX!F214 | DU420: OPEX!G214 | DV420: OPEX!H214 | DW420: OPEX!F217 | DX420: OPEX!G217 | DY420: OPEX!H217
D425: X | E425: OPEX!D3 | F425: OPEX!E17 | G425: OPEX!E7 | I425: OPEX!E35 | J425: OPEX!E37 | K425: OPEX!E42 | L425: OPEX!C65 | M425: OPEX!H1 | N425: CAPEX!C4 | O425: OPEX!D1 | P425: Sonst. | Q425: OPEX!N139 | R425: OPEX!E51 | S425: OPEX!AN65 | T425: OPEX!AN67 | V425: OPEX!I153 | W425: CAPEX!L19 | X425: OPEX!E41 | Y425: OPEX!E43 | Z425: OPEX!K117 | AA425: OPEX!E33 | AB425: OPEX!E39 | AC425: OPEX!E45 | AD425: OPEX!G15 | AE425: OPEX!E31 | AF425: CAPEX!L18 | AG425: OPEX!T139 | AJ425: OPEX!E56 | AK425: OPEX!E55 | AQ425: OPEX!E23 | BA425: CAPEX!G2 | BI425: STREAMS!L6 | BM425: OPEX!E15 | BR425: OPEX!G197 | BS425: OPEX!G204 | BT425: OPEX!G198 | BU425: OPEX!G201 | BV425: OPEX!G202 | CA425: OPEX!B7 | CB425: OPEX!G7 | CC425: OPEX!H7 | CD425: OPEX!B7 | CE425: OPEX!E198 | CF425: OPEX!F198 | CV425: OPEX!B51 | CW425: OPEX!G51 | CX425: OPEX!H51 | CY425: OPEX!B51 | CZ425: OPEX!O135 | DA425: OPEX!H51 | DC425: OPEX!G56 | DF425: OPEX!G55 | DQ425: OPEX!F214 | DR425: OPEX!G214 | DS425: OPEX!H214 | DT425: OPEX!F217 | DU425: OPEX!G217 | DV425: OPEX!H217
D500: X | E500: OPEX!D3 | F500: OPEX!E20 | I500: OPEX!E39 | J500: OPEX!E41 | K500: OPEX!E46 | L500: OPEX!C71 | M500: OPEX!H1 | N500: CAPEX!C4 | O500: OPEX!D1 | P500: Flüssigk. | Q500: OPEX!N139 | R500: OPEX!E55 | S500: OPEX!AN71 | T500: OPEX!AN73 | U500: OME | V500: OPEX!I153 | W500: CAPEX!L19 | X500: OPEX!E45 | Y500: OPEX!E47 | Z500: OPEX!K117 | AA500: OPEX!E37 | AB500: OPEX!E43 | AC500: OPEX!E49 | AD500: OPEX!G19 | AE500: OPEX!E35 | AF500: CAPEX!L18 | AG500: OPEX!T139 | AJ500: OPEX!E60 | AK500: OPEX!E61 | AL500: OPEX!E62 | AO500: OPEX!E10 | AQ500: OPEX!E28 | AR500: OPEX!E14 | AV500: OPEX!E18 | BA500: CAPEX!G2 | BB500: CAPEX!G3 | BC500: STREAMS!O60 | BD500: OPEX!E9 | BG500: STREAMS!L36 | BJ500: STREAMS!L4 | BM500: OPEX!E19 | BR500: OPEX!G197 | BS500: OPEX!G204 | BU500: OPEX!G201 | BV500: OPEX!G202 | CA500: OPEX!C197 | CB500: OPEX!E197 | CC500: OPEX!F197 | CV500: OPEX!B55 | CW500: OPEX!G55 | CX500: OPEX!H55 | CY500: OPEX!B55 | CZ500: OPEX!O135 | DA500: OPEX!H55 | DC500: OPEX!G60 | DF500: OPEX!G61 | DH500: OPEX!B62 | DI500: OPEX!G62 | DJ500: OPEX!H62 | DQ500: OPEX!F213 | DR500: OPEX!G213 | DS500: OPEX!H213 | DT500: OPEX!F217 | DU500: OPEX!G217 | DV500: OPEX!H217
D510: X | E510: OPEX!D3 | F510: OPEX!E20 | I510: OPEX!E41 | J510: OPEX!E43 | K510: OPEX!E48 | L510: OPEX!C73 | M510: OPEX!H1 | N510: CAPEX!C4 | O510: OPEX!D1 | P510: Flüssigk. | Q510: OPEX!N139 | R510: OPEX!E57 | S510: OPEX!AN73 | T510: OPEX!AN75 | U510: OME | V510: OPEX!I153 | W510: CAPEX!L19 | X510: OPEX!E47 | Y510: OPEX!E49 | Z510: OPEX!K117 | AA510: OPEX!E39 | AB510: OPEX!E45 | AC510: OPEX!E51 | AD510: OPEX!G19 | AE510: OPEX!E37 | AF510: CAPEX!L18 | AG510: OPEX!T139 | AJ510: OPEX!E62 | AK510: OPEX!E63 | AL510: OPEX!E64 | AO510: OPEX!E10 | AQ510: OPEX!E28 | AR510: OPEX!E14 | AV510: OPEX!E18 | AZ510: OPEX!E30 | BA510: CAPEX!G2 | BB510: CAPEX!G3 | BC510: STREAMS!O60 | BD510: OPEX!E9 | BG510: STREAMS!L36 | BJ510: STREAMS!L4 | BM510: OPEX!E19 | BR510: OPEX!G197 | BS510: OPEX!G204 | BU510: OPEX!G201 | BV510: OPEX!G202 | CA510: OPEX!C197 | CB510: OPEX!E197 | CC510: OPEX!F197 | CD510: OPEX!A30 | CE510: OPEX!G30 | CF510: OPEX!H30 | CV510: OPEX!B57 | CW510: OPEX!G57 | CX510: OPEX!H57 | CY510: OPEX!B557 | CZ510: OPEX!O135 | DA510: OPEX!H57 | DC510: OPEX!G62 | DF510: OPEX!G63 | DH510: OPEX!B64 | DI510: OPEX!G64 | DJ510: OPEX!H64 | DQ510: OPEX!F213 | DR510: OPEX!G213 | DS510: OPEX!H213 | DT510: OPEX!F217 | DU510: OPEX!G217 | DV510: OPEX!H217
D520: X | E520: OPEX!D3 | F520: OPEX!E19 | G520: OPEX!E7 | I520: OPEX!E37 | J520: OPEX!E39 | K520: OPEX!E44 | L520: OPEX!C67 | M520: OPEX!H1 | N520: CAPEX!C4 | O520: OPEX!D1 | P520: Flüssigk. | Q520: OPEX!N139 | R520: OPEX!E53 | S520: OPEX!AN67 | T520: OPEX!AN69 | U520: OME | V520: OPEX!I153 | W520: CAPEX!L19 | X520: OPEX!E43 | Y520: OPEX!E45 | Z520: OPEX!K117 | AA520: OPEX!E35 | AB520: OPEX!E41 | AC520: OPEX!E47 | AD520: OPEX!G18 | AE520: OPEX!E33 | AF520: CAPEX!L18 | AG520: OPEX!T139 | AJ520: OPEX!E58 | AK520: OPEX!E57 | AQ520: OPEX!E25 | AR520: OPEX!E13 | AV520: OPEX!E17 | AY520: OPEX!E8 | BA520: CAPEX!G2 | BG520: STREAMS!L36 | BJ520: STREAMS!L4 | BM520: OPEX!E18 | BR520: OPEX!G197 | BS520: OPEX!G204 | BT520: OPEX!G198 | BU520: OPEX!G201 | BV520: OPEX!G202 | CA520: OPEX!B7 | CB520: OPEX!G7 | CC520: OPEX!H7 | CD520: OPEX!B7 | CE520: OPEX!E198 | CF520: OPEX!F198 | CG520: OPEX!C197 | CH520: OPEX!E197 | CI520: OPEX!F197 | CV520: OPEX!B53 | CW520: OPEX!G53 | CX520: OPEX!H53 | CY520: OPEX!B53 | CZ520: OPEX!O135 | DA520: OPEX!H53 | DC520: OPEX!G58 | DF520: OPEX!G57 | DQ520: OPEX!F213 | DR520: OPEX!G213 | DS520: OPEX!H213 | DT520: OPEX!F214 | DU520: OPEX!G214 | DV520: OPEX!H214 | DW520: OPEX!F217 | DX520: OPEX!G217 | DY520: OPEX!H217
D525: X | E525: OPEX!D3 | F525: OPEX!E19 | G525: OPEX!E7 | I525: OPEX!E37 | J525: OPEX!E39 | K525: OPEX!E44 | L525: OPEX!C67 | M525: OPEX!H1 | N525: CAPEX!C4 | O525: OPEX!D1 | P525: Flüssigk. | Q525: OPEX!N139 | R525: OPEX!E53 | S525: OPEX!AN67 | T525: OPEX!AN69 | U525: OME | V525: OPEX!I153 | W525: CAPEX!L19 | X525: OPEX!E43 | Y525: OPEX!E45 | Z525: OPEX!K117 | AA525: OPEX!E35 | AB525: OPEX!E41 | AC525: OPEX!E47 | AD525: OPEX!G18 | AE525: OPEX!E33 | AF525: CAPEX!L18 | AG525: OPEX!T139 | AJ525: OPEX!E58 | AK525: OPEX!E57 | AQ525: OPEX!E25 | AR525: OPEX!E13 | AV525: OPEX!E17 | BA525: CAPEX!G2 | BG525: STREAMS!L36 | BJ525: STREAMS!L4 | BM525: OPEX!E18 | BR525: OPEX!G197 | BS525: OPEX!G204 | BT525: OPEX!G198 | BU525: OPEX!G201 | BV525: OPEX!G202 | CA525: OPEX!B7 | CB525: OPEX!G7 | CC525: OPEX!H7 | CD525: OPEX!B7 | CE525: OPEX!E198 | CF525: OPEX!F198 | CG525: OPEX!C197 | CH525: OPEX!E197 | CI525: OPEX!F197 | CV525: OPEX!B53 | CW525: OPEX!G53 | CX525: OPEX!H53 | CY525: OPEX!B53 | CZ525: OPEX!O135 | DA525: OPEX!H53 | DC525: OPEX!G58 | DF525: OPEX!G57 | DQ525: OPEX!F213 | DR525: OPEX!G213 | DS525: OPEX!H213 | DT525: OPEX!F214 | DU525: OPEX!G214 | DV525: OPEX!H214 | DW525: OPEX!F217 | DX525: OPEX!G217 | DY525: OPEX!H217
D620: X | E620: OPEX!D3 | F620: OPEX!E17 | G620: OPEX!E7 | I620: OPEX!E31 | J620: OPEX!E33 | K620: OPEX!E38 | L620: OPEX!C60 | M620: OPEX!H1 | N620: CAPEX!C4 | O620: OPEX!D1 | P620: Flüssigk. | Q620: OPEX!N139 | R620: OPEX!E47 | S620: OPEX!AN60 | T620: OPEX!AN62 | U620: Ethanol | V620: OPEX!I153 | W620: CAPEX!L19 | X620: OPEX!E37 | Y620: OPEX!E39 | Z620: OPEX!K117 | AA620: OPEX!E29 | AB620: OPEX!E35 | AC620: OPEX!E41 | AD620: OPEX!G15 | AE620: OPEX!E27 | AF620: CAPEX!L18 | AG620: OPEX!T139 | AH620: Holz | AJ620: OPEX!E52 | AK620: OPEX!E51 | AX620: OPEX!E8 | BA620: CAPEX!G2 | BK620: STREAMS!L4 | BM620: OPEX!E15 | BR620: OPEX!G197 | BS620: OPEX!G204 | BT620: OPEX!G198 | BU620: OPEX!G201 | BV620: OPEX!G202 | BW620: OPEX!G200 | CA620: OPEX!B7 | CB620: OPEX!G7 | CC620: OPEX!H7 | CD620: OPEX!B7 | CE620: OPEX!E198 | CF620: OPEX!F198 | CG620: OPEX!C200 | CH620: OPEX!E200 | CI620: OPEX!F200 | CV620: OPEX!B47 | CW620: OPEX!G47 | CX620: OPEX!H47 | CY620: OPEX!B47 | CZ620: OPEX!O135 | DA620: OPEX!H47 | DC620: OPEX!G52 | DF620: OPEX!G51 | DQ620: OPEX!F214 | DR620: OPEX!G214 | DS620: OPEX!H214 | DT620: OPEX!F216 | DU620: OPEX!G216 | DV620: OPEX!H216 | DW620: OPEX!F217 | DX620: OPEX!G217 | DY620: OPEX!H217
D650: X | E650: OPEX!D3 | F650: OPEX!E17 | G650: OPEX!E6 | I650: OPEX!E31 | J650: OPEX!E33 | K650: OPEX!E38 | L650: OPEX!C60 | M650: OPEX!H1 | N650: CAPEX!C4 | O650: OPEX!D1 | P650: Flüssigk. | Q650: OPEX!N139 | R650: OPEX!E47 | S650: OPEX!AN60 | T650: OPEX!AN62 | U650: Ethanol | V650: OPEX!I153 | W650: CAPEX!L19 | X650: OPEX!E37 | Y650: OPEX!E39 | Z650: OPEX!K117 | AA650: OPEX!E29 | AB650: OPEX!E35 | AC650: OPEX!E41 | AD650: OPEX!G15 | AE650: OPEX!E27 | AF650: CAPEX!L18 | AG650: OPEX!T139 | AH650: Weizenstroh | AJ650: OPEX!E52 | AK650: OPEX!E51 | AX650: OPEX!E8 | BA650: CAPEX!G2 | BK650: STREAMS!L4 | BM650: OPEX!E15 | BR650: OPEX!G197 | BS650: OPEX!G204 | BT650: OPEX!G198 | BU650: OPEX!G201 | BV650: OPEX!G202 | BW650: OPEX!G200 | CA650: OPEX!B7 | CB650: OPEX!G7 | CC650: OPEX!H7 | CD650: OPEX!B7 | CE650: OPEX!E198 | CF650: OPEX!F198 | CG650: OPEX!C200 | CH650: OPEX!E200 | CI650: OPEX!F200 | CV650: OPEX!B47 | CW650: OPEX!G47 | CX650: OPEX!H47 | CY650: OPEX!B47 | CZ650: OPEX!O135 | DA650: OPEX!H47 | DC650: OPEX!G52 | DF650: OPEX!G51 | DQ650: OPEX!F214 | DR650: OPEX!G214 | DS650: OPEX!H214 | DT650: OPEX!F216 | DU650: OPEX!G216 | DV650: OPEX!H216 | DW650: OPEX!F217 | DX650: OPEX!G217 | DY650: OPEX!H217
D660: X | E660: OPEX!D3 | F660: OPEX!E17 | G660: OPEX!E6 | I660: OPEX!E31 | J660: OPEX!E33 | K660: OPEX!E38 | L660: OPEX!C60 | M660: OPEX!H1 | N660: CAPEX!C4 | O660: OPEX!D1 | P660: Flüssigk. | Q660: OPEX!N139 | R660: OPEX!E47 | S660: OPEX!AN60 | T660: OPEX!AN62 | U660: Ethanol | V660: OPEX!I153 | W660: CAPEX!L19 | X660: OPEX!E37 | Y660: OPEX!E39 | Z660: OPEX!K117 | AA660: OPEX!E29 | AB660: OPEX!E35 | AC660: OPEX!E41 | AD660: OPEX!G15 | AE660: OPEX!E27 | AF660: CAPEX!L18 | AG660: OPEX!T139 | AH660: Maisstroh | AJ660: OPEX!E52 | AK660: OPEX!E51 | AX660: OPEX!E8 | BA660: CAPEX!G2 | BK660: STREAMS!L4 | BM660: OPEX!E15 | BR660: OPEX!G197 | BS660: OPEX!G204 | BT660: OPEX!G198 | BU660: OPEX!G201 | BV660: OPEX!G202 | BW660: OPEX!G200 | CA660: OPEX!B7 | CB660: OPEX!G7 | CC660: OPEX!H7 | CD660: OPEX!B7 | CE660: OPEX!E198 | CF660: OPEX!F198 | CG660: OPEX!C200 | CH660: OPEX!E200 | CI660: OPEX!F200 | CV660: OPEX!B47 | CW660: OPEX!G47 | CX660: OPEX!H47 | CY660: OPEX!B47 | CZ660: OPEX!O135 | DA660: OPEX!H47 | DC660: OPEX!G52 | DF660: OPEX!G51 | DQ660: OPEX!F214 | DR660: OPEX!G214 | DS660: OPEX!H214 | DT660: OPEX!F216 | DU660: OPEX!G216 | DV660: OPEX!H216 | DW660: OPEX!F217 | DX660: OPEX!G217 | DY660: OPEX!H217
D700: X | E700: OPEX!D3 | F700: OPEX!E18 | I700: OPEX!E37 | J700: OPEX!E39 | K700: OPEX!E44 | L700: OPEX!C69 | M700: OPEX!H1 | N700: CAPEX!C4 | O700: OPEX!D1 | P700: Flüssigk. | Q700: OPEX!N139 | R700: OPEX!E53 | S700: OPEX!AN69 | T700: OPEX!AN71 | U700: Methanol | V700: OPEX!I153 | W700: CAPEX!L19 | X700: OPEX!E43 | Y700: OPEX!E45 | Z700: OPEX!K117 | AA700: OPEX!E35 | AB700: OPEX!E41 | AC700: OPEX!E47 | AD700: OPEX!G16 | AE700: OPEX!E33 | AF700: CAPEX!L18 | AG700: OPEX!T139 | AJ700: OPEX!E58 | AK700: OPEX!E59 | AL700: OPEX!E60 | AO700: OPEX!E10 | AQ700: OPEX!E26 | AR700: OPEX!E14 | BA700: CAPEX!G2 | BB700: CAPEX!G3 | BC700: STREAMS!O28 | BD700: OPEX!E9 | BG700: STREAMS!L4 | BM700: OPEX!E16 | BR700: OPEX!G197 | BS700: OPEX!G204 | BU700: OPEX!G201 | BV700: OPEX!G202 | CA700: OPEX!C197 | CB700: OPEX!E197 | CC700: OPEX!F197 | CV700: OPEX!B53 | CW700: OPEX!G53 | CX700: OPEX!H53 | CY700: OPEX!B53 | CZ700: OPEX!O135 | DA700: OPEX!H53 | DC700: OPEX!G58 | DF700: OPEX!G59 | DH700: OPEX!B60 | DI700: OPEX!G60 | DJ700: OPEX!H60 | DQ700: OPEX!F213 | DR700: OPEX!G213 | DS700: OPEX!H213 | DT700: OPEX!F217 | DU700: OPEX!G217 | DV700: OPEX!H217
D710: X | E710: OPEX!D3 | F710: OPEX!E18 | I710: OPEX!E39 | J710: OPEX!E41 | K710: OPEX!E46 | L710: OPEX!C71 | M710: OPEX!H1 | N710: CAPEX!C4 | O710: OPEX!D1 | P710: Flüssigk. | Q710: OPEX!N139 | R710: OPEX!E55 | S710: OPEX!AN71 | T710: OPEX!AN73 | U710: Methanol | V710: OPEX!I153 | W710: CAPEX!L19 | X710: OPEX!E45 | Y710: OPEX!E47 | Z710: OPEX!K117 | AA710: OPEX!E37 | AB710: OPEX!E43 | AC710: OPEX!E49 | AD710: OPEX!G16 | AE710: OPEX!E35 | AF710: CAPEX!L18 | AG710: OPEX!T139 | AJ710: OPEX!E60 | AK710: OPEX!E61 | AL710: OPEX!E62 | AO710: OPEX!E10 | AQ710: OPEX!E26 | AR710: OPEX!E14 | AZ710: OPEX!E28 | BA710: CAPEX!G2 | BB710: CAPEX!G3 | BC710: STREAMS!O28 | BD710: OPEX!E9 | BG710: STREAMS!L4 | BM710: OPEX!E16 | BR710: OPEX!G197 | BS710: OPEX!G204 | BU710: OPEX!G201 | BV710: OPEX!G202 | CA710: OPEX!C197 | CB710: OPEX!E197 | CC710: OPEX!F197 | CV710: OPEX!B55 | CW710: OPEX!G55 | CX710: OPEX!H55 | CY710: OPEX!B55 | CZ710: OPEX!O135 | DA710: OPEX!H55 | DC710: OPEX!G60 | DF710: OPEX!G61 | DH710: OPEX!B62 | DI710: OPEX!G62 | DJ710: OPEX!H62 | DQ710: OPEX!F213 | DR710: OPEX!G213 | DS710: OPEX!H213 | DT710: OPEX!F217 | DU710: OPEX!G217 | DV710: OPEX!H217
D720: X | E720: OPEX!D3 | F720: OPEX!E17 | G720: OPEX!E7 | I720: OPEX!E35 | J720: OPEX!E37 | K720: OPEX!E42 | L720: OPEX!C65 | M720: OPEX!H1 | N720: CAPEX!C4 | O720: OPEX!D1 | P720: Flüssigk. | Q720: OPEX!N139 | R720: OPEX!E51 | S720: OPEX!AN65 | T720: OPEX!AN67 | U720: Methanol | V720: OPEX!I153 | W720: CAPEX!L19 | X720: OPEX!E41 | Y720: OPEX!E43 | Z720: OPEX!K117 | AA720: OPEX!E33 | AB720: OPEX!E39 | AC720: OPEX!E45 | AD720: OPEX!G15 | AE720: OPEX!E31 | AF720: CAPEX!L18 | AG720: OPEX!T139 | AJ720: OPEX!E56 | AK720: OPEX!E55 | AQ720: OPEX!E23 | AR720: OPEX!E13 | AY720: OPEX!E8 | BA720: CAPEX!G2 | BG720: STREAMS!L4 | BM720: OPEX!E15 | BR720: OPEX!G197 | BS720: OPEX!G204 | BT720: OPEX!G198 | BU720: OPEX!G201 | BV720: OPEX!G202 | CA720: OPEX!B7 | CB720: OPEX!G7 | CC720: OPEX!H7 | CD720: OPEX!B7 | CE720: OPEX!E198 | CF720: OPEX!F198 | CV720: OPEX!B51 | CW720: OPEX!G51 | CX720: OPEX!H51 | CY720: OPEX!B51 | CZ720: OPEX!O135 | DA720: OPEX!H51 | DC720: OPEX!G56 | DF720: OPEX!G55 | DQ720: OPEX!F214 | DR720: OPEX!G214 | DS720: OPEX!H214 | DT720: OPEX!F217 | DU720: OPEX!G217 | DV720: OPEX!H217
D725: X | E725: OPEX!D3 | F725: OPEX!E17 | G725: OPEX!E7 | I725: OPEX!E35 | J725: OPEX!E37 | K725: OPEX!E42 | L725: OPEX!C65 | M725: OPEX!H1 | N725: CAPEX!C4 | O725: OPEX!D1 | P725: Flüssigk. | Q725: OPEX!N139 | R725: OPEX!E51 | S725: OPEX!AN65 | T725: OPEX!AN67 | U725: Methanol | V725: OPEX!I153 | W725: CAPEX!L19 | X725: OPEX!E41 | Y725: OPEX!E43 | Z725: OPEX!K117 | AA725: OPEX!E33 | AB725: OPEX!E39 | AC725: OPEX!E45 | AD725: OPEX!G15 | AE725: OPEX!E31 | AF725: CAPEX!L18 | AG725: OPEX!T139 | AJ725: OPEX!E56 | AK725: OPEX!E55 | AQ725: OPEX!E23 | AR725: OPEX!E13 | BA725: CAPEX!G2 | BG725: STREAMS!L4 | BM725: OPEX!E15 | BR725: OPEX!G197 | BS725: OPEX!G204 | BT725: OPEX!G198 | BU725: OPEX!G201 | BV725: OPEX!G202 | CA725: OPEX!B7 | CB725: OPEX!G7 | CC725: OPEX!H7 | CD725: OPEX!B7 | CE725: OPEX!E198 | CF725: OPEX!F198 | CV725: OPEX!B51 | CW725: OPEX!G51 | CX725: OPEX!H51 | CY725: OPEX!B51 | CZ725: OPEX!O135 | DA725: OPEX!H51 | DC725: OPEX!G56 | DF725: OPEX!G55 | DQ725: OPEX!F214 | DR725: OPEX!G214 | DS725: OPEX!H214 | DT725: OPEX!F217 | DU725: OPEX!G217 | DV725: OPEX!H217

Sheet VALUES (hidden)
A1: Standard | B1: Deutschland | C1: Norwegen | D1: MENA - Marokko | E1: MENA - Mittlerer Osten
A17: 100000 | B17: 100000 | C17: 100000 | D17: 100000 | E17: 100000
A18: 1 | B18: 1 | C18: 1 | D18: 1 | E18: 1
A21: 10 | B21: 10 | C21: 10 | D21: 10 | E21: 10
A22: 10 | B22: 10 | C22: 10 | D22: 10 | E22: 10
A23: 40 | B23: 40 | C23: 40 | D23: 40 | E23: 40
A24: 10 | B24: 10 | C24: 10 | D24: 10 | E24: 10
A25: 20 | B25: 20 | C25: 20 | D25: 20 | E25: 20
A28: 7 | B28: 7 | C28: 7 | D28: 7 | E28: 7
A29: 1 | B29: 1 | C29: 1 | D29: 1 | E29: 1
A30: 3 | B30: 3 | C30: 3 | D30: 3 | E30: 3
A31: 15 | B31: 15 | C31: 15 | D31: 15 | E31: 15
A32: 40.2 | B32: 40.2 | C32: 40.2 | D32: 40.2 | E32: 40.2
A35: 50 | B35: 50 | C35: 30 | D35: 20 | E35: 20
A36: 18 | B36: 18 | C36: 18 | D36: 18 | E36: 18
A37: 2.235597592 | B37: 2.235597592 | C37: 2.235597592 | D37: 2.235597592 | E37: 2.235597592
A38: 5.55 | B38: 5.55 | C38: 5.55 | D38: 5.55 | E38: 5.55
A41: 20 | B41: 20 | C41: 10 | D41: 0 | E41: 0
A42: 50 | B42: 50 | C42: 20 | D42: 20 | E42: 20
A43: 23.7 | B43: 23.7 | C43: 23.7 | D43: 0 | E43: 0
A44: 100 | B44: 100 | C44: 100 | D44: 100 | E44: 100
A45: 100 | B45: 100 | C45: 100 | D45: 100 | E45: 100
A48: 2 | B48: 2 | C48: 2 | D48: 2.6 | E48: 2.6
A49: 0.2 | B49: 0.2 | C49: 0.2 | D49: 0.2 | E49: 0.2
A50: 0.09 | B50: 0.09 | C50: 0.09 | D50: 0.09 | E50: 0.09
A51: 0.3480559734 | B51: 0.3480559734 | C51: 0.3480559734 | D51: 0.3480559734 | E51: 0.3480559734
A52: 6.62301726 | B52: 6.62301726 | C52: 6.62301726 | D52: 6.62301726 | E52: 6.62301726
A53: 0.9924827322 | B53: 0.9924827322 | C53: 0.9924827322 | D53: 0.9924827322 | E53: 0.9924827322
A54: 1.688594679 | B54: 1.688594679 | C54: 1.688594679 | D54: 1.688594679 | E54: 1.688594679
A55: 800 | B55: 800 | C55: 800 | D55: 800 | E55: 800
A56: 2072.013697 | B56: 2072.013697 | C56: 2072.013697 | D56: 2072.013697 | E56: 2072.013697
A57: 300 | B57: 300 | C57: 300 | D57: 300 | E57: 300
A58: 174.96 | B58: 174.96 | C58: 174.96 | D58: 174.96 | E58: 174.96
A59: 30 | B59: 30 | C59: 30 | D59: 30 | E59: 30
A60: 2.5 | B60: 2.5 | C60: 2.5 | D60: 2.5 | E60: 2.5
A63: 8000 | B63: 8000 | C63: 8000 | D63: 8000 | E63: 8000
A64: 3000 | B64: 3000 | C64: 8000 | D64: 3000 | E64: 3000
A65: 62.99726948 | B65: 62.99726948 | C65: 62.99726948 | D65: 62.99726948 | E65: 62.99726948
A66: 30 | B66: 30 | C66: 30 | D66: 30 | E66: 30
A67: 0 | B67: 0 | C67: 0 | D67: 0 | E67: 0
A68: 88.09640116 | B68: 88.09640116 | C68: 88.09640116 | D68: 88.09640116 | E68: 88.09640116
A69: 0 | B69: 0 | C69: 0 | D69: 0 | E69: 0
A70: 89.21898025 | B70: 89.21898025 | C70: 89.21898025 | D70: 89.21898025 | E70: 89.21898025
A71: 0 | B71: 0 | C71: 0 | D71: 0 | E71: 0
A72: 0 | B72: 0 | C72: 0 | D72: 0 | E72: 0
A73: 0 | B73: 0 | C73: 0 | D73: 0 | E73: 0
A74: 0 | B74: 0 | C74: 0 | D74: 0 | E74: 0
A78: nein | B78: ja | C78: ja | D78: ja | E78: ja
A79: Pipeline | B79: Pipeline | C79: Pipeline | D79: Pipeline | E79: Pipeline
A80: 105 | B80: 105 | C80: 105 | D80: 105 | E80: 105
A82: 100 | B82: 0 | C82: 800 | D82: 100 | E82: 100
A83: 3000 | B83: 0 | C83: 0 | D83: 3000 | E83: 12500
A84: 500 | B84: 500 | C84: 500 | D84: 500 | E84: 500
A85: Diesel | B85: Diesel | C85: Diesel | D85: Diesel | E85: Diesel
A86: 300 | B86: 300 | C86: 300 | D86: 300 | E86: 300
A87: 1.05 | B87: 1.05 | C87: 1.05 | D87: 1.05 | E87: 1.05
A89: 3100 | B89: 0 | C89: 800 | D89: 3100 | E89: 5100
A90: 500 | B90: 500 | C90: 500 | D90: 500 | E90: 500
A91: transp. H2 | B91: transp. H2 | C91: transp. H2 | D91: transp. H2 | E91: transp. H2
A92: 1 | B92: 1 | C92: 1 | D92: 1 | E92: 1
A95: 0 | B95: 0 | C95: 0 | D95: 0 | E95: 0
A96: 0.7 | B96: 0.7 | C96: 0.7 | D96: 0.7 | E96: 0.7
A97: 25 | B97: 25 | C97: 25 | D97: 25 | E97: 25
A98: 5.16 | B98: 5.16 | C98: 5.16 | D98: 5.16 | E98: 5.16
A99: 7.23 | B99: 7.23 | C99: 7.23 | D99: 7.23 | E99: 7.23
A100: 6.7 | B100: 6.7 | C100: 11.1 | D100: 6.7 | E100: 6.7
A101: 111.4 | B101: 111.4 | C101: 111.4 | D101: 111.4 | E101: 111.4
A102: 0.7 | B102: 0.7 | C102: 0.7 | D102: 0.7 | E102: 0.7
A103: 89.4 | B103: 89.4 | C103: 89.4 | D103: 89.4 | E103: 89.4
A104: 94.5 | B104: 94.5 | C104: 94.5 | D104: 94.5 | E104: 94.5
A105: 2867 | B105: 2867 | C105: 2867 | D105: 2867 | E105: 2867
A106: 799 | B106: 799 | C106: 799 | D106: 799 | E106: 799
A120: Holz | B120: Holz | C120: Holz | D120: Holz | E120: Holz
A121: %-Hauptpr. | B121: %-Hauptpr. | C121: %-Hauptpr. | D121: %-Hauptpr. | E121: %-Hauptpr.
A122: %-Hauptpr. | B122: %-Hauptpr. | C122: %-Hauptpr. | D122: %-Hauptpr. | E122: %-Hauptpr.
A123: Erdgas (Europa) | B123: Erdgas (Europa) | C123: Erdgas (Europa) | D123: Erdgas (Europa) | E123: Erdgas (Europa)
A124: Biogas (Bioabfälle) | B124: Biogas (Bioabfälle) | C124: Biogas (Bioabfälle) | D124: Biogas (Bioabfälle) | E124: Biogas (Bioabfälle)
A125: Windkraft | B125: Windkraft | C125: Wasserkraft | D125: Photovoltaik (Südeur./MENA) | E125: Photovoltaik (Südeur./MENA)
A126: Mix (Deutschland) | B126: Mix (Deutschland) | C126: Mix (Deutschland) | D126: Mix (Deutschland) | E126: Mix (Deutschland)
A127: Restbiomasse | B127: Restbiomasse | C127: Restbiomasse | D127: Restbiomasse | E127: Restbiomasse

Sheet DATA (hidden)
A1: CEPCI (Final) jährlich | B1: CE Index | C1: Daten der letzten Jahre:
A2: 1950 | B2: 73.9 | C2: https://www.chemengonline.com/2019-cepci-updates-january-prelim-and-december-2018-final/
A3: 1953 | B3: 84.7
A4: 1955 | B4: 88.3 | E4: Listenelemente:
A5: 1958 | B5: 99.7 | E5: Auswahl - Transportmodus
A6: 1959 | B6: 101.8 | E6: Flüssig
A7: 1960 | B7: 102 | E7: Pipeline
A8: 1961 | B8: 101.5 | E8: Auswahl - LkW-Transport - nicht ändern
A9: 1962 | B9: 102 | E9: Diesel
A10: 1963 | B10: 102.4 | E10: transp. Pr.
A11: 1964 | B11: 103.3 | E11: Auswahl - Nebenproduktbezug
A12: 1965 | B12: 104.2 | E12: %-Hauptpr.
A13: 1966 | B13: 107.2 | E13: Fixpreis
A14: 1967 | B14: 109.7 | E14: Ja/Nein
A15: 1968 | B15: 113.6 | E15: ja
A16: 1969 | B16: 119 | E16: nein
A17: 1970 | B17: 125.7 | E17: Auswahl - Verdichterstation
A18: 1971 | B18: 132.3 | E18: Strom
A19: 1972 | B19: 132.3 | E19: transp. H2
A20: 1973 | B20: 144.1 | E20: CO2-Intensität-Strom | G20: g CO2/MJ
A21: 1974 | B21: 164.4 | E21: Kohle | G21: 292.4
A22: 1975 | B22: 182.4 | E22: Kohle(CCS) | G22: 71
A23: 1976 | B23: 192.1 | E23: Kernkraft | G23: 5
A24: 1977 | B24: 204.1 | E24: Gas | G24: 132.4
A25: 1978 | B25: 218.8 | E25: Biomasse | G25: 7.9
A26: 1979 | B26: 238.7 | E26: Mix (Deutschland) | G26: 111.4
A27: 1980 | B27: 261.2 | E27: Mix (EU) | G27: 74.2
A28: 1981 | B28: 297 | E28: Photovoltaik (Dtl.) | G28: 22.2
A29: 1982 | B29: 314 | E29: Photovoltaik (Südeur./MENA) | G29: 6.7
A30: 1983 | B30: 316.9 | E30: Windkraft | G30: 6.7
A31: 1984 | B31: 322.7 | E31: Wasserkraft | G31: 11.1
A32: 1985 | B32: 325.3 | E32: CO2-Intensität-Bio-/Erdgas
A33: 1986 | B33: 318.4 | E33: Erdgas (Europa) | G33: 5.16
A34: 1987 | B34: 323.8 | E34: Erdgas (Russland) | G34: 8.95
A35: 1988 | B35: 342.5 | E35: Biogas (Bioabfälle) | G35: 7.23
A36: 1989 | B36: 355.4 | E36: Biogas (Gülle) | G36: -86.46
A37: 1990 | B37: 357.6 | E37: Biogas (Klärschlamm) | G37: 20.22
A38: 1991 | B38: 361.3 | E38: Biogas (Mais) | G38: 24.34
A39: 1992 | B39: 358.2 | E39: CO2-Intensität-Biomasse
A40: 1993 | B40: 359.2 | E40: Anbaubiomasse | G40: 2.9
A41: 1994 | B41: 368.1 | E41: Restbiomasse | G41: 0.7
A42: 1995 | B42: 381.1 | E42: Stroh(Mais) | G42: 5.2
A43: 1996 | B43: 381.7 | E43: Stroh(Weizen) | G43: 1.1
A44: 1997 | B44: 386.5 | E44: Biomasse | G44: t TM/ MWh
A45: 1998 | B45: 389.5 | E45: Holz | G45: 4.916666667
A46: 1999 | B46: 390.6 | E46: Maisstroh | G46: 4.360604783
A47: 2000 | B47: 394.1 | E47: Weizenstroh | G47: 4.679405342
A48: 2001 | B48: 394.3 | E48: Transportklassen (zusätzlich in Sheet CONFIG - Spalte P anpassen)
A49: 2002 | B49: 395.6 | E49: Sonst. | G49: für Sonstige
A50: 2003 | B50: 401.7 | E50: Flüssigk. | G50: für Flüssigkeiten
A51: 2004 | B51: 444.2 | E51: H2 | G51: für Wasserstoff
A52: 2005 | B52: 468.2 | E52: für Ausgabe
A53: 2006 | B53: 499.6 | E53: Elektrizität
A54: 2007 | B54: 525.4 | E54: Wärme
A55: 2008 | B55: 575.4
A56: 2009 | B56: 521.9
A57: 2010 | B57: 550.8
A58: 2011 | B58: 585.7
A59: 2012 | B59: 584.6
A60: 2013 | B60: 567.3
A61: 2014 | B61: 576.1
A62: 2015 | B62: 556.8
A63: 2016 | B63: 541.7
A64: 2017 | B64: 567.5
A65: 2018 | B65: 603.1

Sheet H2-SHIP-LIQ (hidden)
A1: OPEX-Transport | C1: für | D1: 34493.04838 | E1: t/a | F1: Betriebsdauer: | H1: 30 | I1: Jahre | J1: (<= 30 Jahre)
C2: Strecke: | D2: 3000 | E2: km
A3: H2-SHIP-LIQ | B3: Basisdaten | E3: Rohdaten: | F3: Kapazität/Schiff | G3: 11000 | H3: t | J3: Heizwert: | K3: 119.972 | L3: MJ/kg H2
E4: [IEA2019] | F4: CAPEX/Schiff | G4: 412 | H4: M$(2019) | I4: = | J4: =G4/1.12 -> 367.8571429 | K4: M€(2019)
A5: Transport von flüssigem H2 per Schiff | F5: Geschwindigkeit | G5: 30 | H5: km/h | I5: = | J5: =G5*24 -> 720 | K5: km/d
F6: OPEX | G6: 4 | H6: %/CAPEX/a
F7: Kraftstoffnutzung | G7: 1487 | H7: MJ/km | I7: leer: | J7: 1381 | K7: MJ/km
F8: Verdampfungsrate | G8: 0.2 | H8: %/d
B9: =PreisBAE -> 0.3408768328 | C9: =G59 -> 0.9624886435 | F9: Flashrate | G9: 1.3 | H9: %/Befüllung | J9: Heizwert: | K9: 40 | L9: MJ/kg Schweröl
E10: Tanks: | F10: Exportterminal(Flash) | G10: 0.1 | H10: % | M10: Importterminal(Flash) | O10: 0 | P10: %
F11: Boil-off | G11: 0.1 | H11: % | I11: Terminalgr. zu Anlagengröße: | K11: 10 | M11: Boil-off | O11: 0.1 | P11: % | Q11: Terminalgr. zu Anlagengröße: | T11: =K11 -> 10
F12: Verlust Exportterminal | G12: =G10+(100-G10)/100*(100-(1/G13*(((1-G11/100)^G13/LN((1-G11/100)))-(1/LN(1-G11/100)))*100)) -> 0.6794586205 | H12: % | M12: Verlust Exportterminal | O12: =O10+(100-O10)/100*(100-(1/O13*(((1-O11/100)^O13/LN((1-O11/100)))-(1/LN(1-O11/100)))*100)) -> 0.9938602444 | P12: %
F13: Tage im Tank: | G13: =G3/D1*365/K11 -> 11.64002658 | H13: bei | I13: 7 | J13: Tage Vorhaltezeit: | L13: =G13+I13 -> 18.64002658 | M13: Tage im Tank: | O13: 20 | P13: typische Vorhaltezeit
F14: Tankkapazität | G14: 3190 | H14: t | M14: Tankkapazität | O14: 3550 | P14: t
F15: Tankanzahl | G15: =G3/G14*L13/G13 -> 5.521976542 | M15: Tankanzahl | O15: =G15*I26/G3*O13/L13*G14/O14 -> 5.175756567
F16: CAPEX/Tanks | G16: 290 | H16: M$(2019) | I16: = | J16: =G16/1.12 -> 258.9285714 | K16: M€(2019) | M16: CAPEX/Tanks | O16: 320 | P16: M$(2019) | Q16: = | R16: =O16/1.12 -> 285.7142857 | S16: M€(2019)
F17: OPEX/Tanks | G17: 4 | H17: %/CAPEX | M17: OPEX/Tanks | O17: =G17 -> 4 | P17: %/CAPEX
E18: Tanks: | F18: Menge nach Flash/BO: | G18: =G3*(100-G12)/100 -> 10925.25955 | M18: Menge nach Flash/BO: | O18: =(100-O12)/100*I26 -> 10587.37508
F19: Elektrizitätsbedarf | G19: 0.61 | H19: kWh/kg | M19: Elektrizitätsbedarf | O19: 0.2 | P19: kWh/kg
E20: Transport: | F20: Menge nach Flash: | G20: =G18*(1-G9/100) -> 10783.23118 | H20: t
F21: Transportdauer | G21: =D2/G5/24 -> 4.166666667 | H21: Tage | I21: [+Rückreise] | J21: =G21*2 -> 8.333333333 | K21: Tage
F22: Anzahl notw. Schiffe | G22: =D1/G3*K22/365 -> 0.0973651843 | H22: Schiffe | I22: [+Liegezeit, 3 Tage] | K22: =J21+3 -> 11.33333333
F23: Verdampfte Menge nach [Transportdauer] Tagen: | I23: =(1-(1-G8/100)^G21)*100 -> 0.8306982539 | J23: % | K23: = | L23: =I23*G20/100 -> 89.57611311 | M23: t
F24: Heizwert (verdampft --> Antrieb) | I24: =L23*1000*K3/D2 -> 3582.208481 | J24: MJ/km
F25: notwendiger Zusatzkraftstoff (Hinreise) | I25: =MAX(0,G7-I24) -> 0 | J25: MJ/km
F26: ankommende Menge: | I26: =G20*(1-I23/100) -> 10693.65506 | J26: t
F27: Preis Schweröl: | G27: 300 | H27: €/t | I27: = | J27: =G27/K9/1000 -> 0.0075 | K27: €/MJ
I30: [Mio. €/a]
C31: Kostenstei-gerung (%/a) | E31: Preis/Einheit | G31: Einheiten/a | I31: 1 | J31: 2 | K31: 3 | L31: 4 | M31: 5 | N31: 6 | O31: 7 | P31: 8 | Q31: 9 | R31: 10 | S31: 11 | T31: 12 | U31: 13 | V31: 14 | W31: 15 | X31: 16 | Y31: 17 | Z31: 18 | AA31: 19 | AB31: 20 | AC31: 21 | AD31: 22 | AE31: 23 | AF31: 24 | AG31: 25 | AH31: 26 | AI31: 27 | AJ31: 28 | AK31: 29 | AL31: 30 | AN31: Summierung/Anteile | AP31: Summierung mit Kalkulatorischem Zinsfuß
A32: Auszahlungen | D32: Feuchte:
A33: [Transport]
A34: OPEX | C34: 2 | E34: =G6 -> 4 | F34: % der Investkosten | I34: =E34/100*$E$36 -> 1.43265914 | J34: =I34*(1+$C34/100) -> 1.461312323 | K34: 1.49053857 | L34: 1.520349341 | M34: 1.550756328 | N34: 1.581771454 | O34: 1.613406883 | P34: 1.645675021 | Q34: 1.678588522 | R34: 1.712160292 | S34: 1.746403498 | T34: 1.781331568 | U34: 1.816958199 | V34: 1.853297363 | W34: 1.89036331 | X34: 1.928170577 | Y34: 1.966733988 | Z34: 2.006068668 | AA34: 2.046190041 | AB34: 2.087113842 | AC34: 2.128856119 | AD34: 2.171433241 | AE34: 2.214861906 | AF34: 2.259159144 | AG34: 2.304342327 | AH34: 2.350429174 | AI34: 2.397437757 | AJ34: 2.445386512 | AK34: 2.494294243 | AL34: 2.544180127 | AN34: =SUM(I34:AL34)/$AN$63 -> 0.03250003965 | AP34: =SUMPRODUCT(I34:AL34,I$73:AL$73) -> 280.0497741 | AQ34: =AP34/$AP$63 -> 0.03250003965
A36: CAPEX | E36: =G22*J4 -> 35.81647851 | F36: M€
A37: Eigenkapitalquote | E37: 40 | F37: %
A38: Zinsen | E38: 10 | F38: % | I38: =$E$38/100*(E36*(1-$E$37/100)) -> 2.148988711 | J38: =MAX(0,$E$38/100*($E$36*(1-$E$37/100)-(J31-1)*$E$39/100*$E$36*(1-$E$37/100))) -> 1.934089839 | K38: 1.719190968 | L38: 1.504292097 | M38: 1.289393226 | N38: 1.074494355 | O38: 0.8595954842 | P38: 0.6446966132 | Q38: 0.4297977421 | R38: 0.2148988711 | S38: 0 | T38: 0 | U38: 0 | V38: 0 | W38: 0 | X38: 0 | Y38: 0 | Z38: 0 | AA38: 0 | AB38: 0 | AC38: 0 | AD38: 0 | AE38: 0 | AF38: 0 | AG38: 0 | AH38: 0 | AI38: 0 | AJ38: 0 | AK38: 0 | AL38: 0 | AN38: =SUM(I38:AL38)/$AN$63 -> 0.006609268479 | AP38: =SUMPRODUCT(I38:AL38,I$73:AL$73) -> 144.5732144 | AQ38: =AP38/$AP$63 -> 0.0167778575
A39: jähliche Tilgung | E39: 10 | F39: % | I39: =$E$39/100*(E36*(1-$E$37/100)) -> 2.148988711 | J39: =IF(SUM($I$39:I39)<=(100-$E$39)/100*$E$36*(100-$E$37)/100,$E$39/100*$E$36*(100-$E$37)/100,MAX(0,$E$36*(100-$E$37)/100-SUM($I$39:I39))) -> 2.148988711 | K39: =IF(SUM($I$39:J39)<=(100-$E$39)/100*$E$36*(100-$E$37)/100,$E$39/100*$E$36*(100-$E$37)/100,MAX(0,$E$36*(100-$E$37)/100-SUM($I$39:J39))) -> 2.148988711 | L39: =IF(SUM($I$39:K39)<=(100-$E$39)/100*$E$36*(100-$E$37)/100,$E$39/100*$E$36*(100-$E$37)/100,MAX(0,$E$36*(100-$E$37)/100-SUM($I$39:K39))) -> 2.148988711 | M39: =IF(SUM($I$39:L39)<=(100-$E$39)/100*$E$36*(100-$E$37)/100,$E$39/100*$E$36*(100-$E$37)/100,MAX(0,$E$36*(100-$E$37)/100-SUM($I$39:L39))) -> 2.148988711 | N39: =IF(SUM($I$39:M39)<=(100-$E$39)/100*$E$36*(100-$E$37)/100,$E$39/100*$E$36*(100-$E$37)/100,MAX(0,$E$36*(100-$E$37)/100-SUM($I$39:M39))) -> 2.148988711 | O39: =IF(SUM($I$39:N39)<=(100-$E$39)/100*$E$36*(100-$E$37)/100,$E$39/100*$E$36*(100-$E$37)/100,MAX(0,$E$36*(100-$E$37)/100-SUM($I$39:N39))) -> 2.148988711 | P39: =IF(SUM($I$39:O39)<=(100-$E$39)/100*$E$36*(100-$E$37)/100,$E$39/100*$E$36*(100-$E$37)/100,MAX(0,$E$36*(100-$E$37)/100-SUM($I$39:O39))) -> 2.148988711 | Q39: =IF(SUM($I$39:P39)<=(100-$E$39)/100*$E$36*(100-$E$37)/100,$E$39/100*$E$36*(100-$E$37)/100,MAX(0,$E$36*(100-$E$37)/100-SUM($I$39:P39))) -> 2.148988711 | R39: =IF(SUM($I$39:Q39)<=(100-$E$39)/100*$E$36*(100-$E$37)/100,$E$39/100*$E$36*(100-$E$37)/100,MAX(0,$E$36*(100-$E$37)/100-SUM($I$39:Q39))) -> 2.148988711 | S39: =IF(SUM($I$39:R39)<=(100-$E$39)/100*$E$36*(100-$E$37)/100,$E$39/100*$E$36*(100-$E$37)/100,MAX(0,$E$36*(100-$E$37)/100-SUM($I$39:R39))) -> 0 | T39: =IF(SUM($I$39:S39)<=(100-$E$39)/100*$E$36*(100-$E$37)/100,$E$39/100*$E$36*(100-$E$37)/100,MAX(0,$E$36*(100-$E$37)/100-SUM($I$39:S39))) -> 0 | U39: =IF(SUM($I$39:T39)<=(100-$E$39)/100*$E$36*(100-$E$37)/100,$E$39/100*$E$36*(100-$E$37)/100,MAX(0,$E$36*(100-$E$37)/100-SUM($I$39:T39))) -> 0 | V39: =IF(SUM($I$39:U39)<=(100-$E$39)/100*$E$36*(100-$E$37)/100,$E$39/100*$E$36*(100-$E$37)/100,MAX(0,$E$36*(100-$E$37)/100-SUM($I$39:U39))) -> 0 | W39: =IF(SUM($I$39:V39)<=(100-$E$39)/100*$E$36*(100-$E$37)/100,$E$39/100*$E$36*(100-$E$37)/100,MAX(0,$E$36*(100-$E$37)/100-SUM($I$39:V39))) -> 0 | X39: =IF(SUM($I$39:W39)<=(100-$E$39)/100*$E$36*(100-$E$37)/100,$E$39/100*$E$36*(100-$E$37)/100,MAX(0,$E$36*(100-$E$37)/100-SUM($I$39:W39))) -> 0 | Y39: =IF(SUM($I$39:X39)<=(100-$E$39)/100*$E$36*(100-$E$37)/100,$E$39/100*$E$36*(100-$E$37)/100,MAX(0,$E$36*(100-$E$37)/100-SUM($I$39:X39))) -> 0 | Z39: =IF(SUM($I$39:Y39)<=(100-$E$39)/100*$E$36*(100-$E$37)/100,$E$39/100*$E$36*(100-$E$37)/100,MAX(0,$E$36*(100-$E$37)/100-SUM($I$39:Y39))) -> 0 | AA39: =IF(SUM($I$39:Z39)<=(100-$E$39)/100*$E$36*(100-$E$37)/100,$E$39/100*$E$36*(100-$E$37)/100,MAX(0,$E$36*(100-$E$37)/100-SUM($I$39:Z39))) -> 0 | AB39: =IF(SUM($I$39:AA39)<=(100-$E$39)/100*$E$36*(100-$E$37)/100,$E$39/100*$E$36*(100-$E$37)/100,MAX(0,$E$36*(100-$E$37)/100-SUM($I$39:AA39))) -> 0 | AC39: =IF(SUM($I$39:AB39)<=(100-$E$39)/100*$E$36*(100-$E$37)/100,$E$39/100*$E$36*(100-$E$37)/100,MAX(0,$E$36*(100-$E$37)/100-SUM($I$39:AB39))) -> 0 | AD39: =IF(SUM($I$39:AC39)<=(100-$E$39)/100*$E$36*(100-$E$37)/100,$E$39/100*$E$36*(100-$E$37)/100,MAX(0,$E$36*(100-$E$37)/100-SUM($I$39:AC39))) -> 0 | AE39: =IF(SUM($I$39:AD39)<=(100-$E$39)/100*$E$36*(100-$E$37)/100,$E$39/100*$E$36*(100-$E$37)/100,MAX(0,$E$36*(100-$E$37)/100-SUM($I$39:AD39))) -> 0 | AF39: =IF(SUM($I$39:AE39)<=(100-$E$39)/100*$E$36*(100-$E$37)/100,$E$39/100*$E$36*(100-$E$37)/100,MAX(0,$E$36*(100-$E$37)/100-SUM($I$39:AE39))) -> 0 | AG39: =IF(SUM($I$39:AF39)<=(100-$E$39)/100*$E$36*(100-$E$37)/100,$E$39/100*$E$36*(100-$E$37)/100,MAX(0,$E$36*(100-$E$37)/100-SUM($I$39:AF39))) -> 0 | AH39: =IF(SUM($I$39:AG39)<=(100-$E$39)/100*$E$36*(100-$E$37)/100,$E$39/100*$E$36*(100-$E$37)/100,MAX(0,$E$36*(100-$E$37)/100-SUM($I$39:AG39))) -> 0 | AI39: =IF(SUM($I$39:AH39)<=(100-$E$39)/100*$E$36*(100-$E$37)/100,$E$39/100*$E$36*(100-$E$37)/100,MAX(0,$E$36*(100-$E$37)/100-SUM($I$39:AH39))) -> 0 | AJ39: =IF(SUM($I$39:AI39)<=(100-$E$39)/100*$E$36*(100-$E$37)/100,$E$39/100*$E$36*(100-$E$37)/100,MAX(0,$E$36*(100-$E$37)/100-SUM($I$39:AI39))) -> 0 | AK39: =IF(SUM($I$39:AJ39)<=(100-$E$39)/100*$E$36*(100-$E$37)/100,$E$39/100*$E$36*(100-$E$37)/100,MAX(0,$E$36*(100-$E$37)/100-SUM($I$39:AJ39))) -> 0 | AL39: =IF(SUM($I$39:AK39)<=(100-$E$39)/100*$E$36*(100-$E$37)/100,$E$39/100*$E$36*(100-$E$37)/100,MAX(0,$E$36*(100-$E$37)/100-SUM($I$39:AK39))) -> 0 | AN39: =SUM(I39:AL39)/$AN$63 -> 0.01201685178 | AP39: =SUMPRODUCT(I39:AL39,I$73:AL$73) -> 230.4124704 | AQ39: =AP39/$AP$63 -> 0.02673958388
A41: Kraftstoffbedarf | C41: 2 | D41: Hin: | E41: =I25*D2*D1/G3 -> 0 | F41: MJ | G41: =J27 -> 0.0075 | H41: €/MJ | I41: =E41*G41/1000000 -> 0 | J41: =I41*(1+$C41/100) -> 0 | K41: 0 | L41: 0 | M41: 0 | N41: 0 | O41: 0 | P41: 0 | Q41: 0 | R41: 0 | S41: 0 | T41: 0 | U41: 0 | V41: 0 | W41: 0 | X41: 0 | Y41: 0 | Z41: 0 | AA41: 0 | AB41: 0 | AC41: 0 | AD41: 0 | AE41: 0 | AF41: 0 | AG41: 0 | AH41: 0 | AI41: 0 | AJ41: 0 | AK41: 0 | AL41: 0 | AN41: =SUM(I41:AL41)/$AN$63 -> 0 | AP41: =SUMPRODUCT(I41:AL41,I$73:AL$73) -> 0 | AQ41: =AP41/$AP$63 -> 0
C42: 2 | D42: Rück: | E42: =J7*D2*D1/G3 -> 12991336.31 | F42: MJ | G42: =G41 -> 0.0075 | H42: €/MJ | I42: =E42*G41/1000000 -> 0.09743502234 | J42: =I42*(1+$C42/100) -> 0.09938372279 | K42: 0.1013713972 | L42: 0.1033988252 | M42: 0.1054668017 | N42: 0.1075761377 | O42: 0.1097276605 | P42: 0.1119222137 | Q42: 0.114160658 | R42: 0.1164438711 | S42: 0.1187727485 | T42: 0.1211482035 | U42: 0.1235711676 | V42: 0.1260425909 | W42: 0.1285634428 | X42: 0.1311347116 | Y42: 0.1337574058 | Z42: 0.136432554 | AA42: 0.139161205 | AB42: 0.1419444291 | AC42: 0.1447833177 | AD42: 0.1476789841 | AE42: 0.1506325638 | AF42: 0.153645215 | AG42: 0.1567181193 | AH42: 0.1598524817 | AI42: 0.1630495314 | AJ42: 0.166310522 | AK42: 0.1696367324 | AL42: 0.1730294671 | AN42: =SUM(I42:AL42)/$AN$63 -> 0.002210324843 | AP42: =SUMPRODUCT(I42:AL42,I$73:AL$73) -> 19.04616054 | AQ42: =AP42/$AP$63 -> 0.002210324843
A43: [Export + Importterminal]
A44: OPEX | C44: 2 | E44: =G17 -> 4 | F44: % der Investkosten | I44: =E44/100*$E$46 -> 11.63434035 | J44: =I44*(1+$C44/100) -> 11.86702716 | K44: 12.1043677 | L44: 12.34645506 | M44: 12.59338416 | N44: 12.84525184 | O44: 13.10215688 | P44: 13.36420002 | Q44: 13.63148402 | R44: 13.9041137 | S44: 14.18219597 | T44: 14.46583989 | U44: 14.75515669 | V44: 15.05025982 | W44: 15.35126502 | X44: 15.65829032 | Y44: 15.97145612 | Z44: 16.29088525 | AA44: 16.61670295 | AB44: 16.94903701 | AC44: 17.28801775 | AD44: 17.63377811 | AE44: 17.98645367 | AF44: 18.34618274 | AG44: 18.7131064 | AH44: 19.08736852 | AI44: 19.46911589 | AJ44: 19.85849821 | AK44: 20.25566818 | AL44: 20.66078154 | AN44: =SUM(I44:AL44)/$AN$63 -> 0.2639263675 | AP44: =SUMPRODUCT(I44:AL44,I$73:AL$73) -> 2274.228597 | AQ44: =AP44/$AP$63 -> 0.2639263675
A46: CAPEX | E46: =G15*J16/K11+O15*R16/T11 -> 290.8585088 | F46: M€
A47: Eigenkapitalquote | E47: =E37 -> 40 | F47: %
A48: Zinsen | E48: =E38 -> 10 | F48: % | I48: =$E$48/100*(E46*(1-$E$47/100)) -> 17.45151053 | J48: =MAX(0,$E$48/100*($E$46*(1-$E$47/100)-(J31-1)*$E$49/100*$E$46*(1-$E$47/100))) -> 15.70635948 | K48: 13.96120842 | L48: 12.21605737 | M48: 10.47090632 | N48: 8.725755264 | O48: 6.980604212 | P48: 5.235453159 | Q48: 3.490302106 | R48: 1.745151053 | S48: 0 | T48: 0 | U48: 0 | V48: 0 | W48: 0 | X48: 0 | Y48: 0 | Z48: 0 | AA48: 0 | AB48: 0 | AC48: 0 | AD48: 0 | AE48: 0 | AF48: 0 | AG48: 0 | AH48: 0 | AI48: 0 | AJ48: 0 | AK48: 0 | AL48: 0 | AN48: =SUM(I48:AL48)/$AN$63 -> 0.05367255671 | AP48: =SUMPRODUCT(I48:AL48,I$73:AL$73) -> 1174.050362 | AQ48: =AP48/$AP$63 -> 0.1362496486
A49: jähliche Tilgung | E49: 10 | F49: % | I49: =$E$49/100*(E46*(1-$E$47/100)) -> 17.45151053 | J49: =IF(SUM($I$49:I49)<=(100-$E$49)/100*$E$46*(100-$E$47)/100,$E$49/100*$E$46*(100-$E$47)/100,MAX(0,$E$46*(100-$E$47)/100-SUM($I$49:I49))) -> 17.45151053 | K49: =IF(SUM($I$49:J49)<=(100-$E$49)/100*$E$46*(100-$E$47)/100,$E$49/100*$E$46*(100-$E$47)/100,MAX(0,$E$46*(100-$E$47)/100-SUM($I$49:J49))) -> 17.45151053 | L49: =IF(SUM($I$49:K49)<=(100-$E$49)/100*$E$46*(100-$E$47)/100,$E$49/100*$E$46*(100-$E$47)/100,MAX(0,$E$46*(100-$E$47)/100-SUM($I$49:K49))) -> 17.45151053 | M49: =IF(SUM($I$49:L49)<=(100-$E$49)/100*$E$46*(100-$E$47)/100,$E$49/100*$E$46*(100-$E$47)/100,MAX(0,$E$46*(100-$E$47)/100-SUM($I$49:L49))) -> 17.45151053 | N49: =IF(SUM($I$49:M49)<=(100-$E$49)/100*$E$46*(100-$E$47)/100,$E$49/100*$E$46*(100-$E$47)/100,MAX(0,$E$46*(100-$E$47)/100-SUM($I$49:M49))) -> 17.45151053 | O49: =IF(SUM($I$49:N49)<=(100-$E$49)/100*$E$46*(100-$E$47)/100,$E$49/100*$E$46*(100-$E$47)/100,MAX(0,$E$46*(100-$E$47)/100-SUM($I$49:N49))) -> 17.45151053 | P49: =IF(SUM($I$49:O49)<=(100-$E$49)/100*$E$46*(100-$E$47)/100,$E$49/100*$E$46*(100-$E$47)/100,MAX(0,$E$46*(100-$E$47)/100-SUM($I$49:O49))) -> 17.45151053 | Q49: =IF(SUM($I$49:P49)<=(100-$E$49)/100*$E$46*(100-$E$47)/100,$E$49/100*$E$46*(100-$E$47)/100,MAX(0,$E$46*(100-$E$47)/100-SUM($I$49:P49))) -> 17.45151053 | R49: =IF(SUM($I$49:Q49)<=(100-$E$49)/100*$E$46*(100-$E$47)/100,$E$49/100*$E$46*(100-$E$47)/100,MAX(0,$E$46*(100-$E$47)/100-SUM($I$49:Q49))) -> 17.45151053 | S49: =IF(SUM($I$49:R49)<=(100-$E$49)/100*$E$46*(100-$E$47)/100,$E$49/100*$E$46*(100-$E$47)/100,MAX(0,$E$46*(100-$E$47)/100-SUM($I$49:R49))) -> 0 | T49: =IF(SUM($I$49:S49)<=(100-$E$49)/100*$E$46*(100-$E$47)/100,$E$49/100*$E$46*(100-$E$47)/100,MAX(0,$E$46*(100-$E$47)/100-SUM($I$49:S49))) -> 0 | U49: =IF(SUM($I$49:T49)<=(100-$E$49)/100*$E$46*(100-$E$47)/100,$E$49/100*$E$46*(100-$E$47)/100,MAX(0,$E$46*(100-$E$47)/100-SUM($I$49:T49))) -> 0 | V49: =IF(SUM($I$49:U49)<=(100-$E$49)/100*$E$46*(100-$E$47)/100,$E$49/100*$E$46*(100-$E$47)/100,MAX(0,$E$46*(100-$E$47)/100-SUM($I$49:U49))) -> 0 | W49: =IF(SUM($I$49:V49)<=(100-$E$49)/100*$E$46*(100-$E$47)/100,$E$49/100*$E$46*(100-$E$47)/100,MAX(0,$E$46*(100-$E$47)/100-SUM($I$49:V49))) -> 0 | X49: =IF(SUM($I$49:W49)<=(100-$E$49)/100*$E$46*(100-$E$47)/100,$E$49/100*$E$46*(100-$E$47)/100,MAX(0,$E$46*(100-$E$47)/100-SUM($I$49:W49))) -> 0 | Y49: =IF(SUM($I$49:X49)<=(100-$E$49)/100*$E$46*(100-$E$47)/100,$E$49/100*$E$46*(100-$E$47)/100,MAX(0,$E$46*(100-$E$47)/100-SUM($I$49:X49))) -> 0 | Z49: =IF(SUM($I$49:Y49)<=(100-$E$49)/100*$E$46*(100-$E$47)/100,$E$49/100*$E$46*(100-$E$47)/100,MAX(0,$E$46*(100-$E$47)/100-SUM($I$49:Y49))) -> 0 | AA49: =IF(SUM($I$49:Z49)<=(100-$E$49)/100*$E$46*(100-$E$47)/100,$E$49/100*$E$46*(100-$E$47)/100,MAX(0,$E$46*(100-$E$47)/100-SUM($I$49:Z49))) -> 0 | AB49: =IF(SUM($I$49:AA49)<=(100-$E$49)/100*$E$46*(100-$E$47)/100,$E$49/100*$E$46*(100-$E$47)/100,MAX(0,$E$46*(100-$E$47)/100-SUM($I$49:AA49))) -> 0 | AC49: =IF(SUM($I$49:AB49)<=(100-$E$49)/100*$E$46*(100-$E$47)/100,$E$49/100*$E$46*(100-$E$47)/100,MAX(0,$E$46*(100-$E$47)/100-SUM($I$49:AB49))) -> 0 | AD49: =IF(SUM($I$49:AC49)<=(100-$E$49)/100*$E$46*(100-$E$47)/100,$E$49/100*$E$46*(100-$E$47)/100,MAX(0,$E$46*(100-$E$47)/100-SUM($I$49:AC49))) -> 0 | AE49: =IF(SUM($I$49:AD49)<=(100-$E$49)/100*$E$46*(100-$E$47)/100,$E$49/100*$E$46*(100-$E$47)/100,MAX(0,$E$46*(100-$E$47)/100-SUM($I$49:AD49))) -> 0 | AF49: =IF(SUM($I$49:AE49)<=(100-$E$49)/100*$E$46*(100-$E$47)/100,$E$49/100*$E$46*(100-$E$47)/100,MAX(0,$E$46*(100-$E$47)/100-SUM($I$49:AE49))) -> 0 | AG49: =IF(SUM($I$49:AF49)<=(100-$E$49)/100*$E$46*(100-$E$47)/100,$E$49/100*$E$46*(100-$E$47)/100,MAX(0,$E$46*(100-$E$47)/100-SUM($I$49:AF49))) -> 0 | AH49: =IF(SUM($I$49:AG49)<=(100-$E$49)/100*$E$46*(100-$E$47)/100,$E$49/100*$E$46*(100-$E$47)/100,MAX(0,$E$46*(100-$E$47)/100-SUM($I$49:AG49))) -> 0 | AI49: =IF(SUM($I$49:AH49)<=(100-$E$49)/100*$E$46*(100-$E$47)/100,$E$49/100*$E$46*(100-$E$47)/100,MAX(0,$E$46*(100-$E$47)/100-SUM($I$49:AH49))) -> 0 | AJ49: =IF(SUM($I$49:AI49)<=(100-$E$49)/100*$E$46*(100-$E$47)/100,$E$49/100*$E$46*(100-$E$47)/100,MAX(0,$E$46*(100-$E$47)/100-SUM($I$49:AI49))) -> 0 | AK49: =IF(SUM($I$49:AJ49)<=(100-$E$49)/100*$E$46*(100-$E$47)/100,$E$49/100*$E$46*(100-$E$47)/100,MAX(0,$E$46*(100-$E$47)/100-SUM($I$49:AJ49))) -> 0 | AL49: =IF(SUM($I$49:AK49)<=(100-$E$49)/100*$E$46*(100-$E$47)/100,$E$49/100*$E$46*(100-$E$47)/100,MAX(0,$E$46*(100-$E$47)/100-SUM($I$49:AK49))) -> 0 | AN49: =SUM(I49:AL49)/$AN$63 -> 0.09758646675 | AP49: =SUMPRODUCT(I49:AL49,I$73:AL$73) -> 1871.133912 | AQ49: =AP49/$AP$63 -> 0.2171468502
A51: Elektrizitätsbedarf: | B51: Exportterminal | C51: 2 | E51: =G19*D1 -> 21040.75951 | F51: MWh/a | G51: 50 | H51: €/MWh | I51: =E51*G51/1000000 -> 1.052037976 | J51: =I51*(1+$C51/100) -> 1.073078735 | K51: 1.09454031 | L51: 1.116431116 | M51: 1.138759738 | N51: 1.161534933 | O51: 1.184765632 | P51: 1.208460944 | Q51: 1.232630163 | R51: 1.257282766 | S51: 1.282428422 | T51: 1.30807699 | U51: 1.33423853 | V51: 1.360923301 | W51: 1.388141767 | X51: 1.415904602 | Y51: 1.444222694 | Z51: 1.473107148 | AA51: 1.502569291 | AB51: 1.532620677 | AC51: 1.56327309 | AD51: 1.594538552 | AE51: 1.626429323 | AF51: 1.65895791 | AG51: 1.692137068 | AH51: 1.725979809 | AI51: 1.760499405 | AJ51: 1.795709393 | AK51: 1.831623581 | AL51: 1.868256053 | AN51: =SUM(I51:AL51)/$AN$63 -> 0.02386560415 | AP51: =SUMPRODUCT(I51:AL51,I$73:AL$73) -> 205.6476583 | AQ51: =AP51/$AP$63 -> 0.02386560415
B52: Importterminal | C52: 2 | E52: =O19*I26/G3*D1 -> 6706.486572 | F52: MWh/a | G52: 105 | H52: €/MWh | I52: =E52*G52/1000000 -> 0.7041810901 | J52: =I52*(1+$C52/100) -> 0.7182647119 | K52: 0.7326300061 | L52: 0.7472826063 | M52: 0.7622282584 | N52: 0.7774728235 | O52: 0.79302228 | P52: 0.8088827256 | Q52: 0.8250603801 | R52: 0.8415615877 | S52: 0.8583928195 | T52: 0.8755606759 | U52: 0.8930718894 | V52: 0.9109333272 | W52: 0.9291519937 | X52: 0.9477350336 | Y52: 0.9666897343 | Z52: 0.986023529 | AA52: 1.005744 | AB52: 1.02585888 | AC52: 1.046376057 | AD52: 1.067303578 | AE52: 1.08864965 | AF52: 1.110422643 | AG52: 1.132631096 | AH52: 1.155283718 | AI52: 1.178389392 | AJ52: 1.20195718 | AK52: 1.225996323 | AL52: 1.25051625 | AN52: =SUM(I52:AL52)/$AN$63 -> 0.01597443014 | AP52: =SUMPRODUCT(I52:AL52,I$73:AL$73) -> 137.6501567 | AQ52: =AP52/$AP$63 -> 0.01597443014
A54: Summe Auszahlungen | I54: =SUM(I33:I52) -> 54.12165206 | J54: 52.46001521 | K54: 50.80434662 | L54: 49.15476565 | M54: 47.51139407 | N54: 45.87435605 | O54: 44.24377827 | P54: 42.61978993 | Q54: 41.00252283 | R54: 39.39211138 | S54: 18.18819346 | T54: 18.55195733 | U54: 18.92299647 | V54: 19.3014564 | W54: 19.68748553 | X54: 20.08123524 | Y54: 20.48285995 | Z54: 20.89251715 | AA54: 21.31036749 | AB54: 21.73657484 | AC54: 22.17130633 | AD54: 22.61473246 | AE54: 23.06702711 | AF54: 23.52836765 | AG54: 23.99893501 | AH54: 24.47891371 | AI54: 24.96849198 | AJ54: 25.46786182 | AK54: 25.97721906 | AL54: 26.49676344 | AN54: =SUM(I54:AL54) -> 909.1099945 | AP54: =SUMPRODUCT(I54:AL54,I$73:AL$73) -> 6336.792306 | AQ54: =AP54/$AP$63 -> 0.7353907065
A57: Einzahlungen | G57: ankommende Menge
A58: Transportkosten | C58: 2 | E58: 1327.797335 | F58: €/t | G58: =D1*O18/G3 -> 33199.16734 | H58: t/a | I58: =E58*G58/1000000 -> 44.08176592 | J58: =I58*(1+$C58/100) -> 44.96340124 | K58: 45.86266926 | L58: 46.77992265 | M58: 47.7155211 | N58: 48.66983153 | O58: 49.64322816 | P58: 50.63609272 | Q58: 51.64881457 | R58: 52.68179086 | S58: 53.73542668 | T58: 54.81013522 | U58: 55.90633792 | V58: 57.02446468 | W58: 58.16495397 | X58: 59.32825305 | Y58: 60.51481811 | Z58: 61.72511447 | AA58: 62.95961676 | AB58: 64.2188091 | AC58: 65.50318528 | AD58: 66.81324899 | AE58: 68.14951397 | AF58: 69.51250425 | AG58: 70.90275433 | AH58: 72.32080942 | AI58: 73.76722561 | AJ58: 75.24257012 | AK58: 76.74742152 | AL58: 78.28236995 | AN58: =SUM(I58:AL58)/$AN$63*($AN$63-$AN$54)/$AN$63 -> 0.49163809 | AP58: =SUMPRODUCT(I58:AL58,I$73:AL$73) -> 8616.905612 | AQ58: =AP58/$AP$63*($AP$63-$AP$54)/$AP$63 -> 0.2646092935
E59: =E58/1000 -> 1.327797335 | F59: €/kg | G59: =G58/D1 -> 0.9624886435 | H59: Anteil
B60: bezogen auf ankommende Menge | E60: =PreisSens/G60*32 -> 0.3541619271 | F60: €/l BÄ | G60: 119.972 | H60: MJ/kg (Heizwert)
B61: bezogen auf eingehende Menge | E61: =E60*G58/D1 -> 0.3408768328 | F61: €/l BÄ
A63: Summe Einzahlungen | I63: =SUM(I58:I62) -> 44.08176592 | J63: 44.96340124 | K63: 45.86266926 | L63: 46.77992265 | M63: 47.7155211 | N63: 48.66983153 | O63: 49.64322816 | P63: 50.63609272 | Q63: 51.64881457 | R63: 52.68179086 | S63: 53.73542668 | T63: 54.81013522 | U63: 55.90633792 | V63: 57.02446468 | W63: 58.16495397 | X63: 59.32825305 | Y63: 60.51481811 | Z63: 61.72511447 | AA63: 62.95961676 | AB63: 64.2188091 | AC63: 65.50318528 | AD63: 66.81324899 | AE63: 68.14951397 | AF63: 69.51250425 | AG63: 70.90275433 | AH63: 72.32080942 | AI63: 73.76722561 | AJ63: 75.24257012 | AK63: 76.74742152 | AL63: 78.28236995 | AN63: =SUM(I63:AL63) -> 1788.312571 | AP63: =SUMPRODUCT(I63:AL63,I$73:AL$73) -> 8616.905612 | AQ63: =AP63/$AP$63*($AP$63-$AP$54)/$AP$63 -> 0.2646092935
A66: Überschuss | I66: =I63-I54 -> -10.03988614 | J66: -7.496613967 | K66: -4.941677352 | L66: -2.374843002 | M66: 0.204127036 | N66: 2.795475476 | O66: 5.399449887 | P66: 8.016302787 | Q66: 10.64629175 | R66: 13.28967949 | S66: 35.54723322 | T66: 36.25817789 | U66: 36.98334145 | V66: 37.72300828 | W66: 38.47746844 | X66: 39.24701781 | Y66: 40.03195817 | Z66: 40.83259733 | AA66: 41.64924928 | AB66: 42.48223426 | AC66: 43.33187895 | AD66: 44.19851653 | AE66: 45.08248686 | AF66: 45.98413659 | AG66: 46.90381932 | AH66: 47.84189571 | AI66: 48.79873363 | AJ66: 49.7747083 | AK66: 50.77020246 | AL66: 51.78560651
A67: Barwert | C67: 10 | I67: =I66*(1+$C$67/100)^-(I31) -> -9.127169216 | J67: -6.195548733 | K67: -3.712755335 | L67: -1.622049725 | M67: 0.1267468293 | N67: 1.577973028 | O67: 2.770771543 | P67: 3.739664412 | Q67: 4.515066975 | R67: 5.123746745 | S67: 12.45908839 | T67: 11.55297287 | U67: 10.71275666 | V67: 9.933647085 | W67: 9.211200025 | X67: 8.541294568 | Y67: 7.920109509 | Z67: 7.344101544 | AA67: 6.809985069 | AB67: 6.314713427 | AC67: 5.855461542 | AD67: 5.429609793 | AE67: 5.034729081 | AF67: 4.668566966 | AG67: 4.329034823 | AH67: 4.014195927 | AI67: 3.722254405 | AJ67: 3.451544994 | AK67: 3.200523539 | AL67: 2.967758191
A68: Abzinsungsfaktor | I68: =(1+$C$67/100)^-(I31) -> 0.9090909091 | J68: 0.826446281 | K68: 0.7513148009 | L68: 0.6830134554 | M68: 0.6209213231 | N68: 0.5644739301 | O68: 0.5131581182 | P68: 0.4665073802 | Q68: 0.4240976184 | R68: 0.3855432894 | S68: 0.3504938995 | T68: 0.3186308177 | U68: 0.2896643797 | V68: 0.2633312543 | W68: 0.2393920494 | X68: 0.2176291358 | Y68: 0.1978446689 | Z68: 0.1798587899 | AA68: 0.1635079908 | AB68: 0.148643628 | AC68: 0.1351305709 | AD68: 0.1228459736 | AE68: 0.1116781578 | AF68: 0.101525598 | AG68: 0.09229599818 | AH68: 0.08390545289 | AI68: 0.07627768444 | AJ68: 0.06934334949 | AK68: 0.06303940863 | AL68: 0.0573085533
A70: Endwertmethode | B70: Rendite: | C70: 10 | F70: Eigenkapital (Verzinsung) | H70: =E37/100*$E$36+E47/100*E46 -> 130.6699949 | I70: =$H$70*(1+$C$70/100)^I31 -> 143.7369944 | J70: 158.1106939 | K70: 173.9217633 | L70: 191.3139396 | M70: 210.4453335 | N70: 231.4898669 | O70: 254.6388536 | P70: 280.1027389 | Q70: 308.1130128 | R70: 338.9243141 | S70: 372.8167455 | T70: 410.0984201 | U70: 451.1082621 | V70: 496.2190883 | W70: 545.8409971 | X70: 600.4250968 | Y70: 660.4676065 | Z70: 726.5143672 | AA70: 799.1658039 | AB70: 879.0823843 | AC70: 966.9906227 | AD70: 1063.689685 | AE70: 1170.058653 | AF70: 1287.064519 | AG70: 1415.770971 | AH70: 1557.348068 | AI70: 1713.082875 | AJ70: 1884.391162 | AK70: 2072.830278 | AL70: 2280.113306 | AN70: =INDIRECT(ADDRESS(ROW(),COLUMN()-32+Jahre)) -> 2280.113306
F71: Überschuss (Endwertberechnung) | I71: =I66*I73 -> -159.2636472 | J71: -108.1086221 | K71: -64.78536137 | L71: -28.30379815 | M71: 2.21165641 | N71: 27.53468614 | O71: 48.34830726 | P71: 65.25490868 | Q71: 78.78521991 | R71: 89.40631808 | S71: 217.4036452 | T71: 201.592471 | U71: 186.9312004 | V71: 173.336204 | W71: 160.7299346 | X71: 149.0404848 | Y71: 138.2011768 | Z71: 128.1501822 | AA71: 118.8301689 | AB71: 110.1879748 | AC71: 102.1743039 | AD71: 94.74344544 | AE71: 87.85301305 | AF71: 81.46370301 | AG71: 75.53907006 | AH71: 70.04531951 | AI71: 64.95111446 | AJ71: 60.22739704 | AK71: 55.84722271 | AL71: 51.78560651
F72: Überschuss (Endwertberechnung) - aufsummiert | I72: =SUM($I$71:I71) -> -159.2636472 | J72: =SUM($I$71:J71) -> -267.3722694 | K72: =SUM($I$71:K71) -> -332.1576307 | L72: =SUM($I$71:L71) -> -360.4614289 | M72: =SUM($I$71:M71) -> -358.2497725 | N72: =SUM($I$71:N71) -> -330.7150863 | O72: =SUM($I$71:O71) -> -282.3667791 | P72: =SUM($I$71:P71) -> -217.1118704 | Q72: =SUM($I$71:Q71) -> -138.3266505 | R72: =SUM($I$71:R71) -> -48.92033239 | S72: =SUM($I$71:S71) -> 168.4833128 | T72: =SUM($I$71:T71) -> 370.0757838 | U72: =SUM($I$71:U71) -> 557.0069842 | V72: =SUM($I$71:V71) -> 730.3431882 | W72: =SUM($I$71:W71) -> 891.0731228 | X72: =SUM($I$71:X71) -> 1040.113608 | Y72: =SUM($I$71:Y71) -> 1178.314784 | Z72: =SUM($I$71:Z71) -> 1306.464967 | AA72: =SUM($I$71:AA71) -> 1425.295135 | AB72: =SUM($I$71:AB71) -> 1535.48311 | AC72: =SUM($I$71:AC71) -> 1637.657414 | AD72: =SUM($I$71:AD71) -> 1732.40086 | AE72: =SUM($I$71:AE71) -> 1820.253873 | AF72: =SUM($I$71:AF71) -> 1901.717576 | AG72: =SUM($I$71:AG71) -> 1977.256646 | AH72: =SUM($I$71:AH71) -> 2047.301965 | AI72: =SUM($I$71:AI71) -> 2112.25308 | AJ72: =SUM($I$71:AJ71) -> 2172.480477 | AK72: =SUM($I$71:AK71) -> 2228.327699 | AL72: =SUM($I$71:AL71) -> 2280.113306 | AN72: =INDIRECT(ADDRESS(ROW(),COLUMN()-32+Jahre)) -> 2280.113306
C73: =C70 -> 10 | F73: Endwert-Faktor | I73: =IF((1+$C$73/100)^($H$1-I31)>=1,(1+$C$73/100)^($H$1-I31),0) -> 15.86309297 | J73: 14.42099361 | K73: 13.10999419 | L73: 11.91817654 | M73: 10.83470594 | N73: 9.849732676 | O73: 8.954302433 | P73: 8.140274939 | Q73: 7.400249944 | R73: 6.727499949 | S73: 6.115909045 | T73: 5.559917313 | U73: 5.054470285 | V73: 4.594972986 | W73: 4.177248169 | X73: 3.797498336 | Y73: 3.452271214 | Z73: 3.138428377 | AA73: 2.853116706 | AB73: 2.59374246 | AC73: 2.357947691 | AD73: 2.14358881 | AE73: 1.9487171 | AF73: 1.771561 | AG73: 1.61051 | AH73: 1.4641 | AI73: 1.331 | AJ73: 1.21 | AK73: 1.1 | AL73: 1

Sheet H2-LIQ (hidden)
A1: OPEX-Transport | C1: für | D1: 34841.46301 | E1: t/a | F1: Betriebsdauer: | H1: 30 | I1: Jahre | J1: (<= 30 Jahre)
C2: Strecke: | D2: N/A | E2: km
A3: H2-LIQ | B3: Basisdaten | E3: Rohdaten: | F3: Kapazität: | G3: 260000 | H3: t/a | I3: Brennwert H2: | K3: 141.8 | L3: MJ/kg
E4: [IEA2019] | F4: CAPEX für Kapazität: | G4: 1400 | H4: M$(2019) | I4: = | J4: =G4/1.12 -> 1250 | K4: M€(2019)
A5: Umwandlung zu von flüssigem H2 | F5: Elektrizitätsbedarf | G5: =(96.0340281*EXP(-0.82491014*LOG10(D1*1000/8000))+18.6016505)/100 -> 0.2337405045 | H5: MJ/MJ H2(BW) | I5: [Bossel - advanced - abgeschätzte Regression der angegebenen Kurve]
F6: OPEX | G6: 4 | H6: %/CAPEX/a
F7: Degressionskoeffizient | G7: 0.69 | I7: [Trippe2011 - ASU]
F8: CAPEX skaliert | G8: =J4*(D1/G3)^G7 -> 312.338059 | H8: M€(2019)
I29: [Mio. €/a]
C30: Kostenstei-gerung (%/a) | E30: Preis/Einheit | G30: Einheiten/a | I30: 1 | J30: 2 | K30: 3 | L30: 4 | M30: 5 | N30: 6 | O30: 7 | P30: 8 | Q30: 9 | R30: 10 | S30: 11 | T30: 12 | U30: 13 | V30: 14 | W30: 15 | X30: 16 | Y30: 17 | Z30: 18 | AA30: 19 | AB30: 20 | AC30: 21 | AD30: 22 | AE30: 23 | AF30: 24 | AG30: 25 | AH30: 26 | AI30: 27 | AJ30: 28 | AK30: 29 | AL30: 30 | AN30: Summierung/Anteile | AP30: Summierung mit Kalkulatorischem Zinsfuß
A31: Auszahlungen | D31: Feuchte:
A32: [Transport]
A33: OPEX | C33: 2 | E33: =G6 -> 4 | F33: % der Investkosten | I33: =E33/100*$E$35 -> 12.49352236 | J33: =I33*(1+$C33/100) -> 12.74339281 | K33: 12.99826066 | L33: 13.25822588 | M33: 13.5233904 | N33: 13.7938582 | O33: 14.06973537 | P33: 14.35113007 | Q33: 14.63815268 | R33: 14.93091573 | S33: 15.22953404 | T33: 15.53412473 | U33: 15.84480722 | V33: 16.16170336 | W33: 16.48493743 | X33: 16.81463618 | Y33: 17.1509289 | Z33: 17.49394748 | AA33: 17.84382643 | AB33: 18.20070296 | AC33: 18.56471702 | AD33: 18.93601136 | AE33: 19.31473159 | AF33: 19.70102622 | AG33: 20.09504674 | AH33: 20.49694768 | AI33: 20.90688663 | AJ33: 21.32502436 | AK33: 21.75152485 | AL33: 22.18655535 | AN33: =SUM(I33:AL33)/$AN$53 -> 0.2214625186 | AP33: =SUMPRODUCT(I33:AL33,I$63:AL$63) -> 2442.177637 | AQ33: =AP33/$AP$53 -> 0.2214625186
A35: CAPEX | E35: =G8 -> 312.338059 | F35: M€
A36: Eigenkapitalquote | E36: 40 | F36: %
A37: Zinsen | E37: 10 | F37: % | I37: =$E$37/100*(E35*(1-$E$36/100)) -> 18.74028354 | J37: =MAX(0,$E$37/100*($E$35*(1-$E$36/100)-(J30-1)*$E$38/100*$E$35*(1-$E$36/100))) -> 16.86625519 | K37: 14.99222683 | L37: 13.11819848 | M37: 11.24417013 | N37: 9.370141771 | O37: 7.496113417 | P37: 5.622085063 | Q37: 3.748056708 | R37: 1.874028354 | S37: 0 | T37: 0 | U37: 0 | V37: 0 | W37: 0 | X37: 0 | Y37: 0 | Z37: 0 | AA37: 0 | AB37: 0 | AC37: 0 | AD37: 0 | AE37: 0 | AF37: 0 | AG37: 0 | AH37: 0 | AI37: 0 | AJ37: 0 | AK37: 0 | AL37: 0 | AN37: =SUM(I37:AL37)/$AN$53 -> 0.04503702947 | AP37: =SUMPRODUCT(I37:AL37,I$63:AL$63) -> 1260.752566 | AQ37: =AP37/$AP$53 -> 0.1143280629
A38: jähliche Tilgung | E38: 10 | F38: % | I38: =$E$38/100*(E35*(1-$E$36/100)) -> 18.74028354 | J38: =IF(SUM($I$38:I38)<=(100-$E$38)/100*$E$35*(100-$E$36)/100,$E$38/100*$E$35*(100-$E$36)/100,MAX(0,$E$35*(100-$E$36)/100-SUM($I$38:I38))) -> 18.74028354 | K38: =IF(SUM($I$38:J38)<=(100-$E$38)/100*$E$35*(100-$E$36)/100,$E$38/100*$E$35*(100-$E$36)/100,MAX(0,$E$35*(100-$E$36)/100-SUM($I$38:J38))) -> 18.74028354 | L38: =IF(SUM($I$38:K38)<=(100-$E$38)/100*$E$35*(100-$E$36)/100,$E$38/100*$E$35*(100-$E$36)/100,MAX(0,$E$35*(100-$E$36)/100-SUM($I$38:K38))) -> 18.74028354 | M38: =IF(SUM($I$38:L38)<=(100-$E$38)/100*$E$35*(100-$E$36)/100,$E$38/100*$E$35*(100-$E$36)/100,MAX(0,$E$35*(100-$E$36)/100-SUM($I$38:L38))) -> 18.74028354 | N38: =IF(SUM($I$38:M38)<=(100-$E$38)/100*$E$35*(100-$E$36)/100,$E$38/100*$E$35*(100-$E$36)/100,MAX(0,$E$35*(100-$E$36)/100-SUM($I$38:M38))) -> 18.74028354 | O38: =IF(SUM($I$38:N38)<=(100-$E$38)/100*$E$35*(100-$E$36)/100,$E$38/100*$E$35*(100-$E$36)/100,MAX(0,$E$35*(100-$E$36)/100-SUM($I$38:N38))) -> 18.74028354 | P38: =IF(SUM($I$38:O38)<=(100-$E$38)/100*$E$35*(100-$E$36)/100,$E$38/100*$E$35*(100-$E$36)/100,MAX(0,$E$35*(100-$E$36)/100-SUM($I$38:O38))) -> 18.74028354 | Q38: =IF(SUM($I$38:P38)<=(100-$E$38)/100*$E$35*(100-$E$36)/100,$E$38/100*$E$35*(100-$E$36)/100,MAX(0,$E$35*(100-$E$36)/100-SUM($I$38:P38))) -> 18.74028354 | R38: =IF(SUM($I$38:Q38)<=(100-$E$38)/100*$E$35*(100-$E$36)/100,$E$38/100*$E$35*(100-$E$36)/100,MAX(0,$E$35*(100-$E$36)/100-SUM($I$38:Q38))) -> 18.74028354 | S38: =IF(SUM($I$38:R38)<=(100-$E$38)/100*$E$35*(100-$E$36)/100,$E$38/100*$E$35*(100-$E$36)/100,MAX(0,$E$35*(100-$E$36)/100-SUM($I$38:R38))) -> 0 | T38: =IF(SUM($I$38:S38)<=(100-$E$38)/100*$E$35*(100-$E$36)/100,$E$38/100*$E$35*(100-$E$36)/100,MAX(0,$E$35*(100-$E$36)/100-SUM($I$38:S38))) -> 0 | U38: =IF(SUM($I$38:T38)<=(100-$E$38)/100*$E$35*(100-$E$36)/100,$E$38/100*$E$35*(100-$E$36)/100,MAX(0,$E$35*(100-$E$36)/100-SUM($I$38:T38))) -> 0 | V38: =IF(SUM($I$38:U38)<=(100-$E$38)/100*$E$35*(100-$E$36)/100,$E$38/100*$E$35*(100-$E$36)/100,MAX(0,$E$35*(100-$E$36)/100-SUM($I$38:U38))) -> 0 | W38: =IF(SUM($I$38:V38)<=(100-$E$38)/100*$E$35*(100-$E$36)/100,$E$38/100*$E$35*(100-$E$36)/100,MAX(0,$E$35*(100-$E$36)/100-SUM($I$38:V38))) -> 0 | X38: =IF(SUM($I$38:W38)<=(100-$E$38)/100*$E$35*(100-$E$36)/100,$E$38/100*$E$35*(100-$E$36)/100,MAX(0,$E$35*(100-$E$36)/100-SUM($I$38:W38))) -> 0 | Y38: =IF(SUM($I$38:X38)<=(100-$E$38)/100*$E$35*(100-$E$36)/100,$E$38/100*$E$35*(100-$E$36)/100,MAX(0,$E$35*(100-$E$36)/100-SUM($I$38:X38))) -> 0 | Z38: =IF(SUM($I$38:Y38)<=(100-$E$38)/100*$E$35*(100-$E$36)/100,$E$38/100*$E$35*(100-$E$36)/100,MAX(0,$E$35*(100-$E$36)/100-SUM($I$38:Y38))) -> 0 | AA38: =IF(SUM($I$38:Z38)<=(100-$E$38)/100*$E$35*(100-$E$36)/100,$E$38/100*$E$35*(100-$E$36)/100,MAX(0,$E$35*(100-$E$36)/100-SUM($I$38:Z38))) -> 0 | AB38: =IF(SUM($I$38:AA38)<=(100-$E$38)/100*$E$35*(100-$E$36)/100,$E$38/100*$E$35*(100-$E$36)/100,MAX(0,$E$35*(100-$E$36)/100-SUM($I$38:AA38))) -> 0 | AC38: =IF(SUM($I$38:AB38)<=(100-$E$38)/100*$E$35*(100-$E$36)/100,$E$38/100*$E$35*(100-$E$36)/100,MAX(0,$E$35*(100-$E$36)/100-SUM($I$38:AB38))) -> 0 | AD38: =IF(SUM($I$38:AC38)<=(100-$E$38)/100*$E$35*(100-$E$36)/100,$E$38/100*$E$35*(100-$E$36)/100,MAX(0,$E$35*(100-$E$36)/100-SUM($I$38:AC38))) -> 0 | AE38: =IF(SUM($I$38:AD38)<=(100-$E$38)/100*$E$35*(100-$E$36)/100,$E$38/100*$E$35*(100-$E$36)/100,MAX(0,$E$35*(100-$E$36)/100-SUM($I$38:AD38))) -> 0 | AF38: =IF(SUM($I$38:AE38)<=(100-$E$38)/100*$E$35*(100-$E$36)/100,$E$38/100*$E$35*(100-$E$36)/100,MAX(0,$E$35*(100-$E$36)/100-SUM($I$38:AE38))) -> 0 | AG38: =IF(SUM($I$38:AF38)<=(100-$E$38)/100*$E$35*(100-$E$36)/100,$E$38/100*$E$35*(100-$E$36)/100,MAX(0,$E$35*(100-$E$36)/100-SUM($I$38:AF38))) -> 0 | AH38: =IF(SUM($I$38:AG38)<=(100-$E$38)/100*$E$35*(100-$E$36)/100,$E$38/100*$E$35*(100-$E$36)/100,MAX(0,$E$35*(100-$E$36)/100-SUM($I$38:AG38))) -> 0 | AI38: =IF(SUM($I$38:AH38)<=(100-$E$38)/100*$E$35*(100-$E$36)/100,$E$38/100*$E$35*(100-$E$36)/100,MAX(0,$E$35*(100-$E$36)/100-SUM($I$38:AH38))) -> 0 | AJ38: =IF(SUM($I$38:AI38)<=(100-$E$38)/100*$E$35*(100-$E$36)/100,$E$38/100*$E$35*(100-$E$36)/100,MAX(0,$E$35*(100-$E$36)/100-SUM($I$38:AI38))) -> 0 | AK38: =IF(SUM($I$38:AJ38)<=(100-$E$38)/100*$E$35*(100-$E$36)/100,$E$38/100*$E$35*(100-$E$36)/100,MAX(0,$E$35*(100-$E$36)/100-SUM($I$38:AJ38))) -> 0 | AL38: =IF(SUM($I$38:AK38)<=(100-$E$38)/100*$E$35*(100-$E$36)/100,$E$38/100*$E$35*(100-$E$36)/100,MAX(0,$E$35*(100-$E$36)/100-SUM($I$38:AK38))) -> 0 | AN38: =SUM(I38:AL38)/$AN$53 -> 0.08188550813 | AP38: =SUMPRODUCT(I38:AL38,I$63:AL$63) -> 2009.314896 | AQ38: =AP38/$AP$53 -> 0.1822094883
A40: Elektrizitätsbedarf | C40: 2 | E40: =K3*D1*1000/3600*G5 -> 320777.6416 | F40: MWh/a | G40: 50 | H40: €/MWh | I40: =E40*G40/1000000 -> 16.03888208 | J40: =I40*(1+$C40/100) -> 16.35965972 | K40: 16.68685292 | L40: 17.02058997 | M40: 17.36100177 | N40: 17.70822181 | O40: 18.06238625 | P40: 18.42363397 | Q40: 18.79210665 | R40: 19.16794878 | S40: 19.55130776 | T40: 19.94233391 | U40: 20.34118059 | V40: 20.7480042 | W40: 21.16296429 | X40: 21.58622357 | Y40: 22.01794805 | Z40: 22.45830701 | AA40: 22.90747315 | AB40: 23.36562261 | AC40: 23.83293506 | AD40: 24.30959376 | AE40: 24.79578564 | AF40: 25.29170135 | AG40: 25.79753538 | AH40: 26.31348609 | AI40: 26.83975581 | AJ40: 27.37655092 | AK40: 27.92408194 | AL40: 28.48256358 | AN40: =SUM(I40:AL40)/$AN$53 -> 0.2843082294 | AP40: =SUMPRODUCT(I40:AL40,I$63:AL$63) -> 3135.208631 | AQ40: =AP40/$AP$53 -> 0.2843082294
A44: Summe Auszahlungen | I44: =SUM(I32:I43) -> 66.01297153 | J44: 64.70959126 | K44: 63.41762396 | L44: 62.13729787 | M44: 60.86884584 | N44: 59.61250533 | O44: 58.36851857 | P44: 57.13713265 | Q44: 55.91859958 | R44: 54.71317641 | S44: 34.7808418 | T44: 35.47645864 | U44: 36.18598781 | V44: 36.90970757 | W44: 37.64790172 | X44: 38.40085975 | Y44: 39.16887695 | Z44: 39.95225449 | AA44: 40.75129958 | AB44: 41.56632557 | AC44: 42.39765208 | AD44: 43.24560512 | AE44: 44.11051723 | AF44: 44.99272757 | AG44: 45.89258212 | AH44: 46.81043376 | AI44: 47.74664244 | AJ44: 48.70157529 | AK44: 49.67560679 | AL44: 50.66911893 | AN44: =SUM(I44:AL44) -> 1447.979238 | AP44: =SUMPRODUCT(I44:AL44,I$63:AL$63) -> 8847.45373 | AQ44: =AP44/$AP$53 -> 0.8023082992
A47: Einzahlungen | G47: ankommende Menge
A48: Transportkosten | C48: 2 | E48: 1619.154461 | F48: €/t | G48: =D1 -> 34841.46301 | H48: t/a | I48: =E48*G48/1000000 -> 56.41371027 | J48: =I48*(1+$C48/100) -> 57.54198447 | K48: 58.69282416 | L48: 59.86668065 | M48: 61.06401426 | N48: 62.28529455 | O48: 63.53100044 | P48: 64.80162045 | Q48: 66.09765285 | R48: 67.41960591 | S48: 68.76799803 | T48: 70.14335799 | U48: 71.54622515 | V48: 72.97714965 | W48: 74.43669265 | X48: 75.9254265 | Y48: 77.44393503 | Z48: 78.99281373 | AA48: 80.57267 | AB48: 82.1841234 | AC48: 83.82780587 | AD48: 85.50436199 | AE48: 87.21444923 | AF48: 88.95873821 | AG48: 90.73791298 | AH48: 92.55267124 | AI48: 94.40372466 | AJ48: 96.29179916 | AK48: 98.21763514 | AL48: 100.1819878 | AN48: =SUM(I48:AL48)/$AN$53*($AN$53-$AN$44)/$AN$53 -> 0.3673067144 | AP48: =SUMPRODUCT(I48:AL48,I$63:AL$63) -> 11027.4987 | AQ48: =AP48/$AP$53*($AP$53-$AP$44)/$AP$53 -> 0.1976917008
E49: =E48/1000 -> 1.619154461 | F49: €/kg | G49: =G48/D1 -> 1 | H49: Anteil
B50: bezogen auf ankommende Menge | E50: =E49/G50*32 -> 0.4318752939 | F50: €/l BÄ | G50: 119.972 | H50: MJ/kg (Heizwert)
B51: bezogen auf eingehende Menge | E51: =E50*G48/D1 -> 0.4318752939 | F51: €/l BÄ
A53: Summe Einzahlungen | I53: =SUM(I48:I52) -> 56.41371027 | J53: 57.54198447 | K53: 58.69282416 | L53: 59.86668065 | M53: 61.06401426 | N53: 62.28529455 | O53: 63.53100044 | P53: 64.80162045 | Q53: 66.09765285 | R53: 67.41960591 | S53: 68.76799803 | T53: 70.14335799 | U53: 71.54622515 | V53: 72.97714965 | W53: 74.43669265 | X53: 75.9254265 | Y53: 77.44393503 | Z53: 78.99281373 | AA53: 80.57267 | AB53: 82.1841234 | AC53: 83.82780587 | AD53: 85.50436199 | AE53: 87.21444923 | AF53: 88.95873821 | AG53: 90.73791298 | AH53: 92.55267124 | AI53: 94.40372466 | AJ53: 96.29179916 | AK53: 98.21763514 | AL53: 100.1819878 | AN53: =SUM(I53:AL53) -> 2288.595866 | AP53: =SUMPRODUCT(I53:AL53,I$63:AL$63) -> 11027.4987 | AQ53: =AP53/$AP$53*($AP$53-$AP$44)/$AP$53 -> 0.1976917008
A56: Überschuss | I56: =I53-I44 -> -9.599261256 | J56: -7.167606786 | K56: -4.724799793 | L56: -2.270617227 | M56: 0.1951684234 | N56: 2.672789219 | O56: 5.162481864 | P56: 7.664487795 | Q56: 10.17905328 | R56: 12.7064295 | S56: 33.98715623 | T56: 34.66689935 | U56: 35.36023734 | V56: 36.06744208 | W56: 36.78879093 | X56: 37.52456674 | Y56: 38.27505808 | Z56: 39.04055924 | AA56: 39.82137043 | AB56: 40.61779783 | AC56: 41.43015379 | AD56: 42.25875687 | AE56: 43.103932 | AF56: 43.96601064 | AG56: 44.84533086 | AH56: 45.74223747 | AI56: 46.65708222 | AJ56: 47.59022387 | AK56: 48.54202835 | AL56: 49.51286891
A57: Barwert | C57: 10 | I57: =I56*(1+$C$57/100)^-(I30) -> -8.726601142 | J57: -5.923641972 | K57: -3.549812015 | L57: -1.550862118 | M57: 0.1211842357 | N57: 1.508719835 | O57: 2.649169479 | P57: 3.575540122 | Q57: 4.316912252 | R57: 4.898878627 | S57: 11.91229092 | T57: 11.04594249 | U57: 10.24260122 | V57: 9.497684764 | W57: 8.806944054 | X57: 8.166439032 | Y57: 7.572516193 | Z57: 7.021787742 | AA57: 6.51111227 | AB57: 6.037576832 | AC57: 5.598480336 | AD57: 5.191318129 | AE57: 4.81376772 | AF57: 4.463675522 | AG57: 4.139044575 | AH57: 3.838023151 | AI57: 3.558894195 | AJ57: 3.300065526 | AK57: 3.060060761 | AL57: 2.837510887
A58: Abzinsungsfaktor | I58: =(1+$C$57/100)^-(I30) -> 0.9090909091 | J58: 0.826446281 | K58: 0.7513148009 | L58: 0.6830134554 | M58: 0.6209213231 | N58: 0.5644739301 | O58: 0.5131581182 | P58: 0.4665073802 | Q58: 0.4240976184 | R58: 0.3855432894 | S58: 0.3504938995 | T58: 0.3186308177 | U58: 0.2896643797 | V58: 0.2633312543 | W58: 0.2393920494 | X58: 0.2176291358 | Y58: 0.1978446689 | Z58: 0.1798587899 | AA58: 0.1635079908 | AB58: 0.148643628 | AC58: 0.1351305709 | AD58: 0.1228459736 | AE58: 0.1116781578 | AF58: 0.101525598 | AG58: 0.09229599818 | AH58: 0.08390545289 | AI58: 0.07627768444 | AJ58: 0.06934334949 | AK58: 0.06303940863 | AL58: 0.0573085533
A60: Endwertmethode | B60: Rendite: | C60: 10 | F60: Eigenkapital (Verzinsung) | H60: =E36/100*$E$35 -> 124.9352236 | I60: =$H$60*(1+$C$60/100)^I30 -> 137.428746 | J60: 151.1716206 | K60: 166.2887826 | L60: 182.9176609 | M60: 201.209427 | N60: 221.3303697 | O60: 243.4634066 | P60: 267.8097473 | Q60: 294.590722 | R60: 324.0497942 | S60: 356.4547737 | T60: 392.100251 | U60: 431.3102761 | V60: 474.4413038 | W60: 521.8854341 | X60: 574.0739776 | Y60: 631.4813753 | Z60: 694.6295128 | AA60: 764.0924641 | AB60: 840.5017105 | AC60: 924.5518816 | AD60: 1017.00707 | AE60: 1118.707777 | AF60: 1230.578554 | AG60: 1353.63641 | AH60: 1489.000051 | AI60: 1637.900056 | AJ60: 1801.690061 | AK60: 1981.859068 | AL60: 2180.044974 | AN60: =INDIRECT(ADDRESS(ROW(),COLUMN()-32+Jahre2)) -> 2180.044974
F61: Überschuss (Endwertberechnung) | I61: =I56*I63 -> -152.2739738 | J61: -103.3640117 | K61: -61.94209784 | L61: -27.06161696 | M61: 2.114592477 | N61: 26.32625931 | O61: 46.22642392 | P61: 62.39103791 | Q61: 75.32753845 | R61: 85.48250383 | S61: 207.8623562 | T61: 192.7450939 | U61: 178.7272689 | V61: 165.7289221 | W61: 153.6759096 | X61: 142.4994798 | Y61: 132.1358812 | Z61: 122.525999 | AA61: 113.6150172 | AB61: 105.3521069 | AC61: 97.69013547 | AD61: 90.58539834 | AE61: 83.99736937 | AF61: 77.88846978 | AG61: 72.2238538 | AH61: 66.97120989 | AI61: 62.10057644 | AJ61: 57.58417088 | AK61: 53.39623118 | AL61: 49.51286891
F62: Überschuss (Endwertberechnung) - aufsummiert | I62: =SUM($I$61:I61) -> -152.2739738 | J62: =SUM($I$61:J61) -> -255.6379854 | K62: =SUM($I$61:K61) -> -317.5800833 | L62: =SUM($I$61:L61) -> -344.6417002 | M62: =SUM($I$61:M61) -> -342.5271078 | N62: =SUM($I$61:N61) -> -316.2008484 | O62: =SUM($I$61:O61) -> -269.9744245 | P62: =SUM($I$61:P61) -> -207.5833866 | Q62: =SUM($I$61:Q61) -> -132.2558482 | R62: =SUM($I$61:R61) -> -46.77334433 | S62: =SUM($I$61:S61) -> 161.0890118 | T62: =SUM($I$61:T61) -> 353.8341057 | U62: =SUM($I$61:U61) -> 532.5613746 | V62: =SUM($I$61:V61) -> 698.2902967 | W62: =SUM($I$61:W61) -> 851.9662063 | X62: =SUM($I$61:X61) -> 994.465686 | Y62: =SUM($I$61:Y61) -> 1126.601567 | Z62: =SUM($I$61:Z61) -> 1249.127566 | AA62: =SUM($I$61:AA61) -> 1362.742583 | AB62: =SUM($I$61:AB61) -> 1468.09469 | AC62: =SUM($I$61:AC61) -> 1565.784826 | AD62: =SUM($I$61:AD61) -> 1656.370224 | AE62: =SUM($I$61:AE61) -> 1740.367594 | AF62: =SUM($I$61:AF61) -> 1818.256063 | AG62: =SUM($I$61:AG61) -> 1890.479917 | AH62: =SUM($I$61:AH61) -> 1957.451127 | AI62: =SUM($I$61:AI61) -> 2019.551703 | AJ62: =SUM($I$61:AJ61) -> 2077.135874 | AK62: =SUM($I$61:AK61) -> 2130.532105 | AL62: =SUM($I$61:AL61) -> 2180.044974 | AN62: =INDIRECT(ADDRESS(ROW(),COLUMN()-32+Jahre2)) -> 2180.044974
C63: =C60 -> 10 | F63: Endwert-Faktor | I63: =IF((1+$C$63/100)^($H$1-I30)>=1,(1+$C$63/100)^($H$1-I30),0) -> 15.86309297 | J63: 14.42099361 | K63: 13.10999419 | L63: 11.91817654 | M63: 10.83470594 | N63: 9.849732676 | O63: 8.954302433 | P63: 8.140274939 | Q63: 7.400249944 | R63: 6.727499949 | S63: 6.115909045 | T63: 5.559917313 | U63: 5.054470285 | V63: 4.594972986 | W63: 4.177248169 | X63: 3.797498336 | Y63: 3.452271214 | Z63: 3.138428377 | AA63: 2.853116706 | AB63: 2.59374246 | AC63: 2.357947691 | AD63: 2.14358881 | AE63: 1.9487171 | AF63: 1.771561 | AG63: 1.61051 | AH63: 1.4641 | AI63: 1.331 | AJ63: 1.21 | AK63: 1.1 | AL63: 1

Sheet H2-TRUCK-LIQ (hidden)
A1: OPEX-Transport | C1: für | D1: 33199.16734 | E1: t/a | F1: Betriebsdauer: | H1: 12 | I1: Jahre | J1: (<= 30 Jahre)
C2: Strecke: | D2: 500 | E2: km
A3: H2-TRUCK-LIQ | B3: Basisdaten | E3: Rohdaten:
E4: [IEA2019] | F4: Kapazität | G4: 35 | H4: m³ | I4: [Defossilisierung]
A5: Transport flüssiges H2 in LKW | E5: [Defossilisierung] | F5: Dichte H2-LIQ | G5: 71 | H5: kg/m³
E6: [Bossel] | G6: =35*G5 -> 2485 | H6: kg/Fahrt
F7: CAPEX/LKW | G7: 0.185 | H7: M$(2019) | I7: = | J7: =G7/1.12 -> 0.1651785714 | K7: M€(2019) | L7: [IEA2019]
F8: OPEX/LKW | G8: 12 | H8: %/CAPEX/a | L8: [IEA2019]
F9: Fahrer: | G9: 23 | H9: $/h | I9: = | J9: =G9/1.12 -> 20.53571429 | K9: €/h | L9: [IEA2019]
F10: mittl. Geschwindigkeit | G10: 50 | H10: km/h | I10: [IEA2019]
F11: Anzahl Fahrten(mit Rückfahrten) | G11: =G28/G6*1000*2 -> 26452.45527 | H11: Fahrten inkl. Rückfahrten
F12: LKW-Kilometer | G12: =G11*D2 -> 13226227.63 | H12: km/a
F14: Verbrauch pro Kilometer: | G14: 1220.1 | H14: MJ/100 km | I14: [Defossilisierung -Verbrenner:Diesel]
F15: Jahresverbrauch(Diesel): | G15: =G14*G12/100 -> 161373203.4 | H15: MJ/a | I15: Heizwert: | J15: 119.972 | K15: MJ/kg H2 | P15: [Defossilisierung]
F16: in t H2: | G16: =G15/J15/1000*P16/P17 -> 1228.126154 | H16: t/a | M16: Wirkungsgrade: | O16: WG.Diesel | P16: 0.42
F17: Fahrerkosten: | G17: =G12/G10*J9/1000000 -> 5.432200635 | H17: M€/a | O17: WG-H2-FCEV | P17: 0.46
M18: Diesel HW:
F19: Dieselpreis | G19: 1.05 | H19: €/l | I19: = | J19: =G19/M19 -> 0.02957746479 | K19: €/MJ | M19: 35.5 | N19: MJ/l
M20: Diesel
M21: transp. Pr.
F22: Fahrtzeit pro Woche | G22: 45 | H22: h/Woche | I22: [90 h pro 2 Wochen - gesetzliche Bestimmung]
F23: Fahrtzeit pro Jahr/LKW | G23: =G22*M23 -> 2250 | H23: h/a | I23: Annahme: effektive Wochenfahrtzeit: | M23: 50 | N23: Wochen/a
F24: Strecke pro LKW/a | G24: =G23*G10 -> 112500 | H24: km/LKW/a
F25: Anzahl LKWs: | G25: =G12/G24 -> 117.5664679 | H25: LKWs zum Transport der Menge
F27: Flash/Schlupf | G27: 1 | H27: % | I27: [Annahme]
F28: Menge nach Flash: | G28: =D1*(100-G27)/100 -> 32867.17567 | H28: t/a
I32: [Mio. €/a]
C33: Kostenstei-gerung (%/a) | E33: Preis/Einheit | G33: Einheiten/a | I33: 1 | J33: 2 | K33: 3 | L33: 4 | M33: 5 | N33: 6 | O33: 7 | P33: 8 | Q33: 9 | R33: 10 | S33: 11 | T33: 12 | U33: 13 | V33: 14 | W33: 15 | X33: 16 | Y33: 17 | Z33: 18 | AA33: 19 | AB33: 20 | AC33: 21 | AD33: 22 | AE33: 23 | AF33: 24 | AG33: 25 | AH33: 26 | AI33: 27 | AJ33: 28 | AK33: 29 | AL33: 30 | AN33: Summierung/Anteile | AP33: Summierung mit Kalkulatorischem Zinsfuß
A34: Auszahlungen | D34: Feuchte:
A35: [Transport]
A36: OPEX | C36: 2 | E36: =G8 -> 12 | F36: % der Investkosten | I36: =E36/100*$E$38 -> 2.330335345 | J36: =I36*(1+$C36/100) -> 2.376942052 | K36: 2.424480893 | L36: 2.472970511 | M36: 2.522429921 | N36: 2.572878519 | O36: 2.62433609 | P36: 2.676822812 | Q36: 2.730359268 | R36: 2.784966453 | S36: 2.840665782 | T36: 2.897479098 | U36: 2.95542868 | V36: 3.014537253 | W36: 3.074827998 | X36: 3.136324558 | Y36: 3.19905105 | Z36: 3.263032071 | AA36: 3.328292712 | AB36: 3.394858566 | AC36: 3.462755738 | AD36: 3.532010852 | AE36: 3.602651069 | AF36: 3.674704091 | AG36: 3.748198173 | AH36: 3.823162136 | AI36: 3.899625379 | AJ36: 3.977617886 | AK36: 4.057170244 | AL36: 4.138313649 | AN36: =SUM(I36:AL36)/$AN$58 -> 0.1538924112 | AP36: =SUMPRODUCT(I36:AL36,I$68:AL$68) -> 54.47702367 | AQ36: =AP36/$AP$58 -> 0.1538924112
A38: CAPEX | E38: =G25*J7 -> 19.41946121 | F38: M€
A39: Eigenkapitalquote | E39: 40 | F39: %
A40: Zinsen | E40: 10 | F40: % | I40: =$E$40/100*(E38*(1-$E$39/100)) -> 1.165167672 | J40: =MAX(0,$E$40/100*($E$38*(1-$E$39/100)-(J33-1)*$E$41/100*$E$38*(1-$E$39/100))) -> 1.048650905 | K40: 0.932134138 | L40: 0.8156173707 | M40: 0.6991006035 | N40: 0.5825838362 | O40: 0.466067069 | P40: 0.3495503017 | Q40: 0.2330335345 | R40: 0.1165167672 | S40: 0 | T40: 0 | U40: 0 | V40: 0 | W40: 0 | X40: 0 | Y40: 0 | Z40: 0 | AA40: 0 | AB40: 0 | AC40: 0 | AD40: 0 | AE40: 0 | AF40: 0 | AG40: 0 | AH40: 0 | AI40: 0 | AJ40: 0 | AK40: 0 | AL40: 0 | AN40: =SUM(I40:AL40)/$AN$58 -> 0.01043194894 | AP40: =SUMPRODUCT(I40:AL40,I$68:AL$68) -> 14.09852884 | AQ40: =AP40/$AP$58 -> 0.03982700322
A41: jähliche Tilgung | E41: 10 | F41: % | I41: =$E$41/100*(E38*(1-$E$39/100)) -> 1.165167672 | J41: =IF(SUM($I$41:I41)<=(100-$E$41)/100*$E$38*(100-$E$39)/100,$E$41/100*$E$38*(100-$E$39)/100,MAX(0,$E$38*(100-$E$39)/100-SUM($I$41:I41))) -> 1.165167672 | K41: =IF(SUM($I$41:J41)<=(100-$E$41)/100*$E$38*(100-$E$39)/100,$E$41/100*$E$38*(100-$E$39)/100,MAX(0,$E$38*(100-$E$39)/100-SUM($I$41:J41))) -> 1.165167672 | L41: =IF(SUM($I$41:K41)<=(100-$E$41)/100*$E$38*(100-$E$39)/100,$E$41/100*$E$38*(100-$E$39)/100,MAX(0,$E$38*(100-$E$39)/100-SUM($I$41:K41))) -> 1.165167672 | M41: =IF(SUM($I$41:L41)<=(100-$E$41)/100*$E$38*(100-$E$39)/100,$E$41/100*$E$38*(100-$E$39)/100,MAX(0,$E$38*(100-$E$39)/100-SUM($I$41:L41))) -> 1.165167672 | N41: =IF(SUM($I$41:M41)<=(100-$E$41)/100*$E$38*(100-$E$39)/100,$E$41/100*$E$38*(100-$E$39)/100,MAX(0,$E$38*(100-$E$39)/100-SUM($I$41:M41))) -> 1.165167672 | O41: =IF(SUM($I$41:N41)<=(100-$E$41)/100*$E$38*(100-$E$39)/100,$E$41/100*$E$38*(100-$E$39)/100,MAX(0,$E$38*(100-$E$39)/100-SUM($I$41:N41))) -> 1.165167672 | P41: =IF(SUM($I$41:O41)<=(100-$E$41)/100*$E$38*(100-$E$39)/100,$E$41/100*$E$38*(100-$E$39)/100,MAX(0,$E$38*(100-$E$39)/100-SUM($I$41:O41))) -> 1.165167672 | Q41: =IF(SUM($I$41:P41)<=(100-$E$41)/100*$E$38*(100-$E$39)/100,$E$41/100*$E$38*(100-$E$39)/100,MAX(0,$E$38*(100-$E$39)/100-SUM($I$41:P41))) -> 1.165167672 | R41: =IF(SUM($I$41:Q41)<=(100-$E$41)/100*$E$38*(100-$E$39)/100,$E$41/100*$E$38*(100-$E$39)/100,MAX(0,$E$38*(100-$E$39)/100-SUM($I$41:Q41))) -> 1.165167672 | S41: =IF(SUM($I$41:R41)<=(100-$E$41)/100*$E$38*(100-$E$39)/100,$E$41/100*$E$38*(100-$E$39)/100,MAX(0,$E$38*(100-$E$39)/100-SUM($I$41:R41))) -> 0 | T41: =IF(SUM($I$41:S41)<=(100-$E$41)/100*$E$38*(100-$E$39)/100,$E$41/100*$E$38*(100-$E$39)/100,MAX(0,$E$38*(100-$E$39)/100-SUM($I$41:S41))) -> 0 | U41: =IF(SUM($I$41:T41)<=(100-$E$41)/100*$E$38*(100-$E$39)/100,$E$41/100*$E$38*(100-$E$39)/100,MAX(0,$E$38*(100-$E$39)/100-SUM($I$41:T41))) -> 0 | V41: =IF(SUM($I$41:U41)<=(100-$E$41)/100*$E$38*(100-$E$39)/100,$E$41/100*$E$38*(100-$E$39)/100,MAX(0,$E$38*(100-$E$39)/100-SUM($I$41:U41))) -> 0 | W41: =IF(SUM($I$41:V41)<=(100-$E$41)/100*$E$38*(100-$E$39)/100,$E$41/100*$E$38*(100-$E$39)/100,MAX(0,$E$38*(100-$E$39)/100-SUM($I$41:V41))) -> 0 | X41: =IF(SUM($I$41:W41)<=(100-$E$41)/100*$E$38*(100-$E$39)/100,$E$41/100*$E$38*(100-$E$39)/100,MAX(0,$E$38*(100-$E$39)/100-SUM($I$41:W41))) -> 0 | Y41: =IF(SUM($I$41:X41)<=(100-$E$41)/100*$E$38*(100-$E$39)/100,$E$41/100*$E$38*(100-$E$39)/100,MAX(0,$E$38*(100-$E$39)/100-SUM($I$41:X41))) -> 0 | Z41: =IF(SUM($I$41:Y41)<=(100-$E$41)/100*$E$38*(100-$E$39)/100,$E$41/100*$E$38*(100-$E$39)/100,MAX(0,$E$38*(100-$E$39)/100-SUM($I$41:Y41))) -> 0 | AA41: =IF(SUM($I$41:Z41)<=(100-$E$41)/100*$E$38*(100-$E$39)/100,$E$41/100*$E$38*(100-$E$39)/100,MAX(0,$E$38*(100-$E$39)/100-SUM($I$41:Z41))) -> 0 | AB41: =IF(SUM($I$41:AA41)<=(100-$E$41)/100*$E$38*(100-$E$39)/100,$E$41/100*$E$38*(100-$E$39)/100,MAX(0,$E$38*(100-$E$39)/100-SUM($I$41:AA41))) -> 0 | AC41: =IF(SUM($I$41:AB41)<=(100-$E$41)/100*$E$38*(100-$E$39)/100,$E$41/100*$E$38*(100-$E$39)/100,MAX(0,$E$38*(100-$E$39)/100-SUM($I$41:AB41))) -> 0 | AD41: =IF(SUM($I$41:AC41)<=(100-$E$41)/100*$E$38*(100-$E$39)/100,$E$41/100*$E$38*(100-$E$39)/100,MAX(0,$E$38*(100-$E$39)/100-SUM($I$41:AC41))) -> 0 | AE41: =IF(SUM($I$41:AD41)<=(100-$E$41)/100*$E$38*(100-$E$39)/100,$E$41/100*$E$38*(100-$E$39)/100,MAX(0,$E$38*(100-$E$39)/100-SUM($I$41:AD41))) -> 0 | AF41: =IF(SUM($I$41:AE41)<=(100-$E$41)/100*$E$38*(100-$E$39)/100,$E$41/100*$E$38*(100-$E$39)/100,MAX(0,$E$38*(100-$E$39)/100-SUM($I$41:AE41))) -> 0 | AG41: =IF(SUM($I$41:AF41)<=(100-$E$41)/100*$E$38*(100-$E$39)/100,$E$41/100*$E$38*(100-$E$39)/100,MAX(0,$E$38*(100-$E$39)/100-SUM($I$41:AF41))) -> 0 | AH41: =IF(SUM($I$41:AG41)<=(100-$E$41)/100*$E$38*(100-$E$39)/100,$E$41/100*$E$38*(100-$E$39)/100,MAX(0,$E$38*(100-$E$39)/100-SUM($I$41:AG41))) -> 0 | AI41: =IF(SUM($I$41:AH41)<=(100-$E$41)/100*$E$38*(100-$E$39)/100,$E$41/100*$E$38*(100-$E$39)/100,MAX(0,$E$38*(100-$E$39)/100-SUM($I$41:AH41))) -> 0 | AJ41: =IF(SUM($I$41:AI41)<=(100-$E$41)/100*$E$38*(100-$E$39)/100,$E$41/100*$E$38*(100-$E$39)/100,MAX(0,$E$38*(100-$E$39)/100-SUM($I$41:AI41))) -> 0 | AK41: =IF(SUM($I$41:AJ41)<=(100-$E$41)/100*$E$38*(100-$E$39)/100,$E$41/100*$E$38*(100-$E$39)/100,MAX(0,$E$38*(100-$E$39)/100-SUM($I$41:AJ41))) -> 0 | AL41: =IF(SUM($I$41:AK41)<=(100-$E$41)/100*$E$38*(100-$E$39)/100,$E$41/100*$E$38*(100-$E$39)/100,MAX(0,$E$38*(100-$E$39)/100-SUM($I$41:AK41))) -> 0 | AN41: =SUM(I41:AL41)/$AN$58 -> 0.01896717989 | AP41: =SUMPRODUCT(I41:AL41,I$68:AL$68) -> 22.46942403 | AQ41: =AP41/$AP$58 -> 0.0634739861
A43: Fahrerkosten | C43: 2 | E43: =G17 -> 5.432200635 | F43: M€/a | I43: =E43 -> 5.432200635 | J43: =I43*(1+$C43/100) -> 5.540844648 | K43: 5.651661541 | L43: 5.764694772 | M43: 5.879988667 | N43: 5.99758844 | O43: 6.117540209 | P43: 6.239891013 | Q43: 6.364688834 | R43: 6.49198261 | S43: 6.621822262 | T43: 6.754258708 | U43: 6.889343882 | V43: 7.02713076 | W43: 7.167673375 | X43: 7.311026842 | Y43: 7.457247379 | Z43: 7.606392327 | AA43: 7.758520173 | AB43: 7.913690577 | AC43: 8.071964388 | AD43: 8.233403676 | AE43: 8.398071749 | AF43: 8.566033184 | AG43: 8.737353848 | AH43: 8.912100925 | AI43: 9.090342944 | AJ43: 9.272149802 | AK43: 9.457592799 | AL43: 9.646744654 | AN43: =SUM(I43:AL43)/$AN$58 -> 0.3587356884 | AP43: =SUMPRODUCT(I43:AL43,I$68:AL$68) -> 126.9903592 | AQ43: =AP43/$AP$58 -> 0.3587356884
A45: Elektrizitätsbedarf | C45: 2 | E45: =K3*D1*1000/3600*G5 -> 0 | F45: MWh/a | G45: 105 | H45: €/MWh | I45: =E45*G45/1000000 -> 0 | J45: =I45*(1+$C45/100) -> 0 | K45: 0 | L45: 0 | M45: 0 | N45: 0 | O45: 0 | P45: 0 | Q45: 0 | R45: 0 | S45: 0 | T45: 0 | U45: 0 | V45: 0 | W45: 0 | X45: 0 | Y45: 0 | Z45: 0 | AA45: 0 | AB45: 0 | AC45: 0 | AD45: 0 | AE45: 0 | AF45: 0 | AG45: 0 | AH45: 0 | AI45: 0 | AJ45: 0 | AK45: 0 | AL45: 0 | AN45: =SUM(I45:AL45)/$AN$58 -> 0 | AP45: =SUMPRODUCT(I45:AL45,I$68:AL$68) -> 0 | AQ45: =AP45/$AP$58 -> 0
A47: Kraftstoffbedarf | C47: 2 | D47: Diesel | E47: =IF(D47="Diesel",G15,0) -> 161373203.4 | F47: MJ/a | G47: =J19 -> 0.02957746479 | H47: €/MJ | I47: =E47*G47/1000000 -> 4.77301024 | J47: =I47*(1+$C47/100) -> 4.868470445 | K47: 4.965839854 | L47: 5.065156651 | M47: 5.166459784 | N47: 5.26978898 | O47: 5.375184759 | P47: 5.482688454 | Q47: 5.592342223 | R47: 5.704189068 | S47: 5.818272849 | T47: 5.934638306 | U47: 6.053331072 | V47: 6.174397694 | W47: 6.297885648 | X47: 6.423843361 | Y47: 6.552320228 | Z47: 6.683366632 | AA47: 6.817033965 | AB47: 6.953374644 | AC47: 7.092442137 | AD47: 7.23429098 | AE47: 7.3789768 | AF47: 7.526556336 | AG47: 7.677087462 | AH47: 7.830629211 | AI47: 7.987241796 | AJ47: 8.146986632 | AK47: 8.309926364 | AL47: 8.476124892 | AN47: =SUM(I47:AL47)/$AN$58 -> 0.3152035849 | AP47: =SUMPRODUCT(I47:AL47,I$68:AL$68) -> 111.5802463 | AQ47: =AP47/$AP$58 -> 0.3152035849
A49: Summe Auszahlungen | I49: =SUM(I35:I48) -> 14.86588157 | J49: 15.00007572 | K49: 15.1392841 | L49: 15.28360698 | M49: 15.43314665 | N49: 15.58800745 | O49: 15.7482958 | P49: 15.91412025 | Q49: 16.08559153 | R49: 16.26282257 | S49: 15.28076089 | T49: 15.58637611 | U49: 15.89810363 | V49: 16.21606571 | W49: 16.54038702 | X49: 16.87119476 | Y49: 17.20861866 | Z49: 17.55279103 | AA49: 17.90384685 | AB49: 18.26192379 | AC49: 18.62716226 | AD49: 18.99970551 | AE49: 19.37969962 | AF49: 19.76729361 | AG49: 20.16263948 | AH49: 20.56589227 | AI49: 20.97721012 | AJ49: 21.39675432 | AK49: 21.82468941 | AL49: 22.26118319 | AN49: =SUM(I49:AL49) -> 526.6031309 | AP49: =SUMPRODUCT(I49:AL49,I$68:AL$68) -> 329.6155821 | AQ49: =AP49/$AP$58 -> 0.9311326738
A52: Einzahlungen | G52: ankommende Menge
A53: Transportkosten | C53: 2 | E53: 460.7218739 | F53: €/t | G53: =IF(D47="transp. Pr.",D1-G16-G27/100*D1,D1-G27/100*D1) -> 32867.17567 | H53: t/a | I53: =E53*G53/1000000 -> 15.14262676 | J53: =I53*(1+$C53/100) -> 15.4454793 | K53: 15.75438888 | L53: 16.06947666 | M53: 16.39086619 | N53: 16.71868352 | O53: 17.05305719 | P53: 17.39411833 | Q53: 17.7420007 | R53: 18.09684071 | S53: 18.45877753 | T53: 18.82795308 | U53: 19.20451214 | V53: 19.58860238 | W53: 19.98037443 | X53: 20.37998192 | Y53: 20.78758156 | Z53: 21.20333319 | AA53: 21.62739985 | AB53: 22.05994785 | AC53: 22.50114681 | AD53: 22.95116974 | AE53: 23.41019314 | AF53: 23.878397 | AG53: 24.35596494 | AH53: 24.84308424 | AI53: 25.33994592 | AJ53: 25.84674484 | AK53: 26.36367974 | AL53: 26.89095333 | AN53: =SUM(I53:AL53)/$AN$58*($AN$58-$AN$49)/$AN$58 -> 0.1427691867 | AP53: =SUMPRODUCT(I53:AL53,I$68:AL$68) -> 353.9942174 | AQ53: =AP53/$AP$58*($AP$58-$AP$49)/$AP$58 -> 0.06886732621
E54: =E53/1000 -> 0.4607218739 | F54: €/kg | G54: =G53/D1 -> 0.99 | H54: Anteil
B55: bezogen auf ankommende Menge | E55: =E54/G55*32 -> 0.1228878402 | F55: €/l BÄ | G55: 119.972 | H55: MJ/kg (Heizwert)
B56: bezogen auf eingehende Menge | E56: =E55*G53/D1 -> 0.1216589618 | F56: €/l BÄ
A58: Summe Einzahlungen | I58: =SUM(I53:I57) -> 15.14262676 | J58: 15.4454793 | K58: 15.75438888 | L58: 16.06947666 | M58: 16.39086619 | N58: 16.71868352 | O58: 17.05305719 | P58: 17.39411833 | Q58: 17.7420007 | R58: 18.09684071 | S58: 18.45877753 | T58: 18.82795308 | U58: 19.20451214 | V58: 19.58860238 | W58: 19.98037443 | X58: 20.37998192 | Y58: 20.78758156 | Z58: 21.20333319 | AA58: 21.62739985 | AB58: 22.05994785 | AC58: 22.50114681 | AD58: 22.95116974 | AE58: 23.41019314 | AF58: 23.878397 | AG58: 24.35596494 | AH58: 24.84308424 | AI58: 25.33994592 | AJ58: 25.84674484 | AK58: 26.36367974 | AL58: 26.89095333 | AN58: =SUM(I58:AL58) -> 614.3072819 | AP58: =SUMPRODUCT(I58:AL58,I$68:AL$68) -> 353.9942174 | AQ58: =AP58/$AP$58*($AP$58-$AP$49)/$AP$58 -> 0.06886732621
A61: Überschuss | I61: =I58-I49 -> 0.2767451976 | J61: 0.4454035757 | K61: 0.615104786 | L61: 0.7858696852 | M61: 0.957719547 | N61: 1.130676071 | O61: 1.30476139 | P61: 1.479998079 | Q61: 1.656409168 | R61: 1.834018142 | S61: 3.178016634 | T61: 3.241576966 | U61: 3.306408506 | V61: 3.372536676 | W61: 3.439987409 | X61: 3.508787158 | Y61: 3.578962901 | Z61: 3.650542159 | AA61: 3.723553002 | AB61: 3.798024062 | AC61: 3.873984543 | AD61: 3.951464234 | AE61: 4.030493519 | AF61: 4.111103389 | AG61: 4.193325457 | AH61: 4.277191966 | AI61: 4.362735805 | AJ61: 4.449990521 | AK61: 4.538990332 | AL61: 4.629770139
A62: Barwert | C62: 10 | I62: =I61*(1+$C$62/100)^-(I33) -> 0.2515865433 | J62: 0.3681021287 | K62: 0.4621373298 | L62: 0.5367595691 | M62: 0.5946684882 | N62: 0.6382371652 | O62: 0.6695488994 | P62: 0.6904300267 | Q62: 0.7024791831 | R62: 0.7070933875 | S62: 1.113875443 | T62: 1.032866319 | U62: 0.957748769 | V62: 0.8880943131 | W62: 0.8235056357 | X62: 0.7636143168 | Y62: 0.7080787301 | Z62: 0.6565820952 | AA62: 0.6088306701 | AB62: 0.5645520759 | AC62: 0.5234937431 | AD62: 0.4854214709 | AE62: 0.4501180912 | AF62: 0.41738223 | AG62: 0.3870271587 | AH62: 0.358879729 | AI62: 0.3327793851 | AJ62: 0.308577248 | AK62: 0.2861352663 | AL62: 0.2653254288
A63: Abzinsungsfaktor | I63: =(1+$C$62/100)^-(I33) -> 0.9090909091 | J63: 0.826446281 | K63: 0.7513148009 | L63: 0.6830134554 | M63: 0.6209213231 | N63: 0.5644739301 | O63: 0.5131581182 | P63: 0.4665073802 | Q63: 0.4240976184 | R63: 0.3855432894 | S63: 0.3504938995 | T63: 0.3186308177 | U63: 0.2896643797 | V63: 0.2633312543 | W63: 0.2393920494 | X63: 0.2176291358 | Y63: 0.1978446689 | Z63: 0.1798587899 | AA63: 0.1635079908 | AB63: 0.148643628 | AC63: 0.1351305709 | AD63: 0.1228459736 | AE63: 0.1116781578 | AF63: 0.101525598 | AG63: 0.09229599818 | AH63: 0.08390545289 | AI63: 0.07627768444 | AJ63: 0.06934334949 | AK63: 0.06303940863 | AL63: 0.0573085533
A65: Endwertmethode | B65: Rendite: | C65: 10 | F65: Eigenkapital (Verzinsung) | H65: =E39/100*$E$38 -> 7.767784483 | I65: =$H$65*(1+$C$65/100)^I33 -> 8.544562931 | J65: 9.399019225 | K65: 10.33892115 | L65: 11.37281326 | M65: 12.51009459 | N65: 13.76110405 | O65: 15.13721445 | P65: 16.6509359 | Q65: 18.31602949 | R65: 20.14763243 | S65: 22.16239568 | T65: 24.37863525 | U65: 26.81649877 | V65: 29.49814865 | W65: 32.44796351 | X65: 35.69275986 | Y65: 39.26203585 | Z65: 43.18823943 | AA65: 47.50706338 | AB65: 52.25776972 | AC65: 57.48354669 | AD65: 63.23190136 | AE65: 69.55509149 | AF65: 76.51060064 | AG65: 84.16166071 | AH65: 92.57782678 | AI65: 101.8356095 | AJ65: 112.0191704 | AK65: 123.2210874 | AL65: 135.5431962 | AN65: =INDIRECT(ADDRESS(ROW(),COLUMN()-32+Jahre3)) -> 24.37863525
F66: Überschuss (Endwertberechnung) | I66: =I61*I68 -> 0.7895863465 | J66: 1.155262166 | K66: 1.45038491 | L66: 1.684581463 | M66: 1.866324458 | N66: 2.00306163 | O66: 2.101331265 | P66: 2.166865188 | Q66: 2.204680602 | R66: 2.219161952 | S66: 3.495818297 | T66: 3.241576966 | U66: 0 | V66: 0 | W66: 0 | X66: 0 | Y66: 0 | Z66: 0 | AA66: 0 | AB66: 0 | AC66: 0 | AD66: 0 | AE66: 0 | AF66: 0 | AG66: 0 | AH66: 0 | AI66: 0 | AJ66: 0 | AK66: 0 | AL66: 0
F67: Überschuss (Endwertberechnung) - aufsummiert | I67: =SUM($I$66:I66) -> 0.7895863465 | J67: =SUM($I$66:J66) -> 1.944848513 | K67: =SUM($I$66:K66) -> 3.395233422 | L67: =SUM($I$66:L66) -> 5.079814886 | M67: =SUM($I$66:M66) -> 6.946139344 | N67: =SUM($I$66:N66) -> 8.949200974 | O67: =SUM($I$66:O66) -> 11.05053224 | P67: =SUM($I$66:P66) -> 13.21739743 | Q67: =SUM($I$66:Q66) -> 15.42207803 | R67: =SUM($I$66:R66) -> 17.64123998 | S67: =SUM($I$66:S66) -> 21.13705828 | T67: =SUM($I$66:T66) -> 24.37863525 | U67: =SUM($I$66:U66) -> 24.37863525 | V67: =SUM($I$66:V66) -> 24.37863525 | W67: =SUM($I$66:W66) -> 24.37863525 | X67: =SUM($I$66:X66) -> 24.37863525 | Y67: =SUM($I$66:Y66) -> 24.37863525 | Z67: =SUM($I$66:Z66) -> 24.37863525 | AA67: =SUM($I$66:AA66) -> 24.37863525 | AB67: =SUM($I$66:AB66) -> 24.37863525 | AC67: =SUM($I$66:AC66) -> 24.37863525 | AD67: =SUM($I$66:AD66) -> 24.37863525 | AE67: =SUM($I$66:AE66) -> 24.37863525 | AF67: =SUM($I$66:AF66) -> 24.37863525 | AG67: =SUM($I$66:AG66) -> 24.37863525 | AH67: =SUM($I$66:AH66) -> 24.37863525 | AI67: =SUM($I$66:AI66) -> 24.37863525 | AJ67: =SUM($I$66:AJ66) -> 24.37863525 | AK67: =SUM($I$66:AK66) -> 24.37863525 | AL67: =SUM($I$66:AL66) -> 24.37863525 | AN67: =INDIRECT(ADDRESS(ROW(),COLUMN()-32+Jahre3)) -> 24.37863525
C68: =C65 -> 10 | F68: Endwert-Faktor | I68: =IF((1+$C$68/100)^($H$1-I33)>=1,(1+$C$68/100)^($H$1-I33),0) -> 2.853116706 | J68: 2.59374246 | K68: 2.357947691 | L68: 2.14358881 | M68: 1.9487171 | N68: 1.771561 | O68: 1.61051 | P68: 1.4641 | Q68: 1.331 | R68: 1.21 | S68: 1.1 | T68: 1 | U68: 0 | V68: 0 | W68: 0 | X68: 0 | Y68: 0 | Z68: 0 | AA68: 0 | AB68: 0 | AC68: 0 | AD68: 0 | AE68: 0 | AF68: 0 | AG68: 0 | AH68: 0 | AI68: 0 | AJ68: 0 | AK68: 0 | AL68: 0

Sheet H2-PIPE-LARGE (hidden)
A1: OPEX-Transport | C1: für | D1: 34841.46301 | E1: t/a | F1: Betriebsdauer: | H1: 30 | I1: Jahre | J1: (<= 30 Jahre)
C2: Strecke: | D2: 3100 | E2: km | M2: zum Kopieren:
A3: H2-PIPE-LARGE | B3: Basisdaten | L3: =H14 -> 15 | M3: =H15 -> 39.7440094 | N3: =L82 -> 29.87593357 | O3: =S102 -> 4673.243099 | P3: =H17 -> 1199298.57
A5: Transport von gasförmigem H2 in Pipeline über längere Strecken | F5: Transport von x Anlagen: | H5: 10
F6: Nutzungsgrad | H6: 75 | I6: % | J6: [IEA2019]
O7: [Lemmon] | Z7: [Lemmon]
F8: Masse: | H8: =D1*H5 -> 348414.6301 | I8: t/a | M8: Realgasfaktor z | X8: Realgasfaktor z
F9: Massedurchfluss: | H9: =H8*1000/365/24/60/60 -> 11.04815544 | I9: kg/s | M9: Wasserstoff
F10: Druck: | H10: 100 | I10: bar | J10: [IEA2019]
F11: Temp.: | H11: 15 | I11: °C
F12: Dichte: | H12: =L26 -> 7.915967791 | I12: kg/m³ | J12: [Lemmon]
F13: Durchfluss: | H13: =H9/H12*100/H6 -> 1.860906248 | I13: m³/s | J13: (mit Nutzungsgrad verrechnet)
F14: Geschwindigkeit | H14: 15 | I14: m/s | J14: [IEA2019] | L14: p | O14: i | P14: j | Q14: v_ij | R14: n_ij | S14: Summand | W14: p | Z14: i | AA14: j | AB14: v_ij | AC14: n_ij | AD14: Summand
F15: Durchmesser | H15: =SQRT((H13/H14)/PI())*2*100 -> 39.7440094 | I15: cm | L15: =H10/10 -> 10 | M15: /MPa | O15: 2 | P15: 1 | Q15: 0.036719 | R15: -1.23 | S15: =Q15*$L$15^(O15-1)*$L$16^R15 -> 0.09989872324 | W15: 8 | X15: /MPa | Z15: 2 | AA15: 1 | AB15: 0.036719 | AC15: -1.23 | AD15: =AB15*$R$267^(Z15-1)*$R$268^AC15 -> 
L16: =(H11+273.15)/100 -> 2.8815 | M16: /100 K | O16: 2 | P16: 2 | Q16: -0.039839 | R16: -2.22 | S16: =Q16*$L$15^(O16-1)*$L$16^R16 -> -0.03801500777 | W16: 2.98 | X16: /100 K | Z16: 2 | AA16: 2 | AB16: -0.039839 | AC16: -2.22 | AD16: =AB16*$R$267^(Z16-1)*$R$268^AC16 -> 
F17: CAPEX/km | H17: =(0.004*(H15*10)^2+0.6*H15*10+329)*1000*H18 -> 1199298.57 | I17: €(2017)/km | J17: [Krieg via Robinius] | O17: 3 | P17: 1 | Q17: -0.0014722 | R17: -2.68 | S17: -0.008633539917 | Z17: 3 | AA17: 1 | AB17: -0.0014722 | AC17: -2.68
F18: CAPEX-Faktor | H18: 1 | L18: z | O18: 3 | P18: 2 | Q18: 0.0024083 | R18: -3.1 | S18: 0.009055091675 | W18: z | Z18: 3 | AA18: 2 | AB18: 0.0024083 | AC18: -3.1
L19: =SUM(S15:S23) -> 1.062482148 | O19: 4 | P19: 1 | Q19: 6.5994e-06 | R19: -2.7 | S19: 0.000378908343 | W19: =SUM(AD15:AD23) ->  | Z19: 4 | AA19: 1 | AB19: 6.5994e-06 | AC19: -2.7
O20: 4 | P20: 2 | Q20: -1.5469e-05 | R20: -4.3 | S20: -0.0001633436127 | Z20: 4 | AA20: 2 | AB20: -1.5469e-05 | AC20: -4.3
L21: rho-ideal(0°C,1,01325 bar) | O21: 5 | P21: 1 | Q21: -1.3383e-07 | R21: -3.3 | S21: -4.072039846e-05 | W21: rho-ideal(0°C,1,01325 bar) | Z21: 5 | AA21: 1 | AB21: -1.3383e-07 | AC21: -3.3
L22: 0.0899 | M22: kg/m³ | O22: 6 | P22: 1 | Q22: 1.5608e-09 | R22: -4.1 | S22: 2.036624192e-06 | W22: 0.0899 | X22: kg/m³ | Z22: 6 | AA22: 1 | AB22: 1.5608e-09 | AC22: -4.1
L23: rho-ideal(Bed.) | O23: const: | S23: 1 | W23: rho-ideal(Bed.) | Z23: const: | AD23: 1
L24: =L22/(L16*100)*273.15*L15*10/1.01325 -> 8.410574464 | M24: kg/m³ | W24: =W22/(W16*100)*273.15*W15*10/1.01325 -> 6.506059146 | X24: kg/m³
L25: rho-real | W25: rho-real
L26: =L24/L19 -> 7.915967791 | M26: kg/m³ | N26: (rho~1/z) | W26: =W24/W19 ->  | X26: kg/m³ | Y26: (rho~1/z)
F30: Druckverlust | I30: abhängig von Geschwindigkeit, Druck, Durchmesser | P30: Berechnung Druckverlust
F31: bar/km | P31: http://www.math-tech.at/Beispiele/upload/gra_Druckverlust_in_Rohrleitungen.PDF
I32: Reynolds-Zahl: | L32: (v*rho*d/visk) | P32: Viskosität
K33: Re | L33: =H14*H12*H15/100/(Q35/1000000) -> 5356622.559 | P33: https://h2tools.org/hyarc/hydrogen-data/hydrogen-viscosity-different-temperatures-and-pressures
L34: >2320 Turbulent | P34: Viskosität ist bis 100 bar kaum Druckabhängig
I35: Rauhigkeit | J35: 0.0015 | K35: mm | P35: für 15 °C ca.: | Q35: 8.81 | R35: µPa.s | S35: [Krieg]
P36: https://www.tec-science.com/de/mechanik/gase-und-fluessigkeiten/druckverlust-in-rohrsystemen/
K37: Re*eps(=k/d) | L37: =L33*J35/H15/10 -> 20.21671683
L38: <65 hydraulisch glatt
L39: 65 bis 1300 Übergangsgebiet
L40: >1300 hydraulisch rau
I42: Fallunterscheidung:
I44: laminar: | N44: lambda= | O44: =64/L33 -> 1.194782707e-05
I46: turbulent: | J46: hydraulisch glatt | L46: Re<10^5 | N46: lambda= | O46: =0.3164*L33^(-0.25) -> 0.00657678604
L48: 10^5<Re<5*10^6 | N48: lambda= | O48: =0.0032+0.221*L33^(-0.237) -> 0.008818819692
L50: Re>5*10^6 | N50: 1/wurzel(lambda) | P50: = | Q50: 7.5 | R50: Startwert | S50: Iteration
N51: 1/wurzel(lambda) | P51: = | Q51: =2*LOG10($L$33/Q50)-0.8 -> 10.90765957 | S51: v
Q52: 10.58231894
Q53: 10.6086204
Q54: 10.60646427
Q55: 10.60664083
Q56: 10.60662637
N57: 1/wurzel(lambda) | Q57: 10.60662755 | S57: Ende Iteration
N58: lambda= | O58: =1/Q57^2 -> 0.00888884559
J61: Übergangsbereich | N61: 1/wurzel(lambda) | P61: = | Q61: 7.5 | R61: Startwert | S61: Iteration
N62: 1/wurzel(lambda) | P62: = | Q62: =-2*LOG10(2.51/$L$33*Q61+$J$35/$H$15/10/3.71) -> 10.68749046 | S62: v
Q63: 10.4400536
Q64: 10.45693081
Q65: 10.45576917
Q66: 10.45584908
Q67: 10.45584358
N68: 1/wurzel(lambda) | Q68: 10.45584396 | S68: Ende Iteration
N69: lambda= | O69: =1/Q68^2 -> 0.009147066019
J72: hydraulisch rau | N72: lambda= | O72: =1/SQRT(2*LOG10(3.71/J35*H15*10)) -> 0.2888544165
J75: Lambda nach Kriterien: | M75: lambda= | N75: =IF(L33<=2320,O44,IF(L37<65,IF(L33<100000,O46,IF(L33<5000000,O48,O58)),IF(L37<=1300,O69,O72))) -> 0.00888884559
I78: Druckverlust= | K78: deltapv/L= | L78: =N75*8*H12*H13^2/(H15/100)^5/PI()^2 -> 19.91728905 | M78: Pa/m
K79: = | L79: =L78/100000*1000 -> 0.1991728905 | M79: bar/km
K81: alle | L81: 150 | M81: km | N81: neue Kompression [Bossel]
L82: =L79*L81 -> 29.87593357 | M82: bar | N82: Druckverlust
K84: notw. Leistung | L84: =IF(S99>=20,S102,S131) -> 4673.243099 | M84: kW/(m³/s) | N84: ASPEN-Korrelation
K85: gesamt: | L85: =L84*H13*H10/S98 -> 12401.54447 | M85: kW | N85: pro Station | R85: für weitere Stationen | AD85: für erste Station
N86: (mit höherem V_ein) | R86: Aus ASPEN: Modell für Energiebedarf für H2-Kompression | AD86: Aus ASPEN: Modell für Energiebedarf für H2-Kompression
L87: =L85*24*365*H6/100 -> 81478147.18 | M87: kWh/a | N87: pro Station | R87: H2-Kompression | T87: isentroper Wirkungsgrad | V87: 0.72 | AD87: H2-Kompression | AF87: isentroper Wirkungsgrad | AH87: 0.72
N88: (mit Nutzungsgrad verrechnet) | R88: Grenzen: | S88: p_ein: | T88: 5 | U88: bis | V88: 150 | W88: bar | AD88: Grenzen: | AE88: p_ein: | AF88: 5 | AG88: bis | AH88: 150 | AI88: bar
S89: deltap | T89: 0.01 | U89: bis | V89: 150 | W89: bar | AE89: deltap | AF89: 0.01 | AG89: bis | AH89: 150 | AI89: bar
S90: T_ein | T90: 15 | U90: °C | AE90: T_ein | AF90: 15 | AG90: °C
K91: erste Druckbeaufschlagung | S91: V_ein im Zustand p_ein | AE91: V_ein im Zustand p_ein
K92: Druck H2 | L92: 30 | M92: bar | N92: Eingangsdruck | U92: ab p_ein >= 20 bar | W92: D,E | X92: [bar] | AG92: ab p_ein >= 20 bar | AI92: D,E | AJ92: [bar]
W93: P | X93: [kW/(m³/s)] | AI93: P | AJ93: [kW/(m³/s)]
K94: notw. Leistung | L94: =IF(AE98>=20,AE102,AE131) -> 17996.79227 | M94: kW/(m³/s) | N94: ASPEN-Korrelation | T94: R= | U94: P*E/D | X94: Fehler <<0,1% | AF94: R= | AG94: P*E/D | AJ94: Fehler <<0,1%
K95: gesamt: | L95: =L94*H13*H10/L92 -> 111634.4773 | M95: kW | N95: Für erste Druckbeaufschlagung | T95: P= | U95: R*D/E | AF95: P= | AG95: R*D/E
N96: (mit höherem V_ein) | T96: Polynom | V96: Koeffizienten | AF96: Polynom | AH96: Koeffizienten
L97: =L95*24*365*H6/100 -> 733438515.8 | M97: kWh/a | N97: Für erste Druckbeaufschlagung | V97: i (E ) | W97: j (D) | X97: k(X) | Y97: w_ij | AH97: i (E ) | AI97: j (D) | AJ97: k(X) | AK97: w_ij
N98: (mit Nutzungsgrad verrechnet) | R98: E(Eingangsdruck) | S98: =H10-L82 -> 70.12406643 | T98: bar | U98: X | V98: 0 | W98: 0 | X98: 1 | Y98: 11706.78314 | Z98: =($S$98^V98*$S$99^W98*$S$100^X98)*Y98 -> 8000.282116 | AD98: E(Eingangsdruck) | AE98: =L92 -> 30 | AF98: bar | AG98: X | AH98: 0 | AI98: 0 | AJ98: 1 | AK98: 11706.78314 | AL98: =($AE$98^AH98*$AE$99^AI98*$AE$100^AJ98)*AK98 -> 1885.44813
R99: D(Druckerhöhung) | S99: =L82 -> 29.87593357 | T99: bar | U99: 1/X | V99: 0 | W99: 0 | X99: -1 | Y99: 1443.746068 | Z99: 2112.628265 | AD99: D(Druckerhöhung) | AE99: =MAX(0.001,H10-AE98) -> 70 | AF99: bar | AG99: 1/X | AH99: 0 | AI99: 0 | AJ99: -1 | AK99: 1443.746068 | AL99: 8964.246674
R100: X=1-exp(-E/D^1,21) | S100: =1-EXP(-S98/S99^1.21) -> 0.6833885977 | T100: - | U100: X² | V100: 0 | W100: 0 | X100: 2 | Y100: -936.9018509 | Z100: -437.5518794 | AD100: X=1-exp(-E/D^1,21) | AE100: =1-EXP(-AE98/AE99^1.21) -> 0.1610560396 | AF100: - | AG100: X² | AH100: 0 | AI100: 0 | AJ100: 2 | AK100: -936.9018509 | AL100: -24.30234199
R101: R= | S101: =SUM(Z98:Z117) -> 10968.92282 | T101: kW/(m³/s) | U101: E | V101: 1 | W101: 0 | X101: 0 | Y101: 18.75386926 | Z101: 1315.097574 | AD101: R= | AE101: =SUM(AL98:AL117) -> 7712.910973 | AF101: kW/(m³/s) | AG101: E | AH101: 1 | AI101: 0 | AJ101: 0 | AK101: 18.75386926 | AL101: 562.6160778
R102: P= | S102: =S101*S99/S98 -> 4673.243099 | T102: kW/(m³/s) | U102: 1/E | V102: -1 | W102: 0 | X102: 0 | Y102: 16243.27729 | Z102: 231.6362714 | AD102: P= | AE102: =AE101*AE99/AE98 -> 17996.79227 | AF102: kW/(m³/s) | AG102: 1/E | AH102: -1 | AI102: 0 | AJ102: 0 | AK102: 16243.27729 | AL102: 541.4425762
U103: W(E ) | V103: 0.1 | W103: 0 | X103: 0 | Y103: 6748.013066 | Z103: 10321.97075 | AG103: W(E ) | AH103: 0.1 | AI103: 0 | AJ103: 0 | AK103: 6748.013066 | AL103: 9481.739957
U104: E² | V104: 2 | W104: 0 | X104: 0 | Y104: 0.001387346336 | Z104: 6.822115635 | AG104: E² | AH104: 2 | AI104: 0 | AJ104: 0 | AK104: 0.001387346336 | AL104: 1.248611702
U105: D | V105: 0 | W105: 1 | X105: 0 | Y105: -158.5111609 | Z105: -4735.668914 | AG105: D | AH105: 0 | AI105: 1 | AJ105: 0 | AK105: -158.5111609 | AL105: -11095.78126
U106: D² | V106: 0 | W106: 2 | X106: 0 | Y106: 0.08501867942 | Z106: 75.88524231 | AG106: D² | AH106: 0 | AI106: 2 | AJ106: 0 | AK106: 0.08501867942 | AL106: 416.5915292
U107: XE | V107: 1 | W107: 0 | X107: 1 | Y107: -42.78042308 | Z107: -2050.122897 | AG107: XE | AH107: 1 | AI107: 0 | AJ107: 1 | AK107: -42.78042308 | AL107: -206.7013654
U108: X/E | V108: -1 | W108: 0 | X108: 1 | Y108: -16013.03533 | Z108: -156.0537817 | AG108: X/E | AH108: -1 | AI108: 0 | AJ108: 1 | AK108: -16013.03533 | AL108: -85.96653508
U109: XW(E ) | V109: 0.1 | W109: 0 | X109: 1 | Y109: -6539.683747 | Z109: -6836.143716 | AG109: XW(E ) | AH109: 0.1 | AI109: 0 | AJ109: 1 | AK109: -6539.683747 | AL109: -1479.946063
U110: EX² | V110: 1 | W110: 0 | X110: 2 | Y110: 23.4378768 | Z110: 767.574991 | AG110: EX² | AH110: 1 | AI110: 0 | AJ110: 2 | AK110: 23.4378768 | AL110: 18.23868627
U111: ED | V111: 1 | W111: 1 | X111: 0 | Y111: -0.130518749 | Z111: -273.439644 | AG111: ED | AH111: 1 | AI111: 1 | AJ111: 0 | AK111: -0.130518749 | AL111: -274.0893728
U112: ED² | V112: 1 | W112: 2 | X112: 0 | Y112: -0.0001868161385 | Z112: -11.69295973 | AG112: ED² | AH112: 1 | AI112: 2 | AJ112: 0 | AK112: -0.0001868161385 | AL112: -27.46197237
U113: D/X | V113: 0 | W113: 1 | X113: -1 | Y113: -1.107661025 | Z113: -48.42399669 | AG113: D/X | AH113: 0 | AI113: 1 | AJ113: -1 | AK113: -1.107661025 | AL113: -481.4241794
U114: DX² | V114: 0 | W114: 1 | X114: 2 | Y114: 32.76593029 | Z114: 457.1718117 | AG114: DX² | AH114: 0 | AI114: 1 | AJ114: 2 | AK114: 32.76593029 | AL114: 59.49419247
U115: D/E | V115: -1 | W115: 1 | X115: 0 | Y115: -3724.618685 | Z115: -1586.851221 | AG115: D/E | AH115: -1 | AI115: 1 | AJ115: 0 | AK115: -3724.618685 | AL115: -8690.776932
U116: DW(E ) | V116: 0.1 | W116: 1 | X116: 0 | Y116: 82.68012118 | Z116: 3778.411887 | AG116: DW(E ) | AH116: 0.1 | AI116: 1 | AJ116: 0 | AK116: 82.68012118 | AL116: 8132.260276
U117: DE² | V117: 2 | W117: 1 | X117: 0 | Y117: 0.0002545124957 | Z117: 37.39080192 | AG117: DE² | AH117: 2 | AI117: 1 | AJ117: 0 | AK117: 0.0002545124957 | AL117: 16.03428723
U121: bis p_ein < 20 bar | W121: D,E | X121: [bar] | AG121: bis p_ein < 20 bar | AI121: D,E | AJ121: [bar]
W122: P | X122: [kW/(m³/s)] | AI122: P | AJ122: [kW/(m³/s)]
T123: R= | U123: P*E/D | X123: Fehler <<0,3% | AF123: R= | AG123: P*E/D | AJ123: Fehler <<0,3%
T124: P= | U124: R*D/E | AF124: P= | AG124: R*D/E
T125: Polynom | V125: Koeffizienten | AF125: Polynom | AH125: Koeffizienten
V126: i (E ) | W126: j (D) | X126: k(X) | Y126: w_ij | AH126: i (E ) | AI126: j (D) | AJ126: k(X) | AK126: w_ij
R127: E(Eingangsdruck) | S127: =S98 -> 70.12406643 | T127: bar | U127: const | V127: 0 | W127: 0 | X127: 0 | Y127: 1661.457636 | Z127: =($S$127^V127*$S$128^W127*$S$129^X127)*Y127 -> 1661.457636 | AD127: E(Eingangsdruck) | AE127: =AE98 -> 30 | AF127: bar | AG127: const | AH127: 0 | AI127: 0 | AJ127: 0 | AK127: 1661.457636 | AL127: =($AE$127^AH127*$AE$128^AI127*$AE$129^AJ127)*AK127 -> 1661.457636
R128: D(Druckerhöhung) | S128: =S99 -> 29.87593357 | T128: bar | U128: X | V128: 0 | W128: 0 | X128: 1 | Y128: 6825.976526 | Z128: 6720.151667 | AD128: D(Druckerhöhung) | AE128: =AE99 -> 70 | AF128: bar | AG128: X | AH128: 0 | AI128: 0 | AJ128: 1 | AK128: 6825.976526 | AL128: 3595.009535
R129: X=1-exp(-1,9*E/D^1,02) | S129: =1-EXP(1.9*-S127/S128^1.02) -> 0.9844967444 | T129: - | U129: 1/X | V129: 0 | W129: 0 | X129: -1 | Y129: 6314.206631 | Z129: 6413.638914 | AD129: X=1-exp(-E/D^1,21) | AE129: =1-EXP(1.9*-AE127/AE128^1.02) -> 0.526665968 | AF129: - | AG129: 1/X | AH129: 0 | AI129: 0 | AJ129: -1 | AK129: 6314.206631 | AL129: 11989.01584
R130: R= | S130: =SUM(Z127:Z140) -> 10851.198 | T130: kW/(m³/s) | U130: X² | V130: 0 | W130: 0 | X130: 2 | Y130: -2322.552436 | Z130: -2251.096415 | AD130: R= | AE130: =SUM(AL127:AL140) -> 7717.60654 | AF130: kW/(m³/s) | AG130: X² | AH130: 0 | AI130: 0 | AJ130: 2 | AK130: -2322.552436 | AL130: -644.2227241
R131: P= | S131: =S130*S128/S127 -> 4623.087152 | T131: kW/(m³/s) | U131: E | V131: 1 | W131: 0 | X131: 0 | Y131: -1579.154945 | Z131: -110736.7662 | AD131: P= | AE131: =AE130*AE128/AE127 -> 18007.74859 | AF131: kW/(m³/s) | AG131: E | AH131: 1 | AI131: 0 | AJ131: 0 | AK131: -1579.154945 | AL131: -47374.64834
U132: 1/E | V132: -1 | W132: 0 | X132: 0 | Y132: -48.61870823 | Z132: -0.6933241426 | AG132: 1/E | AH132: -1 | AI132: 0 | AJ132: 0 | AK132: -48.61870823 | AL132: -1.620623608
U133: D | V133: 0 | W133: 1 | X133: 0 | Y133: -543.9180449 | Z133: -16250.05938 | AG133: D | AH133: 0 | AI133: 1 | AJ133: 0 | AK133: -543.9180449 | AL133: -38074.26314
U134: 1/D | V134: 0 | W134: -1 | X134: 0 | Y134: 0.3302301825 | Z134: 0.01105338455 | AG134: 1/D | AH134: 0 | AI134: -1 | AJ134: 0 | AK134: 0.3302301825 | AL134: 0.004717574035
U135: XE | V135: 1 | W135: 0 | X135: 1 | Y135: 674.1256899 | Z135: 46539.55802 | AG135: XE | AH135: 1 | AI135: 0 | AJ135: 1 | AK135: 674.1256899 | AL135: 10651.17177
U136: XD | V136: 0 | W136: 1 | X136: 1 | Y136: 717.9864462 | Z136: 21117.96255 | AG136: XD | AH136: 0 | AI136: 1 | AJ136: 1 | AK136: 717.9864462 | AL136: 26469.73187
U137: E/X | V137: 1 | W137: 0 | X137: -1 | Y137: 905.3178161 | Z137: 64484.28299 | AG137: E/X | AH137: 1 | AI137: 0 | AJ137: -1 | AK137: 905.3178161 | AL137: 51568.80477
U138: D/X | V138: 0 | W138: 1 | X138: -1 | Y138: -0.5299324156 | Z138: -16.0815419 | AG138: D/X | AH138: 0 | AI138: 1 | AJ138: -1 | AK138: -0.5299324156 | AL138: -70.43414867
U139: DX² | V139: 0 | W139: 1 | X139: 2 | Y139: -182.2211615 | Z139: -5276.535499 | AG139: DX² | AH139: 0 | AI139: 1 | AJ139: 2 | AK139: -182.2211615 | AL139: -3538.077671
U140: D/E | V140: -1 | W140: 1 | X140: 0 | Y140: -3648.995546 | Z140: -1554.632441 | AG140: D/E | AH140: -1 | AI140: 1 | AJ140: 0 | AK140: -3648.995546 | AL140: -8514.32294
I145: [Mio. €/a]
C146: Kostenstei-gerung (%/a) | E146: Preis/Einheit | G146: Einheiten/a | I146: 1 | J146: 2 | K146: 3 | L146: 4 | M146: 5 | N146: 6 | O146: 7 | P146: 8 | Q146: 9 | R146: 10 | S146: 11 | T146: 12 | U146: 13 | V146: 14 | W146: 15 | X146: 16 | Y146: 17 | Z146: 18 | AA146: 19 | AB146: 20 | AC146: 21 | AD146: 22 | AE146: 23 | AF146: 24 | AG146: 25 | AH146: 26 | AI146: 27 | AJ146: 28 | AK146: 29 | AL146: 30 | AN146: Summierung/Anteile | AP146: Summierung mit Kalkulatorischem Zinsfuß
A147: Auszahlungen | D147: Feuchte:
A148: [Transport]
A149: OPEX | C149: 2 | E149: 0 | F149: % der Investkosten | I149: =E149/100*$E$151 -> 0 | J149: =I149*(1+$C149/100) -> 0 | K149: 0 | L149: 0 | M149: 0 | N149: 0 | O149: 0 | P149: 0 | Q149: 0 | R149: 0 | S149: 0 | T149: 0 | U149: 0 | V149: 0 | W149: 0 | X149: 0 | Y149: 0 | Z149: 0 | AA149: 0 | AB149: 0 | AC149: 0 | AD149: 0 | AE149: 0 | AF149: 0 | AG149: 0 | AH149: 0 | AI149: 0 | AJ149: 0 | AK149: 0 | AL149: 0 | AN149: =SUM(I149:AL149)/$AN$170 -> 0 | AP149: =SUMPRODUCT(I149:AL149,I$180:AL$180) -> 0 | AQ149: =AP149/$AP$170 -> 0
A151: CAPEX | E151: =H17/1000000*D2/H5 -> 371.7825566 | F151: M€
A152: Eigenkapitalquote | E152: 40 | F152: %
A153: Zinsen | E153: 10 | F153: % | I153: =$E$153/100*(E151*(1-$E$152/100)) -> 22.30695339 | J153: =MAX(0,$E$153/100*($E$151*(1-$E$152/100)-(J146-1)*$E$154/100*$E$151*(1-$E$152/100))) -> 20.07625805 | K153: 17.84556272 | L153: 15.61486738 | M153: 13.38417204 | N153: 11.1534767 | O153: 8.922781358 | P153: 6.692086018 | Q153: 4.461390679 | R153: 2.230695339 | S153: 0 | T153: 0 | U153: 0 | V153: 0 | W153: 0 | X153: 0 | Y153: 0 | Z153: 0 | AA153: 0 | AB153: 0 | AC153: 0 | AD153: 0 | AE153: 0 | AF153: 0 | AG153: 0 | AH153: 0 | AI153: 0 | AJ153: 0 | AK153: 0 | AL153: 0 | AN153: =SUM(I153:AL153)/$AN$170 -> 0.04190287904 | AP153: =SUMPRODUCT(I153:AL153,I$180:AL$180) -> 1500.700278 | AQ153: =AP153/$AP$170 -> 0.1063719132
A154: jähliche Tilgung | E154: 10 | F154: % | I154: =$E$154/100*(E151*(1-$E$152/100)) -> 22.30695339 | J154: =IF(SUM($I$154:I154)<=(100-$E$154)/100*$E$151*(100-$E$152)/100,$E$154/100*$E$151*(100-$E$152)/100,MAX(0,$E$151*(100-$E$152)/100-SUM($I$154:I154))) -> 22.30695339 | K154: =IF(SUM($I$154:J154)<=(100-$E$154)/100*$E$151*(100-$E$152)/100,$E$154/100*$E$151*(100-$E$152)/100,MAX(0,$E$151*(100-$E$152)/100-SUM($I$154:J154))) -> 22.30695339 | L154: =IF(SUM($I$154:K154)<=(100-$E$154)/100*$E$151*(100-$E$152)/100,$E$154/100*$E$151*(100-$E$152)/100,MAX(0,$E$151*(100-$E$152)/100-SUM($I$154:K154))) -> 22.30695339 | M154: =IF(SUM($I$154:L154)<=(100-$E$154)/100*$E$151*(100-$E$152)/100,$E$154/100*$E$151*(100-$E$152)/100,MAX(0,$E$151*(100-$E$152)/100-SUM($I$154:L154))) -> 22.30695339 | N154: =IF(SUM($I$154:M154)<=(100-$E$154)/100*$E$151*(100-$E$152)/100,$E$154/100*$E$151*(100-$E$152)/100,MAX(0,$E$151*(100-$E$152)/100-SUM($I$154:M154))) -> 22.30695339 | O154: =IF(SUM($I$154:N154)<=(100-$E$154)/100*$E$151*(100-$E$152)/100,$E$154/100*$E$151*(100-$E$152)/100,MAX(0,$E$151*(100-$E$152)/100-SUM($I$154:N154))) -> 22.30695339 | P154: =IF(SUM($I$154:O154)<=(100-$E$154)/100*$E$151*(100-$E$152)/100,$E$154/100*$E$151*(100-$E$152)/100,MAX(0,$E$151*(100-$E$152)/100-SUM($I$154:O154))) -> 22.30695339 | Q154: =IF(SUM($I$154:P154)<=(100-$E$154)/100*$E$151*(100-$E$152)/100,$E$154/100*$E$151*(100-$E$152)/100,MAX(0,$E$151*(100-$E$152)/100-SUM($I$154:P154))) -> 22.30695339 | R154: =IF(SUM($I$154:Q154)<=(100-$E$154)/100*$E$151*(100-$E$152)/100,$E$154/100*$E$151*(100-$E$152)/100,MAX(0,$E$151*(100-$E$152)/100-SUM($I$154:Q154))) -> 22.30695339 | S154: =IF(SUM($I$154:R154)<=(100-$E$154)/100*$E$151*(100-$E$152)/100,$E$154/100*$E$151*(100-$E$152)/100,MAX(0,$E$151*(100-$E$152)/100-SUM($I$154:R154))) -> 0 | T154: =IF(SUM($I$154:S154)<=(100-$E$154)/100*$E$151*(100-$E$152)/100,$E$154/100*$E$151*(100-$E$152)/100,MAX(0,$E$151*(100-$E$152)/100-SUM($I$154:S154))) -> 0 | U154: =IF(SUM($I$154:T154)<=(100-$E$154)/100*$E$151*(100-$E$152)/100,$E$154/100*$E$151*(100-$E$152)/100,MAX(0,$E$151*(100-$E$152)/100-SUM($I$154:T154))) -> 0 | V154: =IF(SUM($I$154:U154)<=(100-$E$154)/100*$E$151*(100-$E$152)/100,$E$154/100*$E$151*(100-$E$152)/100,MAX(0,$E$151*(100-$E$152)/100-SUM($I$154:U154))) -> 0 | W154: =IF(SUM($I$154:V154)<=(100-$E$154)/100*$E$151*(100-$E$152)/100,$E$154/100*$E$151*(100-$E$152)/100,MAX(0,$E$151*(100-$E$152)/100-SUM($I$154:V154))) -> 0 | X154: =IF(SUM($I$154:W154)<=(100-$E$154)/100*$E$151*(100-$E$152)/100,$E$154/100*$E$151*(100-$E$152)/100,MAX(0,$E$151*(100-$E$152)/100-SUM($I$154:W154))) -> 0 | Y154: =IF(SUM($I$154:X154)<=(100-$E$154)/100*$E$151*(100-$E$152)/100,$E$154/100*$E$151*(100-$E$152)/100,MAX(0,$E$151*(100-$E$152)/100-SUM($I$154:X154))) -> 0 | Z154: =IF(SUM($I$154:Y154)<=(100-$E$154)/100*$E$151*(100-$E$152)/100,$E$154/100*$E$151*(100-$E$152)/100,MAX(0,$E$151*(100-$E$152)/100-SUM($I$154:Y154))) -> 0 | AA154: =IF(SUM($I$154:Z154)<=(100-$E$154)/100*$E$151*(100-$E$152)/100,$E$154/100*$E$151*(100-$E$152)/100,MAX(0,$E$151*(100-$E$152)/100-SUM($I$154:Z154))) -> 0 | AB154: =IF(SUM($I$154:AA154)<=(100-$E$154)/100*$E$151*(100-$E$152)/100,$E$154/100*$E$151*(100-$E$152)/100,MAX(0,$E$151*(100-$E$152)/100-SUM($I$154:AA154))) -> 0 | AC154: =IF(SUM($I$154:AB154)<=(100-$E$154)/100*$E$151*(100-$E$152)/100,$E$154/100*$E$151*(100-$E$152)/100,MAX(0,$E$151*(100-$E$152)/100-SUM($I$154:AB154))) -> 0 | AD154: =IF(SUM($I$154:AC154)<=(100-$E$154)/100*$E$151*(100-$E$152)/100,$E$154/100*$E$151*(100-$E$152)/100,MAX(0,$E$151*(100-$E$152)/100-SUM($I$154:AC154))) -> 0 | AE154: =IF(SUM($I$154:AD154)<=(100-$E$154)/100*$E$151*(100-$E$152)/100,$E$154/100*$E$151*(100-$E$152)/100,MAX(0,$E$151*(100-$E$152)/100-SUM($I$154:AD154))) -> 0 | AF154: =IF(SUM($I$154:AE154)<=(100-$E$154)/100*$E$151*(100-$E$152)/100,$E$154/100*$E$151*(100-$E$152)/100,MAX(0,$E$151*(100-$E$152)/100-SUM($I$154:AE154))) -> 0 | AG154: =IF(SUM($I$154:AF154)<=(100-$E$154)/100*$E$151*(100-$E$152)/100,$E$154/100*$E$151*(100-$E$152)/100,MAX(0,$E$151*(100-$E$152)/100-SUM($I$154:AF154))) -> 0 | AH154: =IF(SUM($I$154:AG154)<=(100-$E$154)/100*$E$151*(100-$E$152)/100,$E$154/100*$E$151*(100-$E$152)/100,MAX(0,$E$151*(100-$E$152)/100-SUM($I$154:AG154))) -> 0 | AI154: =IF(SUM($I$154:AH154)<=(100-$E$154)/100*$E$151*(100-$E$152)/100,$E$154/100*$E$151*(100-$E$152)/100,MAX(0,$E$151*(100-$E$152)/100-SUM($I$154:AH154))) -> 0 | AJ154: =IF(SUM($I$154:AI154)<=(100-$E$154)/100*$E$151*(100-$E$152)/100,$E$154/100*$E$151*(100-$E$152)/100,MAX(0,$E$151*(100-$E$152)/100-SUM($I$154:AI154))) -> 0 | AK154: =IF(SUM($I$154:AJ154)<=(100-$E$154)/100*$E$151*(100-$E$152)/100,$E$154/100*$E$151*(100-$E$152)/100,MAX(0,$E$151*(100-$E$152)/100-SUM($I$154:AJ154))) -> 0 | AL154: =IF(SUM($I$154:AK154)<=(100-$E$154)/100*$E$151*(100-$E$152)/100,$E$154/100*$E$151*(100-$E$152)/100,MAX(0,$E$151*(100-$E$152)/100-SUM($I$154:AK154))) -> 0 | AN154: =SUM(I154:AL154)/$AN$170 -> 0.07618705279 | AP154: =SUMPRODUCT(I154:AL154,I$180:AL$180) -> 2391.729753 | AQ154: =AP154/$AP$170 -> 0.1695294347
A156: Elektrizitätsbedarf | B156: Verdichterstationen | C156: 2 | E156: =(D2-L81)/L81*L87/1000/H5 -> 160240.3561 | F156: MWh/a | G156: 105 | H156: €/MWh | I156: =E156*G156/1000000 -> 16.82523739 | J156: =I156*(1+$C156/100) -> 17.16174214 | K156: 17.50497698 | L156: 17.85507652 | M156: 18.21217805 | N156: 18.57642161 | O156: 18.94795005 | P156: 19.32690905 | Q156: 19.71344723 | R156: 20.10771617 | S156: 20.5098705 | T156: 20.92006791 | U156: 21.33846926 | V156: 21.76523865 | W156: 22.20054342 | X156: 22.64455429 | Y156: 23.09744538 | Z156: 23.55939428 | AA156: 24.03058217 | AB156: 24.51119381 | AC156: 25.00141769 | AD156: 25.50144604 | AE156: 26.01147496 | AF156: 26.53170446 | AG156: 27.06233855 | AH156: 27.60358532 | AI156: 28.15565703 | AJ156: 28.71877017 | AK156: 29.29314557 | AL156: 29.87900849 | AN156: =SUM(I156:AL156)/$AN$170 -> 0.2331237711 | AP156: =SUMPRODUCT(I156:AL156,I$180:AL$180) -> 3288.921836 | AQ156: =AP156/$AP$170 -> 0.2331237711
B157: oder: H2-Verbrauch: | G157: 0 | H157: %
B159: Druckbeaufschlagung zu Beginn | C159: 2 | E159: =L97/1000/H5 -> 73343.85158 | F159: MWh/a | G159: 50 | H159: €/MWh | I159: =E159*G159/1000000 -> 3.667192579 | J159: =I159*(1+$C159/100) -> 3.74053643 | K159: 3.815347159 | L159: 3.891654102 | M159: 3.969487184 | N159: 4.048876928 | O159: 4.129854466 | P159: 4.212451556 | Q159: 4.296700587 | R159: 4.382634599 | S159: 4.470287291 | T159: 4.559693036 | U159: 4.650886897 | V159: 4.743904635 | W159: 4.838782728 | X159: 4.935558382 | Y159: 5.03426955 | Z159: 5.134954941 | AA159: 5.23765404 | AB159: 5.342407121 | AC159: 5.449255263 | AD159: 5.558240368 | AE159: 5.669405176 | AF159: 5.782793279 | AG159: 5.898449145 | AH159: 6.016418128 | AI159: 6.13674649 | AJ159: 6.25948142 | AK159: 6.384671048 | AL159: 6.512364469 | AN159: =SUM(I159:AL159)/$AN$170 -> 0.05081115608 | AP159: =SUMPRODUCT(I159:AL159,I$180:AL$180) -> 716.8463343 | AQ159: =AP159/$AP$170 -> 0.05081115608
A161: Summe Auszahlungen | I161: =SUM(I148:I160) -> 65.10633676 | J161: 63.28549002 | K161: 61.47284025 | L161: 59.66855139 | M161: 57.87279067 | N161: 56.08572863 | O161: 54.30753926 | P161: 52.53840002 | Q161: 50.77849189 | R161: 49.0279995 | S161: 24.98015779 | T161: 25.47976094 | U161: 25.98935616 | V161: 26.50914328 | W161: 27.03932615 | X161: 27.58011267 | Y161: 28.13171493 | Z161: 28.69434922 | AA161: 29.26823621 | AB161: 29.85360093 | AC161: 30.45067295 | AD161: 31.05968641 | AE161: 31.68088014 | AF161: 32.31449774 | AG161: 32.9607877 | AH161: 33.62000345 | AI161: 34.29240352 | AJ161: 34.97825159 | AK161: 35.67781662 | AL161: 36.39137295 | AN161: =SUM(I161:AL161) -> 1177.0963 | AP161: =SUMPRODUCT(I161:AL161,I$180:AL$180) -> 7898.198202 | AQ161: =AP161/$AP$170 -> 0.5598362751
A164: Einzahlungen | G164: ankommende Menge
A165: Transportkosten | C165: 2 | E165: 2071.468139 | F165: €/t | G165: =D1*(100-G157)/100 -> 34841.46301 | H165: t/a | I165: =E165*G165/1000000 -> 72.17298053 | J165: =I165*(1+$C165/100) -> 73.61644014 | K165: 75.08876894 | L165: 76.59054432 | M165: 78.12235521 | N165: 79.68480231 | O165: 81.27849836 | P165: 82.90406833 | Q165: 84.56214969 | R165: 86.25339269 | S165: 87.97846054 | T165: 89.73802975 | U165: 91.53279035 | V165: 93.36344615 | W165: 95.23071508 | X165: 97.13532938 | Y165: 99.07803597 | Z165: 101.0595967 | AA165: 103.0807886 | AB165: 105.1424044 | AC165: 107.2452525 | AD165: 109.3901575 | AE165: 111.5779607 | AF165: 113.8095199 | AG165: 116.0857103 | AH165: 118.4074245 | AI165: 120.775573 | AJ165: 123.1910844 | AK165: 125.6549061 | AL165: 128.1680043 | AN165: =SUM(I165:AL165)/$AN$170*($AN$170-$AN$161)/$AN$170 -> 0.597975141 | AP165: =SUMPRODUCT(I165:AL165,I$180:AL$180) -> 14108.05007 | AQ165: =AP165/$AP$170*($AP$170-$AP$161)/$AP$170 -> 0.4401637249
E166: =E165/1000 -> 2.071468139 | F166: €/kg | G166: =G165/D1 -> 1 | H166: Anteil
B167: bezogen auf ankommende Menge | E167: =E166/G167*32 -> 0.5525204251 | F167: €/l BÄ | G167: 119.972 | H167: MJ/kg (Heizwert)
B168: bezogen auf eingehende Menge | E168: =E167*G165/D1 -> 0.5525204251 | F168: €/l BÄ
A170: Summe Einzahlungen | I170: =SUM(I165:I169) -> 72.17298053 | J170: 73.61644014 | K170: 75.08876894 | L170: 76.59054432 | M170: 78.12235521 | N170: 79.68480231 | O170: 81.27849836 | P170: 82.90406833 | Q170: 84.56214969 | R170: 86.25339269 | S170: 87.97846054 | T170: 89.73802975 | U170: 91.53279035 | V170: 93.36344615 | W170: 95.23071508 | X170: 97.13532938 | Y170: 99.07803597 | Z170: 101.0595967 | AA170: 103.0807886 | AB170: 105.1424044 | AC170: 107.2452525 | AD170: 109.3901575 | AE170: 111.5779607 | AF170: 113.8095199 | AG170: 116.0857103 | AH170: 118.4074245 | AI170: 120.775573 | AJ170: 123.1910844 | AK170: 125.6549061 | AL170: 128.1680043 | AN170: =SUM(I170:AL170) -> 2927.919191 | AP170: =SUMPRODUCT(I170:AL170,I$180:AL$180) -> 14108.05007 | AQ170: =AP170/$AP$170*($AP$170-$AP$161)/$AP$170 -> 0.4401637249
A173: Überschuss | I173: =I170-I161 -> 7.066643771 | J173: 10.33095012 | K173: 13.61592869 | L173: 16.92199293 | M173: 20.24956454 | N173: 23.59907368 | O173: 26.97095909 | P173: 30.36566831 | Q173: 33.7836578 | R173: 37.22539318 | S173: 62.99830275 | T173: 64.25826881 | U173: 65.54343419 | V173: 66.85430287 | W173: 68.19138893 | X173: 69.5552167 | Y173: 70.94632104 | Z173: 72.36524746 | AA173: 73.81255241 | AB173: 75.28880346 | AC173: 76.79457953 | AD173: 78.33047112 | AE173: 79.89708054 | AF173: 81.49502215 | AG173: 83.12492259 | AH173: 84.78742104 | AI173: 86.48316947 | AJ173: 88.21283285 | AK173: 89.97708951 | AL173: 91.7766313
A174: Barwert | C174: 10 | I174: =I173*(1+$C$174/100)^-(I146) -> 6.42422161 | J174: 8.537975307 | K174: 10.22984875 | L174: 11.55794886 | M174: 12.57338641 | N174: 13.32106187 | O174: 13.84036662 | P174: 14.16580837 | Q174: 14.32756881 | R174: 14.35200054 | S174: 22.08052079 | T174: 20.47466474 | U174: 18.98559821 | V174: 17.60482743 | W174: 16.32447634 | X174: 15.1372417 | Y174: 14.0363514 | Z174: 13.01552584 | AA174: 12.06894214 | AB174: 11.1912009 | AC174: 10.37729538 | AD174: 9.622582985 | AE174: 8.922758768 | AF174: 8.273830857 | AG174: 7.672097704 | AH174: 7.114126962 | AI174: 6.59673591 | AJ174: 6.116973299 | AK174: 5.672102513 | AL174: 5.259585967
A175: Abzinsungsfaktor | I175: =(1+$C$174/100)^-(I146) -> 0.9090909091 | J175: 0.826446281 | K175: 0.7513148009 | L175: 0.6830134554 | M175: 0.6209213231 | N175: 0.5644739301 | O175: 0.5131581182 | P175: 0.4665073802 | Q175: 0.4240976184 | R175: 0.3855432894 | S175: 0.3504938995 | T175: 0.3186308177 | U175: 0.2896643797 | V175: 0.2633312543 | W175: 0.2393920494 | X175: 0.2176291358 | Y175: 0.1978446689 | Z175: 0.1798587899 | AA175: 0.1635079908 | AB175: 0.148643628 | AC175: 0.1351305709 | AD175: 0.1228459736 | AE175: 0.1116781578 | AF175: 0.101525598 | AG175: 0.09229599818 | AH175: 0.08390545289 | AI175: 0.07627768444 | AJ175: 0.06934334949 | AK175: 0.06303940863 | AL175: 0.0573085533
A177: Endwertmethode | B177: Rendite: | C177: 10 | F177: Eigenkapital (Verzinsung) | H177: =E152/100*$E$151 -> 148.7130226 | I177: =$H$177*(1+$C$177/100)^I146 -> 163.5843249 | J177: 179.9427574 | K177: 197.9370331 | L177: 217.7307364 | M177: 239.5038101 | N177: 263.4541911 | O177: 289.7996102 | P177: 318.7795712 | Q177: 350.6575283 | R177: 385.7232812 | S177: 424.2956093 | T177: 466.7251702 | U177: 513.3976872 | V177: 564.7374559 | W177: 621.2112015 | X177: 683.3323217 | Y177: 751.6655539 | Z177: 826.8321093 | AA177: 909.5153202 | AB177: 1000.466852 | AC177: 1100.513537 | AD177: 1210.564891 | AE177: 1331.62138 | AF177: 1464.783518 | AG177: 1611.26187 | AH177: 1772.388057 | AI177: 1949.626863 | AJ177: 2144.589549 | AK177: 2359.048504 | AL177: 2594.953354 | AN177: =INDIRECT(ADDRESS(ROW(),COLUMN()-32+Jahre3)) -> 466.7251702
F178: Überschuss (Endwertberechnung) | I178: =I173*I180 -> 112.0988271 | J178: 148.9825657 | K178: 178.5047461 | L178: 201.6792991 | M178: 219.3980773 | N178: 232.4445671 | O178: 241.5061246 | P178: 247.1848887 | Q178: 250.0075118 | R178: 250.4338307 | S178: 385.2918896 | T178: 357.2706613 | U178: 331.2873405 | V178: 307.1937157 | W178: 284.8523546 | X178: 264.1358197 | Y178: 244.9259419 | Z178: 227.1131461 | AA178: 210.5958264 | AB178: 195.2797663 | AC178: 181.0776015 | AD178: 167.9083214 | AE178: 155.6968071 | AF178: 144.3734029 | AG178: 133.8735191 | AH178: 124.1372632 | AI178: 115.1090986 | AJ178: 106.7375278 | AK178: 98.97479846 | AL178: 91.7766313
F179: Überschuss (Endwertberechnung) - aufsummiert | I179: =SUM($I$178:I178) -> 112.0988271 | J179: =SUM($I$178:J178) -> 261.0813928 | K179: =SUM($I$178:K178) -> 439.5861389 | L179: =SUM($I$178:L178) -> 641.265438 | M179: =SUM($I$178:M178) -> 860.6635152 | N179: =SUM($I$178:N178) -> 1093.108082 | O179: =SUM($I$178:O178) -> 1334.614207 | P179: =SUM($I$178:P178) -> 1581.799096 | Q179: =SUM($I$178:Q178) -> 1831.806608 | R179: =SUM($I$178:R178) -> 2082.240438 | S179: =SUM($I$178:S178) -> 2467.532328 | T179: =SUM($I$178:T178) -> 2824.802989 | U179: =SUM($I$178:U178) -> 3156.09033 | V179: =SUM($I$178:V178) -> 3463.284045 | W179: =SUM($I$178:W178) -> 3748.1364 | X179: =SUM($I$178:X178) -> 4012.27222 | Y179: =SUM($I$178:Y178) -> 4257.198162 | Z179: =SUM($I$178:Z178) -> 4484.311308 | AA179: =SUM($I$178:AA178) -> 4694.907134 | AB179: =SUM($I$178:AB178) -> 4890.1869 | AC179: =SUM($I$178:AC178) -> 5071.264502 | AD179: =SUM($I$178:AD178) -> 5239.172823 | AE179: =SUM($I$178:AE178) -> 5394.86963 | AF179: =SUM($I$178:AF178) -> 5539.243033 | AG179: =SUM($I$178:AG178) -> 5673.116552 | AH179: =SUM($I$178:AH178) -> 5797.253815 | AI179: =SUM($I$178:AI178) -> 5912.362914 | AJ179: =SUM($I$178:AJ178) -> 6019.100442 | AK179: =SUM($I$178:AK178) -> 6118.07524 | AL179: =SUM($I$178:AL178) -> 6209.851871 | AN179: =INDIRECT(ADDRESS(ROW(),COLUMN()-32+Jahre3)) -> 2824.802989
C180: =C177 -> 10 | F180: Endwert-Faktor | I180: =IF((1+$C$180/100)^($H$1-I146)>=1,(1+$C$180/100)^($H$1-I146),0) -> 15.86309297 | J180: 14.42099361 | K180: 13.10999419 | L180: 11.91817654 | M180: 10.83470594 | N180: 9.849732676 | O180: 8.954302433 | P180: 8.140274939 | Q180: 7.400249944 | R180: 6.727499949 | S180: 6.115909045 | T180: 5.559917313 | U180: 5.054470285 | V180: 4.594972986 | W180: 4.177248169 | X180: 3.797498336 | Y180: 3.452271214 | Z180: 3.138428377 | AA180: 2.853116706 | AB180: 2.59374246 | AC180: 2.357947691 | AD180: 2.14358881 | AE180: 1.9487171 | AF180: 1.771561 | AG180: 1.61051 | AH180: 1.4641 | AI180: 1.331 | AJ180: 1.21 | AK180: 1.1 | AL180: 1

Sheet H2-PIPE-LARGE-OPT (hidden)
A1: Optimierung der Pipeline | E1: übertragene Daten:
E2: ='H2-PIPE-LARGE'!L81 -> 150 | F2: ='H2-PIPE-LARGE'!M81 -> km | G2: /Station | I2: mit Strom | K2: (Strompreis muss eingetragen sein)
B3: Ergebnis der Optimierung: | E3: ='H2-PIPE-LARGE'!D2 -> 3100 | F3: km | G3: Gesamtstrecke | I3: Geschwindigkeit | K3: 12.2 | L3: m/s | M3: Strom(Erz.) | N3: 73343.85158 | O3: MWh/a
I4: für Preis | K4: 0.3810163301 | L4: €/l BÄ | M4: Strom(Ziel) | N4: 74132.8943 | O4: MWh/a
B5: H2-Preis ohne Transport: | I5: mit Wasserstoff
B6: 0.9800375521 | C6: €/l BÄ | I6: Geschwindigkeit_ein | K6: 5 | L6: m/s | M6: Strom(Erz.) | N6: =N3 -> 73343.85158 | O6: MWh/a
B7: 119.972 | C7: MJ/kg H2 | I7: H2-Verbrauch | K7: 11.83648754 | L7: % | M7: ankommend: | N7: =(100-K7)/100 -> 0.8816351246
B8: 40 | C8: % Effizienz H2/Kompression | I8: für Preis | K8: 0.8038835099 | L8: €/l BÄ | N8: 0.5927299157 | O8: €/l BÄ Pipelinekosten
A9: Optimierung | E9: mit H2-Verbrauch: | N9: 0.1315759995 | O9: €/l Verlust
A10: mit Strom: | C10: Strom(Erzeuger) | D10: Strom(Weg/Ziel) | E10: Stationen: | K10: neu: | N10: Optimierung | O10: bez. Eingang | P10: bez. Ausgang
A11: m/s | B11: €/l BÄ | C11: MWh/a | D11: MWh/a | E11: km | F11: km_ges | G11: t/a | H11: m/s | I11: kWh/a/Station | J11: t/a/H2-Verbr. | K11: t/a | L11: m/s | N11: m/s | O11: €/l BÄ Pipelinekosten | P11: €/lPipelinekosten | Q11: €/l Verlust | R11: €/l Gesamt | T11: km | U11: km_ges | V11: t/a | W11: m/s | X11: kWh/a/Station | Y11: t/a/H2-Verbr. | Z11: t/a | AA11: m/s
E12: 150 | F12: 150 | G12: 34841.46301 | H12: 5.5 | I12: 4162449.956 | J12: 312.2566066 | K12: 34529.2064 | L12: 5.450707829 | N12: 0.5 | O12: 4.436109711 | P12: 4.438429278 | Q12: 0.0005124449867 | R12: 4.438941723 | T12: 150 | U12: 150 | V12: 34841.46301 | W12: 5 | X12: 3275238.368 | Y12: 245.7002077 | Z12: 34595.7628 | AA12: 4.964740257
A13: 0.2 | B13: 10.68558198 | C13: 73343.85158 | D13: 2.688132668 | E13: 150 | F13: 300 | G13: 34529.2064 | H13: 5.450707829 | I13: 4054378.35 | J13: 304.1493445 | K13: 34225.05706 | L13: 5.402695454 | N13: 1 | O13: 2.325220172 | P13: 2.331686102 | Q13: 0.002725270821 | R13: 2.334411373 | T13: 150 | U13: 300 | V13: 34595.7628 | W13: 4.964740257 | X13: 3208593.378 | Y13: 240.7006668 | Z13: 34355.06213 | AA13: 4.930197984
E14: 150 | F14: 450 | G14: 34225.05706 | H14: 5.402695454 | I14: 3950953.518 | J14: 296.3906717 | K14: 33928.66639 | L14: 5.355907847 | N14: 1.5 | O14: 1.612607395 | P14: 1.624544326 | Q14: 0.007254487717 | R14: 1.631798813 | T14: 150 | U14: 450 | V14: 34355.06213 | W14: 4.930197984 | X14: 3144193.012 | Y14: 235.8695121 | Z14: 34119.19262 | AA14: 4.896349016
A15: 0.4 | B15: 5.48362096 | C15: 73343.85158 | D15: 13.96997022 | E15: 150 | F15: 600 | G15: 33928.66639 | H15: 5.355907847 | I15: 3851897.717 | J15: 288.9597527 | K15: 33639.70663 | L15: 5.310293269 | N15: 2 | O15: 1.252813576 | P15: 1.27138921 | Q15: 0.01453114763 | R15: 1.285920357 | T15: 150 | U15: 600 | V15: 34119.19262 | W15: 4.896349016 | X15: 3081932.08 | Y15: 231.1988524 | Z15: 33887.99377 | AA15: 4.863170321
E16: 150 | F16: 750 | G16: 33639.70663 | H16: 5.310293269 | I16: 3756954.363 | J16: 281.8373393 | K16: 33357.86929 | L16: 5.26580302 | N16: 2.5 | O16: 1.035154356 | P16: 1.061453539 | Q16: 0.02489888253 | R16: 1.086352421 | T16: 150 | U16: 750 | V16: 33887.99377 | W16: 4.863170321 | X16: 3021711.681 | Y16: 226.6812684 | Z16: 33661.3125 | AA16: 4.830639932
A17: 0.6 | B17: 3.735446223 | C17: 73343.85158 | D17: 37.05187048 | E17: 150 | F17: 900 | G17: 33357.86929 | H17: 5.26580302 | I17: 3665886.08 | J17: 275.005624 | K17: 33082.86367 | L17: 5.222391211 | N17: 3 | O17: 0.8889928188 | P17: 0.9240457334 | Q17: 0.03864280104 | R17: 0.9626885344 | T17: 150 | U17: 900 | V17: 33661.3125 | W17: 4.830639932 | X17: 2963438.756 | Y17: 222.309779 | Z17: 33439.00272 | AA17: 4.798736883
E18: 150 | F18: 1050 | G18: 33082.86367 | H18: 5.222391211 | I18: 3578472.956 | J18: 268.4481096 | K18: 32814.41556 | L18: 5.180014557 | N18: 3.5 | O18: 0.7839062433 | P18: 0.8287007687 | Q18: 0.05600199947 | R18: 0.8847027681 | T18: 150 | U18: 1050 | V18: 33439.00272 | W18: 4.798736883 | X18: 2907025.66 | Y18: 218.0778093 | Z18: 33220.92491 | AA18: 4.767441153
A19: 0.8 | B19: 2.855865295 | C19: 73343.85158 | D19: 74.15999593 | E19: 150 | F19: 1200 | G19: 32814.41556 | H19: 5.180014557 | I19: 3494510.993 | J19: 262.1494927 | K19: 32552.26607 | L19: 5.13863219 | N19: 4 | O19: 0.7046164547 | P19: 0.7601032232 | Q19: 0.07717548512 | R19: 0.8372787083 | T19: 150 | U19: 1200 | V19: 33220.92491 | W19: 4.767441153 | X19: 2852389.788 | Y19: 213.9791626 | Z19: 33006.94575 | AA19: 4.736733607
E20: 150 | F20: 1350 | G20: 32552.26607 | H20: 5.13863219 | I20: 3413810.711 | J20: 256.095559 | K20: 32296.17051 | L20: 5.098205484 | N20: 4.5 | O20: 0.6426016626 | P20: 0.709695194 | Q20: 0.1023249457 | R20: 0.8120201397 | T20: 150 | U20: 1350 | V20: 33006.94575 | W20: 4.736733607 | X20: 2799453.221 | Y20: 210.0079934 | Z20: 32796.93776 | AA20: 4.706595953
A21: 1 | B21: 2.325322356 | C21: 73343.85158 | D21: 127.1213078 | E21: 150 | F21: 1500 | G21: 32296.17051 | H21: 5.098205484 | I21: 3336195.897 | J21: 250.2730893 | K21: 32045.89742 | L21: 5.058697901 | N21: 5 | O21: 0.5927299157 | P21: 0.6723075104 | Q21: 0.1315759995 | R21: 0.8038835099 | T21: 150 | U21: 1500 | V21: 32796.93776 | W21: 4.706595953 | X21: 2748142.399 | Y21: 206.1587837 | Z21: 32590.77897 | AA21: 4.677010688
E22: 150 | F22: 1650 | G22: 32045.89742 | H22: 5.058697901 | I22: 3261502.478 | J22: 244.6697755 | K22: 31801.22764 | L22: 5.020074846 | N22: 5.5 | O22: 0.5517241647 | P22: 0.6446235763 | Q22: 0.1650188949 | R22: 0.8096424712 | T22: 150 | U22: 1650 | V22: 32590.77897 | W22: 4.677010688 | X22: 2698387.835 | Y22: 202.4263204 | Z22: 32388.35265 | AA22: 4.647961058
A23: 1.2 | B23: 1.969986555 | C23: 73343.85158 | D23: 197.5251018 | E23: 150 | F23: 1800 | G23: 31801.22764 | H23: 5.020074846 | I23: 3189577.515 | J23: 239.2741442 | K23: 31561.9535 | L23: 4.982303533 | T23: 150 | U23: 1800 | V23: 32388.35265 | W23: 4.647961058 | X23: 2650123.83 | Y23: 198.8056752 | Z23: 32189.54698 | AA23: 4.619431017
E24: 150 | F24: 1950 | G24: 31561.9535 | H24: 4.982303533 | I24: 3120278.278 | J24: 234.0754884 | K24: 31327.87801 | L24: 4.945352869 | T24: 150 | U24: 1950 | V24: 32189.54698 | W24: 4.619431017 | X24: 2603288.231 | Y24: 195.2921855 | Z24: 31994.25479 | AA24: 4.591405186
A25: 1.4 | B25: 1.715122773 | C25: 73343.85158 | D25: 286.8022305 | E25: 150 | F25: 2100 | G25: 31327.87801 | H25: 4.945352869 | I25: 3053471.429 | J25: 229.0638054 | K25: 31098.81421 | L25: 4.909193339 | T25: 150 | U25: 2100 | V25: 31994.25479 | W25: 4.591405186 | X25: 2557822.195 | Y25: 191.881437 | Z25: 31802.37335 | AA25: 4.563868823
E26: 150 | F26: 2250 | G26: 31098.81421 | H26: 4.909193339 | I26: 2989032.268 | J26: 224.2297404 | K26: 30874.58446 | L26: 4.873796905 | T26: 150 | U26: 2250 | V26: 31802.37335 | W26: 4.563868823 | X26: 2513669.976 | Y26: 188.5692477 | Z26: 31613.80411 | AA26: 4.536807783
A27: 1.6 | B27: 1.523258295 | C27: 73343.85158 | D27: 396.2715788 | E27: 150 | F27: 2400 | G27: 30874.58446 | H27: 4.873796905 | I27: 2926844.059 | J27: 219.5645362 | K27: 30655.01993 | L27: 4.839136909 | T27: 150 | U27: 2400 | V27: 31613.80411 | W27: 4.536807783 | X27: 2470778.728 | Y27: 185.3516533 | Z27: 31428.45245 | AA27: 4.51020849
E28: 150 | F28: 2550 | G28: 30655.01993 | H28: 4.839136909 | I28: 2866797.41 | J28: 215.0599864 | K28: 30439.95994 | L28: 4.805187992 | T28: 150 | U28: 2550 | V28: 31428.45245 | W28: 4.51020849 | X28: 2429098.319 | Y28: 182.224893 | Z28: 31246.22756 | AA28: 4.48405791
A29: 1.8 | B29: 1.373521723 | C29: 73343.85158 | D29: 527.1704796 | E29: 150 | F29: 2700 | G29: 30439.95994 | H29: 4.805187992 | I29: 2808789.714 | J29: 210.7083938 | K29: 30229.25155 | L29: 4.771926009 | T29: 150 | U29: 2700 | V29: 31246.22756 | W29: 4.48405791 | X29: 2388581.164 | Y29: 179.1853972 | Z29: 31067.04216 | AA29: 4.45834352
E30: 150 | F30: 2850 | G30: 30229.25155 | H30: 4.771926009 | I30: 2752724.64 | J30: 206.5025319 | K30: 30022.74902 | L30: 4.739327954 | T30: 150 | U30: 2850 | V30: 31067.04216 | W30: 4.45834352 | X30: 2349182.069 | Y30: 176.2297755 | Z30: 30890.81239 | AA30: 4.433053282
A31: 2 | B31: 1.253360722 | C31: 73343.85158 | D31: 680.6761939 | E31: 150 | F31: 3000 | G31: 30022.74902 | H31: 4.739327954 | I31: 2698511.667 | J31: 202.43561 | K31: 29820.31341 | L31: 4.707371895 | T31: 150 | U31: 3000 | V31: 30890.81239 | W31: 4.433053282 | X31: 2310858.084 | Y31: 173.3548057 | Z31: 30717.45758 | AA31: 4.408175623
E32: 150 | F32: 3150 | T32: 150 | U32: 3150
A33: 2.2 | B33: 1.154769945 | C33: 73343.85158 | D33: 857.921978
A35: 2.4 | B35: 1.072401555 | C35: 73343.85158 | D35: 1060.009661
A37: 2.6 | B37: 1.002546074 | C37: 73343.85158 | D37: 1288.01987
A39: 2.8 | B39: 0.9425490778 | C39: 73343.85158 | D39: 1543.020611
A41: 3 | B41: 0.8904606683 | C41: 73343.85158 | D41: 1826.074678
A43: 3.2 | B43: 0.8448160797 | C43: 73343.85158 | D43: 2138.246191
A45: 3.4 | B45: 0.8044935166 | C45: 73343.85158 | D45: 2480.606515
A47: 3.6 | B47: 0.7686192532 | C47: 73343.85158 | D47: 2854.239703
A49: 3.8 | B49: 0.7365026168 | C49: 73343.85158 | D49: 3260.247597
A51: 4 | B51: 0.7075904202 | C51: 73343.85158 | D51: 3699.754678
A53: 4.2 | B53: 0.6814343743 | C53: 73343.85158 | D53: 4173.912752
A55: 4.4 | B55: 0.6576673611 | C55: 73343.85158 | D55: 4683.905517
A57: 4.6 | B57: 0.6359858765 | C57: 73343.85158 | D57: 5230.953082
A59: 4.8 | B59: 0.6161368494 | C59: 73343.85158 | D59: 5816.316464
A61: 5 | B61: 0.5979076131 | C61: 73343.85158 | D61: 6441.302125
A63: 5.2 | B63: 0.5811181841 | C63: 73343.85158 | D63: 7107.266556
A65: 5.4 | B65: 0.5656152515 | C65: 73343.85158 | D65: 7815.620975
A67: 5.6 | B67: 0.5512674498 | C67: 73343.85158 | D67: 8567.836138
A69: 5.8 | B69: 0.5379616078 | C69: 73343.85158 | D69: 9365.447314
A71: 6 | B71: 0.5255997448 | C71: 73343.85158 | D71: 10210.05945
A73: 6.2 | B73: 0.5140966477 | C73: 73343.85158 | D73: 11103.35256
A75: 6.4 | B75: 0.5033779005 | C75: 73343.85158 | D75: 12047.08732
A77: 6.6 | B77: 0.4933782729 | C77: 73343.85158 | D77: 13043.11103
A79: 6.8 | B79: 0.4840403919 | C79: 73343.85158 | D79: 14093.36377
A81: 7 | B81: 0.4753136422 | C81: 73343.85158 | D81: 15199.88504
A83: 7.2 | B83: 0.4671532494 | C83: 73343.85158 | D83: 16364.82063
A85: 7.4 | B85: 0.4595195135 | C85: 73343.85158 | D85: 17590.43001
A87: 7.6 | B87: 0.452377163 | C87: 73343.85158 | D87: 18879.09419
A89: 7.8 | B89: 0.4456948103 | C89: 73343.85158 | D89: 20233.324
A91: 8 | B91: 0.4394444891 | C91: 73343.85158 | D91: 21655.76895
A93: 8.2 | B93: 0.4336012609 | C93: 73343.85158 | D93: 23149.22677
A95: 8.4 | B95: 0.4281428797 | C95: 73343.85158 | D95: 24716.65345
A97: 8.6 | B97: 0.4230495035 | C97: 73343.85158 | D97: 26361.1741
A99: 8.8 | B99: 0.4183034486 | C99: 73343.85158 | D99: 28086.0946
A101: 9 | B101: 0.4138889767 | C101: 73343.85158 | D101: 29894.91399
A103: 9.2 | B103: 0.4097921127 | C103: 73343.85158 | D103: 31791.33797
A105: 9.4 | B105: 0.4060004881 | C105: 73343.85158 | D105: 33779.29342
A107: 9.6 | B107: 0.4025032052 | C107: 73343.85158 | D107: 35862.94426
A109: 9.8 | B109: 0.3992907219 | C109: 73343.85158 | D109: 38046.70888
A111: 10 | B111: 0.3963547533 | C111: 73343.85158 | D111: 40335.27971
A113: 10.2 | B113: 0.3936881879 | C113: 73343.85158 | D113: 42733.64527
A115: 10.4 | B115: 0.3912850193 | C115: 73343.85158 | D115: 45247.11573
A117: 10.6 | B117: 0.3891402911 | C117: 73343.85158 | D117: 47881.35265
A119: 10.8 | B119: 0.3872500537 | C119: 73343.85158 | D119: 50642.40417
A121: 11 | B121: 0.3856113363 | C121: 73343.85158 | D121: 53536.74674
A123: 11.2 | B123: 0.3842221291 | C123: 73343.85158 | D123: 56571.33449
A125: 11.4 | B125: 0.3830813809 | C125: 73343.85158 | D125: 59753.65725
A127: 11.6 | B127: 0.3821890073 | C127: 73343.85158 | D127: 63091.80806
A129: 11.8 | B129: 0.3815459124 | C129: 73343.85158 | D129: 66594.56029
A131: 12 | B131: 0.3811540227 | C131: 73343.85158 | D131: 70271.45452
A133: 12.2 | B133: 0.3810163301 | C133: 73343.85158 | D133: 74132.8943
A135: 12.4 | B135: 0.3811369463 | C135: 73343.85158 | D135: 78190.24972
A137: 12.6 | B137: 0.3815211636 | C137: 73343.85158 | D137: 82455.96731
A139: 12.8 | B139: 0.382789635 | C139: 73343.85158 | D139: 87707.66934
A141: 13 | B141: 0.3837952094 | C141: 73343.85158 | D141: 92523.41131
A143: 13.2 | B143: 0.3860011095 | C143: 73343.85158 | D143: 98728.36838
A145: 13.4 | B145: 0.3876606267 | C145: 73343.85158 | D145: 104154.1223
A147: 13.6 | B147: 0.3896360769 | C147: 73343.85158 | D147: 109877.7393
A149: 13.8 | B149: 0.3919404994 | C149: 73343.85158 | D149: 115919.4992
A151: 14 | B151: 0.3945885697 | C151: 73343.85158 | D151: 122301.488
A153: 14.2 | B153: 0.3975967389 | C153: 73343.85158 | D153: 129047.7876
A155: 14.4 | B155: 0.4009833931 | C155: 73343.85158 | D155: 136184.6888
A157: 14.6 | B157: 0.4047690373 | C157: 73343.85158 | D157: 143740.9332
A159: 14.8 | B159: 0.4089765053 | C159: 73343.85158 | D159: 151747.9875
A161: 15 | B161: 0.4136312025 | C161: 73343.85158 | D161: 160240.3561
A163: 15.2 | B163: 0.4187613842 | C163: 73343.85158 | D163: 169255.9383
A165: 15.4 | B165: 0.4243984766 | C165: 73343.85158 | D165: 178836.4373
A167: 15.6 | B167: 0.430577448 | C167: 73343.85158 | D167: 189027.8305
A169: 15.8 | B169: 0.4373372364 | C169: 73343.85158 | D169: 199880.9105
A171: 16 | B171: 0.4447212466 | C171: 73343.85158 | D171: 211451.9106
A173: 16.2 | B173: 0.4527779259 | C173: 73343.85158 | D173: 223803.2283
A175: 16.4 | B175: 0.4615614347 | C175: 73343.85158 | D175: 237004.2659
A177: 16.6 | B177: 0.4711324291 | C177: 73343.85158 | D177: 251132.4108
A179: 16.8 | B179: 0.4815589768 | C179: 73343.85158 | D179: 266274.1798
A181: 17 | B181: 0.492917632 | C181: 73343.85158 | D181: 282526.5622
A183: 17.2 | B183: 0.5052947027 | C183: 73343.85158 | D183: 299998.6011
A185: 17.4 | B185: 0.5187877491 | C185: 73343.85158 | D185: 318813.262
A187: 17.6 | B187: 0.5335073624 | C187: 73343.85158 | D187: 339109.6501
A189: 17.8 | B189: 0.5495792866 | C189: 73343.85158 | D189: 361045.6536
A191: 18 | B191: 0.5671469591 | C191: 73343.85158 | D191: 384801.1087
A193: 18.2 | B193: 0.5863745696 | C193: 73343.85158 | D193: 410581.6078
A195: 18.4 | B195: 0.6074507597 | C195: 73343.85158 | D195: 438623.1055
A197: 18.6 | B197: 0.6305931237 | C197: 73343.85158 | D197: 469197.5207
A199: 18.8 | B199: 0.6560537142 | C199: 73343.85158 | D199: 502619.5893
A201: 19 | B201: 0.6841258199 | C201: 73343.85158 | D201: 539255.2979
A203: 19.2 | B203: 0.7151523631 | C203: 73343.85158 | D203: 579532.3336
A205: 19.4 | B205: 0.7495363775 | C205: 73343.85158 | D205: 623953.1217
A207: 19.6 | B207: 0.7877541798 | C207: 73343.85158 | D207: 673111.2128
A209: 19.8 | B209: 0.8303720595 | C209: 73343.85158 | D209: 727712.0488
A211: 20 | B211: 0.8780676092 | C211: 73343.85158 | D211: 788599.501
A213: 20.2 | B213: 0.9316572386 | C213: 73343.85158 | D213: 856790.0993
A215: 20.4 | B215: 0.9921320165 | C215: 73343.85158 | D215: 933517.6246
A217: 20.6 | B217: 1.060704867 | C217: 73343.85158 | D217: 1020291.823
A219: 20.8 | B219: 1.138873438 | C219: 73343.85158 | D219: 1118976.623
A221: 21 | B221: 1.228504922 | C221: 73343.85158 | D221: 1231895.65
A223: 21.2 | B223: 1.331952054 | C223: 73343.85158 | D223: 1361976.542
A225: 21.4 | B225: 1.452214177 | C225: 73343.85158 | D225: 1512951.322
A227: 21.6 | B227: 1.593164579 | C227: 73343.85158 | D227: 1689639.217
A229: 21.8 | B229: 1.759877272 | C229: 73343.85158 | D229: 1898353.186
A231: 22 | B231: 1.959106175 | C231: 73343.85158 | D231: 2147496.049
A233: 22.2 | B233: 2.200003585 | C233: 73343.85158 | D233: 2448454.304
A235: 22.4 | B235: 2.49522418 | C235: 73343.85158 | D235: 2816971.551
A237: 22.6 | B237: 2.862668191 | C237: 73343.85158 | D237: 3275317.091
A239: 22.8 | B239: 3.328317236 | C239: 73343.85158 | D239: 3855813.836
A241: 23 | B241: 3.930998362 | C241: 73343.85158 | D241: 4606765.003
A243: 23.2 | B243: 4.730653328 | C243: 73343.85158 | D243: 5602741.5
A245: 23.4 | B245: 5.823092556 | C245: 73343.85158 | D245: 6962936.543
A247: 23.6 | B247: 7.366382203 | C247: 73343.85158 | D247: 8883992.428
A249: 23.8 | B249: 9.622920784 | C249: 73343.85158 | D249: 11692345.86
A251: 24 | B251: 12.96886766 | C251: 73343.85158 | D251: 15855957.44
A253: 24.2

Sheet H2-PIPE-DISTR (hidden)
A1: OPEX-Transport | C1: für | D1: 30717.45758 | E1: t/a | F1: Betriebsdauer: | H1: 30 | I1: Jahre | J1: (<= 30 Jahre)
C2: Strecke: | D2: 500 | E2: km
A3: H2-PIPE-DISTR | B3: Basisdaten
F4: Transport pro Distronetz | H4: 38000 | J4: [IEA2019] | K4: Mindestdruck: | M4: 20 | N4: bar
A5: Transport von gasförmigem H2 in Pipeline - Verteilernetz | F5: Transport von x Anlagen: | H5: =H4/D1 -> 1.237081549
F6: Nutzungsgrad | H6: 100 | I6: % | J6: [IEA2019] | W6: für kleine Netze:
O7: [Lemmon] | Z7: [Lemmon]
F8: Masse: | H8: =D1*H5 -> 38000 | I8: t/a | J8: Info: | M8: Realgasfaktor z | X8: Realgasfaktor z
F9: Massedurchfluss: | H9: =H8*1000/365/24/60/60 -> 1.204972095 | I9: kg/s | J9: =H10-L82-M4 -> 1.410770158 | M9: Wasserstoff
F10: Druck: | H10: 80 | I10: bar | J10: [IEA2019]
F11: Temp.: | H11: 15 | I11: °C
F12: Dichte: | H12: =L26 -> 6.408843356 | I12: kg/m³ | J12: [Lemmon]
F13: Durchfluss: | H13: =H9/H12*100/H6 -> 0.1880170927 | I13: m³/s | J13: (mit Nutzungsgrad verrechnet)
F14: Geschwindigkeit | H14: 7.5 | I14: m/s | J14: [IEA2019] | L14: p | O14: i | P14: j | Q14: v_ij | R14: n_ij | S14: Summand | W14: p | Z14: i | AA14: j | AB14: v_ij | AC14: n_ij | AD14: Summand
F15: Durchmesser | H15: =SQRT((H13/H14)/PI())*2*100 -> 17.86582576 | I15: cm | L15: =H10/10 -> 8 | M15: /MPa | O15: 2 | P15: 1 | Q15: 0.036719 | R15: -1.23 | S15: =Q15*$L$15^(O15-1)*$L$16^R15 -> 0.07991897859 | W15: =H24/10 -> 1 | X15: /MPa | Z15: 2 | AA15: 1 | AB15: 0.036719 | AC15: -1.23 | AD15: =AB15*$W$15^(Z15-1)*$W$16^AC15 -> 0.009989872324
F16: durchschnittlicher Durchmesser: | H16: =H15*SQRT(1/2) -> 12.63304654 | I16: cm | L16: =(H11+273.15)/100 -> 2.8815 | M16: /100 K | O16: 2 | P16: 2 | Q16: -0.039839 | R16: -2.22 | S16: -0.03041200621 | W16: =(H25+273.15)/100 -> 2.8815 | X16: /100 K | Z16: 2 | AA16: 2 | AB16: -0.039839 | AC16: -2.22 | AD16: -0.003801500777
F17: CAPEX/km | H17: =(0.0034*(H16*10)^2+0.6*H16*10+329)*1000*G33 -> 459060.1934 | I17: €(2017)/km | J17: [Krieg via IEA2019] | O17: 3 | P17: 1 | Q17: -0.0014722 | R17: -2.68 | S17: -0.005525465547 | Z17: 3 | AA17: 1 | AB17: -0.0014722 | AC17: -2.68 | AD17: -8.633539917e-05
L18: z | O18: 3 | P18: 2 | Q18: 0.0024083 | R18: -3.1 | S18: 0.005795258672 | W18: z | Z18: 3 | AA18: 2 | AB18: 0.0024083 | AC18: -3.1 | AD18: 9.055091675e-05
D19: Minidistro-netze | F19: Länge: je | H19: 3 | I19: km | J19: [IEA2019] | L19: =SUM(S15:S23) -> 1.049871123 | O19: 4 | P19: 1 | Q19: 6.5994e-06 | R19: -2.7 | S19: 0.0001940010716 | W19: =SUM(AD15:AD23) -> 1.006192799 | Z19: 4 | AA19: 1 | AB19: 6.5994e-06 | AC19: -2.7 | AD19: 3.78908343e-07
F20: Durchfluss pro Verteiler: | H20: 365 | I20: t/a | J20: [IEA2019] | O20: 4 | P20: 2 | Q20: -1.5469e-05 | R20: -4.3 | S20: -8.363192968e-05 | Z20: 4 | AA20: 2 | AB20: -1.5469e-05 | AC20: -4.3 | AD20: -1.633436127e-07
F21: Anzahl | H21: =H8/H20 -> 104.109589 | L21: rho-ideal(0°C,1,01325 bar) | O21: 5 | P21: 1 | Q21: -1.3383e-07 | R21: -3.3 | S21: -1.667907521e-05 | W21: rho-ideal(0°C,1,01325 bar) | Z21: 5 | AA21: 1 | AB21: -1.3383e-07 | AC21: -3.3 | AD21: -4.072039846e-09
F22: Masse | H22: =H8/H21 -> 365 | I22: t/a | L22: 0.0899 | M22: kg/m³ | O22: 6 | P22: 1 | Q22: 1.5608e-09 | R22: -4.1 | S22: 6.673610154e-07 | W22: 0.0899 | X22: kg/m³ | Z22: 6 | AA22: 1 | AB22: 1.5608e-09 | AC22: -4.1 | AD22: 2.036624192e-11
F23: Massedurchfluss | H23: =H22*1000/365/24/60/60 -> 0.01157407407 | I23: kg/s | L23: rho-ideal(Bed.) | O23: const: | S23: 1 | W23: rho-ideal(Bed.) | Z23: const: | AD23: 1
F24: Druck: | H24: 10 | I24: bar | L24: =L22/(L16*100)*273.15*L15*10/1.01325 -> 6.728459571 | M24: kg/m³ | W24: =W22/(W16*100)*273.15*W15*10/1.01325 -> 0.8410574464 | X24: kg/m³
F25: Temp: | H25: 15 | I25: °C | L25: rho-real | W25: rho-real
F26: Dichte: | H26: =W26 -> 0.8358810037 | I26: kg/m³ | L26: =L24/L19 -> 6.408843356 | M26: kg/m³ | N26: (rho~1/z) | W26: =W24/W19 -> 0.8358810037 | X26: kg/m³ | Y26: (rho~1/z)
F27: Durchfluss | H27: =H23/H26*100/H19 -> 0.4615519044 | I27: m³/s
F28: Geschwindigkeit | H28: =H14 -> 7.5 | I28: m/s
F29: Durchmesser: | H29: =SQRT((H27/H28)/PI())*2*100 -> 27.99204974 | I29: cm
E30: CAPEX/km | F30: =300000*G33 -> 300000 | G30: €(2017)/km | H30: Druckverlust | I30: abhängig von Geschwindigkeit, Druck, Durchmesser | P30: Berechnung Druckverlust
F31: [Wert direkt aus IEA2019] | H31: bar/km | P31: http://www.math-tech.at/Beispiele/upload/gra_Druckverlust_in_Rohrleitungen.PDF
I32: Reynolds-Zahl: | L32: (v*rho*d/visk) | P32: Viskosität
F33: Kapitalkosten-Faktor | G33: 1 | K33: Re | L33: =H14*H12*H15/100/(Q35/1000000) -> 974738.468 | P33: https://h2tools.org/hyarc/hydrogen-data/hydrogen-viscosity-different-temperatures-and-pressures
L34: >2320 Turbulent | P34: Viskosität ist bis 100 bar kaum Druckabhängig
I35: Rauhigkeit | J35: 0.0015 | K35: mm | P35: für 15 °C ca.: | Q35: 8.81 | R35: µPa.s | S35: [Krieg]
P36: https://www.tec-science.com/de/mechanik/gase-und-fluessigkeiten/druckverlust-in-rohrsystemen/
K37: Re*eps(=k/d) | L37: =L33*J35/H15/10 -> 8.183823809
L38: <65 hydraulisch glatt
L39: 65 bis 1300 Übergangsgebiet
L40: >1300 hydraulisch rau
I42: Fallunterscheidung:
I44: laminar: | N44: lambda= | O44: =64/L33 -> 6.565863778e-05
I46: turbulent: | J46: hydraulisch glatt | L46: Re<10^5 | N46: lambda= | O46: =0.3164*L33^(-0.25) -> 0.01006965169
L48: 10^5<Re<5*10^6 | N48: lambda= | O48: =0.0032+0.221*L33^(-0.237) -> 0.01161445113
L50: Re>5*10^6 | N50: 1/wurzel(lambda) | P50: = | Q50: 7.5 | R50: Startwert | S50: Iteration
N51: 1/wurzel(lambda) | P51: = | Q51: =2*LOG10($L$33/Q50)-0.8 -> 9.427653685 | S51: v
Q52: 9.22896897
Q53: 9.24746984
Q54: 9.245730365
Q55: 9.245893764
Q56: 9.245878414
N57: 1/wurzel(lambda) | Q57: 9.245879856 | S57: Ende Iteration
N58: lambda= | O58: =1/Q57^2 -> 0.01169778159
J61: Übergangsbereich | N61: 1/wurzel(lambda) | P61: = | Q61: 7.5 | R61: Startwert | S61: Iteration
N62: 1/wurzel(lambda) | P62: = | Q62: =-2*LOG10(2.51/$L$33*Q61+$J$35/$H$15/10/3.71) -> 9.332061221 | S62: v
Q63: 9.160300821
Q64: 9.175035882
Q65: 9.173761935
Q66: 9.173872003
Q67: 9.173862493
N68: 1/wurzel(lambda) | Q68: 9.173863314 | S68: Ende Iteration
N69: lambda= | O69: =1/Q68^2 -> 0.01188216202
J72: hydraulisch rau | N72: lambda= | O72: =1/SQRT(2*LOG10(3.71/J35*H15*10)) -> 0.297605716
J75: Lambda nach Kriterien: | M75: lambda= | N75: =IF(L33<=2320,O44,IF(L37<65,IF(L33<100000,O46,IF(L33<5000000,O48,O58)),IF(L37<=1300,O69,O72))) -> 0.01161445113
I78: Druckverlust= | K78: deltapv/L= | L78: =N75*8*H12*H13^2/(H15/100)^5/PI()^2 -> 11.71784597 | M78: Pa/m
K79: = | L79: =L78/100000*1000 -> 0.1171784597 | M79: bar/km
K81: nach | L81: =D2 -> 500 | M81: km | N81: neue Kompression [Bossel]
L82: =L79*L81 -> 58.58922984 | M82: bar | N82: Druckverlust
J84: keine | K84: notw. Leistung | L84: =IF(S99>=20,S102,S131) -> 20047.65335 | M84: kW/(m³/s) | N84: ASPEN-Korrelation
J85: Neuverdichtung! | K85: gesamt: | L85: =L84*H13*H10/S98 -> 14083.75867 | M85: kW | N85: pro Station | R85: für weitere Stationen | AD85: für erste Station
N86: (mit höherem V_ein) | R86: Aus ASPEN: Modell für Energiebedarf für H2-Kompression | AD86: Aus ASPEN: Modell für Energiebedarf für H2-Kompression
L87: =L85*24*365*H6/100 -> 123373726 | M87: kWh/a | N87: pro Station | R87: H2-Kompression | T87: isentroper Wirkungsgrad | V87: 0.72 | AD87: H2-Kompression | AF87: isentroper Wirkungsgrad | AH87: 0.72
N88: (mit Nutzungsgrad verrechnet) | R88: Grenzen: | S88: p_ein: | T88: 5 | U88: bis | V88: 150 | W88: bar | AD88: Grenzen: | AE88: p_ein: | AF88: 5 | AG88: bis | AH88: 150 | AI88: bar
S89: deltap | T89: 0.01 | U89: bis | V89: 150 | W89: bar | AE89: deltap | AF89: 0.01 | AG89: bis | AH89: 150 | AI89: bar
S90: T_ein | T90: 15 | U90: °C | AE90: T_ein | AF90: 15 | AG90: °C
K91: erste Druckbeaufschlagung | S91: V_ein im Zustand p_ein | AE91: V_ein im Zustand p_ein
K92: Druck H2 | L92: 100 | M92: bar | N92: Eingangsdruck | U92: ab p_ein <= 20 bar | W92: D,E | X92: [bar] | AG92: ab p_ein >= 20 bar | AI92: D,E | AJ92: [bar]
W93: P | X93: [kW/(m³/s)] | AI93: P | AJ93: [kW/(m³/s)]
K94: notw. Leistung | L94: =IF(AE98>=20,AE102,AE131) -> 1.25006796 | M94: kW/(m³/s) | N94: ASPEN-Korrelation | T94: R= | U94: P*E/D | X94: Fehler <<0,1% | AF94: R= | AG94: P*E/D | AJ94: Fehler <<0,1%
K95: gesamt: | L95: =L94*H13*H10/L92 -> 0.1880273148 | M95: kW | N95: Für erste Druckbeaufschlagung | T95: P= | U95: R*D/E | AF95: P= | AG95: R*D/E
N96: (mit höherem V_ein) | T96: Polynom | V96: Koeffizienten | AF96: Polynom | AH96: Koeffizienten
L97: =L95*24*365*H6/100 -> 1647.119278 | M97: kWh/a | N97: Für erste Druckbeaufschlagung | V97: i (E ) | W97: j (D) | X97: k(X) | Y97: w_ij | AH97: i (E ) | AI97: j (D) | AJ97: k(X) | AK97: w_ij
N98: (mit Nutzungsgrad verrechnet) | R98: E(Eingangsdruck) | S98: =H10-L82 -> 21.41077016 | T98: bar | U98: X | V98: 0 | W98: 0 | X98: 1 | Y98: 11706.78314 | Z98: =($S$98^V98*$S$99^W98*$S$100^X98)*Y98 -> 1685.362576 | AD98: E(Eingangsdruck) | AE98: =L92 -> 100 | AF98: bar | AG98: X | AH98: 0 | AI98: 0 | AJ98: 1 | AK98: 11706.78314 | AL98: =($AE$98^AH98*$AE$99^AI98*$AE$100^AJ98)*AK98 -> 11706.78314
R99: D(Druckerhöhung) | S99: =L82 -> 58.58922984 | T99: bar | U99: 1/X | V99: 0 | W99: 0 | X99: -1 | Y99: 1443.746068 | Z99: 10028.47836 | AD99: D(Druckerhöhung) | AE99: =MAX(0.01,H10-AE98) -> 0.01 | AF99: bar | AG99: 1/X | AH99: 0 | AI99: 0 | AJ99: -1 | AK99: 1443.746068 | AL99: 1443.746068
R100: X=1-exp(-E/D^1,21) | S100: =1-EXP(-S98/S99^1.21) -> 0.1439646191 | T100: - | U100: X² | V100: 0 | W100: 0 | X100: 2 | Y100: -936.9018509 | Z100: -19.41805121 | AD100: X=1-exp(-E/D^1,21) | AE100: =1-EXP(-AE98/AE99^1.21) -> 1 | AF100: - | AG100: X² | AH100: 0 | AI100: 0 | AJ100: 2 | AK100: -936.9018509 | AL100: -936.9018509
R101: R= | S101: =SUM(Z98:Z117) -> 7326.187754 | T101: kW/(m³/s) | U101: E | V101: 1 | W101: 0 | X101: 0 | Y101: 18.75386926 | Z101: 401.5347843 | AD101: R= | AE101: =SUM(AL98:AL117) -> 12500.6796 | AF101: kW/(m³/s) | AG101: E | AH101: 1 | AI101: 0 | AJ101: 0 | AK101: 18.75386926 | AL101: 1875.386926
R102: P= | S102: =S101*S99/S98 -> 20047.65335 | T102: kW/(m³/s) | U102: 1/E | V102: -1 | W102: 0 | X102: 0 | Y102: 16243.27729 | Z102: 758.6498367 | AD102: P= | AE102: =AE101*AE99/AE98 -> 1.25006796 | AF102: kW/(m³/s) | AG102: 1/E | AH102: -1 | AI102: 0 | AJ102: 0 | AK102: 16243.27729 | AL102: 162.4327729
U103: W(E ) | V103: 0.1 | W103: 0 | X103: 0 | Y103: 6748.013066 | Z103: 9167.251449 | AG103: W(E ) | AH103: 0.1 | AI103: 0 | AJ103: 0 | AK103: 6748.013066 | AL103: 10694.87997
U104: E² | V104: 2 | W104: 0 | X104: 0 | Y104: 0.001387346336 | Z104: 0.635988804 | AG104: E² | AH104: 2 | AI104: 0 | AJ104: 0 | AK104: 0.001387346336 | AL104: 13.87346336
U105: D | V105: 0 | W105: 1 | X105: 0 | Y105: -158.5111609 | Z105: -9287.046838 | AG105: D | AH105: 0 | AI105: 1 | AJ105: 0 | AK105: -158.5111609 | AL105: -1.585111609
U106: D² | V106: 0 | W106: 2 | X106: 0 | Y106: 0.08501867942 | Z106: 291.8434383 | AG106: D² | AH106: 0 | AI106: 2 | AJ106: 0 | AK106: 0.08501867942 | AL106: 8.501867942e-06
U107: XE | V107: 1 | W107: 0 | X107: 1 | Y107: -42.78042308 | Z107: -131.8660925 | AG107: XE | AH107: 1 | AI107: 0 | AJ107: 1 | AK107: -42.78042308 | AL107: -4278.042308
U108: X/E | V108: -1 | W108: 0 | X108: 1 | Y108: -16013.03533 | Z108: -107.6706029 | AG108: X/E | AH108: -1 | AI108: 0 | AJ108: 1 | AK108: -16013.03533 | AL108: -160.1303533
U109: XW(E ) | V109: 0.1 | W109: 0 | X109: 1 | Y109: -6539.683747 | Z109: -1279.015325 | AG109: XW(E ) | AH109: 0.1 | AI109: 0 | AJ109: 1 | AK109: -6539.683747 | AL109: -10364.70025
U110: EX² | V110: 1 | W110: 0 | X110: 2 | Y110: 23.4378768 | Z110: 10.40068879 | AG110: EX² | AH110: 1 | AI110: 0 | AJ110: 2 | AK110: 23.4378768 | AL110: 2343.78768
U111: ED | V111: 1 | W111: 1 | X111: 0 | Y111: -0.130518749 | Z111: -163.7280091 | AG111: ED | AH111: 1 | AI111: 1 | AJ111: 0 | AK111: -0.130518749 | AL111: -0.130518749
U112: ED² | V112: 1 | W112: 2 | X112: 0 | Y112: -0.0001868161385 | Z112: -13.73037058 | AG112: ED² | AH112: 1 | AI112: 2 | AJ112: 0 | AK112: -0.0001868161385 | AL112: -1.868161385e-06
U113: D/X | V113: 0 | W113: 1 | X113: -1 | Y113: -1.107661025 | Z113: -450.7844132 | AG113: D/X | AH113: 0 | AI113: 1 | AJ113: -1 | AK113: -1.107661025 | AL113: -0.01107661025
U114: DX² | V114: 0 | W114: 1 | X114: 2 | Y114: 32.76593029 | Z114: 39.78797509 | AG114: DX² | AH114: 0 | AI114: 1 | AJ114: 2 | AK114: 32.76593029 | AL114: 0.3276593029
U115: D/E | V115: -1 | W115: 1 | X115: 0 | Y115: -3724.618685 | Z115: -10192.18546 | AG115: D/E | AH115: -1 | AI115: 1 | AJ115: 0 | AK115: -3724.618685 | AL115: -0.3724618685
U116: DW(E ) | V116: 0.1 | W116: 1 | X116: 0 | Y116: 82.68012118 | Z116: 6580.851982 | AG116: DW(E ) | AH116: 0.1 | AI116: 1 | AJ116: 0 | AK116: 82.68012118 | AL116: 1.310391612
U117: DE² | V117: 2 | W117: 1 | X117: 0 | Y117: 0.0002545124957 | Z117: 6.835833523 | AG117: DE² | AH117: 2 | AI117: 1 | AJ117: 0 | AK117: 0.0002545124957 | AL117: 0.02545124957
U121: bis p_ein < 20 bar | W121: D,E | X121: [bar] | AG121: bis p_ein < 20 bar | AI121: D,E | AJ121: [bar]
W122: P | X122: [kW/(m³/s)] | AI122: P | AJ122: [kW/(m³/s)]
T123: R= | U123: P*E/D | X123: Fehler <<0,3% | AF123: R= | AG123: P*E/D | AJ123: Fehler <<0,3%
T124: P= | U124: R*D/E | AF124: P= | AG124: R*D/E
T125: Polynom | V125: Koeffizienten | AF125: Polynom | AH125: Koeffizienten
V126: i (E ) | W126: j (D) | X126: k(X) | Y126: w_ij | AH126: i (E ) | AI126: j (D) | AJ126: k(X) | AK126: w_ij
R127: E(Eingangsdruck) | S127: =S98 -> 21.41077016 | T127: bar | U127: const | V127: 0 | W127: 0 | X127: 0 | Y127: 1661.457636 | Z127: =($S$127^V127*$S$128^W127*$S$129^X127)*Y127 -> 1661.457636 | AD127: E(Eingangsdruck) | AE127: =AE98 -> 100 | AF127: bar | AG127: const | AH127: 0 | AI127: 0 | AJ127: 0 | AK127: 1661.457636 | AL127: =($AE$127^AH127*$AE$128^AI127*$AE$129^AJ127)*AK127 -> 1661.457636
R128: D(Druckerhöhung) | S128: =S99 -> 58.58922984 | T128: bar | U128: X | V128: 0 | W128: 0 | X128: 1 | Y128: 6825.976526 | Z128: 3226.859338 | AD128: D(Druckerhöhung) | AE128: =AE99 -> 0.01 | AF128: bar | AG128: X | AH128: 0 | AI128: 0 | AJ128: 1 | AK128: 6825.976526 | AL128: 6825.976526
R129: X=1-exp(-1,9*E/D^1,02) | S129: =1-EXP(1.9*-S127/S128^1.02) -> 0.4727322641 | T129: - | U129: 1/X | V129: 0 | W129: 0 | X129: -1 | Y129: 6314.206631 | Z129: 13356.83453 | AD129: X=1-exp(-1,9*E/D^1,02) | AE129: =1-EXP(1.9*-AE127/AE128^1.02) -> 1 | AF129: - | AG129: 1/X | AH129: 0 | AI129: 0 | AJ129: -1 | AK129: 6314.206631 | AL129: 6314.206631
R130: R= | S130: =SUM(Z127:Z140) -> 7320.914946 | T130: kW/(m³/s) | U130: X² | V130: 0 | W130: 0 | X130: 2 | Y130: -2322.552436 | Z130: -519.0342486 | AD130: R= | AE130: =SUM(AL127:AL140) -> 12540.02959 | AF130: kW/(m³/s) | AG130: X² | AH130: 0 | AI130: 0 | AJ130: 2 | AK130: -2322.552436 | AL130: -2322.552436
R131: P= | S131: =S130*S128/S127 -> 20033.22465 | T131: kW/(m³/s) | U131: E | V131: 1 | W131: 0 | X131: 0 | Y131: -1579.154945 | Z131: -33810.92357 | AD131: P= | AE131: =AE130*AE128/AE127 -> 1.254002959 | AF131: kW/(m³/s) | AG131: E | AH131: 1 | AI131: 0 | AJ131: 0 | AK131: -1579.154945 | AL131: -157915.4945
U132: 1/E | V132: -1 | W132: 0 | X132: 0 | Y132: -48.61870823 | Z132: -2.270759429 | AG132: 1/E | AH132: -1 | AI132: 0 | AJ132: 0 | AK132: -48.61870823 | AL132: -0.4861870823
U133: D | V133: 0 | W133: 1 | X133: 0 | Y133: -543.9180449 | Z133: -31867.73935 | AG133: D | AH133: 0 | AI133: 1 | AJ133: 0 | AK133: -543.9180449 | AL133: -5.439180449
U134: 1/D | V134: 0 | W134: -1 | X134: 0 | Y134: 0.3302301825 | Z134: 0.005636363259 | AG134: 1/D | AH134: 0 | AI134: -1 | AJ134: 0 | AK134: 0.3302301825 | AL134: 33.02301825
U135: XE | V135: 1 | W135: 0 | X135: 1 | Y135: 674.1256899 | Z135: 6823.204868 | AG135: XE | AH135: 1 | AI135: 0 | AJ135: 1 | AK135: 674.1256899 | AL135: 67412.56899
U136: XD | V136: 0 | W136: 1 | X136: 1 | Y136: 717.9864462 | Z136: 19886.08444 | AG136: XD | AH136: 0 | AI136: 1 | AJ136: 1 | AK136: 717.9864462 | AL136: 7.179864462
U137: E/X | V137: 1 | W137: 0 | X137: -1 | Y137: 905.3178161 | Z137: 41003.23407 | AG137: E/X | AH137: 1 | AI137: 0 | AJ137: -1 | AK137: 905.3178161 | AL137: 90531.78161
U138: D/X | V138: 0 | W138: 1 | X138: -1 | Y138: -0.5299324156 | Z138: -65.67847057 | AG138: D/X | AH138: 0 | AI138: 1 | AJ138: -1 | AK138: -0.5299324156 | AL138: -0.005299324156
U139: DX² | V139: 0 | W139: 1 | X139: 2 | Y139: -182.2211615 | Z139: -2385.871711 | AG139: DX² | AH139: 0 | AI139: 1 | AJ139: 2 | AK139: -182.2211615 | AL139: -1.822211615
U140: D/E | V140: -1 | W140: 1 | X140: 0 | Y140: -3648.995546 | Z140: -9985.247477 | AG140: D/E | AH140: -1 | AI140: 1 | AJ140: 0 | AK140: -3648.995546 | AL140: -0.3648995546
I145: [Mio. €/a]
C146: Kostenstei-gerung (%/a) | E146: Preis/Einheit | G146: Einheiten/a | I146: 1 | J146: 2 | K146: 3 | L146: 4 | M146: 5 | N146: 6 | O146: 7 | P146: 8 | Q146: 9 | R146: 10 | S146: 11 | T146: 12 | U146: 13 | V146: 14 | W146: 15 | X146: 16 | Y146: 17 | Z146: 18 | AA146: 19 | AB146: 20 | AC146: 21 | AD146: 22 | AE146: 23 | AF146: 24 | AG146: 25 | AH146: 26 | AI146: 27 | AJ146: 28 | AK146: 29 | AL146: 30 | AN146: Summierung/Anteile | AP146: Summierung mit Kalkulatorischem Zinsfuß
A147: Auszahlungen | D147: Feuchte:
A148: [Transport]
A149: OPEX | C149: 2 | E149: 0 | F149: % der Investkosten | I149: =E149/100*$E$151 -> 0 | J149: =I149*(1+$C149/100) -> 0 | K149: 0 | L149: 0 | M149: 0 | N149: 0 | O149: 0 | P149: 0 | Q149: 0 | R149: 0 | S149: 0 | T149: 0 | U149: 0 | V149: 0 | W149: 0 | X149: 0 | Y149: 0 | Z149: 0 | AA149: 0 | AB149: 0 | AC149: 0 | AD149: 0 | AE149: 0 | AF149: 0 | AG149: 0 | AH149: 0 | AI149: 0 | AJ149: 0 | AK149: 0 | AL149: 0 | AN149: =SUM(I149:AL149)/$AN$170 -> 0 | AP149: =SUMPRODUCT(I149:AL149,I$180:AL$180) -> 0 | AQ149: =AP149/$AP$170 -> 0
A151: CAPEX | E151: =H17/1000000*D2/H5+(H19*H21*F30/1000000)/H5 -> 261.2832817 | F151: M€
A152: Eigenkapitalquote | E152: 40 | F152: %
A153: Zinsen | E153: 10 | F153: % | I153: =$E$153/100*(E151*(1-$E$152/100)) -> 15.6769969 | J153: =MAX(0,$E$153/100*($E$151*(1-$E$152/100)-(J146-1)*$E$154/100*$E$151*(1-$E$152/100))) -> 14.10929721 | K153: 12.54159752 | L153: 10.97389783 | M153: 9.406198142 | N153: 7.838498452 | O153: 6.270798761 | P153: 4.703099071 | Q153: 3.135399381 | R153: 1.56769969 | S153: 0 | T153: 0 | U153: 0 | V153: 0 | W153: 0 | X153: 0 | Y153: 0 | Z153: 0 | AA153: 0 | AB153: 0 | AC153: 0 | AD153: 0 | AE153: 0 | AF153: 0 | AG153: 0 | AH153: 0 | AI153: 0 | AJ153: 0 | AK153: 0 | AL153: 0 | AN153: =SUM(I153:AL153)/$AN$170 -> 0.0901730748 | AP153: =SUMPRODUCT(I153:AL153,I$180:AL$180) -> 1054.669959 | AQ153: =AP153/$AP$170 -> 0.228907481
A154: jähliche Tilgung | E154: 10 | F154: % | I154: =$E$154/100*(E151*(1-$E$152/100)) -> 15.6769969 | J154: =IF(SUM($I$154:I154)<=(100-$E$154)/100*$E$151*(100-$E$152)/100,$E$154/100*$E$151*(100-$E$152)/100,MAX(0,$E$151*(100-$E$152)/100-SUM($I$154:I154))) -> 15.6769969 | K154: =IF(SUM($I$154:J154)<=(100-$E$154)/100*$E$151*(100-$E$152)/100,$E$154/100*$E$151*(100-$E$152)/100,MAX(0,$E$151*(100-$E$152)/100-SUM($I$154:J154))) -> 15.6769969 | L154: =IF(SUM($I$154:K154)<=(100-$E$154)/100*$E$151*(100-$E$152)/100,$E$154/100*$E$151*(100-$E$152)/100,MAX(0,$E$151*(100-$E$152)/100-SUM($I$154:K154))) -> 15.6769969 | M154: =IF(SUM($I$154:L154)<=(100-$E$154)/100*$E$151*(100-$E$152)/100,$E$154/100*$E$151*(100-$E$152)/100,MAX(0,$E$151*(100-$E$152)/100-SUM($I$154:L154))) -> 15.6769969 | N154: =IF(SUM($I$154:M154)<=(100-$E$154)/100*$E$151*(100-$E$152)/100,$E$154/100*$E$151*(100-$E$152)/100,MAX(0,$E$151*(100-$E$152)/100-SUM($I$154:M154))) -> 15.6769969 | O154: =IF(SUM($I$154:N154)<=(100-$E$154)/100*$E$151*(100-$E$152)/100,$E$154/100*$E$151*(100-$E$152)/100,MAX(0,$E$151*(100-$E$152)/100-SUM($I$154:N154))) -> 15.6769969 | P154: =IF(SUM($I$154:O154)<=(100-$E$154)/100*$E$151*(100-$E$152)/100,$E$154/100*$E$151*(100-$E$152)/100,MAX(0,$E$151*(100-$E$152)/100-SUM($I$154:O154))) -> 15.6769969 | Q154: =IF(SUM($I$154:P154)<=(100-$E$154)/100*$E$151*(100-$E$152)/100,$E$154/100*$E$151*(100-$E$152)/100,MAX(0,$E$151*(100-$E$152)/100-SUM($I$154:P154))) -> 15.6769969 | R154: =IF(SUM($I$154:Q154)<=(100-$E$154)/100*$E$151*(100-$E$152)/100,$E$154/100*$E$151*(100-$E$152)/100,MAX(0,$E$151*(100-$E$152)/100-SUM($I$154:Q154))) -> 15.6769969 | S154: =IF(SUM($I$154:R154)<=(100-$E$154)/100*$E$151*(100-$E$152)/100,$E$154/100*$E$151*(100-$E$152)/100,MAX(0,$E$151*(100-$E$152)/100-SUM($I$154:R154))) -> 0 | T154: =IF(SUM($I$154:S154)<=(100-$E$154)/100*$E$151*(100-$E$152)/100,$E$154/100*$E$151*(100-$E$152)/100,MAX(0,$E$151*(100-$E$152)/100-SUM($I$154:S154))) -> 0 | U154: =IF(SUM($I$154:T154)<=(100-$E$154)/100*$E$151*(100-$E$152)/100,$E$154/100*$E$151*(100-$E$152)/100,MAX(0,$E$151*(100-$E$152)/100-SUM($I$154:T154))) -> 0 | V154: =IF(SUM($I$154:U154)<=(100-$E$154)/100*$E$151*(100-$E$152)/100,$E$154/100*$E$151*(100-$E$152)/100,MAX(0,$E$151*(100-$E$152)/100-SUM($I$154:U154))) -> 0 | W154: =IF(SUM($I$154:V154)<=(100-$E$154)/100*$E$151*(100-$E$152)/100,$E$154/100*$E$151*(100-$E$152)/100,MAX(0,$E$151*(100-$E$152)/100-SUM($I$154:V154))) -> 0 | X154: =IF(SUM($I$154:W154)<=(100-$E$154)/100*$E$151*(100-$E$152)/100,$E$154/100*$E$151*(100-$E$152)/100,MAX(0,$E$151*(100-$E$152)/100-SUM($I$154:W154))) -> 0 | Y154: =IF(SUM($I$154:X154)<=(100-$E$154)/100*$E$151*(100-$E$152)/100,$E$154/100*$E$151*(100-$E$152)/100,MAX(0,$E$151*(100-$E$152)/100-SUM($I$154:X154))) -> 0 | Z154: =IF(SUM($I$154:Y154)<=(100-$E$154)/100*$E$151*(100-$E$152)/100,$E$154/100*$E$151*(100-$E$152)/100,MAX(0,$E$151*(100-$E$152)/100-SUM($I$154:Y154))) -> 0 | AA154: =IF(SUM($I$154:Z154)<=(100-$E$154)/100*$E$151*(100-$E$152)/100,$E$154/100*$E$151*(100-$E$152)/100,MAX(0,$E$151*(100-$E$152)/100-SUM($I$154:Z154))) -> 0 | AB154: =IF(SUM($I$154:AA154)<=(100-$E$154)/100*$E$151*(100-$E$152)/100,$E$154/100*$E$151*(100-$E$152)/100,MAX(0,$E$151*(100-$E$152)/100-SUM($I$154:AA154))) -> 0 | AC154: =IF(SUM($I$154:AB154)<=(100-$E$154)/100*$E$151*(100-$E$152)/100,$E$154/100*$E$151*(100-$E$152)/100,MAX(0,$E$151*(100-$E$152)/100-SUM($I$154:AB154))) -> 0 | AD154: =IF(SUM($I$154:AC154)<=(100-$E$154)/100*$E$151*(100-$E$152)/100,$E$154/100*$E$151*(100-$E$152)/100,MAX(0,$E$151*(100-$E$152)/100-SUM($I$154:AC154))) -> 0 | AE154: =IF(SUM($I$154:AD154)<=(100-$E$154)/100*$E$151*(100-$E$152)/100,$E$154/100*$E$151*(100-$E$152)/100,MAX(0,$E$151*(100-$E$152)/100-SUM($I$154:AD154))) -> 0 | AF154: =IF(SUM($I$154:AE154)<=(100-$E$154)/100*$E$151*(100-$E$152)/100,$E$154/100*$E$151*(100-$E$152)/100,MAX(0,$E$151*(100-$E$152)/100-SUM($I$154:AE154))) -> 0 | AG154: =IF(SUM($I$154:AF154)<=(100-$E$154)/100*$E$151*(100-$E$152)/100,$E$154/100*$E$151*(100-$E$152)/100,MAX(0,$E$151*(100-$E$152)/100-SUM($I$154:AF154))) -> 0 | AH154: =IF(SUM($I$154:AG154)<=(100-$E$154)/100*$E$151*(100-$E$152)/100,$E$154/100*$E$151*(100-$E$152)/100,MAX(0,$E$151*(100-$E$152)/100-SUM($I$154:AG154))) -> 0 | AI154: =IF(SUM($I$154:AH154)<=(100-$E$154)/100*$E$151*(100-$E$152)/100,$E$154/100*$E$151*(100-$E$152)/100,MAX(0,$E$151*(100-$E$152)/100-SUM($I$154:AH154))) -> 0 | AJ154: =IF(SUM($I$154:AI154)<=(100-$E$154)/100*$E$151*(100-$E$152)/100,$E$154/100*$E$151*(100-$E$152)/100,MAX(0,$E$151*(100-$E$152)/100-SUM($I$154:AI154))) -> 0 | AK154: =IF(SUM($I$154:AJ154)<=(100-$E$154)/100*$E$151*(100-$E$152)/100,$E$154/100*$E$151*(100-$E$152)/100,MAX(0,$E$151*(100-$E$152)/100-SUM($I$154:AJ154))) -> 0 | AL154: =IF(SUM($I$154:AK154)<=(100-$E$154)/100*$E$151*(100-$E$152)/100,$E$154/100*$E$151*(100-$E$152)/100,MAX(0,$E$151*(100-$E$152)/100-SUM($I$154:AK154))) -> 0 | AN154: =SUM(I154:AL154)/$AN$170 -> 0.1639510451 | AP154: =SUMPRODUCT(I154:AL154,I$180:AL$180) -> 1680.872295 | AQ154: =AP154/$AP$170 -> 0.364819572
A156: Elektrizitätsbedarf | B156: Verdichterstationen | C156: 2 | E156: 0 | F156: MWh/a | G156: 105 | H156: €/MWh | I156: =E156*G156/1000000 -> 0 | J156: =I156*(1+$C156/100) -> 0 | K156: 0 | L156: 0 | M156: 0 | N156: 0 | O156: 0 | P156: 0 | Q156: 0 | R156: 0 | S156: 0 | T156: 0 | U156: 0 | V156: 0 | W156: 0 | X156: 0 | Y156: 0 | Z156: 0 | AA156: 0 | AB156: 0 | AC156: 0 | AD156: 0 | AE156: 0 | AF156: 0 | AG156: 0 | AH156: 0 | AI156: 0 | AJ156: 0 | AK156: 0 | AL156: 0 | AN156: =SUM(I156:AL156)/$AN$170 -> 0 | AP156: =SUMPRODUCT(I156:AL156,I$180:AL$180) -> 0 | AQ156: =AP156/$AP$170 -> 0
B157: oder: H2-Verbrauch: | G157: 0 | H157: %
B159: Druckbeaufschlagung zu Beginn | C159: 2 | E159: =L97/1000/H5 -> 1.331455699 | F159: MWh/a | G159: 105 | H159: €/MWh | I159: =E159*G159/1000000 -> 0.0001398028484 | J159: =I159*(1+$C159/100) -> 0.0001425989053 | K159: 0.0001454508834 | L159: 0.0001483599011 | M159: 0.0001513270991 | N159: 0.0001543536411 | O159: 0.0001574407139 | P159: 0.0001605895282 | Q159: 0.0001638013188 | R159: 0.0001670773451 | S159: 0.000170418892 | T159: 0.0001738272699 | U159: 0.0001773038153 | V159: 0.0001808498916 | W159: 0.0001844668894 | X159: 0.0001881562272 | Y159: 0.0001919193518 | Z159: 0.0001957577388 | AA159: 0.0001996728936 | AB159: 0.0002036663514 | AC159: 0.0002077396785 | AD159: 0.000211894472 | AE159: 0.0002161323615 | AF159: 0.0002204550087 | AG159: 0.0002248641089 | AH159: 0.0002293613911 | AI159: 0.0002339486189 | AJ159: 0.0002386275913 | AK159: 0.0002434001431 | AL159: 0.0002482681459 | AN159: =SUM(I159:AL159)/$AN$170 -> 5.93132583e-06 | AP159: =SUMPRODUCT(I159:AL159,I$180:AL$180) -> 0.02732803288 | AQ159: =AP159/$AP$170 -> 5.93132583e-06
A161: Summe Auszahlungen | I161: =SUM(I148:I160) -> 31.35413361 | J161: 29.78643672 | K161: 28.21873988 | L161: 26.6510431 | M161: 25.08334637 | N161: 23.51564971 | O161: 21.94795311 | P161: 20.38025656 | Q161: 18.81256009 | R161: 17.24486367 | S161: 0.000170418892 | T161: 0.0001738272699 | U161: 0.0001773038153 | V161: 0.0001808498916 | W161: 0.0001844668894 | X161: 0.0001881562272 | Y161: 0.0001919193518 | Z161: 0.0001957577388 | AA161: 0.0001996728936 | AB161: 0.0002036663514 | AC161: 0.0002077396785 | AD161: 0.000211894472 | AE161: 0.0002161323615 | AF161: 0.0002204550087 | AG161: 0.0002248641089 | AH161: 0.0002293613911 | AI161: 0.0002339486189 | AJ161: 0.0002386275913 | AK161: 0.0002434001431 | AL161: 0.0002482681459 | AN161: =SUM(I161:AL161) -> 242.9991235 | AP161: =SUMPRODUCT(I161:AL161,I$180:AL$180) -> 2735.569581 | AQ161: =AP161/$AP$170 -> 0.5937329843
A164: Einzahlungen | G164: ankommende Menge
A165: Transportkosten | C165: 2 | E165: 767.3243329 | F165: €/t | G165: =D1*(100-G157)/100 -> 30717.45758 | H165: t/a | I165: =E165*G165/1000000 -> 23.57025265 | J165: =I165*(1+$C165/100) -> 24.0416577 | K165: 24.52249086 | L165: 25.01294067 | M165: 25.51319949 | N165: 26.02346348 | O165: 26.54393274 | P165: 27.0748114 | Q165: 27.61630763 | R165: 28.16863378 | S165: 28.73200646 | T165: 29.30664658 | U165: 29.89277952 | V165: 30.49063511 | W165: 31.10044781 | X165: 31.72245677 | Y165: 32.3569059 | Z165: 33.00404402 | AA165: 33.6641249 | AB165: 34.3374074 | AC165: 35.02415554 | AD165: 35.72463866 | AE165: 36.43913143 | AF165: 37.16791406 | AG165: 37.91127234 | AH165: 38.66949779 | AI165: 39.44288774 | AJ165: 40.2317455 | AK165: 41.03638041 | AL165: 41.85710801 | AN165: =SUM(I165:AL165)/$AN$170*($AN$170-$AN$161)/$AN$170 -> 0.7458699488 | AP165: =SUMPRODUCT(I165:AL165,I$180:AL$180) -> 4607.407123 | AQ165: =AP165/$AP$170*($AP$170-$AP$161)/$AP$170 -> 0.4062670157
E166: =E165/1000 -> 0.7673243329 | F166: €/kg | G166: =G165/D1 -> 1 | H166: Anteil
B167: bezogen auf ankommende Menge | E167: =E166/G167*32 -> 0.2046675779 | F167: €/l BÄ | G167: 119.972 | H167: MJ/kg (Heizwert)
B168: bezogen auf eingehende Menge | E168: =E167*G165/D1 -> 0.2046675779 | F168: €/l BÄ
A170: Summe Einzahlungen | I170: =SUM(I165:I169) -> 23.57025265 | J170: 24.0416577 | K170: 24.52249086 | L170: 25.01294067 | M170: 25.51319949 | N170: 26.02346348 | O170: 26.54393274 | P170: 27.0748114 | Q170: 27.61630763 | R170: 28.16863378 | S170: 28.73200646 | T170: 29.30664658 | U170: 29.89277952 | V170: 30.49063511 | W170: 31.10044781 | X170: 31.72245677 | Y170: 32.3569059 | Z170: 33.00404402 | AA170: 33.6641249 | AB170: 34.3374074 | AC170: 35.02415554 | AD170: 35.72463866 | AE170: 36.43913143 | AF170: 37.16791406 | AG170: 37.91127234 | AH170: 38.66949779 | AI170: 39.44288774 | AJ170: 40.2317455 | AK170: 41.03638041 | AL170: 41.85710801 | AN170: =SUM(I170:AL170) -> 956.1998763 | AP170: =SUMPRODUCT(I170:AL170,I$180:AL$180) -> 4607.407123 | AQ170: =AP170/$AP$170*($AP$170-$AP$161)/$AP$170 -> 0.4062670157
A173: Überschuss | I173: =I170-I161 -> -7.783880961 | J173: -5.744779014 | K173: -3.696249022 | L173: -1.638102423 | M173: 0.4298531131 | N173: 2.507813767 | O173: 4.595979639 | P173: 6.694554836 | Q173: 8.803747542 | R173: 10.92377011 | S173: 28.73183604 | T173: 29.30647276 | U173: 29.89260221 | V173: 30.49045426 | W173: 31.10026334 | X173: 31.72226861 | Y173: 32.35671398 | Z173: 33.00384826 | AA173: 33.66392523 | AB173: 34.33720373 | AC173: 35.02394781 | AD173: 35.72442676 | AE173: 36.4389153 | AF173: 37.1676936 | AG173: 37.91104747 | AH173: 38.66926842 | AI173: 39.44265379 | AJ173: 40.23150687 | AK173: 41.03613701 | AL173: 41.85685975
A174: Barwert | C174: 10 | I174: =I173*(1+$C$174/100)^-(I146) -> -7.07625542 | J174: -4.747751251 | K174: -2.777046598 | L174: -1.118845996 | M174: 0.2669049637 | N174: 1.415595493 | O174: 2.358464263 | P174: 3.123059238 | Q174: 3.733648365 | R174: 4.211586261 | S174: 10.07033325 | T174: 9.337945379 | U174: 8.658822079 | V174: 8.029089564 | W174: 7.445155777 | X174: 6.903689903 | Y174: 6.401603364 | Z174: 5.936032211 | AA174: 5.504320777 | AB174: 5.104006539 | AC174: 4.732806063 | AD174: 4.388601986 | AE174: 4.069430932 | AF174: 3.773472319 | AG174: 3.499037969 | AH174: 3.24456248 | AI174: 3.0085943 | AJ174: 2.789787441 | AK174: 2.586893809 | AL174: 2.398756078
A175: Abzinsungsfaktor | I175: =(1+$C$174/100)^-(I146) -> 0.9090909091 | J175: 0.826446281 | K175: 0.7513148009 | L175: 0.6830134554 | M175: 0.6209213231 | N175: 0.5644739301 | O175: 0.5131581182 | P175: 0.4665073802 | Q175: 0.4240976184 | R175: 0.3855432894 | S175: 0.3504938995 | T175: 0.3186308177 | U175: 0.2896643797 | V175: 0.2633312543 | W175: 0.2393920494 | X175: 0.2176291358 | Y175: 0.1978446689 | Z175: 0.1798587899 | AA175: 0.1635079908 | AB175: 0.148643628 | AC175: 0.1351305709 | AD175: 0.1228459736 | AE175: 0.1116781578 | AF175: 0.101525598 | AG175: 0.09229599818 | AH175: 0.08390545289 | AI175: 0.07627768444 | AJ175: 0.06934334949 | AK175: 0.06303940863 | AL175: 0.0573085533
A177: Endwertmethode | B177: Rendite: | C177: 10 | F177: Eigenkapital (Verzinsung) | H177: =E152/100*$E$151 -> 104.5133127 | I177: =$H$177*(1+$C$177/100)^I146 -> 114.964644 | J177: 126.4611084 | K177: 139.1072192 | L177: 153.0179411 | M177: 168.3197352 | N177: 185.1517087 | O177: 203.6668796 | P177: 224.0335676 | Q177: 246.4369243 | R177: 271.0806168 | S177: 298.1886784 | T177: 328.0075463 | U177: 360.8083009 | V177: 396.889131 | W177: 436.5780441 | X177: 480.2358485 | Y177: 528.2594334 | Z177: 581.0853767 | AA177: 639.1939144 | AB177: 703.1133058 | AC177: 773.4246364 | AD177: 850.7671 | AE177: 935.84381 | AF177: 1029.428191 | AG177: 1132.37101 | AH177: 1245.608111 | AI177: 1370.168922 | AJ177: 1507.185815 | AK177: 1657.904396 | AL177: 1823.694836 | AN177: =INDIRECT(ADDRESS(ROW(),COLUMN()-32+Jahre3)) -> 328.0075463
F178: Überschuss (Endwertberechnung) | I178: =I173*I180 -> -123.4764274 | J178: -82.84542146 | K178: -48.45780321 | L178: -19.52319387 | M178: 4.65733208 | N178: 24.7012952 | O178: 41.15379167 | P178: 54.49551696 | Q178: 65.14993226 | R178: 73.48966286 | S178: 175.7212959 | T178: 162.9415653 | U178: 151.0912696 | V178: 140.1028137 | W178: 129.9135181 | X178: 120.4652623 | Y178: 111.7041523 | Z178: 103.5802139 | AA178: 96.04710746 | AB178: 89.06186328 | AC178: 82.58463686 | AD178: 76.57848145 | AE178: 71.00913734 | AF178: 65.84483645 | AG178: 61.05612107 | AH178: 56.6156759 | AI178: 52.4981722 | AJ178: 48.68012331 | AK178: 45.13975071 | AL178: 41.85685975
F179: Überschuss (Endwertberechnung) - aufsummiert | I179: =SUM($I$178:I178) -> -123.4764274 | J179: =SUM($I$178:J178) -> -206.3218488 | K179: =SUM($I$178:K178) -> -254.779652 | L179: =SUM($I$178:L178) -> -274.3028459 | M179: =SUM($I$178:M178) -> -269.6455138 | N179: =SUM($I$178:N178) -> -244.9442186 | O179: =SUM($I$178:O178) -> -203.790427 | P179: =SUM($I$178:P178) -> -149.29491 | Q179: =SUM($I$178:Q178) -> -84.14497774 | R179: =SUM($I$178:R178) -> -10.65531489 | S179: =SUM($I$178:S178) -> 165.065981 | T179: =SUM($I$178:T178) -> 328.0075463 | U179: =SUM($I$178:U178) -> 479.0988159 | V179: =SUM($I$178:V178) -> 619.2016296 | W179: =SUM($I$178:W178) -> 749.1151477 | X179: =SUM($I$178:X178) -> 869.5804099 | Y179: =SUM($I$178:Y178) -> 981.2845622 | Z179: =SUM($I$178:Z178) -> 1084.864776 | AA179: =SUM($I$178:AA178) -> 1180.911884 | AB179: =SUM($I$178:AB178) -> 1269.973747 | AC179: =SUM($I$178:AC178) -> 1352.558384 | AD179: =SUM($I$178:AD178) -> 1429.136865 | AE179: =SUM($I$178:AE178) -> 1500.146003 | AF179: =SUM($I$178:AF178) -> 1565.990839 | AG179: =SUM($I$178:AG178) -> 1627.04696 | AH179: =SUM($I$178:AH178) -> 1683.662636 | AI179: =SUM($I$178:AI178) -> 1736.160808 | AJ179: =SUM($I$178:AJ178) -> 1784.840931 | AK179: =SUM($I$178:AK178) -> 1829.980682 | AL179: =SUM($I$178:AL178) -> 1871.837542 | AN179: =INDIRECT(ADDRESS(ROW(),COLUMN()-32+Jahre3)) -> 328.0075463
C180: =C177 -> 10 | F180: Endwert-Faktor | I180: =IF((1+$C$180/100)^($H$1-I146)>=1,(1+$C$180/100)^($H$1-I146),0) -> 15.86309297 | J180: 14.42099361 | K180: 13.10999419 | L180: 11.91817654 | M180: 10.83470594 | N180: 9.849732676 | O180: 8.954302433 | P180: 8.140274939 | Q180: 7.400249944 | R180: 6.727499949 | S180: 6.115909045 | T180: 5.559917313 | U180: 5.054470285 | V180: 4.594972986 | W180: 4.177248169 | X180: 3.797498336 | Y180: 3.452271214 | Z180: 3.138428377 | AA180: 2.853116706 | AB180: 2.59374246 | AC180: 2.357947691 | AD180: 2.14358881 | AE180: 1.9487171 | AF180: 1.771561 | AG180: 1.61051 | AH180: 1.4641 | AI180: 1.331 | AJ180: 1.21 | AK180: 1.1 | AL180: 1

Sheet LIQ-SHIP (hidden)
A1: OPEX-Transport | C1: für | D1: 100000 | E1: t/a | F1: Betriebsdauer: | H1: 30 | I1: Jahre | J1: (<= 30 Jahre)
C2: Strecke: | D2: 3000 | E2: km | O2: Heizwert | P2: Dichte
A3: H2-SHIP-LIQ | B3: Basisdaten | E3: Rohdaten: | F3: Kapazität/Schiff | G3: =J3*C17/1000 -> 113440.5951 | H3: t | I3: = | J3: 152237.2787 | K3: m³ | N3: Stofftabelle | O3: MJ/kg | P3: kg/m³
E4: [IEA2019] | F4: CAPEX/Schiff | G4: 76 | H4: M$(2019) | I4: = | J4: =G4/1.12 -> 67.85714286 | K4: M€(2019) | N4: Diesel | O4: 42.70536 | P4: =1/1.195*1000 -> 836.8200837
A5: Transport von flüssigem Produkt per Schiff | F5: Geschwindigkeit | G5: 30 | H5: km/h | I5: = | J5: =G5*24 -> 720 | K5: km/d | N5: Benzin | O5: 43.12404 | P5: =1/1.342*1000 -> 745.1564829
F6: OPEX | G6: 4 | H6: %/CAPEX/a | N6: Methanol | O6: 19.9 | P6: 790
F7: Kraftstoffnutzung | G7: 3300 | H7: MJ/km | I7: leer: | J7: 1381 | K7: MJ/km | N7: OME | O7: 19.15899256 | P7: 1057.94331
F8: Verdampfungsrate | G8: 0 | H8: %/d | N8: Ethanol | O8: 26.8 | P8: 789.4
F9: Flashrate | G9: 0 | H9: %/Befüllung | J9: Heizwert: | K9: 40 | L9: MJ/kg Schweröl
E10: Tanks: | F10: Exportterminal(Flash) | G10: 0 | H10: % | M10: Importterminal(Flash) | O10: 0 | P10: %
F11: Boil-off | G11: 0 | H11: % | I11: Terminalgr. zu Anlagengröße: | K11: 10 | M11: Boil-off | O11: 0 | P11: % | Q11: Terminalgr. zu Anlagengröße: | T11: =K11 -> 10
F12: Verlust Exportterminal | G12: =IFERROR(G10+(100-G10)/100*(100-(1/G13*(((1-G11/100)^G13/LN((1-G11/100)))-(1/LN(1-G11/100)))*100)),0) -> 0 | H12: % | M12: Verlust Exportterminal | O12: =IFERROR(O10+(100-O10)/100*(100-(1/O13*(((1-O11/100)^O13/LN((1-O11/100)))-(1/LN(1-O11/100)))*100)),0) -> 0 | P12: %
F13: Tage im Tank: | G13: =G3/D1*365/K11 -> 41.40581723 | H13: bei | I13: 7 | J13: Tage Vorhaltezeit: | L13: =G13+I13 -> 48.40581723 | M13: Tage im Tank: | O13: 20 | P13: typische Vorhaltezeit
F14: Tankkapazität | G14: =J14*C17/1000 -> 53368.64362 | H14: t | I14: = | J14: 71620.71974 | K14: m³ | M14: Tankkapazität | O14: =R14*C17/1000 -> 63526.73328 | P14: t | Q14: = | R14: 85252.87606 | S14: m³
B15: Auswahl Stoff: | F15: Tankanzahl | G15: =G3/G14*L13/G13 -> 2.484954991 | M15: Tankanzahl | O15: =G15*I26/G3*O13/L13*G14/O14 -> 0.8625427079
B16: Benzin | F16: CAPEX/Tanks | G16: 35 | H16: M$(2019) | I16: = | J16: =G16/1.12 -> 31.25 | K16: M€(2019) | M16: CAPEX/Tanks | O16: 35 | P16: M$(2019) | Q16: = | R16: =O16/1.12 -> 31.25 | S16: M€(2019)
B17: Dichte: | C17: =VLOOKUP(B16,N4:P8,3,FALSE) -> 745.1564829 | D17: kg/m³ | F17: OPEX/Tanks | G17: 4 | H17: %/CAPEX | M17: OPEX/Tanks | O17: =G17 -> 4 | P17: %/CAPEX
B18: Heizwert: | C18: =VLOOKUP(B16,N4:P8,2,FALSE) -> 43.12404 | D18: MJ/kg | E18: Tanks: | F18: Menge nach Flash/BO: | G18: =G3*(100-G12)/100 -> 113440.5951 | H18: t | M18: Menge nach Flash/BO: | O18: =(100-O12)/100*I26 -> 113440.5951
F19: Elektrizitätsbedarf | G19: 0.01 | H19: kWh/kg | M19: Elektrizitätsbedarf | O19: 0.01 | P19: kWh/kg
E20: Transport: | F20: Menge nach Flash: | G20: =G18*(1-G9/100) -> 113440.5951 | H20: t
F21: Transportdauer | G21: =D2/G5/24 -> 4.166666667 | H21: Tage | I21: [+Rückreise] | J21: =G21*2 -> 8.333333333 | K21: Tage
F22: Anzahl notw. Schiffe | G22: =D1/G3*K22/365 -> 0.02737135527 | H22: Schiffe | I22: [+Liegezeit, 3 Tage] | K22: =J21+3 -> 11.33333333
F23: Verdampfte Menge nach [Transportdauer] Tagen: | I23: =(1-(1-G8/100)^G21)*100 -> 0 | J23: % | K23: = | L23: =I23*G20/100 -> 0 | M23: t
F24: Heizwert (verdampft --> Antrieb) | I24: =L23*1000*C18/D2 -> 0 | J24: MJ/km
F25: notwendiger Zusatzkraftstoff (Hinreise) | I25: =MAX(0,G7-I24) -> 3300 | J25: MJ/km
F26: ankommende Menge: | I26: =G20*(1-I23/100) -> 113440.5951 | J26: t
F27: Preis Schweröl: | G27: 300 | H27: €/t | I27: = | J27: =G27/K9/1000 -> 0.0075 | K27: €/MJ
I30: [Mio. €/a]
C31: Kostenstei-gerung (%/a) | E31: Preis/Einheit | G31: Einheiten/a | I31: 1 | J31: 2 | K31: 3 | L31: 4 | M31: 5 | N31: 6 | O31: 7 | P31: 8 | Q31: 9 | R31: 10 | S31: 11 | T31: 12 | U31: 13 | V31: 14 | W31: 15 | X31: 16 | Y31: 17 | Z31: 18 | AA31: 19 | AB31: 20 | AC31: 21 | AD31: 22 | AE31: 23 | AF31: 24 | AG31: 25 | AH31: 26 | AI31: 27 | AJ31: 28 | AK31: 29 | AL31: 30 | AN31: Summierung/Anteile | AP31: Summierung mit Kalkulatorischem Zinsfuß
A32: Auszahlungen | D32: Feuchte:
A33: [Transport]
A34: OPEX | C34: 2 | E34: =G6 -> 4 | F34: % der Investkosten | I34: =E34/100*$E$36 -> 0.07429367858 | J34: =I34*(1+$C34/100) -> 0.07577955215 | K34: 0.07729514319 | L34: 0.07884104606 | M34: 0.08041786698 | N34: 0.08202622432 | O34: 0.0836667488 | P34: 0.08534008378 | Q34: 0.08704688545 | R34: 0.08878782316 | S34: 0.09056357963 | T34: 0.09237485122 | U34: 0.09422234824 | V34: 0.09610679521 | W34: 0.09802893111 | X34: 0.09998950974 | Y34: 0.1019892999 | Z34: 0.1040290859 | AA34: 0.1061096676 | AB34: 0.108231861 | AC34: 0.1103964982 | AD34: 0.1126044282 | AE34: 0.1148565167 | AF34: 0.1171536471 | AG34: 0.11949672 | AH34: 0.1218866544 | AI34: 0.1243243875 | AJ34: 0.1268108753 | AK34: 0.1293470928 | AL34: 0.1319340346 | AN34: =SUM(I34:AL34)/$AN$63 -> 0.04980296151 | AP34: =SUMPRODUCT(I34:AL34,I$73:AL$73) -> 14.5225946 | AQ34: =AP34/$AP$63 -> 0.04980296151
A36: CAPEX | E36: =G22*J4 -> 1.857341964 | F36: M€
A37: Eigenkapitalquote | E37: 40 | F37: %
A38: Zinsen | E38: 10 | F38: % | I38: =$E$38/100*(E36*(1-$E$37/100)) -> 0.1114405179 | J38: =MAX(0,$E$38/100*($E$36*(1-$E$37/100)-(J31-1)*$E$39/100*$E$36*(1-$E$37/100))) -> 0.1002964661 | K38: 0.08915241429 | L38: 0.07800836251 | M38: 0.06686431072 | N38: 0.05572025893 | O38: 0.04457620715 | P38: 0.03343215536 | Q38: 0.02228810357 | R38: 0.01114405179 | S38: 0 | T38: 0 | U38: 0 | V38: 0 | W38: 0 | X38: 0 | Y38: 0 | Z38: 0 | AA38: 0 | AB38: 0 | AC38: 0 | AD38: 0 | AE38: 0 | AF38: 0 | AG38: 0 | AH38: 0 | AI38: 0 | AJ38: 0 | AK38: 0 | AL38: 0 | AN38: =SUM(I38:AL38)/$AN$63 -> 0.01012802283 | AP38: =SUMPRODUCT(I38:AL38,I$73:AL$73) -> 7.497160783 | AQ38: =AP38/$AP$63 -> 0.02571033759
A39: jähliche Tilgung | E39: 10 | F39: % | I39: =$E$39/100*(E36*(1-$E$37/100)) -> 0.1114405179 | J39: =IF(SUM($I$39:I39)<=(100-$E$39)/100*$E$36*(100-$E$37)/100,$E$39/100*$E$36*(100-$E$37)/100,MAX(0,$E$36*(100-$E$37)/100-SUM($I$39:I39))) -> 0.1114405179 | K39: =IF(SUM($I$39:J39)<=(100-$E$39)/100*$E$36*(100-$E$37)/100,$E$39/100*$E$36*(100-$E$37)/100,MAX(0,$E$36*(100-$E$37)/100-SUM($I$39:J39))) -> 0.1114405179 | L39: =IF(SUM($I$39:K39)<=(100-$E$39)/100*$E$36*(100-$E$37)/100,$E$39/100*$E$36*(100-$E$37)/100,MAX(0,$E$36*(100-$E$37)/100-SUM($I$39:K39))) -> 0.1114405179 | M39: =IF(SUM($I$39:L39)<=(100-$E$39)/100*$E$36*(100-$E$37)/100,$E$39/100*$E$36*(100-$E$37)/100,MAX(0,$E$36*(100-$E$37)/100-SUM($I$39:L39))) -> 0.1114405179 | N39: =IF(SUM($I$39:M39)<=(100-$E$39)/100*$E$36*(100-$E$37)/100,$E$39/100*$E$36*(100-$E$37)/100,MAX(0,$E$36*(100-$E$37)/100-SUM($I$39:M39))) -> 0.1114405179 | O39: =IF(SUM($I$39:N39)<=(100-$E$39)/100*$E$36*(100-$E$37)/100,$E$39/100*$E$36*(100-$E$37)/100,MAX(0,$E$36*(100-$E$37)/100-SUM($I$39:N39))) -> 0.1114405179 | P39: =IF(SUM($I$39:O39)<=(100-$E$39)/100*$E$36*(100-$E$37)/100,$E$39/100*$E$36*(100-$E$37)/100,MAX(0,$E$36*(100-$E$37)/100-SUM($I$39:O39))) -> 0.1114405179 | Q39: =IF(SUM($I$39:P39)<=(100-$E$39)/100*$E$36*(100-$E$37)/100,$E$39/100*$E$36*(100-$E$37)/100,MAX(0,$E$36*(100-$E$37)/100-SUM($I$39:P39))) -> 0.1114405179 | R39: =IF(SUM($I$39:Q39)<=(100-$E$39)/100*$E$36*(100-$E$37)/100,$E$39/100*$E$36*(100-$E$37)/100,MAX(0,$E$36*(100-$E$37)/100-SUM($I$39:Q39))) -> 0.1114405179 | S39: =IF(SUM($I$39:R39)<=(100-$E$39)/100*$E$36*(100-$E$37)/100,$E$39/100*$E$36*(100-$E$37)/100,MAX(0,$E$36*(100-$E$37)/100-SUM($I$39:R39))) -> 0 | T39: =IF(SUM($I$39:S39)<=(100-$E$39)/100*$E$36*(100-$E$37)/100,$E$39/100*$E$36*(100-$E$37)/100,MAX(0,$E$36*(100-$E$37)/100-SUM($I$39:S39))) -> 0 | U39: =IF(SUM($I$39:T39)<=(100-$E$39)/100*$E$36*(100-$E$37)/100,$E$39/100*$E$36*(100-$E$37)/100,MAX(0,$E$36*(100-$E$37)/100-SUM($I$39:T39))) -> 0 | V39: =IF(SUM($I$39:U39)<=(100-$E$39)/100*$E$36*(100-$E$37)/100,$E$39/100*$E$36*(100-$E$37)/100,MAX(0,$E$36*(100-$E$37)/100-SUM($I$39:U39))) -> 0 | W39: =IF(SUM($I$39:V39)<=(100-$E$39)/100*$E$36*(100-$E$37)/100,$E$39/100*$E$36*(100-$E$37)/100,MAX(0,$E$36*(100-$E$37)/100-SUM($I$39:V39))) -> 0 | X39: =IF(SUM($I$39:W39)<=(100-$E$39)/100*$E$36*(100-$E$37)/100,$E$39/100*$E$36*(100-$E$37)/100,MAX(0,$E$36*(100-$E$37)/100-SUM($I$39:W39))) -> 0 | Y39: =IF(SUM($I$39:X39)<=(100-$E$39)/100*$E$36*(100-$E$37)/100,$E$39/100*$E$36*(100-$E$37)/100,MAX(0,$E$36*(100-$E$37)/100-SUM($I$39:X39))) -> 0 | Z39: =IF(SUM($I$39:Y39)<=(100-$E$39)/100*$E$36*(100-$E$37)/100,$E$39/100*$E$36*(100-$E$37)/100,MAX(0,$E$36*(100-$E$37)/100-SUM($I$39:Y39))) -> 0 | AA39: =IF(SUM($I$39:Z39)<=(100-$E$39)/100*$E$36*(100-$E$37)/100,$E$39/100*$E$36*(100-$E$37)/100,MAX(0,$E$36*(100-$E$37)/100-SUM($I$39:Z39))) -> 0 | AB39: =IF(SUM($I$39:AA39)<=(100-$E$39)/100*$E$36*(100-$E$37)/100,$E$39/100*$E$36*(100-$E$37)/100,MAX(0,$E$36*(100-$E$37)/100-SUM($I$39:AA39))) -> 0 | AC39: =IF(SUM($I$39:AB39)<=(100-$E$39)/100*$E$36*(100-$E$37)/100,$E$39/100*$E$36*(100-$E$37)/100,MAX(0,$E$36*(100-$E$37)/100-SUM($I$39:AB39))) -> 0 | AD39: =IF(SUM($I$39:AC39)<=(100-$E$39)/100*$E$36*(100-$E$37)/100,$E$39/100*$E$36*(100-$E$37)/100,MAX(0,$E$36*(100-$E$37)/100-SUM($I$39:AC39))) -> 0 | AE39: =IF(SUM($I$39:AD39)<=(100-$E$39)/100*$E$36*(100-$E$37)/100,$E$39/100*$E$36*(100-$E$37)/100,MAX(0,$E$36*(100-$E$37)/100-SUM($I$39:AD39))) -> 0 | AF39: =IF(SUM($I$39:AE39)<=(100-$E$39)/100*$E$36*(100-$E$37)/100,$E$39/100*$E$36*(100-$E$37)/100,MAX(0,$E$36*(100-$E$37)/100-SUM($I$39:AE39))) -> 0 | AG39: =IF(SUM($I$39:AF39)<=(100-$E$39)/100*$E$36*(100-$E$37)/100,$E$39/100*$E$36*(100-$E$37)/100,MAX(0,$E$36*(100-$E$37)/100-SUM($I$39:AF39))) -> 0 | AH39: =IF(SUM($I$39:AG39)<=(100-$E$39)/100*$E$36*(100-$E$37)/100,$E$39/100*$E$36*(100-$E$37)/100,MAX(0,$E$36*(100-$E$37)/100-SUM($I$39:AG39))) -> 0 | AI39: =IF(SUM($I$39:AH39)<=(100-$E$39)/100*$E$36*(100-$E$37)/100,$E$39/100*$E$36*(100-$E$37)/100,MAX(0,$E$36*(100-$E$37)/100-SUM($I$39:AH39))) -> 0 | AJ39: =IF(SUM($I$39:AI39)<=(100-$E$39)/100*$E$36*(100-$E$37)/100,$E$39/100*$E$36*(100-$E$37)/100,MAX(0,$E$36*(100-$E$37)/100-SUM($I$39:AI39))) -> 0 | AK39: =IF(SUM($I$39:AJ39)<=(100-$E$39)/100*$E$36*(100-$E$37)/100,$E$39/100*$E$36*(100-$E$37)/100,MAX(0,$E$36*(100-$E$37)/100-SUM($I$39:AJ39))) -> 0 | AL39: =IF(SUM($I$39:AK39)<=(100-$E$39)/100*$E$36*(100-$E$37)/100,$E$39/100*$E$36*(100-$E$37)/100,MAX(0,$E$36*(100-$E$37)/100-SUM($I$39:AK39))) -> 0 | AN39: =SUM(I39:AL39)/$AN$63 -> 0.01841458697 | AP39: =SUMPRODUCT(I39:AL39,I$73:AL$73) -> 11.94854347 | AQ39: =AP39/$AP$63 -> 0.04097565668
A41: Kraftstoffbedarf | C41: 2 | D41: Hin: | E41: =I25*D2*D1/G3 -> 8727034.61 | F41: MJ | G41: =J27 -> 0.0075 | H41: €/MJ | I41: =E41*G41/1000000 -> 0.06545275958 | J41: =I41*(1+$C41/100) -> 0.06676181477 | K41: 0.06809705107 | L41: 0.06945899209 | M41: 0.07084817193 | N41: 0.07226513537 | O41: 0.07371043807 | P41: 0.07518464684 | Q41: 0.07668833977 | R41: 0.07822210657 | S41: 0.0797865487 | T41: 0.08138227967 | U41: 0.08300992527 | V41: 0.08467012377 | W41: 0.08636352625 | X41: 0.08809079677 | Y41: 0.08985261271 | Z41: 0.09164966496 | AA41: 0.09348265826 | AB41: 0.09535231143 | AC41: 0.09725935766 | AD41: 0.09920454481 | AE41: 0.1011886357 | AF41: 0.1032124084 | AG41: 0.1052766566 | AH41: 0.1073821897 | AI41: 0.1095298335 | AJ41: 0.1117204302 | AK41: 0.1139548388 | AL41: 0.1162339356 | AN41: =SUM(I41:AL41)/$AN$63 -> 0.04387642836 | AP41: =SUMPRODUCT(I41:AL41,I$73:AL$73) -> 12.79441147 | AQ41: =AP41/$AP$63 -> 0.04387642836
C42: 2 | D42: Rück: | E42: =J7*D2*D1/G3 -> 3652131.757 | F42: MJ | G42: =G41 -> 0.0075 | H42: €/MJ | I42: =E42*G41/1000000 -> 0.02739098818 | J42: =I42*(1+$C42/100) -> 0.02793880794 | K42: 0.0284975841 | L42: 0.02906753578 | M42: 0.02964888649 | N42: 0.03024186422 | O42: 0.03084670151 | P42: 0.03146363554 | Q42: 0.03209290825 | R42: 0.03273476642 | S42: 0.03338946174 | T42: 0.03405725098 | U42: 0.034738396 | V42: 0.03543316392 | W42: 0.0361418272 | X42: 0.03686466374 | Y42: 0.03760195702 | Z42: 0.03835399616 | AA42: 0.03912107608 | AB42: 0.0399034976 | AC42: 0.04070156755 | AD42: 0.0415155989 | AE42: 0.04234591088 | AF42: 0.0431928291 | AG42: 0.04405668568 | AH42: 0.04493781939 | AI42: 0.04583657578 | AJ42: 0.0467533073 | AK42: 0.04768837344 | AL42: 0.04864214091 | AN42: =SUM(I42:AL42)/$AN$63 -> 0.01836162047 | AP42: =SUMPRODUCT(I42:AL42,I$73:AL$73) -> 5.354267343 | AQ42: =AP42/$AP$63 -> 0.01836162047
A43: [Export Terminal]
A44: OPEX | C44: 2 | E44: =G17 -> 4 | F44: % der Investkosten | I44: =E44/100*$E$46 -> 0.3106193739 | J44: =I44*(1+$C44/100) -> 0.3168317614 | K44: 0.3231683966 | L44: 0.3296317645 | M44: 0.3362243998 | N44: 0.3429488878 | O44: 0.3498078656 | P44: 0.3568040229 | Q44: 0.3639401033 | R44: 0.3712189054 | S44: 0.3786432835 | T44: 0.3862161492 | U44: 0.3939404721 | V44: 0.4018192816 | W44: 0.4098556672 | X44: 0.4180527806 | Y44: 0.4264138362 | Z44: 0.4349421129 | AA44: 0.4436409552 | AB44: 0.4525137743 | AC44: 0.4615640497 | AD44: 0.4707953307 | AE44: 0.4802112374 | AF44: 0.4898154621 | AG44: 0.4996117713 | AH44: 0.5096040068 | AI44: 0.5197960869 | AJ44: 0.5301920086 | AK44: 0.5407958488 | AL44: 0.5516117658 | AN44: =SUM(I44:AL44)/$AN$63 -> 0.2082245087 | AP44: =SUMPRODUCT(I44:AL44,I$73:AL$73) -> 60.71848008 | AQ44: =AP44/$AP$63 -> 0.2082245087
A46: CAPEX | E46: =G15*J16/K11 -> 7.765484347 | F46: M€
A47: Eigenkapitalquote | E47: =E37 -> 40 | F47: %
A48: Zinsen | E48: =E38 -> 10 | F48: % | I48: =$E$48/100*(E46*(1-$E$47/100)) -> 0.4659290608 | J48: =MAX(0,$E$48/100*($E$46*(1-$E$47/100)-(J31-1)*$E$49/100*$E$46*(1-$E$47/100))) -> 0.4193361547 | K48: 0.3727432486 | L48: 0.3261503426 | M48: 0.2795574365 | N48: 0.2329645304 | O48: 0.1863716243 | P48: 0.1397787182 | Q48: 0.09318581216 | R48: 0.04659290608 | S48: 0 | T48: 0 | U48: 0 | V48: 0 | W48: 0 | X48: 0 | Y48: 0 | Z48: 0 | AA48: 0 | AB48: 0 | AC48: 0 | AD48: 0 | AE48: 0 | AF48: 0 | AG48: 0 | AH48: 0 | AI48: 0 | AJ48: 0 | AK48: 0 | AL48: 0 | AN48: =SUM(I48:AL48)/$AN$63 -> 0.04234492316 | AP48: =SUMPRODUCT(I48:AL48,I$73:AL$73) -> 31.34537733 | AQ48: =AP48/$AP$63 -> 0.1074940576
A49: jähliche Tilgung | E49: 10 | F49: % | I49: =$E$49/100*(E46*(1-$E$47/100)) -> 0.4659290608 | J49: =IF(SUM($I$49:I49)<=(100-$E$49)/100*$E$46*(100-$E$47)/100,$E$49/100*$E$46*(100-$E$47)/100,MAX(0,$E$46*(100-$E$47)/100-SUM($I$49:I49))) -> 0.4659290608 | K49: =IF(SUM($I$49:J49)<=(100-$E$49)/100*$E$46*(100-$E$47)/100,$E$49/100*$E$46*(100-$E$47)/100,MAX(0,$E$46*(100-$E$47)/100-SUM($I$49:J49))) -> 0.4659290608 | L49: =IF(SUM($I$49:K49)<=(100-$E$49)/100*$E$46*(100-$E$47)/100,$E$49/100*$E$46*(100-$E$47)/100,MAX(0,$E$46*(100-$E$47)/100-SUM($I$49:K49))) -> 0.4659290608 | M49: =IF(SUM($I$49:L49)<=(100-$E$49)/100*$E$46*(100-$E$47)/100,$E$49/100*$E$46*(100-$E$47)/100,MAX(0,$E$46*(100-$E$47)/100-SUM($I$49:L49))) -> 0.4659290608 | N49: =IF(SUM($I$49:M49)<=(100-$E$49)/100*$E$46*(100-$E$47)/100,$E$49/100*$E$46*(100-$E$47)/100,MAX(0,$E$46*(100-$E$47)/100-SUM($I$49:M49))) -> 0.4659290608 | O49: =IF(SUM($I$49:N49)<=(100-$E$49)/100*$E$46*(100-$E$47)/100,$E$49/100*$E$46*(100-$E$47)/100,MAX(0,$E$46*(100-$E$47)/100-SUM($I$49:N49))) -> 0.4659290608 | P49: =IF(SUM($I$49:O49)<=(100-$E$49)/100*$E$46*(100-$E$47)/100,$E$49/100*$E$46*(100-$E$47)/100,MAX(0,$E$46*(100-$E$47)/100-SUM($I$49:O49))) -> 0.4659290608 | Q49: =IF(SUM($I$49:P49)<=(100-$E$49)/100*$E$46*(100-$E$47)/100,$E$49/100*$E$46*(100-$E$47)/100,MAX(0,$E$46*(100-$E$47)/100-SUM($I$49:P49))) -> 0.4659290608 | R49: =IF(SUM($I$49:Q49)<=(100-$E$49)/100*$E$46*(100-$E$47)/100,$E$49/100*$E$46*(100-$E$47)/100,MAX(0,$E$46*(100-$E$47)/100-SUM($I$49:Q49))) -> 0.4659290608 | S49: =IF(SUM($I$49:R49)<=(100-$E$49)/100*$E$46*(100-$E$47)/100,$E$49/100*$E$46*(100-$E$47)/100,MAX(0,$E$46*(100-$E$47)/100-SUM($I$49:R49))) -> 0 | T49: =IF(SUM($I$49:S49)<=(100-$E$49)/100*$E$46*(100-$E$47)/100,$E$49/100*$E$46*(100-$E$47)/100,MAX(0,$E$46*(100-$E$47)/100-SUM($I$49:S49))) -> 0 | U49: =IF(SUM($I$49:T49)<=(100-$E$49)/100*$E$46*(100-$E$47)/100,$E$49/100*$E$46*(100-$E$47)/100,MAX(0,$E$46*(100-$E$47)/100-SUM($I$49:T49))) -> 0 | V49: =IF(SUM($I$49:U49)<=(100-$E$49)/100*$E$46*(100-$E$47)/100,$E$49/100*$E$46*(100-$E$47)/100,MAX(0,$E$46*(100-$E$47)/100-SUM($I$49:U49))) -> 0 | W49: =IF(SUM($I$49:V49)<=(100-$E$49)/100*$E$46*(100-$E$47)/100,$E$49/100*$E$46*(100-$E$47)/100,MAX(0,$E$46*(100-$E$47)/100-SUM($I$49:V49))) -> 0 | X49: =IF(SUM($I$49:W49)<=(100-$E$49)/100*$E$46*(100-$E$47)/100,$E$49/100*$E$46*(100-$E$47)/100,MAX(0,$E$46*(100-$E$47)/100-SUM($I$49:W49))) -> 0 | Y49: =IF(SUM($I$49:X49)<=(100-$E$49)/100*$E$46*(100-$E$47)/100,$E$49/100*$E$46*(100-$E$47)/100,MAX(0,$E$46*(100-$E$47)/100-SUM($I$49:X49))) -> 0 | Z49: =IF(SUM($I$49:Y49)<=(100-$E$49)/100*$E$46*(100-$E$47)/100,$E$49/100*$E$46*(100-$E$47)/100,MAX(0,$E$46*(100-$E$47)/100-SUM($I$49:Y49))) -> 0 | AA49: =IF(SUM($I$49:Z49)<=(100-$E$49)/100*$E$46*(100-$E$47)/100,$E$49/100*$E$46*(100-$E$47)/100,MAX(0,$E$46*(100-$E$47)/100-SUM($I$49:Z49))) -> 0 | AB49: =IF(SUM($I$49:AA49)<=(100-$E$49)/100*$E$46*(100-$E$47)/100,$E$49/100*$E$46*(100-$E$47)/100,MAX(0,$E$46*(100-$E$47)/100-SUM($I$49:AA49))) -> 0 | AC49: =IF(SUM($I$49:AB49)<=(100-$E$49)/100*$E$46*(100-$E$47)/100,$E$49/100*$E$46*(100-$E$47)/100,MAX(0,$E$46*(100-$E$47)/100-SUM($I$49:AB49))) -> 0 | AD49: =IF(SUM($I$49:AC49)<=(100-$E$49)/100*$E$46*(100-$E$47)/100,$E$49/100*$E$46*(100-$E$47)/100,MAX(0,$E$46*(100-$E$47)/100-SUM($I$49:AC49))) -> 0 | AE49: =IF(SUM($I$49:AD49)<=(100-$E$49)/100*$E$46*(100-$E$47)/100,$E$49/100*$E$46*(100-$E$47)/100,MAX(0,$E$46*(100-$E$47)/100-SUM($I$49:AD49))) -> 0 | AF49: =IF(SUM($I$49:AE49)<=(100-$E$49)/100*$E$46*(100-$E$47)/100,$E$49/100*$E$46*(100-$E$47)/100,MAX(0,$E$46*(100-$E$47)/100-SUM($I$49:AE49))) -> 0 | AG49: =IF(SUM($I$49:AF49)<=(100-$E$49)/100*$E$46*(100-$E$47)/100,$E$49/100*$E$46*(100-$E$47)/100,MAX(0,$E$46*(100-$E$47)/100-SUM($I$49:AF49))) -> 0 | AH49: =IF(SUM($I$49:AG49)<=(100-$E$49)/100*$E$46*(100-$E$47)/100,$E$49/100*$E$46*(100-$E$47)/100,MAX(0,$E$46*(100-$E$47)/100-SUM($I$49:AG49))) -> 0 | AI49: =IF(SUM($I$49:AH49)<=(100-$E$49)/100*$E$46*(100-$E$47)/100,$E$49/100*$E$46*(100-$E$47)/100,MAX(0,$E$46*(100-$E$47)/100-SUM($I$49:AH49))) -> 0 | AJ49: =IF(SUM($I$49:AI49)<=(100-$E$49)/100*$E$46*(100-$E$47)/100,$E$49/100*$E$46*(100-$E$47)/100,MAX(0,$E$46*(100-$E$47)/100-SUM($I$49:AI49))) -> 0 | AK49: =IF(SUM($I$49:AJ49)<=(100-$E$49)/100*$E$46*(100-$E$47)/100,$E$49/100*$E$46*(100-$E$47)/100,MAX(0,$E$46*(100-$E$47)/100-SUM($I$49:AJ49))) -> 0 | AL49: =IF(SUM($I$49:AK49)<=(100-$E$49)/100*$E$46*(100-$E$47)/100,$E$49/100*$E$46*(100-$E$47)/100,MAX(0,$E$46*(100-$E$47)/100-SUM($I$49:AK49))) -> 0 | AN49: =SUM(I49:AL49)/$AN$63 -> 0.07699076938 | AP49: =SUMPRODUCT(I49:AL49,I$73:AL$73) -> 49.95645878 | AQ49: =AP49/$AP$63 -> 0.1713178438
A51: Elektrizitätsbedarf: | B51: Exportterminal | C51: 2 | E51: =G19*D1 -> 1000 | F51: MWh/a | G51: 50 | H51: €/MWh | I51: =E51*G51/1000000 -> 0.05 | J51: =I51*(1+$C51/100) -> 0.051 | K51: 0.05202 | L51: 0.0530604 | M51: 0.054121608 | N51: 0.05520404016 | O51: 0.05630812096 | P51: 0.05743428338 | Q51: 0.05858296905 | R51: 0.05975462843 | S51: 0.060949721 | T51: 0.06216871542 | U51: 0.06341208973 | V51: 0.06468033152 | W51: 0.06597393815 | X51: 0.06729341692 | Y51: 0.06863928525 | Z51: 0.07001207096 | AA51: 0.07141231238 | AB51: 0.07284055863 | AC51: 0.0742973698 | AD51: 0.07578331719 | AE51: 0.07729898354 | AF51: 0.07884496321 | AG51: 0.08042186247 | AH51: 0.08203029972 | AI51: 0.08367090572 | AJ51: 0.08534432383 | AK51: 0.08705121031 | AL51: 0.08879223451 | AN51: =SUM(I51:AL51)/$AN$63 -> 0.03351763061 | AP51: =SUMPRODUCT(I51:AL51,I$73:AL$73) -> 9.773775428 | AQ51: =AP51/$AP$63 -> 0.03351763061
B52: Importterminal | C52: 2 | E52: =O19*I26/G3*D1 -> 1000 | F52: MWh/a | G52: 105 | H52: €/MWh | I52: =E52*G52/1000000 -> 0.105 | J52: =I52*(1+$C52/100) -> 0.1071 | K52: 0.109242 | L52: 0.11142684 | M52: 0.1136553768 | N52: 0.1159284843 | O52: 0.118247054 | P52: 0.1206119951 | Q52: 0.123024235 | R52: 0.1254847197 | S52: 0.1279944141 | T52: 0.1305543024 | U52: 0.1331653884 | V52: 0.1358286962 | W52: 0.1385452701 | X52: 0.1413161755 | Y52: 0.144142499 | Z52: 0.147025349 | AA52: 0.149965856 | AB52: 0.1529651731 | AC52: 0.1560244766 | AD52: 0.1591449661 | AE52: 0.1623278654 | AF52: 0.1655744227 | AG52: 0.1688859112 | AH52: 0.1722636294 | AI52: 0.175708902 | AJ52: 0.17922308 | AK52: 0.1828075416 | AL52: 0.1864636925 | AN52: =SUM(I52:AL52)/$AN$63 -> 0.07038702428 | AP52: =SUMPRODUCT(I52:AL52,I$73:AL$73) -> 20.5249284 | AQ52: =AP52/$AP$63 -> 0.07038702428
A54: Summe Auszahlungen | I54: =SUM(I33:I53) -> 1.787495958 | J54: 1.742414136 | K54: 1.697585417 | L54: 1.653014862 | M54: 1.608707636 | N54: 1.564669004 | O54: 1.520904339 | P54: 1.47741912 | Q54: 1.434218935 | R54: 1.391309486 | S54: 0.7713270087 | T54: 0.7867535488 | U54: 0.8024886198 | V54: 0.8185383922 | W54: 0.8349091601 | X54: 0.8516073433 | Y54: 0.8686394901 | Z54: 0.8860122799 | AA54: 0.9037325255 | AB54: 0.921807176 | AC54: 0.9402433196 | AD54: 0.9590481859 | AE54: 0.9782291497 | AF54: 0.9977937327 | AG54: 1.017749607 | AH54: 1.038104599 | AI54: 1.058866691 | AJ54: 1.080044025 | AK54: 1.101644906 | AL54: 1.123677804 | AN54: =SUM(I54:AL54) -> 34.61895646 | AP54: =SUMPRODUCT(I54:AL54,I$73:AL$73) -> 224.4359977 | AQ54: =AP54/$AP$63 -> 0.7696680696
A57: Einzahlungen | G57: ankommende Menge
A58: Transportkosten | C58: 2 | E58: 14.91752224 | F58: €/t | G58: =D1*I26/G3 -> 100000 | H58: t/a | I58: =E58*G58/1000000 -> 1.491752224 | J58: =I58*(1+$C58/100) -> 1.521587268 | K58: 1.552019014 | L58: 1.583059394 | M58: 1.614720582 | N58: 1.647014993 | O58: 1.679955293 | P58: 1.713554399 | Q58: 1.747825487 | R58: 1.782781997 | S58: 1.818437637 | T58: 1.85480639 | U58: 1.891902517 | V58: 1.929740568 | W58: 1.968335379 | X58: 2.007702087 | Y58: 2.047856128 | Z58: 2.088813251 | AA58: 2.130589516 | AB58: 2.173201306 | AC58: 2.216665332 | AD58: 2.260998639 | AE58: 2.306218612 | AF58: 2.352342984 | AG58: 2.399389844 | AH58: 2.447377641 | AI58: 2.496325193 | AJ58: 2.546251697 | AK58: 2.597176731 | AL58: 2.649120266 | AN58: =SUM(I58:AL58)/$AN$63*($AN$63-$AN$54)/$AN$63 -> 0.4279515237 | AP58: =SUMPRODUCT(I58:AL58,I$73:AL$73) -> 291.6010246 | AQ58: =AP58/$AP$63*($AP$63-$AP$54)/$AP$63 -> 0.2303319304
E59: =E58/1000 -> 0.01491752224 | F59: €/kg | G59: =G58/D1 -> 1 | H59: Anteil
B60: bezogen auf ankommende Menge | E60: =E59/G60*32 -> 0.01106948031 | F60: €/l BÄ | G60: =C18 -> 43.12404 | H60: MJ/kg (Heizwert)
B61: bezogen auf eingehende Menge | E61: =E60*G58/D1 -> 0.01106948031 | F61: €/l BÄ
A63: Summe Einzahlungen | I63: =SUM(I58:I62) -> 1.491752224 | J63: 1.521587268 | K63: 1.552019014 | L63: 1.583059394 | M63: 1.614720582 | N63: 1.647014993 | O63: 1.679955293 | P63: 1.713554399 | Q63: 1.747825487 | R63: 1.782781997 | S63: 1.818437637 | T63: 1.85480639 | U63: 1.891902517 | V63: 1.929740568 | W63: 1.968335379 | X63: 2.007702087 | Y63: 2.047856128 | Z63: 2.088813251 | AA63: 2.130589516 | AB63: 2.173201306 | AC63: 2.216665332 | AD63: 2.260998639 | AE63: 2.306218612 | AF63: 2.352342984 | AG63: 2.399389844 | AH63: 2.447377641 | AI63: 2.496325193 | AJ63: 2.546251697 | AK63: 2.597176731 | AL63: 2.649120266 | AN63: =SUM(I63:AL63) -> 60.51752237 | AP63: =SUMPRODUCT(I63:AL63,I$73:AL$73) -> 291.6010246 | AQ63: =AP63/$AP$63*($AP$63-$AP$54)/$AP$63 -> 0.2303319304
A66: Überschuss | I66: =I63-I54 -> -0.2957437338 | J66: -0.2208268675 | K66: -0.145566403 | L66: -0.06995546831 | M66: 0.006012945861 | N66: 0.08234598916 | O66: 0.1590509542 | P66: 0.2361352793 | Q66: 0.3136065518 | R66: 0.3914725106 | S66: 1.047110628 | T66: 1.068052841 | U66: 1.089413897 | V66: 1.111202175 | W66: 1.133426219 | X66: 1.156094743 | Y66: 1.179216638 | Z66: 1.202800971 | AA66: 1.22685699 | AB66: 1.25139413 | AC66: 1.276422013 | AD66: 1.301950453 | AE66: 1.327989462 | AF66: 1.354549251 | AG66: 1.381640236 | AH66: 1.409273041 | AI66: 1.437458502 | AJ66: 1.466207672 | AK66: 1.495531825 | AL66: 1.525442462
A67: Barwert | C67: 10 | I67: =I66*(1+$C$67/100)^-(I31) -> -0.2688579398 | J67: -0.1825015434 | K67: -0.1093661931 | L67: -0.04778052614 | M67: 0.0037335663 | N67: 0.04648216413 | O67: 0.08161828835 | P67: 0.1101588505 | Q67: 0.1329997917 | R67: 0.1509295995 | S67: 0.3670058872 | T67: 0.34031455 | U67: 0.3155644009 | V67: 0.2926142626 | W67: 0.2713332254 | X67: 0.2515998999 | Y67: 0.2333017253 | Z67: 0.2163343271 | AA67: 0.2006009215 | AB67: 0.1860117636 | AC67: 0.1724836353 | AD67: 0.1599393709 | AE67: 0.1483074167 | AF67: 0.1375214228 | AG67: 0.1275198647 | AH67: 0.1182456928 | AI67: 0.109646006 | AJ67: 0.101671751 | AK67: 0.09427744186 | AL67: 0.08742090064
A68: Abzinsungsfaktor | I68: =(1+$C$67/100)^-(I31) -> 0.9090909091 | J68: 0.826446281 | K68: 0.7513148009 | L68: 0.6830134554 | M68: 0.6209213231 | N68: 0.5644739301 | O68: 0.5131581182 | P68: 0.4665073802 | Q68: 0.4240976184 | R68: 0.3855432894 | S68: 0.3504938995 | T68: 0.3186308177 | U68: 0.2896643797 | V68: 0.2633312543 | W68: 0.2393920494 | X68: 0.2176291358 | Y68: 0.1978446689 | Z68: 0.1798587899 | AA68: 0.1635079908 | AB68: 0.148643628 | AC68: 0.1351305709 | AD68: 0.1228459736 | AE68: 0.1116781578 | AF68: 0.101525598 | AG68: 0.09229599818 | AH68: 0.08390545289 | AI68: 0.07627768444 | AJ68: 0.06934334949 | AK68: 0.06303940863 | AL68: 0.0573085533
A70: Endwertmethode | B70: Rendite: | C70: 10 | F70: Eigenkapital (Verzinsung) | H70: =E37/100*$E$36+E47/100*E46 -> 3.849130525 | I70: =$H$70*(1+$C$70/100)^I31 -> 4.234043577 | J70: 4.657447935 | K70: 5.123192728 | L70: 5.635512001 | M70: 6.199063201 | N70: 6.818969521 | O70: 7.500866473 | P70: 8.250953121 | Q70: 9.076048433 | R70: 9.983653276 | S70: 10.9820186 | T70: 12.08022046 | U70: 13.28824251 | V70: 14.61706676 | W70: 16.07877344 | X70: 17.68665078 | Y70: 19.45531586 | Z70: 21.40084745 | AA70: 23.54093219 | AB70: 25.89502541 | AC70: 28.48452795 | AD70: 31.33298074 | AE70: 34.46627882 | AF70: 37.9129067 | AG70: 41.70419737 | AH70: 45.87461711 | AI70: 50.46207882 | AJ70: 55.5082867 | AK70: 61.05911537 | AL70: 67.16502691 | AN70: =INDIRECT(ADDRESS(ROW(),COLUMN()-32+Jahre)) -> 67.16502691
F71: Überschuss (Endwertberechnung) | I71: =I66*I73 -> -4.691410345 | J71: -3.184542845 | K71: -1.908374697 | L71: -0.8337416212 | M71: 0.06514850026 | N71: 0.8110859802 | O71: 1.424190346 | P71: 1.922206096 | Q71: 2.320766868 | R71: 2.633631295 | S71: 6.404033361 | T71: 5.938285481 | U71: 5.506410173 | V71: 5.105943978 | W71: 4.734602598 | X71: 4.390267864 | Y71: 4.070975656 | Z71: 3.774904699 | AA71: 3.500366175 | AB71: 3.24579409 | AC71: 3.009736338 | AD71: 2.790846422 | AE71: 2.587875773 | AF71: 2.399666626 | AG71: 2.225145417 | AH71: 2.063316659 | AI71: 1.913257266 | AJ71: 1.774111283 | AK71: 1.645085008 | AL71: 1.525442462
F72: Überschuss (Endwertberechnung) - aufsummiert | I72: =SUM($I$71:I71) -> -4.691410345 | J72: =SUM($I$71:J71) -> -7.87595319 | K72: =SUM($I$71:K71) -> -9.784327887 | L72: =SUM($I$71:L71) -> -10.61806951 | M72: =SUM($I$71:M71) -> -10.55292101 | N72: =SUM($I$71:N71) -> -9.741835028 | O72: =SUM($I$71:O71) -> -8.317644682 | P72: =SUM($I$71:P71) -> -6.395438585 | Q72: =SUM($I$71:Q71) -> -4.074671718 | R72: =SUM($I$71:R71) -> -1.441040422 | S72: =SUM($I$71:S71) -> 4.962992939 | T72: =SUM($I$71:T71) -> 10.90127842 | U72: =SUM($I$71:U71) -> 16.40768859 | V72: =SUM($I$71:V71) -> 21.51363257 | W72: =SUM($I$71:W71) -> 26.24823517 | X72: =SUM($I$71:X71) -> 30.63850303 | Y72: =SUM($I$71:Y71) -> 34.70947869 | Z72: =SUM($I$71:Z71) -> 38.48438339 | AA72: =SUM($I$71:AA71) -> 41.98474956 | AB72: =SUM($I$71:AB71) -> 45.23054365 | AC72: =SUM($I$71:AC71) -> 48.24027999 | AD72: =SUM($I$71:AD71) -> 51.03112641 | AE72: =SUM($I$71:AE71) -> 53.61900219 | AF72: =SUM($I$71:AF71) -> 56.01866881 | AG72: =SUM($I$71:AG71) -> 58.24381423 | AH72: =SUM($I$71:AH71) -> 60.30713089 | AI72: =SUM($I$71:AI71) -> 62.22038815 | AJ72: =SUM($I$71:AJ71) -> 63.99449944 | AK72: =SUM($I$71:AK71) -> 65.63958445 | AL72: =SUM($I$71:AL71) -> 67.16502691 | AN72: =INDIRECT(ADDRESS(ROW(),COLUMN()-32+Jahre)) -> 67.16502691
C73: =C70 -> 10 | F73: Endwert-Faktor | I73: =IF((1+$C$73/100)^($H$1-I31)>=1,(1+$C$73/100)^($H$1-I31),0) -> 15.86309297 | J73: 14.42099361 | K73: 13.10999419 | L73: 11.91817654 | M73: 10.83470594 | N73: 9.849732676 | O73: 8.954302433 | P73: 8.140274939 | Q73: 7.400249944 | R73: 6.727499949 | S73: 6.115909045 | T73: 5.559917313 | U73: 5.054470285 | V73: 4.594972986 | W73: 4.177248169 | X73: 3.797498336 | Y73: 3.452271214 | Z73: 3.138428377 | AA73: 2.853116706 | AB73: 2.59374246 | AC73: 2.357947691 | AD73: 2.14358881 | AE73: 1.9487171 | AF73: 1.771561 | AG73: 1.61051 | AH73: 1.4641 | AI73: 1.331 | AJ73: 1.21 | AK73: 1.1 | AL73: 1

Sheet LIQ-TRUCK (hidden)
A1: OPEX-Transport | C1: für | D1: 100000 | E1: t/a | F1: Betriebsdauer: | H1: 12 | I1: Jahre | J1: (<= 30 Jahre)
C2: Strecke: | D2: 500 | E2: km | O2: Heizwert | P2: Dichte
A3: LIQ-TRUCK | B3: Basisdaten | E3: Rohdaten: | N3: Stofftabelle | O3: MJ/kg | P3: kg/m³
E4: [IEA2019] | F4: Kapazität | G4: 35 | H4: m³ | I4: [Defossilisierung] | N4: Diesel | O4: 42.70536 | P4: =1/1.195*1000 -> 836.8200837
A5: Transport flüssiges H2 in LKW | E5: [Defossilisierung] | N5: Benzin | O5: 43.12404 | P5: =1/1.342*1000 -> 745.1564829
E6: [Bossel] | G6: =35*C17 -> 26080.4769 | H6: kg/Fahrt | N6: Methanol | O6: 19.9 | P6: 790
F7: CAPEX/LKW | G7: 0.185 | H7: M$(2019) | I7: = | J7: =G7/1.12 -> 0.1651785714 | K7: M€(2019) | L7: [IEA2019] | N7: OME | O7: 19.15899256 | P7: 1057.94331
F8: OPEX/LKW | G8: 12 | H8: %/CAPEX/a | L8: [IEA2019] | N8: Ethanol | O8: 26.8 | P8: 789.4
F9: Fahrer: | G9: 23 | H9: $/h | I9: = | J9: =G9/1.12 -> 20.53571429 | K9: €/h | L9: [IEA2019]
F10: mittl. Geschwindigkeit | G10: 50 | H10: km/h | I10: [IEA2019]
F11: Anzahl Fahrten(mit Rückfahrten) | G11: =G28/G6*1000*2 -> 7668.571429 | H11: Fahrten inkl. Rückfahrten
F12: LKW-Kilometer | G12: =G11*D2 -> 3834285.714 | H12: km/a
F14: Verbrauch pro Kilometer: | G14: 1220.1 | H14: MJ/100 km | I14: [Defossilisierung -Verbrenner:Diesel]
B15: Auswahl Stoff: | F15: Jahresverbrauch(Diesel): | G15: =G14*G12/100 -> 46782120 | H15: MJ/a | P15: [Defossilisierung]
B16: Benzin | F16: in t Flüssigkeit: | G16: =G15/C18/1000*P16/P17 -> 1084.826932 | H16: t/a | M16: Wirkungsgrade: | O16: WG-Diesel | P16: 0.42
B17: Dichte H2-LIQ | C17: =VLOOKUP(B16,N4:P8,3,FALSE) -> 745.1564829 | D17: kg/m³ | F17: Fahrerkosten: | G17: =G12/G10*J9/1000000 -> 1.574795918 | H17: M€/a | O17: WG-Diesel | P17: 0.42
B18: Heizwert: | C18: =VLOOKUP(B16,N4:P8,2,FALSE) -> 43.12404 | D18: MJ/kg H2 | M18: Diesel HW:
F19: Dieselpreis [Stand 2019] | G19: 1.05 | H19: €/l | I19: = | J19: =G19/M19 -> 0.02957746479 | K19: €/MJ | M19: 35.5 | N19: MJ/l
L20: Liste: | M20: Diesel
M21: transp. Pr. | N21: (mit transportierter Flüssigkeit)
F22: Fahrtzeit pro Woche | G22: 45 | H22: h/Woche | I22: [90 h pro 2 Wochen - gesetzliche Bestimmung]
F23: Fahrtzeit pro Jahr/LKW | G23: =G22*M23 -> 2250 | H23: h/a | I23: Annahme: effektive Wochenfahrtzeit: | M23: 50 | N23: Wochen/a
F24: Strecke pro LKW/a | G24: =G23*G10 -> 112500 | H24: km/LKW/a
F25: Anzahl LKWs: | G25: =G12/G24 -> 34.08253968 | H25: LKWs zum Transport der Menge
F27: Flash | G27: 0 | H27: % | I27: [Annahme]
F28: Menge nach Flash: | G28: =D1*(100-G27)/100 -> 100000 | H28: t/a
I32: [Mio. €/a]
C33: Kostenstei-gerung (%/a) | E33: Preis/Einheit | G33: Einheiten/a | I33: 1 | J33: 2 | K33: 3 | L33: 4 | M33: 5 | N33: 6 | O33: 7 | P33: 8 | Q33: 9 | R33: 10 | S33: 11 | T33: 12 | U33: 13 | V33: 14 | W33: 15 | X33: 16 | Y33: 17 | Z33: 18 | AA33: 19 | AB33: 20 | AC33: 21 | AD33: 22 | AE33: 23 | AF33: 24 | AG33: 25 | AH33: 26 | AI33: 27 | AJ33: 28 | AK33: 29 | AL33: 30 | AN33: Summierung/Anteile | AP33: Summierung mit Kalkulatorischem Zinsfuß
A34: Auszahlungen | D34: Feuchte:
A35: [Transport]
A36: OPEX | C36: 2 | E36: =G8 -> 12 | F36: % der Investkosten | I36: =E36/100*$E$38 -> 0.6755646259 | J36: =I36*(1+$C36/100) -> 0.6890759184 | K36: 0.7028574367 | L36: 0.7169145855 | M36: 0.7312528772 | N36: 0.7458779347 | O36: 0.7607954934 | P36: 0.7760114033 | Q36: 0.7915316314 | R36: 0.807362264 | S36: 0.8235095093 | T36: 0.8399796994 | U36: 0.8567792934 | V36: 0.8739148793 | W36: 0.8913931769 | X36: 0.9092210404 | Y36: 0.9274054612 | Z36: 0.9459535705 | AA36: 0.9648726419 | AB36: 0.9841700947 | AC36: 1.003853497 | AD36: 1.023930567 | AE36: 1.044409178 | AF36: 1.065297361 | AG36: 1.086603309 | AH36: 1.108335375 | AI36: 1.130502082 | AJ36: 1.153112124 | AK36: 1.176174366 | AL36: 1.199697854 | AN36: =SUM(I36:AL36)/$AN$58 -> 0.1538924112 | AP36: =SUMPRODUCT(I36:AL36,I$68:AL$68) -> 15.79289873 | AQ36: =AP36/$AP$58 -> 0.1538924112
A38: CAPEX | E38: =G25*J7 -> 5.629705215 | F38: M€
A39: Eigenkapitalquote | E39: 40 | F39: %
A40: Zinsen | E40: 10 | F40: % | I40: =$E$40/100*(E38*(1-$E$39/100)) -> 0.3377823129 | J40: =MAX(0,$E$40/100*($E$38*(1-$E$39/100)-(J33-1)*$E$41/100*$E$38*(1-$E$39/100))) -> 0.3040040816 | K40: 0.2702258503 | L40: 0.236447619 | M40: 0.2026693878 | N40: 0.1688911565 | O40: 0.1351129252 | P40: 0.1013346939 | Q40: 0.06755646259 | R40: 0.03377823129 | S40: 0 | T40: 0 | U40: 0 | V40: 0 | W40: 0 | X40: 0 | Y40: 0 | Z40: 0 | AA40: 0 | AB40: 0 | AC40: 0 | AD40: 0 | AE40: 0 | AF40: 0 | AG40: 0 | AH40: 0 | AI40: 0 | AJ40: 0 | AK40: 0 | AL40: 0 | AN40: =SUM(I40:AL40)/$AN$58 -> 0.01043194894 | AP40: =SUMPRODUCT(I40:AL40,I$68:AL$68) -> 4.087165986 | AQ40: =AP40/$AP$58 -> 0.03982700322
A41: jähliche Tilgung | E41: 10 | F41: % | I41: =$E$41/100*(E38*(1-$E$39/100)) -> 0.3377823129 | J41: =IF(SUM($I$41:I41)<=(100-$E$41)/100*$E$38*(100-$E$39)/100,$E$41/100*$E$38*(100-$E$39)/100,MAX(0,$E$38*(100-$E$39)/100-SUM($I$41:I41))) -> 0.3377823129 | K41: =IF(SUM($I$41:J41)<=(100-$E$41)/100*$E$38*(100-$E$39)/100,$E$41/100*$E$38*(100-$E$39)/100,MAX(0,$E$38*(100-$E$39)/100-SUM($I$41:J41))) -> 0.3377823129 | L41: =IF(SUM($I$41:K41)<=(100-$E$41)/100*$E$38*(100-$E$39)/100,$E$41/100*$E$38*(100-$E$39)/100,MAX(0,$E$38*(100-$E$39)/100-SUM($I$41:K41))) -> 0.3377823129 | M41: =IF(SUM($I$41:L41)<=(100-$E$41)/100*$E$38*(100-$E$39)/100,$E$41/100*$E$38*(100-$E$39)/100,MAX(0,$E$38*(100-$E$39)/100-SUM($I$41:L41))) -> 0.3377823129 | N41: =IF(SUM($I$41:M41)<=(100-$E$41)/100*$E$38*(100-$E$39)/100,$E$41/100*$E$38*(100-$E$39)/100,MAX(0,$E$38*(100-$E$39)/100-SUM($I$41:M41))) -> 0.3377823129 | O41: =IF(SUM($I$41:N41)<=(100-$E$41)/100*$E$38*(100-$E$39)/100,$E$41/100*$E$38*(100-$E$39)/100,MAX(0,$E$38*(100-$E$39)/100-SUM($I$41:N41))) -> 0.3377823129 | P41: =IF(SUM($I$41:O41)<=(100-$E$41)/100*$E$38*(100-$E$39)/100,$E$41/100*$E$38*(100-$E$39)/100,MAX(0,$E$38*(100-$E$39)/100-SUM($I$41:O41))) -> 0.3377823129 | Q41: =IF(SUM($I$41:P41)<=(100-$E$41)/100*$E$38*(100-$E$39)/100,$E$41/100*$E$38*(100-$E$39)/100,MAX(0,$E$38*(100-$E$39)/100-SUM($I$41:P41))) -> 0.3377823129 | R41: =IF(SUM($I$41:Q41)<=(100-$E$41)/100*$E$38*(100-$E$39)/100,$E$41/100*$E$38*(100-$E$39)/100,MAX(0,$E$38*(100-$E$39)/100-SUM($I$41:Q41))) -> 0.3377823129 | S41: =IF(SUM($I$41:R41)<=(100-$E$41)/100*$E$38*(100-$E$39)/100,$E$41/100*$E$38*(100-$E$39)/100,MAX(0,$E$38*(100-$E$39)/100-SUM($I$41:R41))) -> 0 | T41: =IF(SUM($I$41:S41)<=(100-$E$41)/100*$E$38*(100-$E$39)/100,$E$41/100*$E$38*(100-$E$39)/100,MAX(0,$E$38*(100-$E$39)/100-SUM($I$41:S41))) -> 0 | U41: =IF(SUM($I$41:T41)<=(100-$E$41)/100*$E$38*(100-$E$39)/100,$E$41/100*$E$38*(100-$E$39)/100,MAX(0,$E$38*(100-$E$39)/100-SUM($I$41:T41))) -> 0 | V41: =IF(SUM($I$41:U41)<=(100-$E$41)/100*$E$38*(100-$E$39)/100,$E$41/100*$E$38*(100-$E$39)/100,MAX(0,$E$38*(100-$E$39)/100-SUM($I$41:U41))) -> 0 | W41: =IF(SUM($I$41:V41)<=(100-$E$41)/100*$E$38*(100-$E$39)/100,$E$41/100*$E$38*(100-$E$39)/100,MAX(0,$E$38*(100-$E$39)/100-SUM($I$41:V41))) -> 0 | X41: =IF(SUM($I$41:W41)<=(100-$E$41)/100*$E$38*(100-$E$39)/100,$E$41/100*$E$38*(100-$E$39)/100,MAX(0,$E$38*(100-$E$39)/100-SUM($I$41:W41))) -> 0 | Y41: =IF(SUM($I$41:X41)<=(100-$E$41)/100*$E$38*(100-$E$39)/100,$E$41/100*$E$38*(100-$E$39)/100,MAX(0,$E$38*(100-$E$39)/100-SUM($I$41:X41))) -> 0 | Z41: =IF(SUM($I$41:Y41)<=(100-$E$41)/100*$E$38*(100-$E$39)/100,$E$41/100*$E$38*(100-$E$39)/100,MAX(0,$E$38*(100-$E$39)/100-SUM($I$41:Y41))) -> 0 | AA41: =IF(SUM($I$41:Z41)<=(100-$E$41)/100*$E$38*(100-$E$39)/100,$E$41/100*$E$38*(100-$E$39)/100,MAX(0,$E$38*(100-$E$39)/100-SUM($I$41:Z41))) -> 0 | AB41: =IF(SUM($I$41:AA41)<=(100-$E$41)/100*$E$38*(100-$E$39)/100,$E$41/100*$E$38*(100-$E$39)/100,MAX(0,$E$38*(100-$E$39)/100-SUM($I$41:AA41))) -> 0 | AC41: =IF(SUM($I$41:AB41)<=(100-$E$41)/100*$E$38*(100-$E$39)/100,$E$41/100*$E$38*(100-$E$39)/100,MAX(0,$E$38*(100-$E$39)/100-SUM($I$41:AB41))) -> 0 | AD41: =IF(SUM($I$41:AC41)<=(100-$E$41)/100*$E$38*(100-$E$39)/100,$E$41/100*$E$38*(100-$E$39)/100,MAX(0,$E$38*(100-$E$39)/100-SUM($I$41:AC41))) -> 0 | AE41: =IF(SUM($I$41:AD41)<=(100-$E$41)/100*$E$38*(100-$E$39)/100,$E$41/100*$E$38*(100-$E$39)/100,MAX(0,$E$38*(100-$E$39)/100-SUM($I$41:AD41))) -> 0 | AF41: =IF(SUM($I$41:AE41)<=(100-$E$41)/100*$E$38*(100-$E$39)/100,$E$41/100*$E$38*(100-$E$39)/100,MAX(0,$E$38*(100-$E$39)/100-SUM($I$41:AE41))) -> 0 | AG41: =IF(SUM($I$41:AF41)<=(100-$E$41)/100*$E$38*(100-$E$39)/100,$E$41/100*$E$38*(100-$E$39)/100,MAX(0,$E$38*(100-$E$39)/100-SUM($I$41:AF41))) -> 0 | AH41: =IF(SUM($I$41:AG41)<=(100-$E$41)/100*$E$38*(100-$E$39)/100,$E$41/100*$E$38*(100-$E$39)/100,MAX(0,$E$38*(100-$E$39)/100-SUM($I$41:AG41))) -> 0 | AI41: =IF(SUM($I$41:AH41)<=(100-$E$41)/100*$E$38*(100-$E$39)/100,$E$41/100*$E$38*(100-$E$39)/100,MAX(0,$E$38*(100-$E$39)/100-SUM($I$41:AH41))) -> 0 | AJ41: =IF(SUM($I$41:AI41)<=(100-$E$41)/100*$E$38*(100-$E$39)/100,$E$41/100*$E$38*(100-$E$39)/100,MAX(0,$E$38*(100-$E$39)/100-SUM($I$41:AI41))) -> 0 | AK41: =IF(SUM($I$41:AJ41)<=(100-$E$41)/100*$E$38*(100-$E$39)/100,$E$41/100*$E$38*(100-$E$39)/100,MAX(0,$E$38*(100-$E$39)/100-SUM($I$41:AJ41))) -> 0 | AL41: =IF(SUM($I$41:AK41)<=(100-$E$41)/100*$E$38*(100-$E$39)/100,$E$41/100*$E$38*(100-$E$39)/100,MAX(0,$E$38*(100-$E$39)/100-SUM($I$41:AK41))) -> 0 | AN41: =SUM(I41:AL41)/$AN$58 -> 0.01896717989 | AP41: =SUMPRODUCT(I41:AL41,I$68:AL$68) -> 6.513889974 | AQ41: =AP41/$AP$58 -> 0.0634739861
A43: Fahrerkosten | C43: 2 | E43: =G17 -> 1.574795918 | F43: M€/a | I43: =E43 -> 1.574795918 | J43: =I43*(1+$C43/100) -> 1.606291837 | K43: 1.638417673 | L43: 1.671186027 | M43: 1.704609747 | N43: 1.738701942 | O43: 1.773475981 | P43: 1.808945501 | Q43: 1.845124411 | R43: 1.882026899 | S43: 1.919667437 | T43: 1.958060786 | U43: 1.997222002 | V43: 2.037166442 | W43: 2.07790977 | X43: 2.119467966 | Y43: 2.161857325 | Z43: 2.205094472 | AA43: 2.249196361 | AB43: 2.294180288 | AC43: 2.340063894 | AD43: 2.386865172 | AE43: 2.434602475 | AF43: 2.483294525 | AG43: 2.532960415 | AH43: 2.583619624 | AI43: 2.635292016 | AJ43: 2.687997857 | AK43: 2.741757814 | AL43: 2.79659297 | AN43: =SUM(I43:AL43)/$AN$58 -> 0.3587356884 | AP43: =SUMPRODUCT(I43:AL43,I$68:AL$68) -> 36.81452745 | AQ43: =AP43/$AP$58 -> 0.3587356884
A45: Elektrizitätsbedarf | C45: 2 | E45: =K3*D1*1000/3600*C17 -> 0 | F45: MWh/a | G45: 20 | H45: €/MWh | I45: =E45*G45/1000000 -> 0 | J45: =I45*(1+$C45/100) -> 0 | K45: 0 | L45: 0 | M45: 0 | N45: 0 | O45: 0 | P45: 0 | Q45: 0 | R45: 0 | S45: 0 | T45: 0 | U45: 0 | V45: 0 | W45: 0 | X45: 0 | Y45: 0 | Z45: 0 | AA45: 0 | AB45: 0 | AC45: 0 | AD45: 0 | AE45: 0 | AF45: 0 | AG45: 0 | AH45: 0 | AI45: 0 | AJ45: 0 | AK45: 0 | AL45: 0 | AN45: =SUM(I45:AL45)/$AN$58 -> 0 | AP45: =SUMPRODUCT(I45:AL45,I$68:AL$68) -> 0 | AQ45: =AP45/$AP$58 -> 0
A47: Kraftstoffbedarf | C47: 2 | D47: Diesel | E47: =IF(D47="Diesel",G15,0) -> 46782120 | F47: MJ/a | G47: =J19 -> 0.02957746479 | H47: €/MJ | I47: =E47*G47/1000000 -> 1.383696507 | J47: =I47*(1+$C47/100) -> 1.411370437 | K47: 1.439597846 | L47: 1.468389803 | M47: 1.497757599 | N47: 1.527712751 | O47: 1.558267006 | P47: 1.589432346 | Q47: 1.621220993 | R47: 1.653645413 | S47: 1.686718321 | T47: 1.720452687 | U47: 1.754861741 | V47: 1.789958976 | W47: 1.825758156 | X47: 1.862273319 | Y47: 1.899518785 | Z47: 1.937509161 | AA47: 1.976259344 | AB47: 2.015784531 | AC47: 2.056100221 | AD47: 2.097222226 | AE47: 2.13916667 | AF47: 2.181950004 | AG47: 2.225589004 | AH47: 2.270100784 | AI47: 2.3155028 | AJ47: 2.361812856 | AK47: 2.409049113 | AL47: 2.457230095 | AN47: =SUM(I47:AL47)/$AN$58 -> 0.3152035849 | AP47: =SUMPRODUCT(I47:AL47,I$68:AL$68) -> 32.34713302 | AQ47: =AP47/$AP$58 -> 0.3152035849
A49: Summe Auszahlungen | I49: =SUM(I35:I48) -> 4.309621677 | J49: 4.348524587 | K49: 4.388881119 | L49: 4.430720347 | M49: 4.474071924 | N49: 4.518966097 | O49: 4.565433719 | P49: 4.613506257 | Q49: 4.663215811 | R49: 4.71459512 | S49: 4.429895267 | T49: 4.518493173 | U49: 4.608863036 | V49: 4.701040297 | W49: 4.795061103 | X49: 4.890962325 | Y49: 4.988781571 | Z49: 5.088557203 | AA49: 5.190328347 | AB49: 5.294134914 | AC49: 5.400017612 | AD49: 5.508017964 | AE49: 5.618178324 | AF49: 5.73054189 | AG49: 5.845152728 | AH49: 5.962055783 | AI49: 6.081296898 | AJ49: 6.202922836 | AK49: 6.326981293 | AL49: 6.453520919 | AN49: =SUM(I49:AL49) -> 152.6623401 | AP49: =SUMPRODUCT(I49:AL49,I$68:AL$68) -> 95.55561516 | AQ49: =AP49/$AP$58 -> 0.9311326738
A52: Einzahlungen | G52: ankommende Menge
A53: Transportkosten | C53: 2 | E53: 43.89850159 | F53: €/t | G53: =IF(D47="transp. Pr.",D1-G16-G27/100*D1,D1-G27/100*D1) -> 100000 | H53: t/a | I53: =E53*G53/1000000 -> 4.389850159 | J53: =I53*(1+$C53/100) -> 4.477647162 | K53: 4.567200105 | L53: 4.658544107 | M53: 4.751714989 | N53: 4.846749289 | O53: 4.943684275 | P53: 5.04255796 | Q53: 5.143409119 | R53: 5.246277302 | S53: 5.351202848 | T53: 5.458226905 | U53: 5.567391443 | V53: 5.678739272 | W53: 5.792314057 | X53: 5.908160338 | Y53: 6.026323545 | Z53: 6.146850016 | AA53: 6.269787016 | AB53: 6.395182757 | AC53: 6.523086412 | AD53: 6.65354814 | AE53: 6.786619103 | AF53: 6.922351485 | AG53: 7.060798515 | AH53: 7.202014485 | AI53: 7.346054775 | AJ53: 7.49297587 | AK53: 7.642835387 | AL53: 7.795692095 | AN53: =SUM(I53:AL53)/$AN$58*($AN$58-$AN$49)/$AN$58 -> 0.1427691867 | AP53: =SUMPRODUCT(I53:AL53,I$68:AL$68) -> 102.6229858 | AQ53: =AP53/$AP$58*($AP$58-$AP$49)/$AP$58 -> 0.06886732621
E54: =E53/1000 -> 0.04389850159 | F54: €/kg | G54: =G53/D1 -> 1 | H54: Anteil
B55: bezogen auf ankommende Menge | E55: =E54/G55*32 -> 0.03257468574 | F55: €/l BÄ | G55: =C18 -> 43.12404 | H55: MJ/kg (Heizwert)
B56: bezogen auf eingehende Menge | E56: =E55*G53/D1 -> 0.03257468574 | F56: €/l BÄ
A58: Summe Einzahlungen | I58: =SUM(I53:I57) -> 4.389850159 | J58: 4.477647162 | K58: 4.567200105 | L58: 4.658544107 | M58: 4.751714989 | N58: 4.846749289 | O58: 4.943684275 | P58: 5.04255796 | Q58: 5.143409119 | R58: 5.246277302 | S58: 5.351202848 | T58: 5.458226905 | U58: 5.567391443 | V58: 5.678739272 | W58: 5.792314057 | X58: 5.908160338 | Y58: 6.026323545 | Z58: 6.146850016 | AA58: 6.269787016 | AB58: 6.395182757 | AC58: 6.523086412 | AD58: 6.65354814 | AE58: 6.786619103 | AF58: 6.922351485 | AG58: 7.060798515 | AH58: 7.202014485 | AI58: 7.346054775 | AJ58: 7.49297587 | AK58: 7.642835387 | AL58: 7.795692095 | AN58: =SUM(I58:AL58) -> 178.0877889 | AP58: =SUMPRODUCT(I58:AL58,I$68:AL$68) -> 102.6229858 | AQ58: =AP58/$AP$58*($AP$58-$AP$49)/$AP$58 -> 0.06886732621
A61: Überschuss | I61: =I58-I49 -> 0.08022848139 | J61: 0.1291225748 | K61: 0.1783189855 | L61: 0.2278237598 | M61: 0.2776430649 | N61: 0.3277831915 | O61: 0.378250556 | P61: 0.4290517032 | Q61: 0.4801933087 | R61: 0.5316821817 | S61: 0.9213075804 | T61: 0.939733732 | U61: 0.9585284066 | V61: 0.9776989748 | W61: 0.9972529543 | X61: 1.017198013 | Y61: 1.037541974 | Z61: 1.058292813 | AA61: 1.079458669 | AB61: 1.101047843 | AC61: 1.1230688 | AD61: 1.145530176 | AE61: 1.168440779 | AF61: 1.191809595 | AG61: 1.215645787 | AH61: 1.239958702 | AI61: 1.264757876 | AJ61: 1.290053034 | AK61: 1.315854095 | AL61: 1.342171176
A62: Barwert | C62: 10 | I62: =I61*(1+$C$62/100)^-(I33) -> 0.07293498308 | J62: 0.1067128718 | K62: 0.1339736931 | L62: 0.1556066934 | M62: 0.1723944992 | N62: 0.1850250663 | O62: 0.1941023435 | P62: 0.200155786 | Q62: 0.2036488386 | R62: 0.2049864972 | S62: 0.3229126865 | T62: 0.2994281275 | U62: 0.2776515364 | V62: 0.2574586974 | W62: 0.2387344285 | X62: 0.2213719246 | Y62: 0.2052721482 | Z62: 0.1903432647 | AA62: 0.1765001182 | AB62: 0.163663746 | AC62: 0.1517609281 | AD62: 0.1407237697 | AE62: 0.1304893137 | AF62: 0.1209991818 | AG62: 0.1121992413 | AH62: 0.1040392965 | AI62: 0.09647280219 | AJ62: 0.0894565984 | AK62: 0.08295066397 | AL62: 0.07691788841
A63: Abzinsungsfaktor | I63: =(1+$C$62/100)^-(I33) -> 0.9090909091 | J63: 0.826446281 | K63: 0.7513148009 | L63: 0.6830134554 | M63: 0.6209213231 | N63: 0.5644739301 | O63: 0.5131581182 | P63: 0.4665073802 | Q63: 0.4240976184 | R63: 0.3855432894 | S63: 0.3504938995 | T63: 0.3186308177 | U63: 0.2896643797 | V63: 0.2633312543 | W63: 0.2393920494 | X63: 0.2176291358 | Y63: 0.1978446689 | Z63: 0.1798587899 | AA63: 0.1635079908 | AB63: 0.148643628 | AC63: 0.1351305709 | AD63: 0.1228459736 | AE63: 0.1116781578 | AF63: 0.101525598 | AG63: 0.09229599818 | AH63: 0.08390545289 | AI63: 0.07627768444 | AJ63: 0.06934334949 | AK63: 0.06303940863 | AL63: 0.0573085533
A65: Endwertmethode | B65: Rendite: | C65: 10 | F65: Eigenkapital (Verzinsung) | H65: =E39/100*$E$38 -> 2.251882086 | I65: =$H$65*(1+$C$65/100)^I33 -> 2.477070295 | J65: 2.724777324 | K65: 2.997255057 | L65: 3.296980562 | M65: 3.626678619 | N65: 3.98934648 | O65: 4.388281128 | P65: 4.827109241 | Q65: 5.309820165 | R65: 5.840802182 | S65: 6.4248824 | T65: 7.06737064 | U65: 7.774107704 | V65: 8.551518475 | W65: 9.406670322 | X65: 10.34733735 | Y65: 11.38207109 | Z65: 12.5202782 | AA65: 13.77230602 | AB65: 15.14953662 | AC65: 16.66449028 | AD65: 18.33093931 | AE65: 20.16403324 | AF65: 22.18043657 | AG65: 24.39848022 | AH65: 26.83832825 | AI65: 29.52216107 | AJ65: 32.47437718 | AK65: 35.72181489 | AL65: 39.29399638 | AN65: =INDIRECT(ADDRESS(ROW(),COLUMN()-32+Jahre3)) -> 7.06737064
F66: Überschuss (Endwertberechnung) | I66: =I61*I68 -> 0.2289012206 | J66: 0.3349107049 | K66: 0.4204668401 | L66: 0.4883604621 | M66: 0.5410477883 | N66: 0.5806879185 | O66: 0.609176303 | P66: 0.6281745986 | Q66: 0.6391372939 | R66: 0.6433354398 | S66: 1.013438338 | T66: 0.939733732 | U66: 0 | V66: 0 | W66: 0 | X66: 0 | Y66: 0 | Z66: 0 | AA66: 0 | AB66: 0 | AC66: 0 | AD66: 0 | AE66: 0 | AF66: 0 | AG66: 0 | AH66: 0 | AI66: 0 | AJ66: 0 | AK66: 0 | AL66: 0
F67: Überschuss (Endwertberechnung) - aufsummiert | I67: =SUM($I$66:I66) -> 0.2289012206 | J67: =SUM($I$66:J66) -> 0.5638119255 | K67: =SUM($I$66:K66) -> 0.9842787656 | L67: =SUM($I$66:L66) -> 1.472639228 | M67: =SUM($I$66:M66) -> 2.013687016 | N67: =SUM($I$66:N66) -> 2.594374935 | O67: =SUM($I$66:O66) -> 3.203551237 | P67: =SUM($I$66:P66) -> 3.831725836 | Q67: =SUM($I$66:Q66) -> 4.47086313 | R67: =SUM($I$66:R66) -> 5.11419857 | S67: =SUM($I$66:S66) -> 6.127636908 | T67: =SUM($I$66:T66) -> 7.06737064 | U67: =SUM($I$66:U66) -> 7.06737064 | V67: =SUM($I$66:V66) -> 7.06737064 | W67: =SUM($I$66:W66) -> 7.06737064 | X67: =SUM($I$66:X66) -> 7.06737064 | Y67: =SUM($I$66:Y66) -> 7.06737064 | Z67: =SUM($I$66:Z66) -> 7.06737064 | AA67: =SUM($I$66:AA66) -> 7.06737064 | AB67: =SUM($I$66:AB66) -> 7.06737064 | AC67: =SUM($I$66:AC66) -> 7.06737064 | AD67: =SUM($I$66:AD66) -> 7.06737064 | AE67: =SUM($I$66:AE66) -> 7.06737064 | AF67: =SUM($I$66:AF66) -> 7.06737064 | AG67: =SUM($I$66:AG66) -> 7.06737064 | AH67: =SUM($I$66:AH66) -> 7.06737064 | AI67: =SUM($I$66:AI66) -> 7.06737064 | AJ67: =SUM($I$66:AJ66) -> 7.06737064 | AK67: =SUM($I$66:AK66) -> 7.06737064 | AL67: =SUM($I$66:AL66) -> 7.06737064 | AN67: =INDIRECT(ADDRESS(ROW(),COLUMN()-32+Jahre3)) -> 7.06737064
C68: =C65 -> 10 | F68: Endwert-Faktor | I68: =IF((1+$C$68/100)^($H$1-I33)>=1,(1+$C$68/100)^($H$1-I33),0) -> 2.853116706 | J68: 2.59374246 | K68: 2.357947691 | L68: 2.14358881 | M68: 1.9487171 | N68: 1.771561 | O68: 1.61051 | P68: 1.4641 | Q68: 1.331 | R68: 1.21 | S68: 1.1 | T68: 1 | U68: 0 | V68: 0 | W68: 0 | X68: 0 | Y68: 0 | Z68: 0 | AA68: 0 | AB68: 0 | AC68: 0 | AD68: 0 | AE68: 0 | AF68: 0 | AG68: 0 | AH68: 0 | AI68: 0 | AJ68: 0 | AK68: 0 | AL68: 0

Sheet 010CAPEX (hidden)
A1: CAPEX | C1: für | D1: ='010OPEX'!D1 -> 34841.46301 | E1: t/a | F1: im Jahr: | G1: 2018 | I1: Faktoren | J1: TIC zu TPEC | K1: 3 | M1: TPEC: | N1: Total purchased equipment cost
J2: TPI zu TIC | K2: 1.6 | M2: TIC: | N2: Total installed cost
E3: Elektrolyseur | G3: 3000 | H3: h/a | M3: TPI: | N3: Total project investment
A4: Pfad: | C4: PtH: Alkali-Elektrolyse > grüner Wasserstoff
A6: Unit Operations: | C6: Beispiel-Unit | E6: Einheiten immer in t/a
C7: R (t/a) | D7: R-Bezug | E7: C (Mio. €) | F7: Jahr | G7: fCEPCI | H7: χ | I7: χ (Betr.Kost.) | J7: R-Faktor | K7: R_n (t/a) | L7: C_n(TPI) | M7: C_n | N7: Bezug(TPEC/TIC/TPI) | O7: Quelle
A9: Elektrolyse(Alkali) | C9: 15122.87335 | D9: H2 | E9: 39.5 | F9: 2016 | G9: =VLOOKUP($G$1,DATA!A3:B66,2,TRUE)/VLOOKUP(F9,DATA!A3:B66,2,TRUE) -> 1.113346871 | H9: 0.76 | I9: 0.9 | J9: ='010STREAMS'!E3*8000/$G$3 -> 2.666666667 | K9: =J9*$D$1 -> 92910.56802 | L9: =IF(N9="TIC",M9*$K$2,IF(N9="TPEC",M9*$K$2*$K$1,M9)) -> 174.7571674 | M9: =(K9/C9)^H9*E9*G9 -> 174.7571674 | N9: TPI | O9: P.R. Schmidt, W. Zittel, W. Weindorf, T. Raksha, Renewables in Transport 2050 - Empowering a sustainable mobility future with zero emission fuels from renewable electricity, 2016.
A18: Summe | J18: Summe(TPI) | L18: =SUM(L8:L16)*L19 -> 174.7571674 | M18: ="Mio. € ("&G1&")" -> Mio. € (2018)
A19: Faktor(für Sensitivitätsanalyse - Gesamitkapitalkosten) | L19: 1

Sheet 010OPEX (hidden)
A1: OPEX | C1: für | D1: =D3*D2 -> 34841.46301 | E1: t/a | F1: Betriebsdauer: | H1: 20 | I1: Jahre | J1: (<= 30 Jahre)
A2: Endwertmethode | C2: Faktor: | D2: 0.3484146301
C3: für | D3: 100000 | E3: t BÄ/a
I4: [Mio. €/a]
C5: Kostenstei-gerung (%/a) | E5: Preis/Einheit | G5: Einheiten/a | I5: 1 | J5: 2 | K5: 3 | L5: 4 | M5: 5 | N5: 6 | O5: 7 | P5: 8 | Q5: 9 | R5: 10 | S5: 11 | T5: 12 | U5: 13 | V5: 14 | W5: 15 | X5: 16 | Y5: 17 | Z5: 18 | AA5: 19 | AB5: 20 | AC5: 21 | AD5: 22 | AE5: 23 | AF5: 24 | AG5: 25 | AH5: 26 | AI5: 27 | AJ5: 28 | AK5: 29 | AL5: 30 | AN5: Summierung/Anteile | AP5: Summierung mit Kalkulatorischem Zinsfuß
A6: Auszahlungen
A9: Elektrolyse | B9: Zellen-Erneuerung | C9: 2 | D9: 10 | E9: 30 | F9: % der Investkosten | G9: ='010CAPEX'!M9*E9*1000000/D9/100 -> 5242715.022 | H9: €/a | I9: 0 | J9: 0 | K9: 0 | L9: 0 | M9: 0 | N9: 0 | O9: 0 | P9: 0 | Q9: 0 | R9: 0 | S9: =G9/1000000*(1+$C9/100)^(S5-1) -> 6.390840357 | T9: =S9*(1+$C9/100) -> 6.518657164 | U9: 6.649030308 | V9: 6.782010914 | W9: 6.917651132 | X9: 7.056004155 | Y9: 7.197124238 | Z9: 7.341066723 | AA9: 7.487888057 | AB9: 7.637645818 | AC9: 7.790398735 | AD9: 7.946206709 | AE9: 8.105130843 | AF9: 8.26723346 | AG9: 8.432578129 | AH9: 8.601229692 | AI9: 8.773254286 | AJ9: 8.948719372 | AK9: 9.127693759 | AL9: 9.310247634 | AN9: =SUM(I9:AL9)/$AN$56 -> 0.02844349061 | AP9: =SUMPRODUCT(I9:AL9,I$66:AL$66) -> 109.8224407 | AQ9: =AP9/$AP$56 -> 0.01245578889
B10: Reinwasser | C10: 2 | E10: 2 | F10: €/t | G10: ='010STREAMS'!E5*'010OPEX'!D1 -> 311343.7282 | H10: t/a | I10: =E10*G10/1000000 -> 0.6226874564 | J10: =I10*(1+$C10/100) -> 0.6351412056 | K10: 0.6478440297 | L10: 0.6608009103 | M10: 0.6740169285 | N10: 0.687497267 | O10: 0.7012472124 | P10: 0.7152721566 | Q10: 0.7295775998 | R10: 0.7441691518 | S10: 0.7590525348 | T10: =S10*(1+$C10/100) -> 0.7742335855 | U10: 0.7897182572 | V10: 0.8055126223 | W10: 0.8216228748 | X10: 0.8380553323 | Y10: 0.8548164389 | Z10: 0.8719127677 | AA10: 0.8893510231 | AB10: 0.9071380435 | AC10: 0.9252808044 | AD10: 0.9437864205 | AE10: 0.9626621489 | AF10: 0.9819153919 | AG10: 1.0015537 | AH10: 1.021584774 | AI10: 1.042016469 | AJ10: 1.062856799 | AK10: 1.084113935 | AL10: 1.105796213 | AN10: =SUM(I10:AL10)/$AN$56 -> 0.004627220788 | AP10: =SUMPRODUCT(I10:AL10,I$66:AL$66) -> 40.79811284 | AQ10: =AP10/$AP$56 -> 0.004627220788
A14: CO2-Emissionen | C14: 2 | E14: 0 | F14: €/t CO2 | G14: =E188*E185/1000000 -> 44455.89504 | H14: t CO2/a | I14: =E14*G14/1000000 -> 0 | J14: =I14*(1+$C14/100) -> 0 | K14: =J14*(1+$C14/100) -> 0 | L14: 0 | M14: 0 | N14: 0 | O14: 0 | P14: 0 | Q14: 0 | R14: 0 | S14: 0 | T14: 0 | U14: 0 | V14: 0 | W14: 0 | X14: 0 | Y14: 0 | Z14: 0 | AA14: 0 | AB14: 0 | AC14: 0 | AD14: 0 | AE14: 0 | AF14: 0 | AG14: 0 | AH14: 0 | AI14: 0 | AJ14: 0 | AK14: 0 | AL14: 0 | AN14: =SUM(I14:AL14)/$AN$56 -> 0 | AP14: =SUMPRODUCT(I14:AL14,I$66:AL$66) -> 0 | AQ14: =AP14/$AP$56 -> 0
A18: Elektrizität | B18: Elektrolyse | C18: 2 | E18: 50 | F18: €/MWh | G18: =D1*1000*('010STREAMS'!E7)/3600 -> 1843113.393 | H18: MWh/a | I18: =G18*E18/1000000 -> 92.15566966 | J18: =I18*(1+$C18/100) -> 93.99878305 | K18: 95.87875871 | L18: 97.79633388 | M18: 99.75226056 | N18: 101.7473058 | O18: 103.7822519 | P18: 105.8578969 | Q18: 107.9750549 | R18: 110.134556 | S18: 112.3372471 | T18: 114.583992 | U18: 116.8756719 | V18: 119.2131853 | W18: 121.597449 | X18: 124.029398 | Y18: 126.5099859 | Z18: 129.0401857 | AA18: 131.6209894 | AB18: 134.2534092 | AC18: 136.9384774 | AD18: 139.6772469 | AE18: 142.4707918 | AF18: 145.3202077 | AG18: 148.2266118 | AH18: 151.1911441 | AI18: 154.2149669 | AJ18: 157.2992663 | AK18: 160.4452516 | AL18: 163.6541566 | AN18: =SUM(I18:AL18)/$AN$56 -> 0.6848132655 | AP18: =SUMPRODUCT(I18:AL18,I$66:AL$66) -> 6037.98482 | AQ18: =AP18/$AP$56 -> 0.6848132655
A19: Elektrizität - Summe: | B19: =G18+G22 -> 1843113.393 | C19: MWh/a
A20: Verkauf - Wärme/Elektrizität: | B20: 0 | C20: MWh/a
A22: Wärme | B22: (elektrische Bereitstellung) | C22: 2 | E22: =E18 -> 50 | F22: €/MWh | G22: =IF(D1*1000*('010PINCH'!AP6)/3600>0, D1*1000*('010PINCH'!AP6)/3600,0) -> 0 | H22: MWh/a | I22: =G22*E22/1000000 -> 0 | J22: =I22*(1+$C22/100) -> 0 | K22: 0 | L22: 0 | M22: 0 | N22: 0 | O22: 0 | P22: 0 | Q22: 0 | R22: 0 | S22: 0 | T22: 0 | U22: 0 | V22: 0 | W22: 0 | X22: 0 | Y22: 0 | Z22: 0 | AA22: 0 | AB22: 0 | AC22: 0 | AD22: 0 | AE22: 0 | AF22: 0 | AG22: 0 | AH22: 0 | AI22: 0 | AJ22: 0 | AK22: 0 | AL22: 0 | AN22: =SUM(I22:AL22)/$AN$56 -> 0 | AP22: =SUMPRODUCT(I22:AL22,I$66:AL$66) -> 0 | AQ22: =AP22/$AP$56 -> 0
E23: Units:
A24: Arbeit | B24: DAC | C24: 3 | D24: Kurve B | E24: 3 | G24: =IF(D24="Kurve B", (E24*3.1589*('010CAPEX'!K8/8)^0.2386)*365,IF(D24="Kurve C",(E24*2.0596*('010CAPEX'!K8/8)^0.2441)*365,"FEHLER")) -> 0 | H24: h/a | I24: =G24*$E$29/1000000 -> 0 | J24: =I24*(1+$C24/100) -> 0 | K24: 0 | L24: 0 | M24: 0 | N24: 0 | O24: 0 | P24: 0 | Q24: 0 | R24: 0 | S24: 0 | T24: 0 | U24: 0 | V24: 0 | W24: 0 | X24: 0 | Y24: 0 | Z24: 0 | AA24: 0 | AB24: 0 | AC24: 0 | AD24: 0 | AE24: 0 | AF24: 0 | AG24: 0 | AH24: 0 | AI24: 0 | AJ24: 0 | AK24: 0 | AL24: 0 | AN24: =SUM(I24:AL24)/$AN$56 -> 0 | AP24: =SUMPRODUCT(I24:AL24,I$66:AL$66) -> 0 | AQ24: =AP24/$AP$56 -> 0
B25: Elektrolyse | C25: 3 | D25: Kurve B | E25: 2 | G25: =IF(D25="Kurve B", (E25*3.1589*('010CAPEX'!K9/8)^0.2386)*365,IF(D25="Kurve C",(E25*2.0596*('010CAPEX'!K9/8)^0.2441)*365,"FEHLER")) -> 21516.01327 | H25: h/a | I25: =G25*$E$29/1000000 -> 0.8649437336 | J25: =I25*(1+$C25/100) -> 0.8908920456 | K25: 0.917618807 | L25: 0.9451473712 | M25: 0.9735017924 | N25: 1.002706846 | O25: 1.032788052 | P25: 1.063771693 | Q25: 1.095684844 | R25: 1.128555389 | S25: 1.162412051 | T25: 1.197284412 | U25: 1.233202945 | V25: 1.270199033 | W25: 1.308305004 | X25: 1.347554154 | Y25: 1.387980779 | Z25: 1.429620202 | AA25: 1.472508808 | AB25: 1.516684073 | AC25: 1.562184595 | AD25: 1.609050133 | AE25: 1.657321636 | AF25: 1.707041286 | AG25: 1.758252524 | AH25: 1.8110001 | AI25: 1.865330103 | AJ25: 1.921290006 | AK25: 1.978928706 | AL25: 2.038296567 | AN25: =SUM(I25:AL25)/$AN$56 -> 0.007537652436 | AP25: =SUMPRODUCT(I25:AL25,I$66:AL$66) -> 60.81034756 | AQ25: =AP25/$AP$56 -> 0.006896958825
B26: rWGS | C26: 3 | D26: Kurve C | E26: 2 | G26: =IF(D26="Kurve B", (E26*3.1589*('010CAPEX'!K10/8)^0.2386)*365,IF(D26="Kurve C",(E26*2.0596*('010CAPEX'!K10/8)^0.2441)*365,"FEHLER")) -> 0 | H26: h/a | I26: =G26*$E$29/1000000 -> 0 | J26: =I26*(1+$C26/100) -> 0 | K26: 0 | L26: 0 | M26: 0 | N26: 0 | O26: 0 | P26: 0 | Q26: 0 | R26: 0 | S26: 0 | T26: 0 | U26: 0 | V26: 0 | W26: 0 | X26: 0 | Y26: 0 | Z26: 0 | AA26: 0 | AB26: 0 | AC26: 0 | AD26: 0 | AE26: 0 | AF26: 0 | AG26: 0 | AH26: 0 | AI26: 0 | AJ26: 0 | AK26: 0 | AL26: 0 | AN26: =SUM(I26:AL26)/$AN$56 -> 0 | AP26: =SUMPRODUCT(I26:AL26,I$66:AL$66) -> 0 | AQ26: =AP26/$AP$56 -> 0
B27: MeOH | C27: 3 | D27: Kurve C | E27: 4 | G27: =IF(D27="Kurve B", (E27*3.1589*('010CAPEX'!K11/8)^0.2386)*365,IF(D27="Kurve C",(E27*2.0596*('010CAPEX'!K11/8)^0.2441)*365,"FEHLER")) -> 0 | H27: h/a | I27: =G27*$E$29/1000000 -> 0 | J27: =I27*(1+$C27/100) -> 0 | K27: 0 | L27: 0 | M27: 0 | N27: 0 | O27: 0 | P27: 0 | Q27: 0 | R27: 0 | S27: 0 | T27: 0 | U27: 0 | V27: 0 | W27: 0 | X27: 0 | Y27: 0 | Z27: 0 | AA27: 0 | AB27: 0 | AC27: 0 | AD27: 0 | AE27: 0 | AF27: 0 | AG27: 0 | AH27: 0 | AI27: 0 | AJ27: 0 | AK27: 0 | AL27: 0 | AN27: =SUM(I27:AL27)/$AN$56 -> 0 | AP27: =SUMPRODUCT(I27:AL27,I$66:AL$66) -> 0 | AQ27: =AP27/$AP$56 -> 0
B29: Administration | C29: 3 | E29: 40.2 | F29: €/h | G29: 20 | H29: % der operativen Arbeit | I29: =G29/100*SUM(I24:I28) -> 0.1729887467 | J29: =I29*(1+$C29/100) -> 0.1781784091 | K29: 0.1835237614 | L29: 0.1890294742 | M29: 0.1947003585 | N29: 0.2005413692 | O29: 0.2065576103 | P29: 0.2127543386 | Q29: 0.2191369688 | R29: 0.2257110778 | S29: 0.2324824102 | T29: 0.2394568825 | U29: 0.2466405889 | V29: 0.2540398066 | W29: 0.2616610008 | X29: 0.2695108308 | Y29: 0.2775961558 | Z29: 0.2859240404 | AA29: 0.2945017617 | AB29: 0.3033368145 | AC29: 0.3124369189 | AD29: 0.3218100265 | AE29: 0.3314643273 | AF29: 0.3414082571 | AG29: 0.3516505048 | AH29: 0.36220002 | AI29: 0.3730660206 | AJ29: 0.3842580012 | AK29: 0.3957857412 | AL29: 0.4076593135 | AN29: =SUM(I29:AL29)/$AN$56 -> 0.001507530487 | AP29: =SUMPRODUCT(I29:AL29,I$66:AL$66) -> 12.16206951 | AQ29: =AP29/$AP$56 -> 0.001379391765
A31: Entsorgung | B31: Wasser | C31: 2 | E31: 2.5 | F31: €/t | G31: =D1*0 -> 0 | H31: t/a | I31: =G31*E31/1000000 -> 0 | J31: =I31*(1+$C31/100) -> 0 | K31: 0 | L31: 0 | M31: 0 | N31: 0 | O31: 0 | P31: 0 | Q31: 0 | R31: 0 | S31: 0 | T31: 0 | U31: 0 | V31: 0 | W31: 0 | X31: 0 | Y31: 0 | Z31: 0 | AA31: 0 | AB31: 0 | AC31: 0 | AD31: 0 | AE31: 0 | AF31: 0 | AG31: 0 | AH31: 0 | AI31: 0 | AJ31: 0 | AK31: 0 | AL31: 0 | AN31: =SUM(I31:AL31)/$AN$56 -> 0 | AP31: =SUMPRODUCT(I31:AL31,I$66:AL$66) -> 0 | AQ31: =AP31/$AP$56 -> 0
A33: Wartung | C33: 2 | E33: 7 | F33: % der Investkosten | I33: =E33/100*'010CAPEX'!$L$18 -> 12.23300172 | J33: =I33*(1+$C33/100) -> 12.47766175 | K33: 12.72721499 | L33: 12.98175929 | M33: 13.24139447 | N33: 13.50622236 | O33: 13.77634681 | P33: 14.05187375 | Q33: 14.33291122 | R33: 14.61956944 | S33: 14.91196083 | T33: 15.21020005 | U33: 15.51440405 | V33: 15.82469213 | W33: 16.14118597 | X33: 16.46400969 | Y33: 16.79328989 | Z33: 17.12915569 | AA33: 17.4717388 | AB33: 17.82117358 | AC33: 18.17759705 | AD33: 18.54114899 | AE33: 18.91197197 | AF33: 19.29021141 | AG33: 19.67601564 | AH33: 20.06953595 | AI33: 20.47092667 | AJ33: 20.8803452 | AK33: 21.2979521 | AL33: 21.72391115 | AN33: =SUM(I33:AL33)/$AN$56 -> 0.09090403101 | AP33: =SUMPRODUCT(I33:AL33,I$66:AL$66) -> 801.4990173 | AQ33: =AP33/$AP$56 -> 0.09090403101
A35: Verbrauchsmaterial | C35: 2 | E35: 15 | F35: % der Wartungskosten | I35: =E35/100*I33 -> 1.834950258 | J35: =I35*(1+$C35/100) -> 1.871649263 | K35: 1.909082248 | L35: 1.947263893 | M35: 1.986209171 | N35: 2.025933354 | O35: 2.066452021 | P35: 2.107781062 | Q35: 2.149936683 | R35: 2.192935417 | S35: 2.236794125 | T35: 2.281530008 | U35: 2.327160608 | V35: 2.37370382 | W35: 2.421177896 | X35: 2.469601454 | Y35: 2.518993483 | Z35: 2.569373353 | AA35: 2.62076082 | AB35: 2.673176036 | AC35: 2.726639557 | AD35: 2.781172348 | AE35: 2.836795795 | AF35: 2.893531711 | AG35: 2.951402345 | AH35: 3.010430392 | AI35: 3.070639 | AJ35: 3.13205178 | AK35: 3.194692816 | AL35: 3.258586672 | AN35: =SUM(I35:AL35)/$AN$56 -> 0.01363560465 | AP35: =SUMPRODUCT(I35:AL35,I$66:AL$66) -> 120.2248526 | AQ35: =AP35/$AP$56 -> 0.01363560465
A37: Versicherung | C37: 2 | E37: 1 | F37: % der Investkosten | I37: =E37/100*'010CAPEX'!$L$18 -> 1.747571674 | J37: =I37*(1+$C37/100) -> 1.782523107 | K37: 1.81817357 | L37: 1.854537041 | M37: 1.891627782 | N37: 1.929460337 | O37: 1.968049544 | P37: 2.007410535 | Q37: 2.047558746 | R37: 2.088509921 | S37: 2.130280119 | T37: 2.172885721 | U37: 2.216343436 | V37: 2.260670305 | W37: 2.305883711 | X37: 2.352001385 | Y37: 2.399041413 | Z37: 2.447022241 | AA37: 2.495962686 | AB37: 2.545881939 | AC37: 2.596799578 | AD37: 2.64873557 | AE37: 2.701710281 | AF37: 2.755744487 | AG37: 2.810859376 | AH37: 2.867076564 | AI37: 2.924418095 | AJ37: 2.982906457 | AK37: 3.042564586 | AL37: 3.103415878 | AN37: =SUM(I37:AL37)/$AN$56 -> 0.01298629014 | AP37: =SUMPRODUCT(I37:AL37,I$66:AL$66) -> 114.4998596 | AQ37: =AP37/$AP$56 -> 0.01298629014
A39: Eigenkapitalquote | E39: 40 | F39: %
A40: Zinsen | E40: 10 | F40: % | I40: =$E$40/100*('010CAPEX'!$L$18*(1-$E$39/100)) -> 10.48543004 | J40: =MAX(0,$E$40/100*('010CAPEX'!$L$18*(1-$E$39/100)-(J5-1)*$E$41/100*'010CAPEX'!$L$18*(1-$E$39/100))) -> 9.436887039 | K40: =MAX(0,$E$40/100*('010CAPEX'!$L$18*(1-$E$39/100)-(K5-1)*$E$41/100*'010CAPEX'!$L$18*(1-$E$39/100))) -> 8.388344035 | L40: =MAX(0,$E$40/100*('010CAPEX'!$L$18*(1-$E$39/100)-(L5-1)*$E$41/100*'010CAPEX'!$L$18*(1-$E$39/100))) -> 7.339801031 | M40: =MAX(0,$E$40/100*('010CAPEX'!$L$18*(1-$E$39/100)-(M5-1)*$E$41/100*'010CAPEX'!$L$18*(1-$E$39/100))) -> 6.291258026 | N40: =MAX(0,$E$40/100*('010CAPEX'!$L$18*(1-$E$39/100)-(N5-1)*$E$41/100*'010CAPEX'!$L$18*(1-$E$39/100))) -> 5.242715022 | O40: =MAX(0,$E$40/100*('010CAPEX'!$L$18*(1-$E$39/100)-(O5-1)*$E$41/100*'010CAPEX'!$L$18*(1-$E$39/100))) -> 4.194172017 | P40: =MAX(0,$E$40/100*('010CAPEX'!$L$18*(1-$E$39/100)-(P5-1)*$E$41/100*'010CAPEX'!$L$18*(1-$E$39/100))) -> 3.145629013 | Q40: =MAX(0,$E$40/100*('010CAPEX'!$L$18*(1-$E$39/100)-(Q5-1)*$E$41/100*'010CAPEX'!$L$18*(1-$E$39/100))) -> 2.097086009 | R40: =MAX(0,$E$40/100*('010CAPEX'!$L$18*(1-$E$39/100)-(R5-1)*$E$41/100*'010CAPEX'!$L$18*(1-$E$39/100))) -> 1.048543004 | S40: =MAX(0,$E$40/100*('010CAPEX'!$L$18*(1-$E$39/100)-(S5-1)*$E$41/100*'010CAPEX'!$L$18*(1-$E$39/100))) -> 0 | T40: =MAX(0,$E$40/100*('010CAPEX'!$L$18*(1-$E$39/100)-(T5-1)*$E$41/100*'010CAPEX'!$L$18*(1-$E$39/100))) -> 0 | U40: =MAX(0,$E$40/100*('010CAPEX'!$L$18*(1-$E$39/100)-(U5-1)*$E$41/100*'010CAPEX'!$L$18*(1-$E$39/100))) -> 0 | V40: =MAX(0,$E$40/100*('010CAPEX'!$L$18*(1-$E$39/100)-(V5-1)*$E$41/100*'010CAPEX'!$L$18*(1-$E$39/100))) -> 0 | W40: =MAX(0,$E$40/100*('010CAPEX'!$L$18*(1-$E$39/100)-(W5-1)*$E$41/100*'010CAPEX'!$L$18*(1-$E$39/100))) -> 0 | X40: =MAX(0,$E$40/100*('010CAPEX'!$L$18*(1-$E$39/100)-(X5-1)*$E$41/100*'010CAPEX'!$L$18*(1-$E$39/100))) -> 0 | Y40: =MAX(0,$E$40/100*('010CAPEX'!$L$18*(1-$E$39/100)-(Y5-1)*$E$41/100*'010CAPEX'!$L$18*(1-$E$39/100))) -> 0 | Z40: =MAX(0,$E$40/100*('010CAPEX'!$L$18*(1-$E$39/100)-(Z5-1)*$E$41/100*'010CAPEX'!$L$18*(1-$E$39/100))) -> 0 | AA40: =MAX(0,$E$40/100*('010CAPEX'!$L$18*(1-$E$39/100)-(AA5-1)*$E$41/100*'010CAPEX'!$L$18*(1-$E$39/100))) -> 0 | AB40: =MAX(0,$E$40/100*('010CAPEX'!$L$18*(1-$E$39/100)-(AB5-1)*$E$41/100*'010CAPEX'!$L$18*(1-$E$39/100))) -> 0 | AC40: =MAX(0,$E$40/100*('010CAPEX'!$L$18*(1-$E$39/100)-(AC5-1)*$E$41/100*'010CAPEX'!$L$18*(1-$E$39/100))) -> 0 | AD40: =MAX(0,$E$40/100*('010CAPEX'!$L$18*(1-$E$39/100)-(AD5-1)*$E$41/100*'010CAPEX'!$L$18*(1-$E$39/100))) -> 0 | AE40: =MAX(0,$E$40/100*('010CAPEX'!$L$18*(1-$E$39/100)-(AE5-1)*$E$41/100*'010CAPEX'!$L$18*(1-$E$39/100))) -> 0 | AF40: =MAX(0,$E$40/100*('010CAPEX'!$L$18*(1-$E$39/100)-(AF5-1)*$E$41/100*'010CAPEX'!$L$18*(1-$E$39/100))) -> 0 | AG40: =MAX(0,$E$40/100*('010CAPEX'!$L$18*(1-$E$39/100)-(AG5-1)*$E$41/100*'010CAPEX'!$L$18*(1-$E$39/100))) -> 0 | AH40: =MAX(0,$E$40/100*('010CAPEX'!$L$18*(1-$E$39/100)-(AH5-1)*$E$41/100*'010CAPEX'!$L$18*(1-$E$39/100))) -> 0 | AI40: =MAX(0,$E$40/100*('010CAPEX'!$L$18*(1-$E$39/100)-(AI5-1)*$E$41/100*'010CAPEX'!$L$18*(1-$E$39/100))) -> 0 | AJ40: =MAX(0,$E$40/100*('010CAPEX'!$L$18*(1-$E$39/100)-(AJ5-1)*$E$41/100*'010CAPEX'!$L$18*(1-$E$39/100))) -> 0 | AK40: =MAX(0,$E$40/100*('010CAPEX'!$L$18*(1-$E$39/100)-(AK5-1)*$E$41/100*'010CAPEX'!$L$18*(1-$E$39/100))) -> 0 | AL40: =MAX(0,$E$40/100*('010CAPEX'!$L$18*(1-$E$39/100)-(AL5-1)*$E$41/100*'010CAPEX'!$L$18*(1-$E$39/100))) -> 0 | AN40: =SUM(I40:AL40)/$AN$56 -> 0.01056366442 | AP40: =SUMPRODUCT(I40:AL40,I$66:AL$66) -> 271.9650512 | AQ40: =AP40/$AP$56 -> 0.03084560169
A41: jähliche Tilgung | E41: 10 | F41: % | I41: =$E$41/100*('010CAPEX'!$L$18*(1-$E$39/100)) -> 10.48543004 | J41: =IF(SUM($I$41:I41)<=(100-$E$41)/100*'010CAPEX'!$L$18*(100-$E$39)/100,$E$41/100*'010CAPEX'!$L$18*(100-$E$39)/100,MAX(0,'010CAPEX'!$L$18*(100-$E$39)/100-SUM($I$41:I41))) -> 10.48543004 | K41: =IF(SUM($I$41:J41)<=(100-$E$41)/100*'010CAPEX'!$L$18*(100-$E$39)/100,$E$41/100*'010CAPEX'!$L$18*(100-$E$39)/100,MAX(0,'010CAPEX'!$L$18*(100-$E$39)/100-SUM($I$41:J41))) -> 10.48543004 | L41: =IF(SUM($I$41:K41)<=(100-$E$41)/100*'010CAPEX'!$L$18*(100-$E$39)/100,$E$41/100*'010CAPEX'!$L$18*(100-$E$39)/100,MAX(0,'010CAPEX'!$L$18*(100-$E$39)/100-SUM($I$41:K41))) -> 10.48543004 | M41: =IF(SUM($I$41:L41)<=(100-$E$41)/100*'010CAPEX'!$L$18*(100-$E$39)/100,$E$41/100*'010CAPEX'!$L$18*(100-$E$39)/100,MAX(0,'010CAPEX'!$L$18*(100-$E$39)/100-SUM($I$41:L41))) -> 10.48543004 | N41: =IF(SUM($I$41:M41)<=(100-$E$41)/100*'010CAPEX'!$L$18*(100-$E$39)/100,$E$41/100*'010CAPEX'!$L$18*(100-$E$39)/100,MAX(0,'010CAPEX'!$L$18*(100-$E$39)/100-SUM($I$41:M41))) -> 10.48543004 | O41: =IF(SUM($I$41:N41)<=(100-$E$41)/100*'010CAPEX'!$L$18*(100-$E$39)/100,$E$41/100*'010CAPEX'!$L$18*(100-$E$39)/100,MAX(0,'010CAPEX'!$L$18*(100-$E$39)/100-SUM($I$41:N41))) -> 10.48543004 | P41: =IF(SUM($I$41:O41)<=(100-$E$41)/100*'010CAPEX'!$L$18*(100-$E$39)/100,$E$41/100*'010CAPEX'!$L$18*(100-$E$39)/100,MAX(0,'010CAPEX'!$L$18*(100-$E$39)/100-SUM($I$41:O41))) -> 10.48543004 | Q41: =IF(SUM($I$41:P41)<=(100-$E$41)/100*'010CAPEX'!$L$18*(100-$E$39)/100,$E$41/100*'010CAPEX'!$L$18*(100-$E$39)/100,MAX(0,'010CAPEX'!$L$18*(100-$E$39)/100-SUM($I$41:P41))) -> 10.48543004 | R41: =IF(SUM($I$41:Q41)<=(100-$E$41)/100*'010CAPEX'!$L$18*(100-$E$39)/100,$E$41/100*'010CAPEX'!$L$18*(100-$E$39)/100,MAX(0,'010CAPEX'!$L$18*(100-$E$39)/100-SUM($I$41:Q41))) -> 10.48543004 | S41: =IF(SUM($I$41:R41)<=(100-$E$41)/100*'010CAPEX'!$L$18*(100-$E$39)/100,$E$41/100*'010CAPEX'!$L$18*(100-$E$39)/100,MAX(0,'010CAPEX'!$L$18*(100-$E$39)/100-SUM($I$41:R41))) -> 0 | T41: =IF(SUM($I$41:S41)<=(100-$E$41)/100*'010CAPEX'!$L$18*(100-$E$39)/100,$E$41/100*'010CAPEX'!$L$18*(100-$E$39)/100,MAX(0,'010CAPEX'!$L$18*(100-$E$39)/100-SUM($I$41:S41))) -> 0 | U41: =IF(SUM($I$41:T41)<=(100-$E$41)/100*'010CAPEX'!$L$18*(100-$E$39)/100,$E$41/100*'010CAPEX'!$L$18*(100-$E$39)/100,MAX(0,'010CAPEX'!$L$18*(100-$E$39)/100-SUM($I$41:T41))) -> 0 | V41: =IF(SUM($I$41:U41)<=(100-$E$41)/100*'010CAPEX'!$L$18*(100-$E$39)/100,$E$41/100*'010CAPEX'!$L$18*(100-$E$39)/100,MAX(0,'010CAPEX'!$L$18*(100-$E$39)/100-SUM($I$41:U41))) -> 0 | W41: =IF(SUM($I$41:V41)<=(100-$E$41)/100*'010CAPEX'!$L$18*(100-$E$39)/100,$E$41/100*'010CAPEX'!$L$18*(100-$E$39)/100,MAX(0,'010CAPEX'!$L$18*(100-$E$39)/100-SUM($I$41:V41))) -> 0 | X41: =IF(SUM($I$41:W41)<=(100-$E$41)/100*'010CAPEX'!$L$18*(100-$E$39)/100,$E$41/100*'010CAPEX'!$L$18*(100-$E$39)/100,MAX(0,'010CAPEX'!$L$18*(100-$E$39)/100-SUM($I$41:W41))) -> 0 | Y41: =IF(SUM($I$41:X41)<=(100-$E$41)/100*'010CAPEX'!$L$18*(100-$E$39)/100,$E$41/100*'010CAPEX'!$L$18*(100-$E$39)/100,MAX(0,'010CAPEX'!$L$18*(100-$E$39)/100-SUM($I$41:X41))) -> 0 | Z41: =IF(SUM($I$41:Y41)<=(100-$E$41)/100*'010CAPEX'!$L$18*(100-$E$39)/100,$E$41/100*'010CAPEX'!$L$18*(100-$E$39)/100,MAX(0,'010CAPEX'!$L$18*(100-$E$39)/100-SUM($I$41:Y41))) -> 0 | AA41: =IF(SUM($I$41:Z41)<=(100-$E$41)/100*'010CAPEX'!$L$18*(100-$E$39)/100,$E$41/100*'010CAPEX'!$L$18*(100-$E$39)/100,MAX(0,'010CAPEX'!$L$18*(100-$E$39)/100-SUM($I$41:Z41))) -> 0 | AB41: =IF(SUM($I$41:AA41)<=(100-$E$41)/100*'010CAPEX'!$L$18*(100-$E$39)/100,$E$41/100*'010CAPEX'!$L$18*(100-$E$39)/100,MAX(0,'010CAPEX'!$L$18*(100-$E$39)/100-SUM($I$41:AA41))) -> 0 | AC41: =IF(SUM($I$41:AB41)<=(100-$E$41)/100*'010CAPEX'!$L$18*(100-$E$39)/100,$E$41/100*'010CAPEX'!$L$18*(100-$E$39)/100,MAX(0,'010CAPEX'!$L$18*(100-$E$39)/100-SUM($I$41:AB41))) -> 0 | AD41: =IF(SUM($I$41:AC41)<=(100-$E$41)/100*'010CAPEX'!$L$18*(100-$E$39)/100,$E$41/100*'010CAPEX'!$L$18*(100-$E$39)/100,MAX(0,'010CAPEX'!$L$18*(100-$E$39)/100-SUM($I$41:AC41))) -> 0 | AE41: =IF(SUM($I$41:AD41)<=(100-$E$41)/100*'010CAPEX'!$L$18*(100-$E$39)/100,$E$41/100*'010CAPEX'!$L$18*(100-$E$39)/100,MAX(0,'010CAPEX'!$L$18*(100-$E$39)/100-SUM($I$41:AD41))) -> 0 | AF41: =IF(SUM($I$41:AE41)<=(100-$E$41)/100*'010CAPEX'!$L$18*(100-$E$39)/100,$E$41/100*'010CAPEX'!$L$18*(100-$E$39)/100,MAX(0,'010CAPEX'!$L$18*(100-$E$39)/100-SUM($I$41:AE41))) -> 0 | AG41: =IF(SUM($I$41:AF41)<=(100-$E$41)/100*'010CAPEX'!$L$18*(100-$E$39)/100,$E$41/100*'010CAPEX'!$L$18*(100-$E$39)/100,MAX(0,'010CAPEX'!$L$18*(100-$E$39)/100-SUM($I$41:AF41))) -> 0 | AH41: =IF(SUM($I$41:AG41)<=(100-$E$41)/100*'010CAPEX'!$L$18*(100-$E$39)/100,$E$41/100*'010CAPEX'!$L$18*(100-$E$39)/100,MAX(0,'010CAPEX'!$L$18*(100-$E$39)/100-SUM($I$41:AG41))) -> 0 | AI41: =IF(SUM($I$41:AH41)<=(100-$E$41)/100*'010CAPEX'!$L$18*(100-$E$39)/100,$E$41/100*'010CAPEX'!$L$18*(100-$E$39)/100,MAX(0,'010CAPEX'!$L$18*(100-$E$39)/100-SUM($I$41:AH41))) -> 0 | AJ41: =IF(SUM($I$41:AI41)<=(100-$E$41)/100*'010CAPEX'!$L$18*(100-$E$39)/100,$E$41/100*'010CAPEX'!$L$18*(100-$E$39)/100,MAX(0,'010CAPEX'!$L$18*(100-$E$39)/100-SUM($I$41:AI41))) -> 0 | AK41: =IF(SUM($I$41:AJ41)<=(100-$E$41)/100*'010CAPEX'!$L$18*(100-$E$39)/100,$E$41/100*'010CAPEX'!$L$18*(100-$E$39)/100,MAX(0,'010CAPEX'!$L$18*(100-$E$39)/100-SUM($I$41:AJ41))) -> 0 | AL41: =IF(SUM($I$41:AK41)<=(100-$E$41)/100*'010CAPEX'!$L$18*(100-$E$39)/100,$E$41/100*'010CAPEX'!$L$18*(100-$E$39)/100,MAX(0,'010CAPEX'!$L$18*(100-$E$39)/100-SUM($I$41:AK41))) -> 0 | AN41: =SUM(I41:AL41)/$AN$56 -> 0.01920666258 | AP41: =SUMPRODUCT(I41:AL41,I$66:AL$66) -> 433.4422497 | AQ41: =AP41/$AP$56 -> 0.04915994512
A43: Steuern | C43: 2 | E43: 3 | F43: % | I43: ='010CAPEX'!L18*$E$43/100 -> 5.242715022 | J43: =I43*(1+$C43/100) -> 5.347569322 | K43: 5.454520709 | L43: 5.563611123 | M43: 5.674883345 | N43: 5.788381012 | O43: 5.904148632 | P43: 6.022231605 | Q43: 6.142676237 | R43: 6.265529762 | S43: 6.390840357 | T43: 6.518657164 | U43: 6.649030308 | V43: 6.782010914 | W43: 6.917651132 | X43: 7.056004155 | Y43: 7.197124238 | Z43: 7.341066723 | AA43: 7.487888057 | AB43: 7.637645818 | AC43: 7.790398735 | AD43: 7.946206709 | AE43: 8.105130843 | AF43: 8.26723346 | AG43: 8.432578129 | AH43: 8.601229692 | AI43: 8.773254286 | AJ43: 8.948719372 | AK43: 9.127693759 | AL43: 9.310247634 | AN43: =SUM(I43:AL43)/$AN$56 -> 0.03895887043 | AP43: =SUMPRODUCT(I43:AL43,I$66:AL$66) -> 343.4995789 | AQ43: =AP43/$AP$56 -> 0.03895887043
A45: Summe Auszahlungen | I45: =SUM(I7:I43) -> 135.8453884 | J45: 137.1047152 | K45: 138.4105109 | L45: 139.7637141 | M45: 141.1652825 | N45: 142.6161934 | O45: 144.1174438 | P45: 145.6700511 | Q45: 147.2750532 | R45: 148.9335092 | S45: 146.5519099 | T45: 149.496897 | U45: 152.5012024 | V45: 155.5660248 | W45: 158.6925877 | X45: 161.8821391 | Y45: 165.1359526 | Z45: 168.4553274 | AA45: 171.8415894 | AB45: 175.2960913 | AC45: 178.8202133 | AD45: 182.4153638 | AE45: 186.0829797 | AF45: 189.8245271 | AG45: 193.6415022 | AH45: 197.5354312 | AI45: 201.5078719 | AJ45: 205.5604133 | AK45: 209.694677 | AL45: 213.9123177 | AN45: =SUM(I45:AL45) -> 4985.316881 | AP45: =SUMPRODUCT(I45:AL45,I$66:AL$66) -> 8346.7084 | AQ45: =AP45/$AP$56 -> 0.9466629688
A48: Einzahlungen
A49: Verkauf | B49: Wasserstoff | C49: 2 | E49: 3674.283288 | F49: €/t | G49: =D1 -> 34841.46301 | H49: t/a | I49: =E49*G49/1000000 -> 128.0174052 | J49: =I49*(1+$C49/100) -> 130.5777534 | K49: 133.1893084 | L49: 135.8530946 | M49: 138.5701565 | N49: 141.3415596 | O49: 144.1683908 | P49: 147.0517586 | Q49: 149.9927938 | R49: 152.9926497 | S49: 156.0525027 | T49: 159.1735527 | U49: 162.3570238 | V49: 165.6041642 | W49: 168.9162475 | X49: 172.2945725 | Y49: 175.7404639 | Z49: 179.2552732 | AA49: 182.8403787 | AB49: 186.4971862 | AC49: 190.22713 | AD49: 194.0316726 | AE49: 197.912306 | AF49: 201.8705521 | AG49: 205.9079632 | AH49: 210.0261224 | AI49: 214.2266449 | AJ49: 218.5111778 | AK49: 222.8814013 | AL49: 227.3390294 | AN49: =SUM(I49:AL49)/$AN$56*(AN56-AN45)/AN56 -> 0.08258810129 | AP49: =SUMPRODUCT(I49:AL49,I$66:AL$66) -> 8387.624467 | AQ49: =AP49/$AP$56*($AP$56-$AP$45)/$AP$56 -> 0.05073970808
E50: =E49/1000 -> 3.674283288 | F50: €/kg
E51: =E50/G51*32 -> 0.9800375521 | F51: €/l BÄ | G51: 119.972 | H51: MJ/kg (Heizwert)
B54: Sauerstoff | C54: 2 | E54: 23.7 | F54: €/t | G54: =D1*'010STREAMS'!E4 -> 276502.2652 | H54: t/a | I54: =G54*E54/1000000 -> 6.553103686 | J54: =I54*(1+$C54/100) -> 6.684165759 | K54: 6.817849074 | L54: 6.954206056 | M54: 7.093290177 | N54: 7.235155981 | O54: 7.3798591 | P54: 7.527456282 | Q54: 7.678005408 | R54: 7.831565516 | S54: 7.988196826 | T54: 8.147960763 | U54: 8.310919978 | V54: 8.477138378 | W54: 8.646681145 | X54: 8.819614768 | Y54: 8.996007063 | Z54: 9.175927205 | AA54: 9.359445749 | AB54: 9.546634664 | AC54: 9.737567357 | AD54: 9.932318704 | AE54: 10.13096508 | AF54: 10.33358438 | AG54: 10.54025607 | AH54: 10.75106119 | AI54: 10.96608241 | AJ54: 11.18540406 | AK54: 11.40911214 | AL54: 11.63729438 | AN54: =SUM(I54:AL54)/$AN$56*(AN56-AN45)/AN56 -> 0.00422761569 | AP54: =SUMPRODUCT(I54:AL54,I$66:AL$66) -> 429.3554669 | AQ54: =AP54/$AP$56*($AP$56-$AP$45)/$AP$56 -> 0.002597323133
A56: Summe Einzahlungen | I56: =SUM(I49:I54) -> 134.5705089 | J56: 137.2619191 | K56: 140.0071575 | L56: 142.8073006 | M56: 145.6634467 | N56: 148.5767156 | O56: 151.5482499 | P56: 154.5792149 | Q56: 157.6707992 | R56: 160.8242152 | S56: 164.0406995 | T56: 167.3215135 | U56: 170.6679437 | V56: 174.0813026 | W56: 177.5629287 | X56: 181.1141872 | Y56: 184.736471 | Z56: 188.4312004 | AA56: 192.1998244 | AB56: 196.0438209 | AC56: 199.9646973 | AD56: 203.9639913 | AE56: 208.0432711 | AF56: 212.2041365 | AG56: 216.4482192 | AH56: 220.7771836 | AI56: 225.1927273 | AJ56: 229.6965819 | AK56: 234.2905135 | AL56: 238.9763238 | AN56: =SUM(I56:AL56) -> 5459.267065 | AP56: =SUMPRODUCT(I56:AL56,I$66:AL$66) -> 8816.979934 | AQ56: =AP56/$AP$56*($AP$56-$AP$45)/$AP$56 -> 0.05333703121
A59: Überschuss | I59: =I56-I45 -> -1.274879419 | J59: 0.1572038739 | K59: 1.596646593 | L59: 3.043586585 | M59: 4.498164174 | N59: 5.960522202 | O59: 7.430806069 | P59: 8.90916378 | Q59: 10.39574598 | R59: 11.89070601 | S59: 17.48878961 | T59: 17.82461646 | U59: 18.16674138 | V59: 18.51527777 | W59: 18.87034094 | X59: 19.2320481 | Y59: 19.60051841 | Z59: 19.97587301 | AA59: 20.35823503 | AB59: 20.74772962 | AC59: 21.144484 | AD59: 21.54862747 | AE59: 21.96029142 | AF59: 22.37960938 | AG59: 22.80671708 | AH59: 23.24175239 | AI59: 23.68485543 | AJ59: 24.13616858 | AK59: 24.59583647 | AL59: 25.06400606
A60: Barwert | C60: 10 | I60: =I59*(1+$C$60/100)^-(I5) -> -1.15898129 | J60: 0.1299205569 | K60: 1.199584217 | L60: 2.07881059 | M60: 2.79300605 | N60: 3.364559392 | O60: 3.813178459 | P60: 4.156190655 | Q60: 4.408811112 | R60: 4.584381908 | S60: 6.129714069 | T60: 5.679472119 | U60: 5.262257873 | V60: 4.875651319 | W60: 4.517409589 | X60: 4.185454007 | Y60: 3.877858075 | Z60: 3.592836346 | AA60: 3.328734106 | AB60: 3.084017804 | AC60: 2.857266195 | AD60: 2.647162121 | AE60: 2.45248489 | AF60: 2.272103226 | AG60: 2.104968718 | AH60: 1.95010976 | AI60: 1.806625929 | AJ60: 1.673682773 | AK60: 1.550506986 | AL60: 1.436381927
A61: Abzinsungsfaktor | I61: =(1+$C$60/100)^-(I5) -> 0.9090909091 | J61: 0.826446281 | K61: 0.7513148009 | L61: 0.6830134554 | M61: 0.6209213231 | N61: 0.5644739301 | O61: 0.5131581182 | P61: 0.4665073802 | Q61: 0.4240976184 | R61: 0.3855432894 | S61: 0.3504938995 | T61: 0.3186308177 | U61: 0.2896643797 | V61: 0.2633312543 | W61: 0.2393920494 | X61: 0.2176291358 | Y61: 0.1978446689 | Z61: 0.1798587899 | AA61: 0.1635079908 | AB61: 0.148643628 | AC61: 0.1351305709 | AD61: 0.1228459736 | AE61: 0.1116781578 | AF61: 0.101525598 | AG61: 0.09229599818 | AH61: 0.08390545289 | AI61: 0.07627768444 | AJ61: 0.06934334949 | AK61: 0.06303940863 | AL61: 0.0573085533
A63: Endwertmethode | B63: Rendite: | C63: 10 | F63: Eigenkapital (Verzinsung) | H63: =E39/100*'010CAPEX'!L18 -> 69.90286696 | I63: =$H$63*(1+$C$63/100)^I5 -> 76.89315365 | J63: 84.58246902 | K63: 93.04071592 | L63: 102.3447875 | M63: 112.5792663 | N63: 123.8371929 | O63: 136.2209122 | P63: 149.8430034 | Q63: 164.8273037 | R63: 181.3100341 | S63: 199.4410375 | T63: 219.3851413 | U63: 241.3236554 | V63: 265.4560209 | W63: 292.001623 | X63: 321.2017853 | Y63: 353.3219639 | Z63: 388.6541603 | AA63: 427.5195763 | AB63: 470.2715339 | AC63: 517.2986873 | AD63: 569.028556 | AE63: 625.9314116 | AF63: 688.5245528 | AG63: 757.3770081 | AH63: 833.1147089 | AI63: 916.4261798 | AJ63: 1008.068798 | AK63: 1108.875678 | AL63: 1219.763245 | AN63: =INDIRECT(ADDRESS(ROW(),COLUMN()-32+H1)) -> 470.2715339
F64: Überschuss (Endwertberechnung) | I64: =I59*I66 -> -7.79704657 | J64: 0.8740405401 | K64: 8.070202759 | L64: 13.98519814 | M64: 18.78994806 | N64: 22.63507314 | O64: 25.65315789 | P64: 27.96077242 | Q64: 29.66027653 | R64: 30.84142905 | S64: 41.23765109 | T64: 38.20864839 | U64: 35.40183958 | V64: 32.800944 | W64: 30.39087278 | X64: 28.15764162 | Y64: 26.08829 | Z64: 24.17080634 | AA64: 22.39405853 | AB64: 20.74772962 | AC64: 0 | AD64: 0 | AE64: 0 | AF64: 0 | AG64: 0 | AH64: 0 | AI64: 0 | AJ64: 0 | AK64: 0 | AL64: 0
F65: Überschuss (Endwertberechnung) - aufsummiert | I65: =SUM($I$64:I64) -> -7.79704657 | J65: =SUM($I$64:J64) -> -6.92300603 | K65: =SUM($I$64:K64) -> 1.147196729 | L65: =SUM($I$64:L64) -> 15.13239487 | M65: =SUM($I$64:M64) -> 33.92234293 | N65: =SUM($I$64:N64) -> 56.55741607 | O65: =SUM($I$64:O64) -> 82.21057397 | P65: =SUM($I$64:P64) -> 110.1713464 | Q65: =SUM($I$64:Q64) -> 139.8316229 | R65: =SUM($I$64:R64) -> 170.673052 | S65: =SUM($I$64:S64) -> 211.9107031 | T65: =SUM($I$64:T64) -> 250.1193514 | U65: =SUM($I$64:U64) -> 285.521191 | V65: =SUM($I$64:V64) -> 318.322135 | W65: =SUM($I$64:W64) -> 348.7130078 | X65: =SUM($I$64:X64) -> 376.8706494 | Y65: =SUM($I$64:Y64) -> 402.9589394 | Z65: =SUM($I$64:Z64) -> 427.1297458 | AA65: =SUM($I$64:AA64) -> 449.5238043 | AB65: =SUM($I$64:AB64) -> 470.2715339 | AC65: =SUM($I$64:AC64) -> 470.2715339 | AD65: =SUM($I$64:AD64) -> 470.2715339 | AE65: =SUM($I$64:AE64) -> 470.2715339 | AF65: =SUM($I$64:AF64) -> 470.2715339 | AG65: =SUM($I$64:AG64) -> 470.2715339 | AH65: =SUM($I$64:AH64) -> 470.2715339 | AI65: =SUM($I$64:AI64) -> 470.2715339 | AJ65: =SUM($I$64:AJ64) -> 470.2715339 | AK65: =SUM($I$64:AK64) -> 470.2715339 | AL65: =SUM($I$64:AL64) -> 470.2715339 | AN65: =INDIRECT(ADDRESS(ROW(),COLUMN()-32+H1)) -> 470.2715339
C66: =C63 -> 10 | F66: Endwert-Faktor | I66: =IF((1+$C$66/100)^($H$1-I5)>=1,(1+$C$66/100)^($H$1-I5),0) -> 6.115909045 | J66: 5.559917313 | K66: 5.054470285 | L66: 4.594972986 | M66: 4.177248169 | N66: 3.797498336 | O66: 3.452271214 | P66: 3.138428377 | Q66: 2.853116706 | R66: 2.59374246 | S66: 2.357947691 | T66: 2.14358881 | U66: 1.9487171 | V66: 1.771561 | W66: 1.61051 | X66: 1.4641 | Y66: 1.331 | Z66: 1.21 | AA66: 1.1 | AB66: 1 | AC66: 0 | AD66: 0 | AE66: 0 | AF66: 0 | AG66: 0 | AH66: 0 | AI66: 0 | AJ66: 0 | AK66: 0 | AL66: 0
I71: Kostenart | K71: Anteil | L71: Kosten
A72: Zusammensetzung Preise: | I72: Elektrizität - Elektrolyse | K72: =AQ18 -> 0.6848132655 | L72: =K72*$L$85 -> 0.6711427163 | M72: =K72+K73+K74+K75 -> 0.6848132655 | N72: =L72+L73+L74+L75 -> 0.6711427163 | P72: =N84 -> 0.1815889418 | Q72: =P72*$E$50/$E$51 -> 0.6807996414
K73: =AQ19 -> 0 | L73: 0 | P73: =N72 -> 0.6711427163 | Q73: =P73*$E$50/$E$51 -> 2.516197936
K74: =AQ22 -> 0 | L74: 0 | Q74: 0
K75: =AQ20 -> 0 | L75: 0 | Q75: 0
I76: Reinwasser | K76: =AQ10 -> 0.004627220788 | L76: 0.004534850135 | P76: =N78 -> 0.01789825474 | Q76: 0.0671027943
I77: Abwasser | K77: =AQ31 -> 0 | L77: 0 | P77: =N79 -> 0.1012965049 | Q77: 0.3797732589
I78: Verbrauchsmaterial | K78: =AQ35 -> 0.01363560465 | L78: 0.01336340461 | M78: =K76+K77+K78 -> 0.01826282544 | N78: =L76+L77+L78 -> 0.01789825474 | P78: =N80 -> 0.008111134373 | Q78: 0.03040965666
I79: Instandhaltung | K79: =AQ33+AQ9 -> 0.1033598199 | L79: 0.1012965049 | M79: =K79 -> 0.1033598199 | N79: =L79 -> 0.1012965049 | P79: =SUM(L155:L159) -> 0 | Q79: =P79*$E$50/$E$51 -> 0
I80: Lohnkosten | K80: =AQ24+AQ25+AQ26+AQ27+AQ29+AQ28 -> 0.00827635059 | L80: 0.008111134373 | M80: =K80 -> 0.00827635059 | N80: =L80 -> 0.008111134373 | P80: =L140 -> 0 | Q80: =P80*$E$50/$E$51 -> 0
I81: Steuern+Versicherung | K81: =AQ37+AQ43 -> 0.05194516058 | L81: 0.05090820802
I82: Finanzierung | K82: =AQ40+AQ41 -> 0.08000554682 | L82: 0.07840844026
I83: Rendite - H2 | K83: =AQ49 -> 0.05073970808 | L83: 0.0497268193
I84: Rendite - O2 | K84: =AQ54 -> 0.002597323133 | L84: 0.002545474205 | M84: =K81+K82+K83+K84 -> 0.1852877386 | N84: =L81+L82+L83+L84 -> 0.1815889418
K85: Preis: | L85: =E51 -> 0.9800375521 | M85: pro Kilogramm | N85: =SUM(N72:N84) -> 0.9800375521
N97: Größe: | O97: Strecke | Q97: €/l BÄ
A98: mit Transport: | K98: [von Makro ausgefüllt] | N98: t/a | O98: km | Q98: Preis: | R98: angekommene Menge | T98: MJ Diesel | U98: MJ Schweröl | V98: MWh Strom Erzeugerland | W98: MWh Strom Deutschland
K99: Flüssig: | L99: H2-LIQ | N99: =D1 -> 34841.46301 | O99: N/A | Q99: 0 | R99: 1 | T99: 0 | U99: 0 | V99: 0 | W99: 0
L100: H2-TRUCK-LIQ o. LIQ-TRUCK | N100: =N99*R99 -> 34841.46301 | O100: 0 | Q100: 0 | R100: 1 | T100: 0 | U100: 0 | V100: 0 | W100: 0
L101: H2-SHIP-LIQ o. LIQ-SHIP | N101: =N100*R100 -> 34841.46301 | O101: 0 | Q101: 0 | R101: 1 | T101: 0 | U101: 0 | V101: 0 | W101: 0
L102: H2-TRUCK-LIQ o. LIQ-TRUCK | N102: =N101*R101 -> 34841.46301 | O102: 0 | Q102: 0 | R102: 1 | T102: 0 | U102: 0 | V102: 0 | W102: 0
K103: Pipeline: | L103: H2-PIPE-LARGE | N103: =N102*R102 -> 34841.46301 | O103: 0 | Q103: 0 | R103: 1 | T103: 0 | U103: 0 | V103: 0 | W103: 0
L104: H2-PIPE-DISTR | N104: =N103*R103 -> 34841.46301 | O104: 0 | Q104: 0 | R104: 1 | T104: 0 | U104: 0 | V104: 0 | W104: 0
S105: Summe: | T105: =SUM(T99:T104) -> 0 | U105: =SUM(U99:U104) -> 0 | V105: 0 | W105: 0
L106: Preisberechnungen:
L107: bezogen auf Ausgangsmenge:
N108: Preis | O108: Menge | Q108: Verlustkosten: | R108: Summe:
L109: vor Transport | N109: =E51 -> 0.9800375521 | O109: =N99 -> 34841.46301
L110: ="n. " & L99 -> n. H2-LIQ | N110: =N109+Q99*N99/N99 -> 0.9800375521 | O110: =N100 -> 34841.46301 | P110: =N110-N109 -> 0 | Q110: =IF(SUM(M120:M125)=0,0,M120/SUM(M120:M125)*P119) -> 0 | R110: =P110+Q110 -> 0
L111: n. H2-TRUCK-LIQ o. LIQ-TRUCK | N111: =N110+Q100*N100/N99 -> 0.9800375521 | O111: =N101 -> 34841.46301 | P111: 0 | Q111: =IF(SUM(M120:M125)=0,0,M121/SUM(M120:M125)*P119) -> 0 | R111: 0
L112: n. H2-SHIP-LIQ o. LIQ-SHIP | N112: =N111+Q101*N101/N99 -> 0.9800375521 | O112: =N102 -> 34841.46301 | P112: 0 | Q112: =IF(SUM(M120:M125)=0,0,M122/SUM(M120:M125)*P119) -> 0 | R112: 0
L113: n. H2-TRUCK-LIQ o. LIQ-TRUCK | N113: =N112+Q102*N102/N99 -> 0.9800375521 | O113: =O112*R102 -> 34841.46301 | P113: 0 | Q113: =IF(SUM(M120:M125)=0,0,M123/SUM(M120:M125)*P119) -> 0 | R113: 0
L114: n. H2-PIPE-LARGE | N114: =N113+Q103*N103/N100 -> 0.9800375521 | O114: =O113*R103 -> 34841.46301 | P114: 0 | Q114: =IF(SUM(M120:M125)=0,0,M124/SUM(M120:M125)*P119) -> 0 | R114: 0
L115: n. H2-PIPE-DISTR | N115: =N114+Q104*N104/N101 -> 0.9800375521 | O115: =O114*R104 -> 34841.46301 | P115: 0 | Q115: =IF(SUM(M120:M125)=0,0,M125/SUM(M120:M125)*P119) -> 0 | R115: 0
L117: bezogen auf Menge nach Verlusten:
L119: Verluste durch: | M119: t/a | N119: =N115/O115*N99 -> 0.9800375521 | O119: ct/l BÄ | P119: =N119-N115 -> 0 | R119: Massebezogen: | T119: =E49/E51*N119 -> 3674.283288 | U119: €/t
L120: =L99 -> H2-LIQ | M120: =O109-O110 -> 0
L121: H2-TRUCK-LIQ o. LIQ-TRUCK | M121: 0
L122: H2-SHIP-LIQ o. LIQ-SHIP | M122: 0
L123: H2-TRUCK-LIQ o. LIQ-TRUCK | M123: 0
L124: H2-PIPE-LARGE | M124: 0
L125: H2-PIPE-DISTR | M125: 0
L133: Output:
I134: Kostenart | K134: [Farbe HEXRGB] | L134: €/l BÄ
I135: Elektrizität | K135: 12611584 | L135: =L72 -> 0.6711427163
I136: Biomasse | K136: 9359529 | L136: 0
I137: Erdgas | K137: 16764108 | L137: 0
I138: Biogas | K138: 3506772 | L138: 0
I139: CO2-Feed (Punktquelle) | K139: 13324695 | L139: 0
I140: CO2-Emissionspreis | K140: 6684774 | L140: =E51*AQ14 -> 0
I141: Reinwasser | K141: 3342489 | L141: =L76 -> 0.004534850135
I142: Abwasser | K142: 255 | L142: 0
I143: Kühlung | K143: 13311 | L143: 0
I144: Verbrauchsmaterial | K144: 13260 | L144: =L78 -> 0.01336340461
I145: Instandhaltung | K145: 3243501 | L145: 0.1012965049
I146: Lohnkosten | K146: 49407 | L146: 0.008111134373
I147: Steuern+Versicherung | K147: 0 | L147: 0.05090820802
I148: Finanzierung | K148: 4210752 | L148: 0.07840844026
I149: Rendite - Produkt | K149: 8421504 | L149: 0.0497268193
I150: Rendite - O2 | K150: 10921638 | L150: 0.002545474205
I151: Rendite - Wärme,Strom | K151: 12566463 | L151: 0
I152: Rendite - LPG | K152: 14277081 | L152: 0
I153: Rendite - Naphtha | K153: 14277081 | L153: 0
I154: Rendite - CO2-Speicherung | K154: 14277081 | L154: 0
I155: Transport - Verflüssigung | K155: 26265 | L155: =R110 -> 0
I156: Transport - Schiff | K156: 36799 | L156: =R112 -> 0
I157: Transport - LKW | K157: 3368601 | L157: =R111+R113 -> 0
I158: Transport - Pipeline | K158: 6395595 | L158: =R114 -> 0
I159: Transport - Verteilnetz | K159: 9352410 | L159: =R115 -> 0
G175: THG-Intensität | I175: THG-Menge: | K175: anteilig:
B177: THG-Input: | C177: Strom | E177: =G18+G22+G36+G36 -> 1843113.393 | F177: MWh/a | G177: 6.7 | H177: g CO2e/MJ | I177: =E177*3600*G177 -> 4.445589504e+10 | J177: g | K177: =I177/SUM(I177:I182) -> 1
C178: Reinwasser | E178: =G33 -> 0 | F178: t/a | G178: 0 | H178: g CO2e/t | I178: =G178*E178 -> 0 | K178: =I178/SUM(I177:I182) -> 0
B179: Transport: | C179: Diesel | E179: =T105 -> 0 | F179: MJ/a | G179: 89.4 | H179: g CO2e/MJ | I179: =E179*G179 -> 0 | J179: g | K179: =I179/SUM(I177:I182) -> 0
C180: Schweröl | E180: =U105 -> 0 | F180: MJ/a | G180: 94.5 | H180: g CO2e/MJ | I180: =E180*G180 -> 0 | J180: g | K180: =I180/SUM(I177:I182) -> 0
C181: Strom(Erz.) | E181: =V105 -> 0 | F181: MWh/a | G181: =G177 -> 6.7 | H181: g CO2e/MJ | I181: =E181*G181*3600 -> 0 | J181: g | K181: =I181/SUM(I177:I182) -> 0
C182: Strom(Dtl.) | E182: =W105 -> 0 | F182: MWh/a | G182: 111.4 | H182: g CO2e/MJ | I182: =E182*G182*3600 -> 0 | J182: g | K182: =I182/SUM(I177:I182) -> 0
B185: Output: | C185: PtL | E185: =G51*G49*1000 -> 4180000000 | F185: MJ/a
B186: (vor Transportverlusten)
